Workbook

Sheet Notes
A1: RSIH.xlsm; Traders Tip spreadsheet created for the January 2022 Issue
A2: Coded beginning 2021-November-05 by Ronald McAllister (rpmac_xltt@sprynet.com)
A4: This Workbook demonstrates an EXCEL version of the ideas presented
A5: by John Ehlers in an article titled "(Yet Another) Improved RSI", which originally appeared in the January 2022 issue of
A6: "Technical Analysis of Stocks and Commodities" magazine.
A8: * * * * * * * * * * * * * * * *
A12: New for May 2021
A13: Upgraded the data download logic to do a better job of catching the common data download errors and provide a more graceful resolution.
A14: This includes better user notification of the nature of the error and some user control over how the error should be handled.
A15: User notification comes in the form of a MSGbox display that includes the (sometimes cryptic) description of the error and offers the user three options.
A17: Abort - If I could customize the title, I would rename this button to "Debug"
A18: This choice places you in Debug mode at the failing VBA statement.
A19: Unless you are feeling good about your VBA (and Network) debugging skills, this is probably not for you.
A21: Retry
A22: Lets the code retry the failed download request.
A23: This is a reasonable option if the download request timed out (similar to video buffering) or your network connection has dropped out..
A24: Probably a good idea to make sure your internet connection is alive and well before you select Retry.
A26: Ignore
A27: Lets the code fall thru to a (hopefully) graceful error completion with the error indicated at the top of the InputPriceData tab
A29: New for August 2020
A30: Restructured my Symbol-Not-Found detection and now stop further processing in the not found case
A32: New with the May 2020 version of my T-Tips template: VBA to implement a "Perpetual" U.S. Markets Closed Holiday Calendar.
A34: Why we need one: The Yahoo Finance recently has begun having occasional filtration problems where bars for U.S. Market Closed Holidays
A35: make their way onto the Historical Data web page and into the Historical Data download.
A37: While testing this May 2020 spreadsheet with different symbols, I found that I sometimes had bars with the text "null" in the price fields.
A38: My code always translates the "null" text price values to zeros.
A39: The resulting zeros cause real problems with indicator computations and the amount of blank space below price candles on the price chart.
A41: "null" price bars can be valid for very lightly traded penny sheet symbols which may not trade every day the markets are open.
A42: But is definitely not normal for symbols on the big boards.
A44: A closer look determined that these "bars" were for holiday dates when the US markets are normally closed.
A45: I found it interesting that some times the next download for the same symbol would not contain any of these "holiday" bars. Weird!
A47: My approach here was to write code to determine if the DATE on a null price values bar falls on one of the 9 market closed U.S. Holidays.
A48: If the bar date corresponds to one of these market closed holidays, I drop the bar before it reaches the InputPriceData tab.
A49: If the date is not a holiday, I let the bar through with the resulting zero values.
A51: No messy tables to update over the years as there are good solid rules that can be used in VBA or any other programming language to determine
A52: the dates for U.S. Market Closed Holidays for any given calendar year.
A54: This workbook contains and uses VBA macros and may take advantage of user defined VBA Class structures.
A55: Input Data:
A56: The data in this workbook is sorted date-descending (most recent date at the top). All cell formulas and
A57: VBA routines are built assuming this date sequence.
A59: ERROR 9 (already fixed in this spreadsheet)
A60: On or about Jan 29, 2020 Yahoo Finance changed the format of the split factor expression used their historical data downloads.
A61: The Split expression went from using "/" as in "New Share Number/Old Share Number",
A62: to using ":" as in "New Share Number:Old Share Number".
A63: This caused the then current version of my VBA code to fail with a "Runtime Error '9': subscript out of range".
A65: Fix for this ERROR 9
A66: For T-Tip spreadsheets from September 2018 up to present:
A67: Selecting the Debug option takes one into the VBA at the code line which causes the failure:
A68: CellArray(C_A_RowNdx, C_A_ColNdx + 1) = SplitFactors(1)
A69: Two lines above the failing VBA line is a line that reads:
A70: SplitFactors = Split(CsvColumns(CsvColNdx), "/")
A71: Change the / to a :
A72: The corrected line should now read
A73: SplitFactors = Split(CsvColumns(CsvColNdx), ":")
A75: If you are fixing several spreadsheets and do not want to use the failure to find the fix location,
A76: you can use VBA’s FIND dialog (Ctrl F) to look for the substring
A77: SplitFactors =
A78: Do include one space and the equal sign in your FIND string
A79: Select the "Current Project" option
A80: There should only be one instance.
A82: T-Tip spreadsheets prior to the September 2018 spreadsheet do not hard fail.
A84: They just get weird results in the split columns of the Input Price Data tab (soft fail).
A85: These older spreadsheets used different data retrieval and formatting logic.
A87: To fix these older spreadsheets:
A88: In the VBA editor, use find (CTRL-F).
A89: Select the "Current Project" option, and search for the following:
A90: OtherChar:="/"
A91: You are looking for a hit in a line reading:
A92: Other:=True, OtherChar:="/", _
A93: This line is part of a multiline block of code starting with a line that reads:
A94: SplitRange.Offset(0, 1).Resize(SpRows, 1).TextToColumns
A95: Change the / to a : so that the line reads
A96: Other:=True, OtherChar:=":", _
A99: 2019-04-04 Finally came up with a mechanism to align the left location and overall length of the cursor scroll bar so that the left most and right most
A100: scroll bar thumb positions visually align reasonably well with the left and right ends of the price chart horizontal axis.
A101: Makes it a little easier to visually align the Thumb and thus the cursor with points of interest on the charts.
A103: Older:
B104: My sincere apologies to our Macintosh based readers: Neither MSXML nor WinHttpRequest are supported in your environment. So as it stands this version of the spreadsheet will not work for you.
B105: See "Why this approach does not work for Macintosh" below.
B106: I am investigating cURL as a non-Querytable based approach for the Macintosh environment.
A108: The new Yahoo Finance history download interface has changed rather radically. The biggest hurdle being a pseudo-security requirement of adding a
B109: crumb character string to any URL requesting any type of history download. That crumb must match up (by way of some sort of hash algorithm) with
B110: the Yahoo Finance cookie that must also be sent with any request to the new Yahoo History down load interface.
B112: A crumb value is returned, buried in the HTML for any of what I call the "entry level" Yahoo Finance web pages (no crumb security requirement for entry level pages).
B113: A crumb may come with other Yahoo Finance pages. A crumb may even accompany some of the secured pages as well. I have not checked.
B115: Entry level pages are the top level pages of the various Yahoo Finance dialogs and include: Quote Lookup, Stock Summary Quote, and any of the pages
B116: with links in the horizontal row with the "Summary" link on the quote summary page such as Options, Historical Data, and the rest.
B118: To date I have found no way to get at this crumb value using any native EXCEL capabilities.
B120: So this crumb requirement effectively shuts out any solution that attempts to exclusively use built-in facilities of EXCEL, which is to say a purely Querytables solution.
B122: The approach built for this Traders Tip spreadsheet uses WINHTTP calls to Load the InputPriceData worksheet.
B124: First I call to get the HTML text for the Yahoo Summary Quote page using the requested symbol. From this HTML text I extract the full company name,
B125: the market it trades, the market status and time stamp, and finally the associated crumb string. There is a bunch of other useful bits buried in this HTML
B126: text that do not necessarily appear on the web page your browser presents. Perhaps some day I will go after and build a worksheet with these other bits.
B128: Next I add the freshly extracted crumb string to the URLs I use in three separate WINHTTP calls to retrieve Price history, Split history, and Dividend history respectively.
B130: From there VBA code proceeds as in the past to fill in the cell formulas and formatting that make the "prettied up" InputPriceData sheet.
A132: Why this approach works for Windows:
B133: WINHTTP maintains a temporary computer memory cache where cookies are maintained for as long as the WINHTTP object is instantiated.
B134: WINHTTP updates this cache any time a "set cookie" header accompanies a web response.
B135: Subsequent WINHTTP calls automatically search this cache for cookies and add any "appropriate" cookies to the headers
B136: of any web requests that get sent out.
B137: This cookie handling automation means that even if the response to our WINHTTP call for the Summary web page includes a new version of
B138: the Yahoo Finance cookie, the imbedded Crumb value will always match the cookie newly installed in the cache!
A141: Why this approach does not work for Macintosh:
B142: For what it is worth, the Macintosh version of the MS Office suite of products do in fact maintain a special, shared amongst themselves only, cookie cache.
B143: They automate cookie handling into and from this cache JUST for the Office products and any Querytable activity they might originate.
B145: This cache is not tied to, nor shared with, any browser that might be installed on the MAC. And I have not found anything with HTTP capabilities similar to
B146: MSXML that can work with that Office product cookie cache.
B148: When working in the MAC EXCEL environment, I have not yet become conversant with a Mac based WINHTTP like capability.
B149: So l currently have no mechanism to replicate the non-Querytable data retrieval process I am using in Windows environments.
B150: A software product called CURL has been suggested as providing this capability in the MAC environment.
B151: A version of CURL is available for the Windows So some day I may explore its capabilities and how to access those capabilities from VBA.
A153: Calculation and Chart Worksheet Usage Comments:
C154: In General, Items in Bolded BLUE are items you may freely change to play what-if games.
C155: Be sure to have a backup copy of the spreadsheet before you alter anything else.
A157: Features carried forward from the June 2016 version of my T-Tips Template
A158: Added a pair of buttons near cell F12 that will allow the user to step the charting window forward or backward one bar for each click.
A159: I find this to be a good way to test my understanding of the author's ideas as I step through the evolution of the price behavior and the indicators.
B161: First: In the "Help! I would like to plot data" area.
B162: Added button to resolve #NA problems by locating the bar in the input data with a slightly more recent date than what the user actually requested.
B163: I find this particularly useful when I have a general idea of where I want to be date wise. Now I can pick a set of dates "out of the air".
B164: If either (or both) of my date specifications fall between dates that are available in the price history,
B165: this button will resolve them to the dates of the nearest, slightly more recent input bars.
B166: I can then refine my data interval search as necessary from there.
B167: Really great when working with Weekly or Monthly studies!
C168: 2016Jun11 - added logic to the "I would like to chart.." button to detect #N/A values and terminate
C169: gracefully with a message instead of blowing up in the charting logic.
B171: Second: In the "Price Chart Windowing Controls" area. (A11 and A12)
B172: When retrieving data for a new symbol or when changing from daily to weekly or monthly data, there was the possibility that the
B173: residual settings in A11 and A12 would fall outside of the number bars available on the input data tab after the new data retrieval.
B174: In certain combinations, this could create a serious error in the chart sizing logic and crash the spreadsheet.
B175: I have taken this opportunity to update the validity checking logic used in the chart sizing macros
B176: to adjust these values as necessary so that they fall within the boundaries of the newly retrieved input data.
A177: Features carried forward from the October 2015 Traders Tips Template
B178: Improved automation: changes to any of the following will automatically initiate calculations appropriate to reflect a change.
C179: Changing either of cells A11 (pan) or A12 (zoom) will automatically initiate the same chart sizing macros that the manual
C180: "Set Chart" button uses.

Sheet InputPriceData
A1: S&P 500 (^GSPC) -SNP (Daily)
M2: To retrieve data for symbols traded on non US Exchanges, | II2: 241.79
A3: Request Online Yahoo History for: | F3: Market State == > | G3: At close: | H3: 17:00:00 | I3: EDT | M3: you will need to append the dot-suffix for the exchange to the symbol.
A4: Symbol | B4: ^GSPC | D4: Valid | I4: =OFFSET(I4,-2,0,1,1) -> 0 | M4: The following links provide a description of how to use the exchange suffix
A5: From | B5: 1950-10-01 | D5: Data | M5: along with a list of suffixes for the major world exchanges. | AD5: Trailing 12 Div return (Cur Close)
A6: To | B6: =NOW() -> 2021-11-09T14:41:04.720 | D6: Types | E6: =VLOOKUP(B7,D7:E10,2,FALSE) -> d | M6: https://help.yahoo.com/kb/finance/SLN2310.html
A7: Data Type | B7: Daily | D7: Daily | E7: d | M7: And
A8: Crumb | B8: 08t8o6uJwru | D8: Weekly | E8: w | M8: https://www.stockmarketeye.com/users-guide/ticker-symbols-and-data-providers/data-providers.html
A9: Available Data | D9: Monthly | E9: m
A10: Bar Count: | B10: 17872 | M10: You may search on “exchange suffixes” for additional discussions | AD10: =OFFSET(AC15,1,0,1,1)/OFFSET(N15,1,0,1,1) -> 0
A11: From: | B11: =IF(B10<=0,"",OFFSET(B15,B10,IF(HistReqDataType="v",1,0),1,1)) -> 1950-10-02 | W11: Trailing 12 Month Dividend Returns
A12: To: | B12: =IF(B10<=0,"",IF(HistReqDataType="v",OFFSET(B15,2,1,1,1),OFFSET(B15,1,0,1,1))) -> 2021-10-08 | W12: Raw Close price on Dividend date | X12: Div Year and Month | Y12: Looking for year ago Div Year and Month | Z12: Year ago Div Date we found | AA12: row offset to year ago div Date | AB12: Same month flag | AC12: Trailing 12 Div Total | AD12: Trailing 12 Div return
Q13: Split History | S13: 0 | T13: Running | U13: Dividend History
B14: Raw Data Values | H14: Adjusted | I14: Price Adjust | J14: Vol Adjust | K14: Adjusted Values | P14: Last | Q14: Effective | R14: Shares | T14: Vol Adjust | V14: 0
A15: RelRow | B15: Date | C15: Open | D15: High | E15: Low | F15: Close | G15: Volume | H15: Close | I15: Factor | J15: Factor | K15: Open | L15: High | M15: Low | N15: Close | O15: Volume | P15: Trade | Q15: 44479 | R15: New | S15: Old | T15: 1 | U15: Date | V15: $ / Share
A16: 1 | B16: 2021-10-08 | C16: 4406.509766 | D16: 4412.02002 | E16: 4386.220215 | F16: 4391.339844 | G16: 2401890000 | H16: 4391.339844 | I16: =IF(F16=0,1,H16/F16) -> 1 | J16: =INDEX(OFFSET($T$15,0,0,$S$13+1,1),MATCH(B16,OFFSET($Q$15,0,0,$S$13+1,1),-1)) -> 1 | K16: =ROUND($I16*C16,2) -> 4406.51 | L16: =ROUND($I16*D16,2) -> 4412.02 | M16: 4386.22 | N16: 4391.34 | O16: =G16*J16 -> 2401890000
A17: 2 | B17: 2021-10-07 | C17: 4383.72998 | D17: 4429.970215 | E17: 4383.72998 | F17: 4399.759766 | G17: 3096080000 | H17: 4399.759766 | I17: =IF(F17=0,1,H17/F17) -> 1 | J17: =INDEX(OFFSET($T$15,0,0,$S$13+1,1),MATCH(B17,OFFSET($Q$15,0,0,$S$13+1,1),-1)) -> 1 | K17: =ROUND($I17*C17,2) -> 4383.73 | L17: =ROUND($I17*D17,2) -> 4429.97 | M17: =ROUND($I17*E17,2) -> 4383.73 | N17: =ROUND($I17*F17,2) -> 4399.76 | O17: =G17*J17 -> 3096080000
A18: 3 | B18: 2021-10-06 | C18: 4319.569824 | D18: 4365.569824 | E18: 4290.490234 | F18: 4363.549805 | G18: 3219590000 | H18: 4363.549805 | I18: 1 | J18: 1 | K18: 4319.57 | L18: 4365.57 | M18: 4290.49 | N18: 4363.55 | O18: 3219590000
A19: 4 | B19: 2021-10-05 | C19: 4309.870117 | D19: 4369.22998 | E19: 4309.870117 | F19: 4345.720215 | G19: 2967400000 | H19: 4345.720215 | I19: 1 | J19: 1 | K19: 4309.87 | L19: 4369.23 | M19: 4309.87 | N19: 4345.72 | O19: 2967400000
A20: 5 | B20: 2021-10-04 | C20: 4348.839844 | D20: 4355.509766 | E20: 4278.939941 | F20: 4300.459961 | G20: 3110560000 | H20: 4300.459961 | I20: 1 | J20: 1 | K20: 4348.84 | L20: 4355.51 | M20: 4278.94 | N20: 4300.46 | O20: 3110560000
A21: 6 | B21: 2021-10-01 | C21: 4317.160156 | D21: 4375.189941 | E21: 4288.52002 | F21: 4357.040039 | G21: 3148980000 | H21: 4357.040039 | I21: 1 | J21: 1 | K21: 4317.16 | L21: 4375.19 | M21: 4288.52 | N21: 4357.04 | O21: 3148980000
A22: 7 | B22: 2021-09-30 | C22: 4370.669922 | D22: 4382.549805 | E22: 4306.240234 | F22: 4307.540039 | G22: 3123770000 | H22: 4307.540039 | I22: 1 | J22: 1 | K22: 4370.67 | L22: 4382.55 | M22: 4306.24 | N22: 4307.54 | O22: 3123770000
A23: 8 | B23: 2021-09-29 | C23: 4362.410156 | D23: 4385.569824 | E23: 4355.080078 | F23: 4359.459961 | G23: 2753800000 | H23: 4359.459961 | I23: 1 | J23: 1 | K23: 4362.41 | L23: 4385.57 | M23: 4355.08 | N23: 4359.46 | O23: 2753800000
A24: 9 | B24: 2021-09-28 | C24: 4419.540039 | D24: 4419.540039 | E24: 4346.330078 | F24: 4352.629883 | G24: 3495970000 | H24: 4352.629883 | I24: 1 | J24: 1 | K24: 4419.54 | L24: 4419.54 | M24: 4346.33 | N24: 4352.63 | O24: 3495970000
A25: 10 | B25: 2021-09-27 | C25: 4442.120117 | D25: 4457.299805 | E25: 4436.189941 | F25: 4443.109863 | G25: 3032870000 | H25: 4443.109863 | I25: 1 | J25: 1 | K25: 4442.12 | L25: 4457.3 | M25: 4436.19 | N25: 4443.11 | O25: 3032870000
A26: 11 | B26: 2021-09-24 | C26: 4438.040039 | D26: 4463.120117 | E26: 4430.27002 | F26: 4455.47998 | G26: 2772090000 | H26: 4455.47998 | I26: 1 | J26: 1 | K26: 4438.04 | L26: 4463.12 | M26: 4430.27 | N26: 4455.48 | O26: 2772090000
A27: 12 | B27: 2021-09-23 | C27: 4406.75 | D27: 4465.399902 | E27: 4406.75 | F27: 4448.97998 | G27: 2833290000 | H27: 4448.97998 | I27: 1 | J27: 1 | K27: 4406.75 | L27: 4465.4 | M27: 4406.75 | N27: 4448.98 | O27: 2833290000
A28: 13 | B28: 2021-09-22 | C28: 4367.430176 | D28: 4416.75 | E28: 4367.430176 | F28: 4395.640137 | G28: 3273670000 | H28: 4395.640137 | I28: 1 | J28: 1 | K28: 4367.43 | L28: 4416.75 | M28: 4367.43 | N28: 4395.64 | O28: 3273670000
A29: 14 | B29: 2021-09-21 | C29: 4374.450195 | D29: 4394.870117 | E29: 4347.959961 | F29: 4354.189941 | G29: 3044300000 | H29: 4354.189941 | I29: 1 | J29: 1 | K29: 4374.45 | L29: 4394.87 | M29: 4347.96 | N29: 4354.19 | O29: 3044300000
A30: 15 | B30: 2021-09-20 | C30: 4402.950195 | D30: 4402.950195 | E30: 4305.910156 | F30: 4357.72998 | G30: 3773680000 | H30: 4357.72998 | I30: 1 | J30: 1 | K30: 4402.95 | L30: 4402.95 | M30: 4305.91 | N30: 4357.73 | O30: 3773680000
A31: 16 | B31: 2021-09-17 | C31: 4469.740234 | D31: 4471.52002 | E31: 4427.759766 | F31: 4432.990234 | G31: 5622210000 | H31: 4432.990234 | I31: 1 | J31: 1 | K31: 4469.74 | L31: 4471.52 | M31: 4427.76 | N31: 4432.99 | O31: 5622210000
A32: 17 | B32: 2021-09-16 | C32: 4477.089844 | D32: 4485.870117 | E32: 4443.799805 | F32: 4473.75 | G32: 3321030000 | H32: 4473.75 | I32: 1 | J32: 1 | K32: 4477.09 | L32: 4485.87 | M32: 4443.8 | N32: 4473.75 | O32: 3321030000
A33: 18 | B33: 2021-09-15 | C33: 4447.490234 | D33: 4486.870117 | E33: 4438.370117 | F33: 4480.700195 | G33: 3154760000 | H33: 4480.700195 | I33: 1 | J33: 1 | K33: 4447.49 | L33: 4486.87 | M33: 4438.37 | N33: 4480.7 | O33: 3154760000
A34: 19 | B34: 2021-09-14 | C34: 4479.330078 | D34: 4485.680176 | E34: 4435.459961 | F34: 4443.049805 | G34: 2568730000 | H34: 4443.049805 | I34: 1 | J34: 1 | K34: 4479.33 | L34: 4485.68 | M34: 4435.46 | N34: 4443.05 | O34: 2568730000
A35: 20 | B35: 2021-09-13 | C35: 4474.810059 | D35: 4492.990234 | E35: 4445.700195 | F35: 4468.72998 | G35: 3096390000 | H35: 4468.72998 | I35: 1 | J35: 1 | K35: 4474.81 | L35: 4492.99 | M35: 4445.7 | N35: 4468.73 | O35: 3096390000
A36: 21 | B36: 2021-09-10 | C36: 4506.919922 | D36: 4520.470215 | E36: 4457.660156 | F36: 4458.580078 | G36: 2851140000 | H36: 4458.580078 | I36: 1 | J36: 1 | K36: 4506.92 | L36: 4520.47 | M36: 4457.66 | N36: 4458.58 | O36: 2851140000
A37: 22 | B37: 2021-09-09 | C37: 4513.02002 | D37: 4529.899902 | E37: 4492.069824 | F37: 4493.279785 | G37: 3035300000 | H37: 4493.279785 | I37: 1 | J37: 1 | K37: 4513.02 | L37: 4529.9 | M37: 4492.07 | N37: 4493.28 | O37: 3035300000
A38: 23 | B38: 2021-09-08 | C38: 4518.089844 | D38: 4521.790039 | E38: 4493.950195 | F38: 4514.069824 | G38: 2808480000 | H38: 4514.069824 | I38: 1 | J38: 1 | K38: 4518.09 | L38: 4521.79 | M38: 4493.95 | N38: 4514.07 | O38: 2808480000
A39: 24 | B39: 2021-09-07 | C39: 4535.379883 | D39: 4535.379883 | E39: 4513 | F39: 4520.029785 | G39: 3098870000 | H39: 4520.029785 | I39: 1 | J39: 1 | K39: 4535.38 | L39: 4535.38 | M39: 4513 | N39: 4520.03 | O39: 3098870000
A40: 25 | B40: 2021-09-03 | C40: 4532.419922 | D40: 4541.450195 | E40: 4521.299805 | F40: 4535.430176 | G40: 2609660000 | H40: 4535.430176 | I40: 1 | J40: 1 | K40: 4532.42 | L40: 4541.45 | M40: 4521.3 | N40: 4535.43 | O40: 2609660000
A41: 26 | B41: 2021-09-02 | C41: 4534.47998 | D41: 4545.850098 | E41: 4524.660156 | F41: 4536.950195 | G41: 2897010000 | H41: 4536.950195 | I41: 1 | J41: 1 | K41: 4534.48 | L41: 4545.85 | M41: 4524.66 | N41: 4536.95 | O41: 2897010000
A42: 27 | B42: 2021-09-01 | C42: 4528.799805 | D42: 4537.109863 | E42: 4522.02002 | F42: 4524.089844 | G42: 3101830000 | H42: 4524.089844 | I42: 1 | J42: 1 | K42: 4528.8 | L42: 4537.11 | M42: 4522.02 | N42: 4524.09 | O42: 3101830000
A43: 28 | B43: 2021-08-31 | C43: 4529.75 | D43: 4531.390137 | E43: 4515.799805 | F43: 4522.680176 | G43: 3090380000 | H43: 4522.680176 | I43: 1 | J43: 1 | K43: 4529.75 | L43: 4531.39 | M43: 4515.8 | N43: 4522.68 | O43: 3090380000
A44: 29 | B44: 2021-08-30 | C44: 4513.759766 | D44: 4537.359863 | E44: 4513.759766 | F44: 4528.790039 | G44: 2557300000 | H44: 4528.790039 | I44: 1 | J44: 1 | K44: 4513.76 | L44: 4537.36 | M44: 4513.76 | N44: 4528.79 | O44: 2557300000
A45: 30 | B45: 2021-08-27 | C45: 4474.100098 | D45: 4513.330078 | E45: 4474.100098 | F45: 4509.370117 | G45: 2862360000 | H45: 4509.370117 | I45: 1 | J45: 1 | K45: 4474.1 | L45: 4513.33 | M45: 4474.1 | N45: 4509.37 | O45: 2862360000
A46: 31 | B46: 2021-08-26 | C46: 4493.75 | D46: 4495.899902 | E46: 4468.990234 | F46: 4470 | G46: 2704600000 | H46: 4470 | I46: 1 | J46: 1 | K46: 4493.75 | L46: 4495.9 | M46: 4468.99 | N46: 4470 | O46: 2704600000
A47: 32 | B47: 2021-08-25 | C47: 4490.450195 | D47: 4501.709961 | E47: 4485.660156 | F47: 4496.189941 | G47: 2554680000 | H47: 4496.189941 | I47: 1 | J47: 1 | K47: 4490.45 | L47: 4501.71 | M47: 4485.66 | N47: 4496.19 | O47: 2554680000
A48: 33 | B48: 2021-08-24 | C48: 4484.399902 | D48: 4492.810059 | E48: 4482.279785 | F48: 4486.22998 | G48: 3037770000 | H48: 4486.22998 | I48: 1 | J48: 1 | K48: 4484.4 | L48: 4492.81 | M48: 4482.28 | N48: 4486.23 | O48: 3037770000
A49: 34 | B49: 2021-08-23 | C49: 4450.290039 | D49: 4489.879883 | E49: 4450.290039 | F49: 4479.529785 | G49: 2965520000 | H49: 4479.529785 | I49: 1 | J49: 1 | K49: 4450.29 | L49: 4489.88 | M49: 4450.29 | N49: 4479.53 | O49: 2965520000
A50: 35 | B50: 2021-08-20 | C50: 4410.560059 | D50: 4444.350098 | E50: 4406.799805 | F50: 4441.669922 | G50: 2867770000 | H50: 4441.669922 | I50: 1 | J50: 1 | K50: 4410.56 | L50: 4444.35 | M50: 4406.8 | N50: 4441.67 | O50: 2867770000
A51: 36 | B51: 2021-08-19 | C51: 4382.439941 | D51: 4418.609863 | E51: 4367.72998 | F51: 4405.799805 | G51: 3120840000 | H51: 4405.799805 | I51: 1 | J51: 1 | K51: 4382.44 | L51: 4418.61 | M51: 4367.73 | N51: 4405.8 | O51: 3120840000
A52: 37 | B52: 2021-08-18 | C52: 4440.939941 | D52: 4454.319824 | E52: 4397.589844 | F52: 4400.27002 | G52: 2965210000 | H52: 4400.27002 | I52: 1 | J52: 1 | K52: 4440.94 | L52: 4454.32 | M52: 4397.59 | N52: 4400.27 | O52: 2965210000
A53: 38 | B53: 2021-08-17 | C53: 4462.120117 | D53: 4462.120117 | E53: 4417.830078 | F53: 4448.080078 | G53: 2884000000 | H53: 4448.080078 | I53: 1 | J53: 1 | K53: 4462.12 | L53: 4462.12 | M53: 4417.83 | N53: 4448.08 | O53: 2884000000
A54: 39 | B54: 2021-08-16 | C54: 4461.649902 | D54: 4480.259766 | E54: 4437.660156 | F54: 4479.709961 | G54: 2707170000 | H54: 4479.709961 | I54: 1 | J54: 1 | K54: 4461.65 | L54: 4480.26 | M54: 4437.66 | N54: 4479.71 | O54: 2707170000
A55: 40 | B55: 2021-08-13 | C55: 4464.839844 | D55: 4468.370117 | E55: 4460.819824 | F55: 4468 | G55: 2371630000 | H55: 4468 | I55: 1 | J55: 1 | K55: 4464.84 | L55: 4468.37 | M55: 4460.82 | N55: 4468 | O55: 2371630000
A56: 41 | B56: 2021-08-12 | C56: 4446.080078 | D56: 4461.77002 | E56: 4435.959961 | F56: 4460.830078 | G56: 2543860000 | H56: 4460.830078 | I56: 1 | J56: 1 | K56: 4446.08 | L56: 4461.77 | M56: 4435.96 | N56: 4460.83 | O56: 2543860000
A57: 42 | B57: 2021-08-11 | C57: 4442.180176 | D57: 4449.439941 | E57: 4436.419922 | F57: 4442.410156 | G57: 2803060000 | H57: 4442.410156 | I57: 1 | J57: 1 | K57: 4442.18 | L57: 4449.44 | M57: 4436.42 | N57: 4442.41 | O57: 2803060000
A58: 43 | B58: 2021-08-10 | C58: 4435.790039 | D58: 4445.209961 | E58: 4430.029785 | F58: 4436.75 | G58: 3219840000 | H58: 4436.75 | I58: 1 | J58: 1 | K58: 4435.79 | L58: 4445.21 | M58: 4430.03 | N58: 4436.75 | O58: 3219840000
A59: 44 | B59: 2021-08-09 | C59: 4437.77002 | D59: 4439.390137 | E59: 4424.740234 | F59: 4432.350098 | G59: 2779880000 | H59: 4432.350098 | I59: 1 | J59: 1 | K59: 4437.77 | L59: 4439.39 | M59: 4424.74 | N59: 4432.35 | O59: 2779880000
A60: 45 | B60: 2021-08-06 | C60: 4429.069824 | D60: 4440.819824 | E60: 4429.069824 | F60: 4436.52002 | G60: 2839970000 | H60: 4436.52002 | I60: 1 | J60: 1 | K60: 4429.07 | L60: 4440.82 | M60: 4429.07 | N60: 4436.52 | O60: 2839970000
A61: 46 | B61: 2021-08-05 | C61: 4408.859863 | D61: 4429.759766 | E61: 4408.859863 | F61: 4429.100098 | G61: 2734220000 | H61: 4429.100098 | I61: 1 | J61: 1 | K61: 4408.86 | L61: 4429.76 | M61: 4408.86 | N61: 4429.1 | O61: 2734220000
A62: 47 | B62: 2021-08-04 | C62: 4415.950195 | D62: 4416.169922 | E62: 4400.22998 | F62: 4402.660156 | G62: 3382620000 | H62: 4402.660156 | I62: 1 | J62: 1 | K62: 4415.95 | L62: 4416.17 | M62: 4400.23 | N62: 4402.66 | O62: 3382620000
A63: 48 | B63: 2021-08-03 | C63: 4392.740234 | D63: 4423.790039 | E63: 4373 | F63: 4423.149902 | G63: 3305340000 | H63: 4423.149902 | I63: 1 | J63: 1 | K63: 4392.74 | L63: 4423.79 | M63: 4373 | N63: 4423.15 | O63: 3305340000
A64: 49 | B64: 2021-08-02 | C64: 4406.859863 | D64: 4422.180176 | E64: 4384.810059 | F64: 4387.160156 | G64: 2919940000 | H64: 4387.160156 | I64: 1 | J64: 1 | K64: 4406.86 | L64: 4422.18 | M64: 4384.81 | N64: 4387.16 | O64: 2919940000
A65: 50 | B65: 2021-07-30 | C65: 4395.120117 | D65: 4412.25 | E65: 4389.649902 | F65: 4395.259766 | G65: 2861600000 | H65: 4395.259766 | I65: 1 | J65: 1 | K65: 4395.12 | L65: 4412.25 | M65: 4389.65 | N65: 4395.26 | O65: 2861600000
A66: 51 | B66: 2021-07-29 | C66: 4403.589844 | D66: 4429.970215 | E66: 4403.589844 | F66: 4419.149902 | G66: 2815510000 | H66: 4419.149902 | I66: 1 | J66: 1 | K66: 4403.59 | L66: 4429.97 | M66: 4403.59 | N66: 4419.15 | O66: 2815510000
A67: 52 | B67: 2021-07-28 | C67: 4402.950195 | D67: 4415.470215 | E67: 4387.009766 | F67: 4400.640137 | G67: 3215130000 | H67: 4400.640137 | I67: 1 | J67: 1 | K67: 4402.95 | L67: 4415.47 | M67: 4387.01 | N67: 4400.64 | O67: 3215130000
A68: 53 | B68: 2021-07-27 | C68: 4416.379883 | D68: 4416.379883 | E68: 4372.509766 | F68: 4401.459961 | G68: 3381080000 | H68: 4401.459961 | I68: 1 | J68: 1 | K68: 4416.38 | L68: 4416.38 | M68: 4372.51 | N68: 4401.46 | O68: 3381080000
A69: 54 | B69: 2021-07-26 | C69: 4409.580078 | D69: 4422.72998 | E69: 4405.450195 | F69: 4422.299805 | G69: 2679110000 | H69: 4422.299805 | I69: 1 | J69: 1 | K69: 4409.58 | L69: 4422.73 | M69: 4405.45 | N69: 4422.3 | O69: 2679110000
A70: 55 | B70: 2021-07-23 | C70: 4381.200195 | D70: 4415.180176 | E70: 4381.200195 | F70: 4411.790039 | G70: 3490730000 | H70: 4411.790039 | I70: 1 | J70: 1 | K70: 4381.2 | L70: 4415.18 | M70: 4381.2 | N70: 4411.79 | O70: 3490730000
A71: 56 | B71: 2021-07-22 | C71: 4361.27002 | D71: 4369.870117 | E71: 4350.060059 | F71: 4367.47998 | G71: 2907910000 | H71: 4367.47998 | I71: 1 | J71: 1 | K71: 4361.27 | L71: 4369.87 | M71: 4350.06 | N71: 4367.48 | O71: 2907910000
A72: 57 | B72: 2021-07-21 | C72: 4331.129883 | D72: 4359.700195 | E72: 4331.129883 | F72: 4358.689941 | G72: 3078550000 | H72: 4358.689941 | I72: 1 | J72: 1 | K72: 4331.13 | L72: 4359.7 | M72: 4331.13 | N72: 4358.69 | O72: 3078550000
A73: 58 | B73: 2021-07-20 | C73: 4265.109863 | D73: 4336.839844 | E73: 4262.049805 | F73: 4323.060059 | G73: 3634190000 | H73: 4323.060059 | I73: 1 | J73: 1 | K73: 4265.11 | L73: 4336.84 | M73: 4262.05 | N73: 4323.06 | O73: 3634190000
A74: 59 | B74: 2021-07-19 | C74: 4296.399902 | D74: 4296.399902 | E74: 4233.129883 | F74: 4258.490234 | G74: 4155790000 | H74: 4258.490234 | I74: 1 | J74: 1 | K74: 4296.4 | L74: 4296.4 | M74: 4233.13 | N74: 4258.49 | O74: 4155790000
A75: 60 | B75: 2021-07-16 | C75: 4367.430176 | D75: 4375.089844 | E75: 4322.529785 | F75: 4327.160156 | G75: 3165160000 | H75: 4327.160156 | I75: 1 | J75: 1 | K75: 4367.43 | L75: 4375.09 | M75: 4322.53 | N75: 4327.16 | O75: 3165160000
A76: 61 | B76: 2021-07-15 | C76: 4369.02002 | D76: 4369.02002 | E76: 4340.700195 | F76: 4360.029785 | G76: 3226930000 | H76: 4360.029785 | I76: 1 | J76: 1 | K76: 4369.02 | L76: 4369.02 | M76: 4340.7 | N76: 4360.03 | O76: 3226930000
A77: 62 | B77: 2021-07-14 | C77: 4380.109863 | D77: 4393.680176 | E77: 4362.359863 | F77: 4374.299805 | G77: 3213870000 | H77: 4374.299805 | I77: 1 | J77: 1 | K77: 4380.11 | L77: 4393.68 | M77: 4362.36 | N77: 4374.3 | O77: 3213870000
A78: 63 | B78: 2021-07-13 | C78: 4381.069824 | D78: 4392.370117 | E78: 4366.919922 | F78: 4369.209961 | G78: 3166900000 | H78: 4369.209961 | I78: 1 | J78: 1 | K78: 4381.07 | L78: 4392.37 | M78: 4366.92 | N78: 4369.21 | O78: 3166900000
A79: 64 | B79: 2021-07-12 | C79: 4372.410156 | D79: 4386.680176 | E79: 4364.029785 | F79: 4384.629883 | G79: 2983980000 | H79: 4384.629883 | I79: 1 | J79: 1 | K79: 4372.41 | L79: 4386.68 | M79: 4364.03 | N79: 4384.63 | O79: 2983980000
A80: 65 | B80: 2021-07-09 | C80: 4329.379883 | D80: 4371.600098 | E80: 4329.379883 | F80: 4369.549805 | G80: 2738280000 | H80: 4369.549805 | I80: 1 | J80: 1 | K80: 4329.38 | L80: 4371.6 | M80: 4329.38 | N80: 4369.55 | O80: 2738280000
A81: 66 | B81: 2021-07-08 | C81: 4321.069824 | D81: 4330.879883 | E81: 4289.370117 | F81: 4320.819824 | G81: 3393780000 | H81: 4320.819824 | I81: =IF(F81=0,1,H81/F81) -> 1 | J81: =INDEX(OFFSET($T$15,0,0,$S$13+1,1),MATCH(B81,OFFSET($Q$15,0,0,$S$13+1,1),-1)) -> 1 | K81: =ROUND($I81*C81,2) -> 4321.07 | L81: =ROUND($I81*D81,2) -> 4330.88 | M81: =ROUND($I81*E81,2) -> 4289.37 | N81: =ROUND($I81*F81,2) -> 4320.82 | O81: =G81*J81 -> 3393780000
A82: 67 | B82: 2021-07-07 | C82: 4351.009766 | D82: 4361.879883 | E82: 4329.790039 | F82: 4358.129883 | G82: 3243900000 | H82: 4358.129883 | I82: 1 | J82: 1 | K82: 4351.01 | L82: 4361.88 | M82: 4329.79 | N82: 4358.13 | O82: 3243900000
A83: 68 | B83: 2021-07-06 | C83: 4356.459961 | D83: 4356.459961 | E83: 4314.370117 | F83: 4343.540039 | G83: 3437900000 | H83: 4343.540039 | I83: 1 | J83: 1 | K83: 4356.46 | L83: 4356.46 | M83: 4314.37 | N83: 4343.54 | O83: 3437900000
A84: 69 | B84: 2021-07-02 | C84: 4326.600098 | D84: 4355.430176 | E84: 4326.600098 | F84: 4352.339844 | G84: 2628550000 | H84: 4352.339844 | I84: 1 | J84: 1 | K84: 4326.6 | L84: 4355.43 | M84: 4326.6 | N84: 4352.34 | O84: 2628550000
A85: 70 | B85: 2021-07-01 | C85: 4300.72998 | D85: 4320.660156 | E85: 4300.72998 | F85: 4319.939941 | G85: 3077580000 | H85: 4319.939941 | I85: 1 | J85: 1 | K85: 4300.73 | L85: 4320.66 | M85: 4300.73 | N85: 4319.94 | O85: 3077580000
A86: 71 | B86: 2021-06-30 | C86: 4290.649902 | D86: 4302.430176 | E86: 4287.959961 | F86: 4297.5 | G86: 3687880000 | H86: 4297.5 | I86: 1 | J86: 1 | K86: 4290.65 | L86: 4302.43 | M86: 4287.96 | N86: 4297.5 | O86: 3687880000
A87: 72 | B87: 2021-06-29 | C87: 4293.209961 | D87: 4300.52002 | E87: 4287.040039 | F87: 4291.799805 | G87: 3049560000 | H87: 4291.799805 | I87: 1 | J87: 1 | K87: 4293.21 | L87: 4300.52 | M87: 4287.04 | N87: 4291.8 | O87: 3049560000
A88: 73 | B88: 2021-06-28 | C88: 4284.899902 | D88: 4292.140137 | E88: 4274.669922 | F88: 4290.609863 | G88: 3415610000 | H88: 4290.609863 | I88: 1 | J88: 1 | K88: 4284.9 | L88: 4292.14 | M88: 4274.67 | N88: 4290.61 | O88: 3415610000
A89: 74 | B89: 2021-06-25 | C89: 4274.450195 | D89: 4286.120117 | E89: 4271.160156 | F89: 4280.700195 | G89: 6248390000 | H89: 4280.700195 | I89: 1 | J89: 1 | K89: 4274.45 | L89: 4286.12 | M89: 4271.16 | N89: 4280.7 | O89: 6248390000
A90: 75 | B90: 2021-06-24 | C90: 4256.970215 | D90: 4271.279785 | E90: 4256.970215 | F90: 4266.490234 | G90: 3141680000 | H90: 4266.490234 | I90: 1 | J90: 1 | K90: 4256.97 | L90: 4271.28 | M90: 4256.97 | N90: 4266.49 | O90: 3141680000
A91: 76 | B91: 2021-06-23 | C91: 4249.27002 | D91: 4256.600098 | E91: 4241.430176 | F91: 4241.839844 | G91: 3172440000 | H91: 4241.839844 | I91: 1 | J91: 1 | K91: 4249.27 | L91: 4256.6 | M91: 4241.43 | N91: 4241.84 | O91: 3172440000
A92: 77 | B92: 2021-06-22 | C92: 4224.609863 | D92: 4255.839844 | E92: 4217.27002 | F92: 4246.439941 | G92: 3208760000 | H92: 4246.439941 | I92: 1 | J92: 1 | K92: 4224.61 | L92: 4255.84 | M92: 4217.27 | N92: 4246.44 | O92: 3208760000
A93: 78 | B93: 2021-06-21 | C93: 4173.399902 | D93: 4226.240234 | E93: 4173.399902 | F93: 4224.790039 | G93: 3391740000 | H93: 4224.790039 | I93: 1 | J93: 1 | K93: 4173.4 | L93: 4226.24 | M93: 4173.4 | N93: 4224.79 | O93: 3391740000
A94: 79 | B94: 2021-06-18 | C94: 4204.779785 | D94: 4204.779785 | E94: 4164.399902 | F94: 4166.450195 | G94: 6084980000 | H94: 4166.450195 | I94: 1 | J94: 1 | K94: 4204.78 | L94: 4204.78 | M94: 4164.4 | N94: 4166.45 | O94: 6084980000
A95: 80 | B95: 2021-06-17 | C95: 4220.370117 | D95: 4232.290039 | E95: 4196.049805 | F95: 4221.859863 | G95: 3952110000 | H95: 4221.859863 | I95: 1 | J95: 1 | K95: 4220.37 | L95: 4232.29 | M95: 4196.05 | N95: 4221.86 | O95: 3952110000
A96: 81 | B96: 2021-06-16 | C96: 4248.870117 | D96: 4251.890137 | E96: 4202.450195 | F96: 4223.700195 | G96: 3722050000 | H96: 4223.700195 | I96: 1 | J96: 1 | K96: 4248.87 | L96: 4251.89 | M96: 4202.45 | N96: 4223.7 | O96: 3722050000
A97: 82 | B97: 2021-06-15 | C97: 4255.279785 | D97: 4257.160156 | E97: 4238.350098 | F97: 4246.589844 | G97: 3578450000 | H97: 4246.589844 | I97: 1 | J97: 1 | K97: 4255.28 | L97: 4257.16 | M97: 4238.35 | N97: 4246.59 | O97: 3578450000
A98: 83 | B98: 2021-06-14 | C98: 4248.310059 | D98: 4255.589844 | E98: 4234.069824 | F98: 4255.149902 | G98: 3612050000 | H98: 4255.149902 | I98: 1 | J98: 1 | K98: 4248.31 | L98: 4255.59 | M98: 4234.07 | N98: 4255.15 | O98: 3612050000
A99: 84 | B99: 2021-06-11 | C99: 4242.899902 | D99: 4248.379883 | E99: 4232.25 | F99: 4247.439941 | G99: 3204280000 | H99: 4247.439941 | I99: 1 | J99: 1 | K99: 4242.9 | L99: 4248.38 | M99: 4232.25 | N99: 4247.44 | O99: 3204280000
A100: 85 | B100: 2021-06-10 | C100: 4228.560059 | D100: 4249.740234 | E100: 4220.339844 | F100: 4239.180176 | G100: 3502480000 | H100: 4239.180176 | I100: 1 | J100: 1 | K100: 4228.56 | L100: 4249.74 | M100: 4220.34 | N100: 4239.18 | O100: 3502480000
A101: 86 | B101: 2021-06-09 | C101: 4232.990234 | D101: 4237.089844 | E101: 4218.740234 | F101: 4219.549805 | G101: 3902870000 | H101: 4219.549805 | I101: 1 | J101: 1 | K101: 4232.99 | L101: 4237.09 | M101: 4218.74 | N101: 4219.55 | O101: 3902870000
A102: 87 | B102: 2021-06-08 | C102: 4233.810059 | D102: 4236.740234 | E102: 4208.410156 | F102: 4227.259766 | G102: 3943870000 | H102: 4227.259766 | I102: 1 | J102: 1 | K102: 4233.81 | L102: 4236.74 | M102: 4208.41 | N102: 4227.26 | O102: 3943870000
A103: 88 | B103: 2021-06-07 | C103: 4229.339844 | D103: 4232.339844 | E103: 4215.660156 | F103: 4226.52002 | G103: 3835570000 | H103: 4226.52002 | I103: 1 | J103: 1 | K103: 4229.34 | L103: 4232.34 | M103: 4215.66 | N103: 4226.52 | O103: 3835570000
A104: 89 | B104: 2021-06-04 | C104: 4206.049805 | D104: 4233.450195 | E104: 4206.049805 | F104: 4229.890137 | G104: 3487070000 | H104: 4229.890137 | I104: 1 | J104: 1 | K104: 4206.05 | L104: 4233.45 | M104: 4206.05 | N104: 4229.89 | O104: 3487070000
A105: 90 | B105: 2021-06-03 | C105: 4191.430176 | D105: 4204.390137 | E105: 4167.930176 | F105: 4192.850098 | G105: 4579450000 | H105: 4192.850098 | I105: 1 | J105: 1 | K105: 4191.43 | L105: 4204.39 | M105: 4167.93 | N105: 4192.85 | O105: 4579450000
A106: 91 | B106: 2021-06-02 | C106: 4206.819824 | D106: 4217.370117 | E106: 4198.27002 | F106: 4208.120117 | G106: 4860930000 | H106: 4208.120117 | I106: 1 | J106: 1 | K106: 4206.82 | L106: 4217.37 | M106: 4198.27 | N106: 4208.12 | O106: 4860930000
A107: 92 | B107: 2021-06-01 | C107: 4216.52002 | D107: 4234.120117 | E107: 4197.589844 | F107: 4202.040039 | G107: 4122960000 | H107: 4202.040039 | I107: 1 | J107: 1 | K107: 4216.52 | L107: 4234.12 | M107: 4197.59 | N107: 4202.04 | O107: 4122960000
A108: 93 | B108: 2021-05-28 | C108: 4210.77002 | D108: 4218.359863 | E108: 4203.569824 | F108: 4204.109863 | G108: 4199270000 | H108: 4204.109863 | I108: 1 | J108: 1 | K108: 4210.77 | L108: 4218.36 | M108: 4203.57 | N108: 4204.11 | O108: 4199270000
A109: 94 | B109: 2021-05-27 | C109: 4201.939941 | D109: 4213.379883 | E109: 4197.779785 | F109: 4200.879883 | G109: 5201110000 | H109: 4200.879883 | I109: 1 | J109: 1 | K109: 4201.94 | L109: 4213.38 | M109: 4197.78 | N109: 4200.88 | O109: 5201110000
A110: 95 | B110: 2021-05-26 | C110: 4191.589844 | D110: 4202.609863 | E110: 4184.109863 | F110: 4195.990234 | G110: 3674490000 | H110: 4195.990234 | I110: 1 | J110: 1 | K110: 4191.59 | L110: 4202.61 | M110: 4184.11 | N110: 4195.99 | O110: 3674490000
A111: 96 | B111: 2021-05-25 | C111: 4205.939941 | D111: 4213.419922 | E111: 4182.52002 | F111: 4188.129883 | G111: 3420870000 | H111: 4188.129883 | I111: 1 | J111: 1 | K111: 4205.94 | L111: 4213.42 | M111: 4182.52 | N111: 4188.13 | O111: 3420870000
A112: 97 | B112: 2021-05-24 | C112: 4170.160156 | D112: 4209.52002 | E112: 4170.160156 | F112: 4197.049805 | G112: 2947400000 | H112: 4197.049805 | I112: 1 | J112: 1 | K112: 4170.16 | L112: 4209.52 | M112: 4170.16 | N112: 4197.05 | O112: 2947400000
A113: 98 | B113: 2021-05-21 | C113: 4168.609863 | D113: 4188.720215 | E113: 4151.720215 | F113: 4155.859863 | G113: 3344620000 | H113: 4155.859863 | I113: 1 | J113: 1 | K113: 4168.61 | L113: 4188.72 | M113: 4151.72 | N113: 4155.86 | O113: 3344620000
A114: 99 | B114: 2021-05-20 | C114: 4121.970215 | D114: 4172.799805 | E114: 4121.970215 | F114: 4159.120117 | G114: 3019060000 | H114: 4159.120117 | I114: 1 | J114: 1 | K114: 4121.97 | L114: 4172.8 | M114: 4121.97 | N114: 4159.12 | O114: 3019060000
A115: 100 | B115: 2021-05-19 | C115: 4098.450195 | D115: 4116.930176 | E115: 4061.409912 | F115: 4115.680176 | G115: 3485550000 | H115: 4115.680176 | I115: 1 | J115: 1 | K115: 4098.45 | L115: 4116.93 | M115: 4061.41 | N115: 4115.68 | O115: 3485550000
A116: 101 | B116: 2021-05-18 | C116: 4165.939941 | D116: 4169.149902 | E116: 4125.990234 | F116: 4127.830078 | G116: 3559790000 | H116: 4127.830078 | I116: 1 | J116: 1 | K116: 4165.94 | L116: 4169.15 | M116: 4125.99 | N116: 4127.83 | O116: 3559790000
A117: 102 | B117: 2021-05-17 | C117: 4169.919922 | D117: 4171.919922 | E117: 4142.689941 | F117: 4163.290039 | G117: 3307130000 | H117: 4163.290039 | I117: 1 | J117: 1 | K117: 4169.92 | L117: 4171.92 | M117: 4142.69 | N117: 4163.29 | O117: 3307130000
A118: 103 | B118: 2021-05-14 | C118: 4129.580078 | D118: 4183.129883 | E118: 4129.580078 | F118: 4173.850098 | G118: 3251920000 | H118: 4173.850098 | I118: 1 | J118: 1 | K118: 4129.58 | L118: 4183.13 | M118: 4129.58 | N118: 4173.85 | O118: 3251920000
A119: 104 | B119: 2021-05-13 | C119: 4074.98999 | D119: 4131.580078 | E119: 4074.98999 | F119: 4112.5 | G119: 3687780000 | H119: 4112.5 | I119: 1 | J119: 1 | K119: 4074.99 | L119: 4131.58 | M119: 4074.99 | N119: 4112.5 | O119: 3687780000
A120: 105 | B120: 2021-05-12 | C120: 4130.549805 | D120: 4134.72998 | E120: 4056.879883 | F120: 4063.040039 | G120: 3735080000 | H120: 4063.040039 | I120: 1 | J120: 1 | K120: 4130.55 | L120: 4134.73 | M120: 4056.88 | N120: 4063.04 | O120: 3735080000
A121: 106 | B121: 2021-05-11 | C121: 4150.339844 | D121: 4162.040039 | E121: 4111.529785 | F121: 4152.100098 | G121: 3593110000 | H121: 4152.100098 | I121: 1 | J121: 1 | K121: 4150.34 | L121: 4162.04 | M121: 4111.53 | N121: 4152.1 | O121: 3593110000
A122: 107 | B122: 2021-05-10 | C122: 4228.290039 | D122: 4236.390137 | E122: 4188.129883 | F122: 4188.430176 | G122: 3678970000 | H122: 4188.430176 | I122: 1 | J122: 1 | K122: 4228.29 | L122: 4236.39 | M122: 4188.13 | N122: 4188.43 | O122: 3678970000
A123: 108 | B123: 2021-05-07 | C123: 4210.339844 | D123: 4238.040039 | E123: 4201.640137 | F123: 4232.600098 | G123: 4013060000 | H123: 4232.600098 | I123: 1 | J123: 1 | K123: 4210.34 | L123: 4238.04 | M123: 4201.64 | N123: 4232.6 | O123: 4013060000
A124: 109 | B124: 2021-05-06 | C124: 4169.140137 | D124: 4202.700195 | E124: 4147.330078 | F124: 4201.620117 | G124: 4504860000 | H124: 4201.620117 | I124: 1 | J124: 1 | K124: 4169.14 | L124: 4202.7 | M124: 4147.33 | N124: 4201.62 | O124: 4504860000
A125: 110 | B125: 2021-05-05 | C125: 4177.060059 | D125: 4187.720215 | E125: 4160.939941 | F125: 4167.589844 | G125: 4029050000 | H125: 4167.589844 | I125: 1 | J125: 1 | K125: 4177.06 | L125: 4187.72 | M125: 4160.94 | N125: 4167.59 | O125: 4029050000
A126: 111 | B126: 2021-05-04 | C126: 4179.040039 | D126: 4179.040039 | E126: 4128.589844 | F126: 4164.660156 | G126: 4441080000 | H126: 4164.660156 | I126: 1 | J126: 1 | K126: 4179.04 | L126: 4179.04 | M126: 4128.59 | N126: 4164.66 | O126: 4441080000
A127: 112 | B127: 2021-05-03 | C127: 4191.97998 | D127: 4209.390137 | E127: 4188.029785 | F127: 4192.660156 | G127: 4061170000 | H127: 4192.660156 | I127: 1 | J127: 1 | K127: 4191.98 | L127: 4209.39 | M127: 4188.03 | N127: 4192.66 | O127: 4061170000
A128: 113 | B128: 2021-04-30 | C128: 4198.100098 | D128: 4198.100098 | E128: 4174.850098 | F128: 4181.169922 | G128: 4273680000 | H128: 4181.169922 | I128: 1 | J128: 1 | K128: 4198.1 | L128: 4198.1 | M128: 4174.85 | N128: 4181.17 | O128: 4273680000
A129: 114 | B129: 2021-04-29 | C129: 4206.140137 | D129: 4218.779785 | E129: 4176.810059 | F129: 4211.470215 | G129: 4288940000 | H129: 4211.470215 | I129: 1 | J129: 1 | K129: 4206.14 | L129: 4218.78 | M129: 4176.81 | N129: 4211.47 | O129: 4288940000
A130: 115 | B130: 2021-04-28 | C130: 4185.140137 | D130: 4201.529785 | E130: 4181.779785 | F130: 4183.180176 | G130: 3772390000 | H130: 4183.180176 | I130: 1 | J130: 1 | K130: 4185.14 | L130: 4201.53 | M130: 4181.78 | N130: 4183.18 | O130: 3772390000
A131: 116 | B131: 2021-04-27 | C131: 4188.25 | D131: 4193.350098 | E131: 4176.220215 | F131: 4186.720215 | G131: 3703240000 | H131: 4186.720215 | I131: 1 | J131: 1 | K131: 4188.25 | L131: 4193.35 | M131: 4176.22 | N131: 4186.72 | O131: 3703240000
A132: 117 | B132: 2021-04-26 | C132: 4185.029785 | D132: 4194.189941 | E132: 4182.359863 | F132: 4187.620117 | G132: 3738920000 | H132: 4187.620117 | I132: 1 | J132: 1 | K132: 4185.03 | L132: 4194.19 | M132: 4182.36 | N132: 4187.62 | O132: 3738920000
A133: 118 | B133: 2021-04-23 | C133: 4138.779785 | D133: 4194.169922 | E133: 4138.779785 | F133: 4180.169922 | G133: 3568080000 | H133: 4180.169922 | I133: 1 | J133: 1 | K133: 4138.78 | L133: 4194.17 | M133: 4138.78 | N133: 4180.17 | O133: 3568080000
A134: 119 | B134: 2021-04-22 | C134: 4170.459961 | D134: 4179.569824 | E134: 4123.689941 | F134: 4134.97998 | G134: 4235040000 | H134: 4134.97998 | I134: 1 | J134: 1 | K134: 4170.46 | L134: 4179.57 | M134: 4123.69 | N134: 4134.98 | O134: 4235040000
A135: 120 | B135: 2021-04-21 | C135: 4128.419922 | D135: 4175.02002 | E135: 4126.350098 | F135: 4173.419922 | G135: 3865820000 | H135: 4173.419922 | I135: 1 | J135: 1 | K135: 4128.42 | L135: 4175.02 | M135: 4126.35 | N135: 4173.42 | O135: 3865820000
A136: 121 | B136: 2021-04-20 | C136: 4159.180176 | D136: 4159.180176 | E136: 4118.379883 | F136: 4134.939941 | G136: 4338230000 | H136: 4134.939941 | I136: 1 | J136: 1 | K136: 4159.18 | L136: 4159.18 | M136: 4118.38 | N136: 4134.94 | O136: 4338230000
A137: 122 | B137: 2021-04-19 | C137: 4179.799805 | D137: 4180.810059 | E137: 4150.470215 | F137: 4163.259766 | G137: 3788020000 | H137: 4163.259766 | I137: 1 | J137: 1 | K137: 4179.8 | L137: 4180.81 | M137: 4150.47 | N137: 4163.26 | O137: 3788020000
A138: 123 | B138: 2021-04-16 | C138: 4174.140137 | D138: 4191.310059 | E138: 4170.75 | F138: 4185.470215 | G138: 4157430000 | H138: 4185.470215 | I138: 1 | J138: 1 | K138: 4174.14 | L138: 4191.31 | M138: 4170.75 | N138: 4185.47 | O138: 4157430000
A139: 124 | B139: 2021-04-15 | C139: 4139.759766 | D139: 4173.490234 | E139: 4139.759766 | F139: 4170.419922 | G139: 4027680000 | H139: 4170.419922 | I139: 1 | J139: 1 | K139: 4139.76 | L139: 4173.49 | M139: 4139.76 | N139: 4170.42 | O139: 4027680000
A140: 125 | B140: 2021-04-14 | C140: 4141.580078 | D140: 4151.689941 | E140: 4120.870117 | F140: 4124.660156 | G140: 3976540000 | H140: 4124.660156 | I140: 1 | J140: 1 | K140: 4141.58 | L140: 4151.69 | M140: 4120.87 | N140: 4124.66 | O140: 3976540000
A141: 126 | B141: 2021-04-13 | C141: 4130.100098 | D141: 4148 | E141: 4124.430176 | F141: 4141.589844 | G141: 3728440000 | H141: 4141.589844 | I141: 1 | J141: 1 | K141: 4130.1 | L141: 4148 | M141: 4124.43 | N141: 4141.59 | O141: 3728440000
A142: 127 | B142: 2021-04-12 | C142: 4124.709961 | D142: 4131.759766 | E142: 4114.819824 | F142: 4127.990234 | G142: 3578500000 | H142: 4127.990234 | I142: 1 | J142: 1 | K142: 4124.71 | L142: 4131.76 | M142: 4114.82 | N142: 4127.99 | O142: 3578500000
A143: 128 | B143: 2021-04-09 | C143: 4096.109863 | D143: 4129.47998 | E143: 4095.51001 | F143: 4128.799805 | G143: 3634910000 | H143: 4128.799805 | I143: 1 | J143: 1 | K143: 4096.11 | L143: 4129.48 | M143: 4095.51 | N143: 4128.8 | O143: 3634910000
A144: 129 | B144: 2021-04-08 | C144: 4089.949951 | D144: 4098.189941 | E144: 4082.540039 | F144: 4097.169922 | G144: 3901910000 | H144: 4097.169922 | I144: 1 | J144: 1 | K144: 4089.95 | L144: 4098.19 | M144: 4082.54 | N144: 4097.17 | O144: 3901910000
A145: 130 | B145: 2021-04-07 | C145: 4074.290039 | D145: 4083.129883 | E145: 4068.310059 | F145: 4079.949951 | G145: 4112640000 | H145: 4079.949951 | I145: =IF(F145=0,1,H145/F145) -> 1 | J145: =INDEX(OFFSET($T$15,0,0,$S$13+1,1),MATCH(B145,OFFSET($Q$15,0,0,$S$13+1,1),-1)) -> 1 | K145: =ROUND($I145*C145,2) -> 4074.29 | L145: =ROUND($I145*D145,2) -> 4083.13 | M145: =ROUND($I145*E145,2) -> 4068.31 | N145: =ROUND($I145*F145,2) -> 4079.95 | O145: =G145*J145 -> 4112640000
A146: 131 | B146: 2021-04-06 | C146: 4075.570068 | D146: 4086.22998 | E146: 4068.139893 | F146: 4073.939941 | G146: 4027880000 | H146: 4073.939941 | I146: 1 | J146: 1 | K146: 4075.57 | L146: 4086.23 | M146: 4068.14 | N146: 4073.94 | O146: 4027880000
A147: 132 | B147: 2021-04-05 | C147: 4034.439941 | D147: 4083.419922 | E147: 4034.439941 | F147: 4077.909912 | G147: 3999760000 | H147: 4077.909912 | I147: 1 | J147: 1 | K147: 4034.44 | L147: 4083.42 | M147: 4034.44 | N147: 4077.91 | O147: 3999760000
A148: 133 | B148: 2021-04-01 | C148: 3992.780029 | D148: 4020.629883 | E148: 3992.780029 | F148: 4019.870117 | G148: 4151240000 | H148: 4019.870117 | I148: 1 | J148: 1 | K148: 3992.78 | L148: 4020.63 | M148: 3992.78 | N148: 4019.87 | O148: 4151240000
A149: 134 | B149: 2021-03-31 | C149: 3967.25 | D149: 3994.409912 | E149: 3966.97998 | F149: 3972.889893 | G149: 4564980000 | H149: 3972.889893 | I149: 1 | J149: 1 | K149: 3967.25 | L149: 3994.41 | M149: 3966.98 | N149: 3972.89 | O149: 4564980000
A150: 135 | B150: 2021-03-30 | C150: 3963.340088 | D150: 3968.01001 | E150: 3944.350098 | F150: 3958.550049 | G150: 4103570000 | H150: 3958.550049 | I150: 1 | J150: 1 | K150: 3963.34 | L150: 3968.01 | M150: 3944.35 | N150: 3958.55 | O150: 4103570000
A151: 136 | B151: 2021-03-29 | C151: 3969.310059 | D151: 3981.830078 | E151: 3943.25 | F151: 3971.090088 | G151: 4619840000 | H151: 3971.090088 | I151: 1 | J151: 1 | K151: 3969.31 | L151: 3981.83 | M151: 3943.25 | N151: 3971.09 | O151: 4619840000
A152: 137 | B152: 2021-03-26 | C152: 3917.120117 | D152: 3978.189941 | E152: 3917.120117 | F152: 3974.540039 | G152: 5467850000 | H152: 3974.540039 | I152: 1 | J152: 1 | K152: 3917.12 | L152: 3978.19 | M152: 3917.12 | N152: 3974.54 | O152: 5467850000
A153: 138 | B153: 2021-03-25 | C153: 3879.340088 | D153: 3919.540039 | E153: 3853.5 | F153: 3909.52002 | G153: 4940800000 | H153: 3909.52002 | I153: 1 | J153: 1 | K153: 3879.34 | L153: 3919.54 | M153: 3853.5 | N153: 3909.52 | O153: 4940800000
A154: 139 | B154: 2021-03-24 | C154: 3919.929932 | D154: 3942.080078 | E154: 3889.070068 | F154: 3889.139893 | G154: 4766990000 | H154: 3889.139893 | I154: 1 | J154: 1 | K154: 3919.93 | L154: 3942.08 | M154: 3889.07 | N154: 3889.14 | O154: 4766990000
A155: 140 | B155: 2021-03-23 | C155: 3937.600098 | D155: 3949.129883 | E155: 3901.570068 | F155: 3910.52002 | G155: 4645340000 | H155: 3910.52002 | I155: 1 | J155: 1 | K155: 3937.6 | L155: 3949.13 | M155: 3901.57 | N155: 3910.52 | O155: 4645340000
A156: 141 | B156: 2021-03-22 | C156: 3916.47998 | D156: 3955.310059 | E156: 3914.159912 | F156: 3940.590088 | G156: 4311380000 | H156: 3940.590088 | I156: 1 | J156: 1 | K156: 3916.48 | L156: 3955.31 | M156: 3914.16 | N156: 3940.59 | O156: 4311380000
A157: 142 | B157: 2021-03-19 | C157: 3913.139893 | D157: 3930.120117 | E157: 3886.75 | F157: 3913.100098 | G157: 7725050000 | H157: 3913.100098 | I157: 1 | J157: 1 | K157: 3913.14 | L157: 3930.12 | M157: 3886.75 | N157: 3913.1 | O157: 7725050000
A158: 143 | B158: 2021-03-18 | C158: 3953.5 | D158: 3969.620117 | E158: 3910.860107 | F158: 3915.459961 | G158: 4043170000 | H158: 3915.459961 | I158: 1 | J158: 1 | K158: 3953.5 | L158: 3969.62 | M158: 3910.86 | N158: 3915.46 | O158: 4043170000
A159: 144 | B159: 2021-03-17 | C159: 3949.570068 | D159: 3983.870117 | E159: 3935.73999 | F159: 3974.120117 | G159: 4541620000 | H159: 3974.120117 | I159: 1 | J159: 1 | K159: 3949.57 | L159: 3983.87 | M159: 3935.74 | N159: 3974.12 | O159: 4541620000
A160: 145 | B160: 2021-03-16 | C160: 3973.590088 | D160: 3981.040039 | E160: 3953.439941 | F160: 3962.709961 | G160: 4604870000 | H160: 3962.709961 | I160: 1 | J160: 1 | K160: 3973.59 | L160: 3981.04 | M160: 3953.44 | N160: 3962.71 | O160: 4604870000
A161: 146 | B161: 2021-03-15 | C161: 3942.959961 | D161: 3970.080078 | E161: 3923.540039 | F161: 3968.939941 | G161: 4882190000 | H161: 3968.939941 | I161: 1 | J161: 1 | K161: 3942.96 | L161: 3970.08 | M161: 3923.54 | N161: 3968.94 | O161: 4882190000
A162: 147 | B162: 2021-03-12 | C162: 3924.52002 | D162: 3944.98999 | E162: 3915.209961 | F162: 3943.340088 | G162: 4469240000 | H162: 3943.340088 | I162: 1 | J162: 1 | K162: 3924.52 | L162: 3944.99 | M162: 3915.21 | N162: 3943.34 | O162: 4469240000
A163: 148 | B163: 2021-03-11 | C163: 3915.540039 | D163: 3960.27002 | E163: 3915.540039 | F163: 3939.340088 | G163: 5300010000 | H163: 3939.340088 | I163: 1 | J163: 1 | K163: 3915.54 | L163: 3960.27 | M163: 3915.54 | N163: 3939.34 | O163: 5300010000
A164: 149 | B164: 2021-03-10 | C164: 3891.98999 | D164: 3917.350098 | E164: 3885.72998 | F164: 3898.810059 | G164: 5827250000 | H164: 3898.810059 | I164: 1 | J164: 1 | K164: 3891.99 | L164: 3917.35 | M164: 3885.73 | N164: 3898.81 | O164: 5827250000
A165: 150 | B165: 2021-03-09 | C165: 3851.929932 | D165: 3903.76001 | E165: 3851.929932 | F165: 3875.439941 | G165: 5496340000 | H165: 3875.439941 | I165: 1 | J165: 1 | K165: 3851.93 | L165: 3903.76 | M165: 3851.93 | N165: 3875.44 | O165: 5496340000
A166: 151 | B166: 2021-03-08 | C166: 3844.389893 | D166: 3881.060059 | E166: 3819.25 | F166: 3821.350098 | G166: 5852240000 | H166: 3821.350098 | I166: 1 | J166: 1 | K166: 3844.39 | L166: 3881.06 | M166: 3819.25 | N166: 3821.35 | O166: 5852240000
A167: 152 | B167: 2021-03-05 | C167: 3793.580078 | D167: 3851.689941 | E167: 3730.189941 | F167: 3841.939941 | G167: 6842570000 | H167: 3841.939941 | I167: 1 | J167: 1 | K167: 3793.58 | L167: 3851.69 | M167: 3730.19 | N167: 3841.94 | O167: 6842570000
A168: 153 | B168: 2021-03-04 | C168: 3818.530029 | D168: 3843.669922 | E168: 3723.340088 | F168: 3768.469971 | G168: 7142240000 | H168: 3768.469971 | I168: 1 | J168: 1 | K168: 3818.53 | L168: 3843.67 | M168: 3723.34 | N168: 3768.47 | O168: 7142240000
A169: 154 | B169: 2021-03-03 | C169: 3863.98999 | D169: 3874.469971 | E169: 3818.860107 | F169: 3819.719971 | G169: 6150790000 | H169: 3819.719971 | I169: 1 | J169: 1 | K169: 3863.99 | L169: 3874.47 | M169: 3818.86 | N169: 3819.72 | O169: 6150790000
A170: 155 | B170: 2021-03-02 | C170: 3903.639893 | D170: 3906.409912 | E170: 3868.570068 | F170: 3870.290039 | G170: 5493690000 | H170: 3870.290039 | I170: 1 | J170: 1 | K170: 3903.64 | L170: 3906.41 | M170: 3868.57 | N170: 3870.29 | O170: 5493690000
A171: 156 | B171: 2021-03-01 | C171: 3842.51001 | D171: 3914.5 | E171: 3842.51001 | F171: 3901.820068 | G171: 5071540000 | H171: 3901.820068 | I171: 1 | J171: 1 | K171: 3842.51 | L171: 3914.5 | M171: 3842.51 | N171: 3901.82 | O171: 5071540000
A172: 157 | B172: 2021-02-26 | C172: 3839.659912 | D172: 3861.080078 | E172: 3789.540039 | F172: 3811.149902 | G172: 6512950000 | H172: 3811.149902 | I172: 1 | J172: 1 | K172: 3839.66 | L172: 3861.08 | M172: 3789.54 | N172: 3811.15 | O172: 6512950000
A173: 158 | B173: 2021-02-25 | C173: 3915.800049 | D173: 3925.02002 | E173: 3814.040039 | F173: 3829.340088 | G173: 6513060000 | H173: 3829.340088 | I173: 1 | J173: 1 | K173: 3915.8 | L173: 3925.02 | M173: 3814.04 | N173: 3829.34 | O173: 6513060000
A174: 159 | B174: 2021-02-24 | C174: 3873.709961 | D174: 3928.649902 | E174: 3859.600098 | F174: 3925.429932 | G174: 5942350000 | H174: 3925.429932 | I174: 1 | J174: 1 | K174: 3873.71 | L174: 3928.65 | M174: 3859.6 | N174: 3925.43 | O174: 5942350000
A175: 160 | B175: 2021-02-23 | C175: 3857.070068 | D175: 3895.97998 | E175: 3805.590088 | F175: 3881.370117 | G175: 6280650000 | H175: 3881.370117 | I175: 1 | J175: 1 | K175: 3857.07 | L175: 3895.98 | M175: 3805.59 | N175: 3881.37 | O175: 6280650000
A176: 161 | B176: 2021-02-22 | C176: 3885.550049 | D176: 3902.919922 | E176: 3874.709961 | F176: 3876.5 | G176: 5870190000 | H176: 3876.5 | I176: 1 | J176: 1 | K176: 3885.55 | L176: 3902.92 | M176: 3874.71 | N176: 3876.5 | O176: 5870190000
A177: 162 | B177: 2021-02-19 | C177: 3921.159912 | D177: 3930.409912 | E177: 3903.070068 | F177: 3906.709961 | G177: 4823940000 | H177: 3906.709961 | I177: 1 | J177: 1 | K177: 3921.16 | L177: 3930.41 | M177: 3903.07 | N177: 3906.71 | O177: 4823940000
A178: 163 | B178: 2021-02-18 | C178: 3915.860107 | D178: 3921.97998 | E178: 3885.030029 | F178: 3913.969971 | G178: 4773430000 | H178: 3913.969971 | I178: 1 | J178: 1 | K178: 3915.86 | L178: 3921.98 | M178: 3885.03 | N178: 3913.97 | O178: 4773430000
A179: 164 | B179: 2021-02-17 | C179: 3918.5 | D179: 3933.610107 | E179: 3900.429932 | F179: 3931.330078 | G179: 4718280000 | H179: 3931.330078 | I179: 1 | J179: 1 | K179: 3918.5 | L179: 3933.61 | M179: 3900.43 | N179: 3931.33 | O179: 4718280000
A180: 165 | B180: 2021-02-16 | C180: 3939.610107 | D180: 3950.429932 | E180: 3923.850098 | F180: 3932.590088 | G180: 5037360000 | H180: 3932.590088 | I180: 1 | J180: 1 | K180: 3939.61 | L180: 3950.43 | M180: 3923.85 | N180: 3932.59 | O180: 5037360000
A181: 166 | B181: 2021-02-12 | C181: 3911.649902 | D181: 3937.22998 | E181: 3905.780029 | F181: 3934.830078 | G181: 4119260000 | H181: 3934.830078 | I181: 1 | J181: 1 | K181: 3911.65 | L181: 3937.23 | M181: 3905.78 | N181: 3934.83 | O181: 4119260000
A182: 167 | B182: 2021-02-11 | C182: 3916.399902 | D182: 3925.98999 | E182: 3890.389893 | F182: 3916.379883 | G182: 4570080000 | H182: 3916.379883 | I182: 1 | J182: 1 | K182: 3916.4 | L182: 3925.99 | M182: 3890.39 | N182: 3916.38 | O182: 4570080000
A183: 168 | B183: 2021-02-10 | C183: 3920.780029 | D183: 3931.5 | E183: 3884.939941 | F183: 3909.879883 | G183: 4815380000 | H183: 3909.879883 | I183: 1 | J183: 1 | K183: 3920.78 | L183: 3931.5 | M183: 3884.94 | N183: 3909.88 | O183: 4815380000
A184: 169 | B184: 2021-02-09 | C184: 3910.48999 | D184: 3918.350098 | E184: 3902.639893 | F184: 3911.22998 | G184: 4554610000 | H184: 3911.22998 | I184: 1 | J184: 1 | K184: 3910.49 | L184: 3918.35 | M184: 3902.64 | N184: 3911.23 | O184: 4554610000
A185: 170 | B185: 2021-02-08 | C185: 3892.590088 | D185: 3915.77002 | E185: 3892.590088 | F185: 3915.590088 | G185: 4635030000 | H185: 3915.590088 | I185: 1 | J185: 1 | K185: 3892.59 | L185: 3915.77 | M185: 3892.59 | N185: 3915.59 | O185: 4635030000
A186: 171 | B186: 2021-02-05 | C186: 3878.300049 | D186: 3894.560059 | E186: 3874.929932 | F186: 3886.830078 | G186: 4838580000 | H186: 3886.830078 | I186: 1 | J186: 1 | K186: 3878.3 | L186: 3894.56 | M186: 3874.93 | N186: 3886.83 | O186: 4838580000
A187: 172 | B187: 2021-02-04 | C187: 3836.659912 | D187: 3872.419922 | E187: 3836.659912 | F187: 3871.73999 | G187: 4856670000 | H187: 3871.73999 | I187: 1 | J187: 1 | K187: 3836.66 | L187: 3872.42 | M187: 3836.66 | N187: 3871.74 | O187: 4856670000
A188: 173 | B188: 2021-02-03 | C188: 3840.27002 | D188: 3847.51001 | E188: 3816.679932 | F188: 3830.169922 | G188: 4846900000 | H188: 3830.169922 | I188: 1 | J188: 1 | K188: 3840.27 | L188: 3847.51 | M188: 3816.68 | N188: 3830.17 | O188: 4846900000
A189: 174 | B189: 2021-02-02 | C189: 3791.840088 | D189: 3843.090088 | E189: 3791.840088 | F189: 3826.310059 | G189: 5495370000 | H189: 3826.310059 | I189: 1 | J189: 1 | K189: 3791.84 | L189: 3843.09 | M189: 3791.84 | N189: 3826.31 | O189: 5495370000
A190: 175 | B190: 2021-02-01 | C190: 3731.169922 | D190: 3784.320068 | E190: 3725.620117 | F190: 3773.860107 | G190: 5392870000 | H190: 3773.860107 | I190: 1 | J190: 1 | K190: 3731.17 | L190: 3784.32 | M190: 3725.62 | N190: 3773.86 | O190: 5392870000
A191: 176 | B191: 2021-01-29 | C191: 3778.050049 | D191: 3778.050049 | E191: 3694.120117 | F191: 3714.23999 | G191: 6612570000 | H191: 3714.23999 | I191: 1 | J191: 1 | K191: 3778.05 | L191: 3778.05 | M191: 3694.12 | N191: 3714.24 | O191: 6612570000
A192: 177 | B192: 2021-01-28 | C192: 3755.75 | D192: 3830.5 | E192: 3755.75 | F192: 3787.379883 | G192: 6937960000 | H192: 3787.379883 | I192: 1 | J192: 1 | K192: 3755.75 | L192: 3830.5 | M192: 3755.75 | N192: 3787.38 | O192: 6937960000
A193: 178 | B193: 2021-01-27 | C193: 3836.830078 | D193: 3836.830078 | E193: 3732.47998 | F193: 3750.77002 | G193: 9878040000 | H193: 3750.77002 | I193: 1 | J193: 1 | K193: 3836.83 | L193: 3836.83 | M193: 3732.48 | N193: 3750.77 | O193: 9878040000
A194: 179 | B194: 2021-01-26 | C194: 3862.959961 | D194: 3870.899902 | E194: 3847.780029 | F194: 3849.620117 | G194: 6029090000 | H194: 3849.620117 | I194: 1 | J194: 1 | K194: 3862.96 | L194: 3870.9 | M194: 3847.78 | N194: 3849.62 | O194: 6029090000
A195: 180 | B195: 2021-01-25 | C195: 3851.679932 | D195: 3859.22998 | E195: 3797.159912 | F195: 3855.360107 | G195: 6955860000 | H195: 3855.360107 | I195: 1 | J195: 1 | K195: 3851.68 | L195: 3859.23 | M195: 3797.16 | N195: 3855.36 | O195: 6955860000
A196: 181 | B196: 2021-01-22 | C196: 3844.23999 | D196: 3852.310059 | E196: 3830.409912 | F196: 3841.469971 | G196: 5080430000 | H196: 3841.469971 | I196: 1 | J196: 1 | K196: 3844.24 | L196: 3852.31 | M196: 3830.41 | N196: 3841.47 | O196: 5080430000
A197: 182 | B197: 2021-01-21 | C197: 3857.459961 | D197: 3861.449951 | E197: 3845.050049 | F197: 3853.070068 | G197: 4484460000 | H197: 3853.070068 | I197: 1 | J197: 1 | K197: 3857.46 | L197: 3861.45 | M197: 3845.05 | N197: 3853.07 | O197: 4484460000
A198: 183 | B198: 2021-01-20 | C198: 3816.219971 | D198: 3859.75 | E198: 3816.219971 | F198: 3851.850098 | G198: 4551790000 | H198: 3851.850098 | I198: 1 | J198: 1 | K198: 3816.22 | L198: 3859.75 | M198: 3816.22 | N198: 3851.85 | O198: 4551790000
A199: 184 | B199: 2021-01-19 | C199: 3781.879883 | D199: 3804.530029 | E199: 3780.370117 | F199: 3798.909912 | G199: 4982940000 | H199: 3798.909912 | I199: 1 | J199: 1 | K199: 3781.88 | L199: 3804.53 | M199: 3780.37 | N199: 3798.91 | O199: 4982940000
A200: 185 | B200: 2021-01-15 | C200: 3788.72998 | D200: 3788.72998 | E200: 3749.620117 | F200: 3768.25 | G200: 5353060000 | H200: 3768.25 | I200: 1 | J200: 1 | K200: 3788.73 | L200: 3788.73 | M200: 3749.62 | N200: 3768.25 | O200: 5353060000
... 4300 more rows

Sheet CalculationsAndCharts
A1: RSIH.xlsm
A2: =InputPriceData!A1 -> S&P 500 (^GSPC) -SNP (Daily)
A4: User Charting Controls | E4: Click to Shift Chart One Bar: | AE4: 2 | AF4: 0.6 | AG4: =AE4*AF4 -> 1.2
A5: Data Control | C5: TRUE
A6: =InputPriceData!$B$10 -> 17872 | B6: Available Input Data Rows | E6: Earliest: | F6: =OFFSET(InputPriceData!B15,CalculationsAndCharts!A6,0,1,1) -> 1950-10-02
A7: =MAX(A33:A56896) -> 2500 | B7: Available Calculation Rows | E7: Latest: | F7: =OFFSET(InputPriceData!B15,1,0,1,1) -> 2021-10-08
A8: =MIN(AvailableInputRows-DataPanRows,A7) -> 2500 | B8: Logically Available for Calc / Plot | E8: $ Change: | F8: =G33-G34 -> 22.44
A10: Historical Price Windowing Specifications | F10: Click to Shift
A11: 69 | B11: Input Data Offset (Pan) | F11: Points to Plot
A12: 390 | B12: Data Points to Plot (Zoom)
B13: First: | C13: =OFFSET(B32,A12,0,1,1) -> 2019-12-13
B14: ="Last: " & IF(OFFSET(InputPriceData!P15,1+A11,0,1,1)="","",TEXT(OFFSET(InputPriceData!P15,1+A11,0,1,1),"H:MM AM/PM")) -> Last: | C14: =B33 -> 2021-07-01
A15: User Controls | C15: Calculated Hann "Semi-Constants"
A16: RSI and RSIH Indicators | C16: Length / 6.28 | D16: Length + 1
A17: 14 | B17: Length | C17: =A17/6.28*2 -> 4.458598726 | D17: =A17+1 -> 15 | E17: ="for Hann "&A17 -> for Hann 14
B19: Signal Thresholds
B20: OverSold | C20: OverBought
A21: RSI | B21: 30 | C21: 70
A22: RSIH | B22: -0.4 | C22: 0.4
R24: TRUE
A25: Help! I would like to plot data | Y25: RSIH Banding Work Area
A26: From | B26: 2020-01-02 | C26: =OFFSET(InputPriceData!$A$15,MATCH(B26,OFFSET(InputPriceData!B15,1,0,InputPriceData!$B$10,1),0),0,1,1)-C27 -> 378 | E26: 363 | Y26: Band Widths
A27: To | B27: 2021-07-01 | C27: =OFFSET(InputPriceData!$A$15,MATCH(B27,OFFSET(InputPriceData!$B$15,1,0,InputPriceData!$B$10,1),0),0,1,1)-1 -> 69 | E27: =$A$12-$E$26+1 -> 28 | M27: =100-N32 -> 30 | Y27: O Sold | AB27: O Bought
H28: Value @ Cursor => | I28: =OFFSET(A32,$E$27,0,1,1)&"(RR)" -> 28(RR) | J28: =OFFSET($B$32,E27,0,1,1) -> 2021-05-24 | L28: =TEXT(OFFSET(E32,$E$27,0,1,1),"#,##0.00")&"(h)" -> 4,209.52(h) | M28: =TEXT(OFFSET(F32,$E$27,0,1,1),"#,##0.00")&"(l)" -> 4,170.16(l) | N28: =TEXT(OFFSET(G32,$E$27,0,1,1),"#,##0.00")&"(c)" -> 4,197.05(c) | O28: =TEXT(OFFSET(C32,$E$27,0,1,1),"#,##0.00,,""M""")&"(v)" -> 2,947.40M(v) | Y28: =-1-B22 -> -0.6 | AB28: =1-C22 -> 0.6
E29: Cursor ==> | AY29: Work Area For Chart Cursors
B30: =LogicallyAvailableRows -> 2500 | C30: <== Calculation Rel Row Limits ==> | H30: =LogicallyAvailableRows-1 -> 2499 | I30: =H30-A17+1 -> 2486 | T30: =LogicallyAvailableRows-1 -> 2499 | V30: =T30-A17+1 -> 2486
A31: Rel Row | I31: RSI Calcs | L31: RSI Banding | S31: RSIH Calcs | Y31: RSIH Banding | AW31: Used To Color Vol Bars
B32: Date | C32: Volume | D32: Open | E32: High | F32: Low | G32: Close | H32: Close Delta | I32: Up | J32: Down | K32: ="RSI(" & A17 & ")" -> RSI(14) | L32: =B21 -> 30 | M32: NotOSold | N32: =C21 -> 70 | O32: =C21-B21 -> 40 | P32: Ctr Line | Q32: OS Line | R32: OB Line | S32: ="Hann("&$A$17&") Coefs" -> Hann(14) Coefs | T32: Delta Up | U32: Delta Down | V32: ="CUh("&A17&")" -> CUh(14) | W32: ="CDh("&A17&")" -> CDh(14) | X32: ="RSIH("&A17&")" -> RSIH(14) | Y32: =B22 -> -0.4 | Z32: =Y32 -> -0.4 | AA32: =AB32 -> 0.4 | AB32: =C22 -> 0.4 | AC32: OS Line | AD32: OB Line | AW32: Up Vol | AX32: Dn Vol | AY32: Volume Cursor | AZ32: =MAX(OFFSET(C33,0,0,A12,1)) -> 9878040000 | BA32: Price Chart Cursor | BC32: Indicator 01 Cursor | BE32: Indicator 02 Cursor | BG32: Indicator 03 Cursor | BI32: Indicator 04 Cursor
A33: 1 | B33: =IF(A33>$B$30,NA(),IF($A33>$A$8,"",OFFSET(InputPriceData!$B$15,$A33+$A$11,0,1,1))) -> 2021-07-01 | C33: =IF(A33>$B$30,NA(),IF($A33>$A$8,"",OFFSET(InputPriceData!$G$15,CalculationsAndCharts!$A33+$A$11,IF($C$5,8,0),1,1))) -> 3077580000 | D33: =IF(A33>$B$30,NA(),IF(A33>$A$8,"",OFFSET(InputPriceData!$C$15,CalculationsAndCharts!$A33+$A$11,IF($C$5,8,0),1,1))) -> 4300.73 | E33: =IF(A33>$B$30,NA(),IF(A33>$A$8,"",OFFSET(InputPriceData!$D$15,CalculationsAndCharts!$A33+$A$11,IF($C$5,8,0),1,1))) -> 4320.66 | F33: =IF(A33>$B$30,NA(),IF(A33>$A$8,"",OFFSET(InputPriceData!$E$15,CalculationsAndCharts!$A33+$A$11,IF($C$5,8,0),1,1))) -> 4300.73 | G33: =IF(A33>$B$30,NA(),IF(A33>$A$8,"",OFFSET(InputPriceData!$F$15,CalculationsAndCharts!$A33+$A$11,IF($C$5,8,0),1,1))) -> 4319.94 | H33: =IF(A33>$H$30,NA(),G33-G34) -> 22.44 | I33: =IF(A33>$I$30,NA(),SUMIF(OFFSET(H33,0,0,$A$17,1),">0",OFFSET(H33,0,0,$A$17,1))) -> 165.8 | J33: =IF(A33>$I$30,NA(),-SUMIF(OFFSET(H33,0,0,$A$17,1),"<0",OFFSET(H33,0,0,$A$17,1))) -> 93.3 | K33: =IF(A33>$I$30,NA(),100*I33/(I33+J33)) -> 63.99073717 | L33: =IF(K33<$B$21,IF($R$24,L$32,0),0) -> 0 | M33: =$B$21-L33 -> 30 | N33: =IF(K33>$C$21,IF($R$24,$M$27,NA()),NA()) ->  | O33: =$O$32 -> 40 | P33: 50 | Q33: =IF($R$24,$B$21,NA()) -> 30 | R33: =IF($R$24,$C$21,NA()) -> 70 | S33: =IF($A33>$D$17+1,NA(),IF($A33=$D$17+1,SUM(OFFSET(S$33,0,0,$A$17,1)),IF($A33=$D$17,"-- Coef Sum--",1-COS(RADIANS(360*$A33/$D$17))))) -> 0.08645454236 | T33: =IF(A33>$T$30,NA(),IF(H33>0,H33,0)) -> 22.44 | U33: =IF(A33>$T$30,NA(),IF(H33<0,-H33,0)) -> 0 | V33: =IF($A33<=V$30,SUMPRODUCT(OFFSET($S$33,0,0,$A$17,1),OFFSET(T33,0,0,$A$17,1)),NA()) -> 230.5329228 | W33: =IF($A33<=V$30,SUMPRODUCT(OFFSET($S$33,0,0,$A$17,1),OFFSET(U33,0,0,$A$17,1)),NA()) -> 112.8956543 | X33: =IF($A33<=V$30,(V33-W33)/(V33+W33),NA()) -> 0.3425377976 | Y33: =IF(X33<$B$22,IF($R$24,$Y$28,0),0) -> 0 | Z33: =$B$22 -> -0.4 | AA33: =$C$22 -> 0.4 | AB33: =IF(X33>$C$22,IF($R$24,$AB$28,0),0) -> 0 | AC33: =IF($R$24,$B$22,NA()) -> -0.4 | AD33: =IF($R$24,$C$22,NA()) -> 0.4 | AW33: =IF(G33>=D33,C33,NA()) -> 3077580000 | AX33: =IF(G33<D33,C33,NA()) ->  | AY33: =$E$27 -> 28 | AZ33: 0 | BA33: =$E$27 -> 28 | BB33: 2137.0635 | BC33: =$E$27 -> 28 | BD33: 0 | BE33: =$E$27 -> 28 | BG33: =$E$27 -> 28 | BH33: -1 | BI33: =$E$27 -> 28
A34: 2 | B34: =IF(A34>$B$30,NA(),IF($A34>$A$8,"",OFFSET(InputPriceData!$B$15,$A34+$A$11,0,1,1))) -> 2021-06-30 | C34: =IF(A34>$B$30,NA(),IF($A34>$A$8,"",OFFSET(InputPriceData!$G$15,CalculationsAndCharts!$A34+$A$11,IF($C$5,8,0),1,1))) -> 3687880000 | D34: =IF(A34>$B$30,NA(),IF(A34>$A$8,"",OFFSET(InputPriceData!$C$15,CalculationsAndCharts!$A34+$A$11,IF($C$5,8,0),1,1))) -> 4290.65 | E34: =IF(A34>$B$30,NA(),IF(A34>$A$8,"",OFFSET(InputPriceData!$D$15,CalculationsAndCharts!$A34+$A$11,IF($C$5,8,0),1,1))) -> 4302.43 | F34: =IF(A34>$B$30,NA(),IF(A34>$A$8,"",OFFSET(InputPriceData!$E$15,CalculationsAndCharts!$A34+$A$11,IF($C$5,8,0),1,1))) -> 4287.96 | G34: =IF(A34>$B$30,NA(),IF(A34>$A$8,"",OFFSET(InputPriceData!$F$15,CalculationsAndCharts!$A34+$A$11,IF($C$5,8,0),1,1))) -> 4297.5 | H34: =IF(A34>$H$30,NA(),G34-G35) -> 5.7 | I34: =IF(A34>$I$30,NA(),SUMIF(OFFSET(H34,0,0,$A$17,1),">0",OFFSET(H34,0,0,$A$17,1))) -> 151.62 | J34: =IF(A34>$I$30,NA(),-SUMIF(OFFSET(H34,0,0,$A$17,1),"<0",OFFSET(H34,0,0,$A$17,1))) -> 93.3 | K34: =IF(A34>$I$30,NA(),100*I34/(I34+J34)) -> 61.90592847 | L34: =IF(K34<$B$21,IF($R$24,L$32,0),0) -> 0 | M34: =$B$21-L34 -> 30 | N34: =IF(K34>$C$21,IF($R$24,$M$27,NA()),NA()) ->  | O34: 40 | P34: 50 | Q34: =IF($R$24,$B$21,NA()) -> 30 | R34: =IF($R$24,$C$21,NA()) -> 70 | S34: 0.3308693936 | T34: 5.7 | U34: 0 | V34: 221.9016606 | W34: 142.5165809 | X34: 0.2178405763 | Y34: =IF(X34<$B$22,IF($R$24,$Y$28,0),0) -> 0 | Z34: =$B$22 -> -0.4 | AA34: =$C$22 -> 0.4 | AB34: =IF(X34>$C$22,IF($R$24,$AB$28,0),0) -> 0 | AC34: =IF($R$24,$B$22,NA()) -> -0.4 | AD34: =IF($R$24,$C$22,NA()) -> 0.4 | AW34: 3687880000 | AY34: =$E$27 -> 28 | AZ34: =CEILING(AZ32,10^INT(LOG10(AZ32))/8) -> 10000000000 | BA34: =$E$27 -> 28 | BB34: 4428.6765 | BC34: =$E$27 -> 28 | BD34: 100 | BE34: =$E$27 -> 28 | BF34: 0 | BG34: =$E$27 -> 28 | BH34: 1 | BI34: =$E$27 -> 28 | BJ34: 0
A35: 3 | B35: =IF(A35>$B$30,NA(),IF($A35>$A$8,"",OFFSET(InputPriceData!$B$15,$A35+$A$11,0,1,1))) -> 2021-06-29 | C35: =IF(A35>$B$30,NA(),IF($A35>$A$8,"",OFFSET(InputPriceData!$G$15,CalculationsAndCharts!$A35+$A$11,IF($C$5,8,0),1,1))) -> 3049560000 | D35: =IF(A35>$B$30,NA(),IF(A35>$A$8,"",OFFSET(InputPriceData!$C$15,CalculationsAndCharts!$A35+$A$11,IF($C$5,8,0),1,1))) -> 4293.21 | E35: =IF(A35>$B$30,NA(),IF(A35>$A$8,"",OFFSET(InputPriceData!$D$15,CalculationsAndCharts!$A35+$A$11,IF($C$5,8,0),1,1))) -> 4300.52 | F35: =IF(A35>$B$30,NA(),IF(A35>$A$8,"",OFFSET(InputPriceData!$E$15,CalculationsAndCharts!$A35+$A$11,IF($C$5,8,0),1,1))) -> 4287.04 | G35: =IF(A35>$B$30,NA(),IF(A35>$A$8,"",OFFSET(InputPriceData!$F$15,CalculationsAndCharts!$A35+$A$11,IF($C$5,8,0),1,1))) -> 4291.8 | H35: 1.19 | I35: 165.55 | J35: 93.3 | K35: 63.95595905 | L35: 0 | M35: 30 | O35: 40 | P35: 50 | Q35: 30 | R35: 70 | S35: 0.6909830056 | T35: 1.19 | U35: 0 | V35: 204.7552035 | W35: 163.6275135 | X35: 0.1116439185 | Y35: 0 | Z35: -0.4 | AA35: 0.4 | AB35: 0 | AC35: -0.4 | AD35: 0.4 | AX35: 3049560000
A36: 4 | B36: =IF(A36>$B$30,NA(),IF($A36>$A$8,"",OFFSET(InputPriceData!$B$15,$A36+$A$11,0,1,1))) -> 2021-06-28 | C36: =IF(A36>$B$30,NA(),IF($A36>$A$8,"",OFFSET(InputPriceData!$G$15,CalculationsAndCharts!$A36+$A$11,IF($C$5,8,0),1,1))) -> 3415610000 | D36: =IF(A36>$B$30,NA(),IF(A36>$A$8,"",OFFSET(InputPriceData!$C$15,CalculationsAndCharts!$A36+$A$11,IF($C$5,8,0),1,1))) -> 4284.9 | E36: =IF(A36>$B$30,NA(),IF(A36>$A$8,"",OFFSET(InputPriceData!$D$15,CalculationsAndCharts!$A36+$A$11,IF($C$5,8,0),1,1))) -> 4292.14 | F36: =IF(A36>$B$30,NA(),IF(A36>$A$8,"",OFFSET(InputPriceData!$E$15,CalculationsAndCharts!$A36+$A$11,IF($C$5,8,0),1,1))) -> 4274.67 | G36: =IF(A36>$B$30,NA(),IF(A36>$A$8,"",OFFSET(InputPriceData!$F$15,CalculationsAndCharts!$A36+$A$11,IF($C$5,8,0),1,1))) -> 4290.61 | H36: 9.91 | I36: 164.36 | J36: 101.01 | K36: 61.9361646 | L36: 0 | M36: 30 | O36: 40 | P36: 50 | Q36: 30 | R36: 70 | S36: 1.104528463 | T36: 9.91 | U36: 0 | V36: 181.3226014 | W36: 173.2447446 | X36: 0.02278229202 | Y36: 0 | Z36: -0.4 | AA36: 0.4 | AB36: 0 | AC36: -0.4 | AD36: 0.4 | AW36: 3415610000
A37: 5 | B37: =IF(A37>$B$30,NA(),IF($A37>$A$8,"",OFFSET(InputPriceData!$B$15,$A37+$A$11,0,1,1))) -> 2021-06-25 | C37: =IF(A37>$B$30,NA(),IF($A37>$A$8,"",OFFSET(InputPriceData!$G$15,CalculationsAndCharts!$A37+$A$11,IF($C$5,8,0),1,1))) -> 6248390000 | D37: =IF(A37>$B$30,NA(),IF(A37>$A$8,"",OFFSET(InputPriceData!$C$15,CalculationsAndCharts!$A37+$A$11,IF($C$5,8,0),1,1))) -> 4274.45 | E37: =IF(A37>$B$30,NA(),IF(A37>$A$8,"",OFFSET(InputPriceData!$D$15,CalculationsAndCharts!$A37+$A$11,IF($C$5,8,0),1,1))) -> 4286.12 | F37: =IF(A37>$B$30,NA(),IF(A37>$A$8,"",OFFSET(InputPriceData!$E$15,CalculationsAndCharts!$A37+$A$11,IF($C$5,8,0),1,1))) -> 4271.16 | G37: =IF(A37>$B$30,NA(),IF(A37>$A$8,"",OFFSET(InputPriceData!$F$15,CalculationsAndCharts!$A37+$A$11,IF($C$5,8,0),1,1))) -> 4280.7 | H37: 14.21 | I37: 155.19 | J37: 101.01 | K37: 60.57377049 | L37: 0 | M37: 30 | O37: 40 | P37: 50 | Q37: 30 | R37: 70 | S37: 1.5 | T37: 14.21 | U37: 0 | V37: 155.1238687 | W37: 170.3719321 | X37: -0.04684565334 | Y37: 0 | Z37: -0.4 | AA37: 0.4 | AB37: 0 | AC37: -0.4 | AD37: 0.4 | AW37: 6248390000
A38: 6 | B38: =IF(A38>$B$30,NA(),IF($A38>$A$8,"",OFFSET(InputPriceData!$B$15,$A38+$A$11,0,1,1))) -> 2021-06-24 | C38: =IF(A38>$B$30,NA(),IF($A38>$A$8,"",OFFSET(InputPriceData!$G$15,CalculationsAndCharts!$A38+$A$11,IF($C$5,8,0),1,1))) -> 3141680000 | D38: =IF(A38>$B$30,NA(),IF(A38>$A$8,"",OFFSET(InputPriceData!$C$15,CalculationsAndCharts!$A38+$A$11,IF($C$5,8,0),1,1))) -> 4256.97 | E38: =IF(A38>$B$30,NA(),IF(A38>$A$8,"",OFFSET(InputPriceData!$D$15,CalculationsAndCharts!$A38+$A$11,IF($C$5,8,0),1,1))) -> 4271.28 | F38: =IF(A38>$B$30,NA(),IF(A38>$A$8,"",OFFSET(InputPriceData!$E$15,CalculationsAndCharts!$A38+$A$11,IF($C$5,8,0),1,1))) -> 4256.97 | G38: =IF(A38>$B$30,NA(),IF(A38>$A$8,"",OFFSET(InputPriceData!$F$15,CalculationsAndCharts!$A38+$A$11,IF($C$5,8,0),1,1))) -> 4266.49 | H38: 24.65 | I38: 140.98 | J38: 104.38 | K38: 57.45842843 | L38: 0 | M38: 30 | O38: 40 | P38: 50 | Q38: 30 | R38: 70 | S38: 1.809016994 | T38: 24.65 | U38: 0 | V38: 129.7933352 | W38: 155.7971633 | X38: -0.09105284749 | Y38: 0 | Z38: -0.4 | AA38: 0.4 | AB38: 0 | AC38: -0.4 | AD38: 0.4 | AW38: 3141680000
A39: 7 | B39: =IF(A39>$B$30,NA(),IF($A39>$A$8,"",OFFSET(InputPriceData!$B$15,$A39+$A$11,0,1,1))) -> 2021-06-23 | C39: =IF(A39>$B$30,NA(),IF($A39>$A$8,"",OFFSET(InputPriceData!$G$15,CalculationsAndCharts!$A39+$A$11,IF($C$5,8,0),1,1))) -> 3172440000 | D39: =IF(A39>$B$30,NA(),IF(A39>$A$8,"",OFFSET(InputPriceData!$C$15,CalculationsAndCharts!$A39+$A$11,IF($C$5,8,0),1,1))) -> 4249.27 | E39: =IF(A39>$B$30,NA(),IF(A39>$A$8,"",OFFSET(InputPriceData!$D$15,CalculationsAndCharts!$A39+$A$11,IF($C$5,8,0),1,1))) -> 4256.6 | F39: =IF(A39>$B$30,NA(),IF(A39>$A$8,"",OFFSET(InputPriceData!$E$15,CalculationsAndCharts!$A39+$A$11,IF($C$5,8,0),1,1))) -> 4241.43 | G39: =IF(A39>$B$30,NA(),IF(A39>$A$8,"",OFFSET(InputPriceData!$F$15,CalculationsAndCharts!$A39+$A$11,IF($C$5,8,0),1,1))) -> 4241.84 | H39: -4.6 | I39: 153.37 | J39: 104.38 | K39: 59.50339476 | L39: 0 | M39: 30 | O39: 40 | P39: 50 | Q39: 30 | R39: 70 | S39: 1.978147601 | T39: 0 | U39: 4.6 | V39: 110.827873 | W39: 132.3318998 | X39: -0.08843579101 | Y39: 0 | Z39: -0.4 | AA39: 0.4 | AB39: 0 | AC39: -0.4 | AD39: 0.4 | AX39: 3172440000
A40: 8 | B40: =IF(A40>$B$30,NA(),IF($A40>$A$8,"",OFFSET(InputPriceData!$B$15,$A40+$A$11,0,1,1))) -> 2021-06-22 | C40: =IF(A40>$B$30,NA(),IF($A40>$A$8,"",OFFSET(InputPriceData!$G$15,CalculationsAndCharts!$A40+$A$11,IF($C$5,8,0),1,1))) -> 3208760000 | D40: =IF(A40>$B$30,NA(),IF(A40>$A$8,"",OFFSET(InputPriceData!$C$15,CalculationsAndCharts!$A40+$A$11,IF($C$5,8,0),1,1))) -> 4224.61 | E40: =IF(A40>$B$30,NA(),IF(A40>$A$8,"",OFFSET(InputPriceData!$D$15,CalculationsAndCharts!$A40+$A$11,IF($C$5,8,0),1,1))) -> 4255.84 | F40: =IF(A40>$B$30,NA(),IF(A40>$A$8,"",OFFSET(InputPriceData!$E$15,CalculationsAndCharts!$A40+$A$11,IF($C$5,8,0),1,1))) -> 4217.27 | G40: =IF(A40>$B$30,NA(),IF(A40>$A$8,"",OFFSET(InputPriceData!$F$15,CalculationsAndCharts!$A40+$A$11,IF($C$5,8,0),1,1))) -> 4246.44 | H40: 21.65 | I40: 153.37 | J40: 115.05 | K40: 57.13806721 | L40: 0 | M40: 30 | O40: 40 | P40: 50 | Q40: 30 | R40: 70 | S40: 1.978147601 | T40: 21.65 | U40: 0 | V40: 101.3494355 | W40: 105.3536598 | X40: -0.01937186436 | Y40: 0 | Z40: -0.4 | AA40: 0.4 | AB40: 0 | AC40: -0.4 | AD40: 0.4 | AW40: 3208760000
A41: 9 | B41: =IF(A41>$B$30,NA(),IF($A41>$A$8,"",OFFSET(InputPriceData!$B$15,$A41+$A$11,0,1,1))) -> 2021-06-21 | C41: =IF(A41>$B$30,NA(),IF($A41>$A$8,"",OFFSET(InputPriceData!$G$15,CalculationsAndCharts!$A41+$A$11,IF($C$5,8,0),1,1))) -> 3391740000 | D41: =IF(A41>$B$30,NA(),IF(A41>$A$8,"",OFFSET(InputPriceData!$C$15,CalculationsAndCharts!$A41+$A$11,IF($C$5,8,0),1,1))) -> 4173.4 | E41: =IF(A41>$B$30,NA(),IF(A41>$A$8,"",OFFSET(InputPriceData!$D$15,CalculationsAndCharts!$A41+$A$11,IF($C$5,8,0),1,1))) -> 4226.24 | F41: =IF(A41>$B$30,NA(),IF(A41>$A$8,"",OFFSET(InputPriceData!$E$15,CalculationsAndCharts!$A41+$A$11,IF($C$5,8,0),1,1))) -> 4173.4 | G41: =IF(A41>$B$30,NA(),IF(A41>$A$8,"",OFFSET(InputPriceData!$F$15,CalculationsAndCharts!$A41+$A$11,IF($C$5,8,0),1,1))) -> 4224.79 | H41: 58.34 | I41: 137.8 | J41: 115.05 | K41: 54.49871465 | L41: 0 | M41: 30 | O41: 40 | P41: 50 | Q41: 30 | R41: 70 | S41: 1.809016994 | T41: 58.34 | U41: 0 | V41: 101.3914698 | W41: 80.44969594 | X41: 0.1151651978 | Y41: 0 | Z41: -0.4 | AA41: 0.4 | AB41: 0 | AC41: -0.4 | AD41: 0.4 | AW41: 3391740000
A42: 10 | B42: =IF(A42>$B$30,NA(),IF($A42>$A$8,"",OFFSET(InputPriceData!$B$15,$A42+$A$11,0,1,1))) -> 2021-06-18 | C42: =IF(A42>$B$30,NA(),IF($A42>$A$8,"",OFFSET(InputPriceData!$G$15,CalculationsAndCharts!$A42+$A$11,IF($C$5,8,0),1,1))) -> 6084980000 | D42: =IF(A42>$B$30,NA(),IF(A42>$A$8,"",OFFSET(InputPriceData!$C$15,CalculationsAndCharts!$A42+$A$11,IF($C$5,8,0),1,1))) -> 4204.78 | E42: =IF(A42>$B$30,NA(),IF(A42>$A$8,"",OFFSET(InputPriceData!$D$15,CalculationsAndCharts!$A42+$A$11,IF($C$5,8,0),1,1))) -> 4204.78 | F42: =IF(A42>$B$30,NA(),IF(A42>$A$8,"",OFFSET(InputPriceData!$E$15,CalculationsAndCharts!$A42+$A$11,IF($C$5,8,0),1,1))) -> 4164.4 | G42: =IF(A42>$B$30,NA(),IF(A42>$A$8,"",OFFSET(InputPriceData!$F$15,CalculationsAndCharts!$A42+$A$11,IF($C$5,8,0),1,1))) -> 4166.45 | H42: -55.41 | I42: 79.46 | J42: 117.12 | K42: 40.42120256 | L42: 0 | M42: 30 | O42: 40 | P42: 50 | Q42: 30 | R42: 70 | S42: 1.5 | T42: 0 | U42: 55.41 | V42: 109.6006105 | W42: 61.70739992 | X42: 0.2795736784 | Y42: 0 | Z42: -0.4 | AA42: 0.4 | AB42: 0 | AC42: -0.4 | AD42: 0.4 | AX42: 6084980000
A43: 11 | B43: =IF(A43>$B$30,NA(),IF($A43>$A$8,"",OFFSET(InputPriceData!$B$15,$A43+$A$11,0,1,1))) -> 2021-06-17 | C43: =IF(A43>$B$30,NA(),IF($A43>$A$8,"",OFFSET(InputPriceData!$G$15,CalculationsAndCharts!$A43+$A$11,IF($C$5,8,0),1,1))) -> 3952110000 | D43: =IF(A43>$B$30,NA(),IF(A43>$A$8,"",OFFSET(InputPriceData!$C$15,CalculationsAndCharts!$A43+$A$11,IF($C$5,8,0),1,1))) -> 4220.37 | E43: =IF(A43>$B$30,NA(),IF(A43>$A$8,"",OFFSET(InputPriceData!$D$15,CalculationsAndCharts!$A43+$A$11,IF($C$5,8,0),1,1))) -> 4232.29 | F43: =IF(A43>$B$30,NA(),IF(A43>$A$8,"",OFFSET(InputPriceData!$E$15,CalculationsAndCharts!$A43+$A$11,IF($C$5,8,0),1,1))) -> 4196.05 | G43: =IF(A43>$B$30,NA(),IF(A43>$A$8,"",OFFSET(InputPriceData!$F$15,CalculationsAndCharts!$A43+$A$11,IF($C$5,8,0),1,1))) -> 4221.86 | H43: -1.84 | I43: 82.69 | J43: 61.71 | K43: 57.26454294 | L43: 0 | M43: 30 | O43: 40 | P43: 50 | Q43: 30 | R43: 70 | S43: 1.104528463 | T43: 0 | U43: 1.84 | V43: 117.9211721 | W43: 52.54644586 | X43: 0.3835023158 | Y43: 0 | Z43: -0.4 | AA43: 0.4 | AB43: 0 | AC43: -0.4 | AD43: 0.4 | AW43: 3952110000
A44: 12 | B44: =IF(A44>$B$30,NA(),IF($A44>$A$8,"",OFFSET(InputPriceData!$B$15,$A44+$A$11,0,1,1))) -> 2021-06-16 | C44: =IF(A44>$B$30,NA(),IF($A44>$A$8,"",OFFSET(InputPriceData!$G$15,CalculationsAndCharts!$A44+$A$11,IF($C$5,8,0),1,1))) -> 3722050000 | D44: =IF(A44>$B$30,NA(),IF(A44>$A$8,"",OFFSET(InputPriceData!$C$15,CalculationsAndCharts!$A44+$A$11,IF($C$5,8,0),1,1))) -> 4248.87 | E44: =IF(A44>$B$30,NA(),IF(A44>$A$8,"",OFFSET(InputPriceData!$D$15,CalculationsAndCharts!$A44+$A$11,IF($C$5,8,0),1,1))) -> 4251.89 | F44: =IF(A44>$B$30,NA(),IF(A44>$A$8,"",OFFSET(InputPriceData!$E$15,CalculationsAndCharts!$A44+$A$11,IF($C$5,8,0),1,1))) -> 4202.45 | G44: =IF(A44>$B$30,NA(),IF(A44>$A$8,"",OFFSET(InputPriceData!$F$15,CalculationsAndCharts!$A44+$A$11,IF($C$5,8,0),1,1))) -> 4223.7 | H44: -22.89 | I44: 87.58 | J44: 59.87 | K44: 59.39640556 | L44: 0 | M44: 30 | O44: 40 | P44: 50 | Q44: 30 | R44: 70 | S44: 0.6909830056 | T44: 0 | U44: 22.89 | V44: 120.5727067 | W44: 49.76039975 | X44: 0.4157283832 | Y44: 0 | Z44: -0.4 | AA44: 0.4 | AB44: 0.6 | AC44: -0.4 | AD44: 0.4 | AX44: 3722050000
A45: 13 | B45: =IF(A45>$B$30,NA(),IF($A45>$A$8,"",OFFSET(InputPriceData!$B$15,$A45+$A$11,0,1,1))) -> 2021-06-15 | C45: =IF(A45>$B$30,NA(),IF($A45>$A$8,"",OFFSET(InputPriceData!$G$15,CalculationsAndCharts!$A45+$A$11,IF($C$5,8,0),1,1))) -> 3578450000 | D45: =IF(A45>$B$30,NA(),IF(A45>$A$8,"",OFFSET(InputPriceData!$C$15,CalculationsAndCharts!$A45+$A$11,IF($C$5,8,0),1,1))) -> 4255.28 | E45: =IF(A45>$B$30,NA(),IF(A45>$A$8,"",OFFSET(InputPriceData!$D$15,CalculationsAndCharts!$A45+$A$11,IF($C$5,8,0),1,1))) -> 4257.16 | F45: =IF(A45>$B$30,NA(),IF(A45>$A$8,"",OFFSET(InputPriceData!$E$15,CalculationsAndCharts!$A45+$A$11,IF($C$5,8,0),1,1))) -> 4238.35 | G45: =IF(A45>$B$30,NA(),IF(A45>$A$8,"",OFFSET(InputPriceData!$F$15,CalculationsAndCharts!$A45+$A$11,IF($C$5,8,0),1,1))) -> 4246.59 | H45: -8.56 | I45: 95.44 | J45: 36.98 | K45: 72.07370488 | L45: 0 | M45: 30 | N45: 30 | O45: 40 | P45: 50 | Q45: 30 | R45: 70 | S45: 0.3308693936 | T45: 0 | U45: 8.56 | V45: 118.1990352 | W45: 48.88147172 | X45: 0.4148752286 | Y45: 0 | Z45: -0.4 | AA45: 0.4 | AB45: 0.6 | AC45: -0.4 | AD45: 0.4 | AX45: 3578450000
A46: 14 | B46: =IF(A46>$B$30,NA(),IF($A46>$A$8,"",OFFSET(InputPriceData!$B$15,$A46+$A$11,0,1,1))) -> 2021-06-14 | C46: =IF(A46>$B$30,NA(),IF($A46>$A$8,"",OFFSET(InputPriceData!$G$15,CalculationsAndCharts!$A46+$A$11,IF($C$5,8,0),1,1))) -> 3612050000 | D46: =IF(A46>$B$30,NA(),IF(A46>$A$8,"",OFFSET(InputPriceData!$C$15,CalculationsAndCharts!$A46+$A$11,IF($C$5,8,0),1,1))) -> 4248.31 | E46: =IF(A46>$B$30,NA(),IF(A46>$A$8,"",OFFSET(InputPriceData!$D$15,CalculationsAndCharts!$A46+$A$11,IF($C$5,8,0),1,1))) -> 4255.59 | F46: =IF(A46>$B$30,NA(),IF(A46>$A$8,"",OFFSET(InputPriceData!$E$15,CalculationsAndCharts!$A46+$A$11,IF($C$5,8,0),1,1))) -> 4234.07 | G46: =IF(A46>$B$30,NA(),IF(A46>$A$8,"",OFFSET(InputPriceData!$F$15,CalculationsAndCharts!$A46+$A$11,IF($C$5,8,0),1,1))) -> 4255.15 | H46: 7.71 | I46: 95.44 | J46: 37.34 | K46: 71.87829492 | L46: 0 | M46: 30 | N46: 30 | O46: 40 | P46: 50 | Q46: 30 | R46: 70 | S46: 0.08645454236 | T46: 7.71 | U46: 0 | V46: 111.8901198 | W46: 48.6947901 | X46: 0.3935321803 | Y46: 0 | Z46: -0.4 | AA46: 0.4 | AB46: 0 | AC46: -0.4 | AD46: 0.4 | AW46: 3612050000
A47: 15 | B47: =IF(A47>$B$30,NA(),IF($A47>$A$8,"",OFFSET(InputPriceData!$B$15,$A47+$A$11,0,1,1))) -> 2021-06-11 | C47: =IF(A47>$B$30,NA(),IF($A47>$A$8,"",OFFSET(InputPriceData!$G$15,CalculationsAndCharts!$A47+$A$11,IF($C$5,8,0),1,1))) -> 3204280000 | D47: =IF(A47>$B$30,NA(),IF(A47>$A$8,"",OFFSET(InputPriceData!$C$15,CalculationsAndCharts!$A47+$A$11,IF($C$5,8,0),1,1))) -> 4242.9 | E47: =IF(A47>$B$30,NA(),IF(A47>$A$8,"",OFFSET(InputPriceData!$D$15,CalculationsAndCharts!$A47+$A$11,IF($C$5,8,0),1,1))) -> 4248.38 | F47: =IF(A47>$B$30,NA(),IF(A47>$A$8,"",OFFSET(InputPriceData!$E$15,CalculationsAndCharts!$A47+$A$11,IF($C$5,8,0),1,1))) -> 4232.25 | G47: =IF(A47>$B$30,NA(),IF(A47>$A$8,"",OFFSET(InputPriceData!$F$15,CalculationsAndCharts!$A47+$A$11,IF($C$5,8,0),1,1))) -> 4247.44 | H47: 8.26 | I47: 128.92 | J47: 37.34 | K47: 77.54120053 | L47: 0 | M47: 30 | N47: 30 | O47: 40 | P47: 50 | Q47: 30 | R47: 70 | S47: -- Coef Sum-- | T47: 8.26 | U47: 0 | V47: 106.2978919 | W47: 47.28481301 | X47: 0.3842429974 | Y47: 0 | Z47: -0.4 | AA47: 0.4 | AB47: 0 | AC47: -0.4 | AD47: 0.4 | AW47: 3204280000
A48: 16 | B48: =IF(A48>$B$30,NA(),IF($A48>$A$8,"",OFFSET(InputPriceData!$B$15,$A48+$A$11,0,1,1))) -> 2021-06-10 | C48: =IF(A48>$B$30,NA(),IF($A48>$A$8,"",OFFSET(InputPriceData!$G$15,CalculationsAndCharts!$A48+$A$11,IF($C$5,8,0),1,1))) -> 3502480000 | D48: =IF(A48>$B$30,NA(),IF(A48>$A$8,"",OFFSET(InputPriceData!$C$15,CalculationsAndCharts!$A48+$A$11,IF($C$5,8,0),1,1))) -> 4228.56 | E48: =IF(A48>$B$30,NA(),IF(A48>$A$8,"",OFFSET(InputPriceData!$D$15,CalculationsAndCharts!$A48+$A$11,IF($C$5,8,0),1,1))) -> 4249.74 | F48: =IF(A48>$B$30,NA(),IF(A48>$A$8,"",OFFSET(InputPriceData!$E$15,CalculationsAndCharts!$A48+$A$11,IF($C$5,8,0),1,1))) -> 4220.34 | G48: =IF(A48>$B$30,NA(),IF(A48>$A$8,"",OFFSET(InputPriceData!$F$15,CalculationsAndCharts!$A48+$A$11,IF($C$5,8,0),1,1))) -> 4239.18 | H48: 19.63 | I48: 120.66 | J48: 40.6 | K48: 74.82326677 | L48: 0 | M48: 30 | N48: 30 | O48: 40 | P48: 50 | Q48: 30 | R48: 70 | S48: 15 | T48: 19.63 | U48: 0 | V48: 105.2837964 | W48: 44.4371292 | X48: 0.4064005547 | Y48: 0 | Z48: -0.4 | AA48: 0.4 | AB48: 0.6 | AC48: -0.4 | AD48: 0.4 | AW48: 3502480000
A49: 17 | B49: =IF(A49>$B$30,NA(),IF($A49>$A$8,"",OFFSET(InputPriceData!$B$15,$A49+$A$11,0,1,1))) -> 2021-06-09 | C49: =IF(A49>$B$30,NA(),IF($A49>$A$8,"",OFFSET(InputPriceData!$G$15,CalculationsAndCharts!$A49+$A$11,IF($C$5,8,0),1,1))) -> 3902870000 | D49: =IF(A49>$B$30,NA(),IF(A49>$A$8,"",OFFSET(InputPriceData!$C$15,CalculationsAndCharts!$A49+$A$11,IF($C$5,8,0),1,1))) -> 4232.99 | E49: =IF(A49>$B$30,NA(),IF(A49>$A$8,"",OFFSET(InputPriceData!$D$15,CalculationsAndCharts!$A49+$A$11,IF($C$5,8,0),1,1))) -> 4237.09 | F49: =IF(A49>$B$30,NA(),IF(A49>$A$8,"",OFFSET(InputPriceData!$E$15,CalculationsAndCharts!$A49+$A$11,IF($C$5,8,0),1,1))) -> 4218.74 | G49: =IF(A49>$B$30,NA(),IF(A49>$A$8,"",OFFSET(InputPriceData!$F$15,CalculationsAndCharts!$A49+$A$11,IF($C$5,8,0),1,1))) -> 4219.55 | H49: -7.71 | I49: 144.47 | J49: 40.6 | K49: 78.06235478 | L49: 0 | M49: 30 | N49: 30 | O49: 40 | P49: 50 | Q49: 30 | R49: 70 | T49: 0 | U49: 7.71 | V49: 111.3980861 | W49: 40.9259709 | X49: 0.462645997 | Y49: 0 | Z49: -0.4 | AA49: 0.4 | AB49: 0.6 | AC49: -0.4 | AD49: 0.4 | AX49: 3902870000
A50: 18 | B50: =IF(A50>$B$30,NA(),IF($A50>$A$8,"",OFFSET(InputPriceData!$B$15,$A50+$A$11,0,1,1))) -> 2021-06-08 | C50: =IF(A50>$B$30,NA(),IF($A50>$A$8,"",OFFSET(InputPriceData!$G$15,CalculationsAndCharts!$A50+$A$11,IF($C$5,8,0),1,1))) -> 3943870000 | D50: =IF(A50>$B$30,NA(),IF(A50>$A$8,"",OFFSET(InputPriceData!$C$15,CalculationsAndCharts!$A50+$A$11,IF($C$5,8,0),1,1))) -> 4233.81 | E50: =IF(A50>$B$30,NA(),IF(A50>$A$8,"",OFFSET(InputPriceData!$D$15,CalculationsAndCharts!$A50+$A$11,IF($C$5,8,0),1,1))) -> 4236.74 | F50: =IF(A50>$B$30,NA(),IF(A50>$A$8,"",OFFSET(InputPriceData!$E$15,CalculationsAndCharts!$A50+$A$11,IF($C$5,8,0),1,1))) -> 4208.41 | G50: =IF(A50>$B$30,NA(),IF(A50>$A$8,"",OFFSET(InputPriceData!$F$15,CalculationsAndCharts!$A50+$A$11,IF($C$5,8,0),1,1))) -> 4227.26 | H50: 0.74 | I50: 144.47 | J50: 45.04 | K50: 76.23344415 | L50: 0 | M50: 30 | N50: 30 | O50: 40 | P50: 50 | Q50: 30 | R50: 70 | T50: 0.74 | U50: 0 | V50: 124.9279128 | W50: 38.40887196 | X50: 0.5296972203 | Y50: 0 | Z50: -0.4 | AA50: 0.4 | AB50: 0.6 | AC50: -0.4 | AD50: 0.4 | AX50: 3943870000
A51: 19 | B51: =IF(A51>$B$30,NA(),IF($A51>$A$8,"",OFFSET(InputPriceData!$B$15,$A51+$A$11,0,1,1))) -> 2021-06-07 | C51: =IF(A51>$B$30,NA(),IF($A51>$A$8,"",OFFSET(InputPriceData!$G$15,CalculationsAndCharts!$A51+$A$11,IF($C$5,8,0),1,1))) -> 3835570000 | D51: =IF(A51>$B$30,NA(),IF(A51>$A$8,"",OFFSET(InputPriceData!$C$15,CalculationsAndCharts!$A51+$A$11,IF($C$5,8,0),1,1))) -> 4229.34 | E51: =IF(A51>$B$30,NA(),IF(A51>$A$8,"",OFFSET(InputPriceData!$D$15,CalculationsAndCharts!$A51+$A$11,IF($C$5,8,0),1,1))) -> 4232.34 | F51: =IF(A51>$B$30,NA(),IF(A51>$A$8,"",OFFSET(InputPriceData!$E$15,CalculationsAndCharts!$A51+$A$11,IF($C$5,8,0),1,1))) -> 4215.66 | G51: =IF(A51>$B$30,NA(),IF(A51>$A$8,"",OFFSET(InputPriceData!$F$15,CalculationsAndCharts!$A51+$A$11,IF($C$5,8,0),1,1))) -> 4226.52 | H51: -3.37 | I51: 143.73 | J51: 80.5 | K51: 64.09936226 | L51: 0 | M51: 30 | O51: 40 | P51: 50 | Q51: 30 | R51: 70 | T51: 0 | U51: 3.37 | V51: 141.836744 | W51: 40.77059789 | X51: 0.5534615698 | Y51: 0 | Z51: -0.4 | AA51: 0.4 | AB51: 0.6 | AC51: -0.4 | AD51: 0.4 | AX51: 3835570000
A52: 20 | B52: =IF(A52>$B$30,NA(),IF($A52>$A$8,"",OFFSET(InputPriceData!$B$15,$A52+$A$11,0,1,1))) -> 2021-06-04 | C52: =IF(A52>$B$30,NA(),IF($A52>$A$8,"",OFFSET(InputPriceData!$G$15,CalculationsAndCharts!$A52+$A$11,IF($C$5,8,0),1,1))) -> 3487070000 | D52: =IF(A52>$B$30,NA(),IF(A52>$A$8,"",OFFSET(InputPriceData!$C$15,CalculationsAndCharts!$A52+$A$11,IF($C$5,8,0),1,1))) -> 4206.05 | E52: =IF(A52>$B$30,NA(),IF(A52>$A$8,"",OFFSET(InputPriceData!$D$15,CalculationsAndCharts!$A52+$A$11,IF($C$5,8,0),1,1))) -> 4233.45 | F52: =IF(A52>$B$30,NA(),IF(A52>$A$8,"",OFFSET(InputPriceData!$E$15,CalculationsAndCharts!$A52+$A$11,IF($C$5,8,0),1,1))) -> 4206.05 | G52: =IF(A52>$B$30,NA(),IF(A52>$A$8,"",OFFSET(InputPriceData!$F$15,CalculationsAndCharts!$A52+$A$11,IF($C$5,8,0),1,1))) -> 4229.89 | H52: 37.04 | I52: 143.73 | J52: 87.69 | K52: 62.10785585 | L52: 0 | M52: 30 | O52: 40 | P52: 50 | Q52: 30 | R52: 70 | T52: 37.04 | U52: 0 | V52: 159.1369126 | W52: 50.91485834 | X52: 0.5152161002 | Y52: 0 | Z52: -0.4 | AA52: 0.4 | AB52: 0.6 | AC52: -0.4 | AD52: 0.4 | AW52: 3487070000
A53: 21 | B53: =IF(A53>$B$30,NA(),IF($A53>$A$8,"",OFFSET(InputPriceData!$B$15,$A53+$A$11,0,1,1))) -> 2021-06-03 | C53: =IF(A53>$B$30,NA(),IF($A53>$A$8,"",OFFSET(InputPriceData!$G$15,CalculationsAndCharts!$A53+$A$11,IF($C$5,8,0),1,1))) -> 4579450000 | D53: =IF(A53>$B$30,NA(),IF(A53>$A$8,"",OFFSET(InputPriceData!$C$15,CalculationsAndCharts!$A53+$A$11,IF($C$5,8,0),1,1))) -> 4191.43 | E53: =IF(A53>$B$30,NA(),IF(A53>$A$8,"",OFFSET(InputPriceData!$D$15,CalculationsAndCharts!$A53+$A$11,IF($C$5,8,0),1,1))) -> 4204.39 | F53: =IF(A53>$B$30,NA(),IF(A53>$A$8,"",OFFSET(InputPriceData!$E$15,CalculationsAndCharts!$A53+$A$11,IF($C$5,8,0),1,1))) -> 4167.93 | G53: =IF(A53>$B$30,NA(),IF(A53>$A$8,"",OFFSET(InputPriceData!$F$15,CalculationsAndCharts!$A53+$A$11,IF($C$5,8,0),1,1))) -> 4192.85 | H53: -15.27 | I53: 168.04 | J53: 87.69 | K53: 65.70992844 | L53: 0 | M53: 30 | O53: 40 | P53: 50 | Q53: 30 | R53: 70 | T53: 0 | U53: 15.27 | V53: 179.0770723 | W53: 67.70922669 | X53: 0.4512724007 | Y53: 0 | Z53: -0.4 | AA53: 0.4 | AB53: 0.6 | AC53: -0.4 | AD53: 0.4 | AW53: 4579450000
A54: 22 | B54: =IF(A54>$B$30,NA(),IF($A54>$A$8,"",OFFSET(InputPriceData!$B$15,$A54+$A$11,0,1,1))) -> 2021-06-02 | C54: =IF(A54>$B$30,NA(),IF($A54>$A$8,"",OFFSET(InputPriceData!$G$15,CalculationsAndCharts!$A54+$A$11,IF($C$5,8,0),1,1))) -> 4860930000 | D54: =IF(A54>$B$30,NA(),IF(A54>$A$8,"",OFFSET(InputPriceData!$C$15,CalculationsAndCharts!$A54+$A$11,IF($C$5,8,0),1,1))) -> 4206.82 | E54: =IF(A54>$B$30,NA(),IF(A54>$A$8,"",OFFSET(InputPriceData!$D$15,CalculationsAndCharts!$A54+$A$11,IF($C$5,8,0),1,1))) -> 4217.37 | F54: =IF(A54>$B$30,NA(),IF(A54>$A$8,"",OFFSET(InputPriceData!$E$15,CalculationsAndCharts!$A54+$A$11,IF($C$5,8,0),1,1))) -> 4198.27 | G54: =IF(A54>$B$30,NA(),IF(A54>$A$8,"",OFFSET(InputPriceData!$F$15,CalculationsAndCharts!$A54+$A$11,IF($C$5,8,0),1,1))) -> 4208.12 | H54: 6.08 | I54: 217.5 | J54: 72.42 | K54: 75.02069536 | L54: 0 | M54: 30 | N54: 30 | O54: 40 | P54: 50 | Q54: 30 | R54: 70 | T54: 6.08 | U54: 0 | V54: 204.5871398 | W54: 87.95845226 | X54: 0.3986684151 | Y54: 0 | Z54: -0.4 | AA54: 0.4 | AB54: 0 | AC54: -0.4 | AD54: 0.4 | AW54: 4860930000
A55: 23 | B55: =IF(A55>$B$30,NA(),IF($A55>$A$8,"",OFFSET(InputPriceData!$B$15,$A55+$A$11,0,1,1))) -> 2021-06-01 | C55: =IF(A55>$B$30,NA(),IF($A55>$A$8,"",OFFSET(InputPriceData!$G$15,CalculationsAndCharts!$A55+$A$11,IF($C$5,8,0),1,1))) -> 4122960000 | D55: =IF(A55>$B$30,NA(),IF(A55>$A$8,"",OFFSET(InputPriceData!$C$15,CalculationsAndCharts!$A55+$A$11,IF($C$5,8,0),1,1))) -> 4216.52 | E55: =IF(A55>$B$30,NA(),IF(A55>$A$8,"",OFFSET(InputPriceData!$D$15,CalculationsAndCharts!$A55+$A$11,IF($C$5,8,0),1,1))) -> 4234.12 | F55: =IF(A55>$B$30,NA(),IF(A55>$A$8,"",OFFSET(InputPriceData!$E$15,CalculationsAndCharts!$A55+$A$11,IF($C$5,8,0),1,1))) -> 4197.59 | G55: =IF(A55>$B$30,NA(),IF(A55>$A$8,"",OFFSET(InputPriceData!$F$15,CalculationsAndCharts!$A55+$A$11,IF($C$5,8,0),1,1))) -> 4202.04 | H55: -2.07 | I55: 211.42 | J55: 161.48 | K55: 56.69616519 | L55: 0 | M55: 30 | O55: 40 | P55: 50 | Q55: 30 | R55: 70 | T55: 0 | U55: 2.07 | V55: 232.3299581 | W55: 114.5407407 | X55: 0.3395767295 | Y55: 0 | Z55: -0.4 | AA55: 0.4 | AB55: 0 | AC55: -0.4 | AD55: 0.4 | AX55: 4122960000
A56: 24 | B56: =IF(A56>$B$30,NA(),IF($A56>$A$8,"",OFFSET(InputPriceData!$B$15,$A56+$A$11,0,1,1))) -> 2021-05-28 | C56: =IF(A56>$B$30,NA(),IF($A56>$A$8,"",OFFSET(InputPriceData!$G$15,CalculationsAndCharts!$A56+$A$11,IF($C$5,8,0),1,1))) -> 4199270000 | D56: =IF(A56>$B$30,NA(),IF(A56>$A$8,"",OFFSET(InputPriceData!$C$15,CalculationsAndCharts!$A56+$A$11,IF($C$5,8,0),1,1))) -> 4210.77 | E56: =IF(A56>$B$30,NA(),IF(A56>$A$8,"",OFFSET(InputPriceData!$D$15,CalculationsAndCharts!$A56+$A$11,IF($C$5,8,0),1,1))) -> 4218.36 | F56: =IF(A56>$B$30,NA(),IF(A56>$A$8,"",OFFSET(InputPriceData!$E$15,CalculationsAndCharts!$A56+$A$11,IF($C$5,8,0),1,1))) -> 4203.57 | G56: =IF(A56>$B$30,NA(),IF(A56>$A$8,"",OFFSET(InputPriceData!$F$15,CalculationsAndCharts!$A56+$A$11,IF($C$5,8,0),1,1))) -> 4204.11 | H56: 3.23 | I56: 211.42 | J56: 195.74 | K56: 51.92553296 | L56: 0 | M56: 30 | O56: 40 | P56: 50 | Q56: 30 | R56: 70 | T56: 3.23 | U56: 0 | V56: 256.9828984 | W56: 152.380147 | X56: 0.2555256333 | Y56: 0 | Z56: -0.4 | AA56: 0.4 | AB56: 0 | AC56: -0.4 | AD56: 0.4 | AX56: 4199270000
A57: 25 | B57: =IF(A57>$B$30,NA(),IF($A57>$A$8,"",OFFSET(InputPriceData!$B$15,$A57+$A$11,0,1,1))) -> 2021-05-27 | C57: =IF(A57>$B$30,NA(),IF($A57>$A$8,"",OFFSET(InputPriceData!$G$15,CalculationsAndCharts!$A57+$A$11,IF($C$5,8,0),1,1))) -> 5201110000 | D57: =IF(A57>$B$30,NA(),IF(A57>$A$8,"",OFFSET(InputPriceData!$C$15,CalculationsAndCharts!$A57+$A$11,IF($C$5,8,0),1,1))) -> 4201.94 | E57: =IF(A57>$B$30,NA(),IF(A57>$A$8,"",OFFSET(InputPriceData!$D$15,CalculationsAndCharts!$A57+$A$11,IF($C$5,8,0),1,1))) -> 4213.38 | F57: =IF(A57>$B$30,NA(),IF(A57>$A$8,"",OFFSET(InputPriceData!$E$15,CalculationsAndCharts!$A57+$A$11,IF($C$5,8,0),1,1))) -> 4197.78 | G57: =IF(A57>$B$30,NA(),IF(A57>$A$8,"",OFFSET(InputPriceData!$F$15,CalculationsAndCharts!$A57+$A$11,IF($C$5,8,0),1,1))) -> 4200.88 | H57: 4.89 | I57: 208.19 | J57: 239.91 | K57: 46.46061147 | L57: 0 | M57: 30 | O57: 40 | P57: 50 | Q57: 30 | R57: 70 | T57: 4.89 | U57: 0 | V57: 273.7575996 | W57: 201.7145238 | X57: 0.1515190317 | Y57: 0 | Z57: -0.4 | AA57: 0.4 | AB57: 0 | AC57: -0.4 | AD57: 0.4 | AX57: 5201110000
A58: 26 | B58: =IF(A58>$B$30,NA(),IF($A58>$A$8,"",OFFSET(InputPriceData!$B$15,$A58+$A$11,0,1,1))) -> 2021-05-26 | C58: =IF(A58>$B$30,NA(),IF($A58>$A$8,"",OFFSET(InputPriceData!$G$15,CalculationsAndCharts!$A58+$A$11,IF($C$5,8,0),1,1))) -> 3674490000 | D58: =IF(A58>$B$30,NA(),IF(A58>$A$8,"",OFFSET(InputPriceData!$C$15,CalculationsAndCharts!$A58+$A$11,IF($C$5,8,0),1,1))) -> 4191.59 | E58: =IF(A58>$B$30,NA(),IF(A58>$A$8,"",OFFSET(InputPriceData!$D$15,CalculationsAndCharts!$A58+$A$11,IF($C$5,8,0),1,1))) -> 4202.61 | F58: =IF(A58>$B$30,NA(),IF(A58>$A$8,"",OFFSET(InputPriceData!$E$15,CalculationsAndCharts!$A58+$A$11,IF($C$5,8,0),1,1))) -> 4184.11 | G58: =IF(A58>$B$30,NA(),IF(A58>$A$8,"",OFFSET(InputPriceData!$F$15,CalculationsAndCharts!$A58+$A$11,IF($C$5,8,0),1,1))) -> 4195.99 | H58: 7.86 | I58: 234.28 | J58: 239.91 | K58: 49.4063561 | L58: 0 | M58: 30 | O58: 40 | P58: 50 | Q58: 30 | R58: 70 | T58: 7.86 | U58: 0 | V58: 282.152677 | W58: 257.6532455 | X58: 0.04538562937 | Y58: 0 | Z58: -0.4 | AA58: 0.4 | AB58: 0 | AC58: -0.4 | AD58: 0.4 | AW58: 3674490000
A59: 27 | B59: =IF(A59>$B$30,NA(),IF($A59>$A$8,"",OFFSET(InputPriceData!$B$15,$A59+$A$11,0,1,1))) -> 2021-05-25 | C59: =IF(A59>$B$30,NA(),IF($A59>$A$8,"",OFFSET(InputPriceData!$G$15,CalculationsAndCharts!$A59+$A$11,IF($C$5,8,0),1,1))) -> 3420870000 | D59: =IF(A59>$B$30,NA(),IF(A59>$A$8,"",OFFSET(InputPriceData!$C$15,CalculationsAndCharts!$A59+$A$11,IF($C$5,8,0),1,1))) -> 4205.94 | E59: =IF(A59>$B$30,NA(),IF(A59>$A$8,"",OFFSET(InputPriceData!$D$15,CalculationsAndCharts!$A59+$A$11,IF($C$5,8,0),1,1))) -> 4213.42 | F59: =IF(A59>$B$30,NA(),IF(A59>$A$8,"",OFFSET(InputPriceData!$E$15,CalculationsAndCharts!$A59+$A$11,IF($C$5,8,0),1,1))) -> 4182.52 | G59: =IF(A59>$B$30,NA(),IF(A59>$A$8,"",OFFSET(InputPriceData!$F$15,CalculationsAndCharts!$A59+$A$11,IF($C$5,8,0),1,1))) -> 4188.13 | H59: -8.92 | I59: 260.45 | J59: 239.91 | K59: 52.05252218 | L59: 0 | M59: 30 | O59: 40 | P59: 50 | Q59: 30 | R59: 70 | T59: 0 | U59: 8.92 | V59: 285.6349445 | W59: 310.5239988 | X59: -0.04174902449 | Y59: 0 | Z59: -0.4 | AA59: 0.4 | AB59: 0 | AC59: -0.4 | AD59: 0.4 | AX59: 3420870000
A60: 28 | B60: =IF(A60>$B$30,NA(),IF($A60>$A$8,"",OFFSET(InputPriceData!$B$15,$A60+$A$11,0,1,1))) -> 2021-05-24 | C60: =IF(A60>$B$30,NA(),IF($A60>$A$8,"",OFFSET(InputPriceData!$G$15,CalculationsAndCharts!$A60+$A$11,IF($C$5,8,0),1,1))) -> 2947400000 | D60: =IF(A60>$B$30,NA(),IF(A60>$A$8,"",OFFSET(InputPriceData!$C$15,CalculationsAndCharts!$A60+$A$11,IF($C$5,8,0),1,1))) -> 4170.16 | E60: =IF(A60>$B$30,NA(),IF(A60>$A$8,"",OFFSET(InputPriceData!$D$15,CalculationsAndCharts!$A60+$A$11,IF($C$5,8,0),1,1))) -> 4209.52 | F60: =IF(A60>$B$30,NA(),IF(A60>$A$8,"",OFFSET(InputPriceData!$E$15,CalculationsAndCharts!$A60+$A$11,IF($C$5,8,0),1,1))) -> 4170.16 | G60: =IF(A60>$B$30,NA(),IF(A60>$A$8,"",OFFSET(InputPriceData!$F$15,CalculationsAndCharts!$A60+$A$11,IF($C$5,8,0),1,1))) -> 4197.05 | H60: 41.19 | I60: 263.38 | J60: 230.99 | K60: 53.27588648 | L60: 0 | M60: 30 | O60: 40 | P60: 50 | Q60: 30 | R60: 70 | T60: 41.19 | U60: 0 | V60: 285.6953508 | W60: 351.1849503 | X60: -0.1028287409 | Y60: 0 | Z60: -0.4 | AA60: 0.4 | AB60: 0 | AC60: -0.4 | AD60: 0.4 | AW60: 2947400000
A61: 29 | B61: =IF(A61>$B$30,NA(),IF($A61>$A$8,"",OFFSET(InputPriceData!$B$15,$A61+$A$11,0,1,1))) -> 2021-05-21 | C61: =IF(A61>$B$30,NA(),IF($A61>$A$8,"",OFFSET(InputPriceData!$G$15,CalculationsAndCharts!$A61+$A$11,IF($C$5,8,0),1,1))) -> 3344620000 | D61: =IF(A61>$B$30,NA(),IF(A61>$A$8,"",OFFSET(InputPriceData!$C$15,CalculationsAndCharts!$A61+$A$11,IF($C$5,8,0),1,1))) -> 4168.61 | E61: =IF(A61>$B$30,NA(),IF(A61>$A$8,"",OFFSET(InputPriceData!$D$15,CalculationsAndCharts!$A61+$A$11,IF($C$5,8,0),1,1))) -> 4188.72 | F61: =IF(A61>$B$30,NA(),IF(A61>$A$8,"",OFFSET(InputPriceData!$E$15,CalculationsAndCharts!$A61+$A$11,IF($C$5,8,0),1,1))) -> 4151.72 | G61: =IF(A61>$B$30,NA(),IF(A61>$A$8,"",OFFSET(InputPriceData!$F$15,CalculationsAndCharts!$A61+$A$11,IF($C$5,8,0),1,1))) -> 4155.86 | H61: -3.26 | I61: 222.19 | J61: 258.99 | K61: 46.17606717 | L61: 0 | M61: 30 | O61: 40 | P61: 50 | Q61: 30 | R61: 70 | T61: 0 | U61: 3.26 | V61: 281.8972302 | W61: 374.2550045 | X61: -0.1407566255 | Y61: 0 | Z61: -0.4 | AA61: 0.4 | AB61: 0 | AC61: -0.4 | AD61: 0.4 | AX61: 3344620000
A62: 30 | B62: =IF(A62>$B$30,NA(),IF($A62>$A$8,"",OFFSET(InputPriceData!$B$15,$A62+$A$11,0,1,1))) -> 2021-05-20 | C62: =IF(A62>$B$30,NA(),IF($A62>$A$8,"",OFFSET(InputPriceData!$G$15,CalculationsAndCharts!$A62+$A$11,IF($C$5,8,0),1,1))) -> 3019060000 | D62: =IF(A62>$B$30,NA(),IF(A62>$A$8,"",OFFSET(InputPriceData!$C$15,CalculationsAndCharts!$A62+$A$11,IF($C$5,8,0),1,1))) -> 4121.97 | E62: =IF(A62>$B$30,NA(),IF(A62>$A$8,"",OFFSET(InputPriceData!$D$15,CalculationsAndCharts!$A62+$A$11,IF($C$5,8,0),1,1))) -> 4172.8 | F62: =IF(A62>$B$30,NA(),IF(A62>$A$8,"",OFFSET(InputPriceData!$E$15,CalculationsAndCharts!$A62+$A$11,IF($C$5,8,0),1,1))) -> 4121.97 | G62: =IF(A62>$B$30,NA(),IF(A62>$A$8,"",OFFSET(InputPriceData!$F$15,CalculationsAndCharts!$A62+$A$11,IF($C$5,8,0),1,1))) -> 4159.12 | H62: 43.44 | I62: 233.68 | J62: 255.73 | K62: 47.74728755 | L62: 0 | M62: 30 | O62: 40 | P62: 50 | Q62: 30 | R62: 70 | T62: 43.44 | U62: 0 | V62: 272.3296124 | W62: 377.3946924 | X62: -0.1617071722 | Y62: 0 | Z62: -0.4 | AA62: 0.4 | AB62: 0 | AC62: -0.4 | AD62: 0.4 | AW62: 3019060000
A63: 31 | B63: =IF(A63>$B$30,NA(),IF($A63>$A$8,"",OFFSET(InputPriceData!$B$15,$A63+$A$11,0,1,1))) -> 2021-05-19 | C63: =IF(A63>$B$30,NA(),IF($A63>$A$8,"",OFFSET(InputPriceData!$G$15,CalculationsAndCharts!$A63+$A$11,IF($C$5,8,0),1,1))) -> 3485550000 | D63: =IF(A63>$B$30,NA(),IF(A63>$A$8,"",OFFSET(InputPriceData!$C$15,CalculationsAndCharts!$A63+$A$11,IF($C$5,8,0),1,1))) -> 4098.45 | E63: =IF(A63>$B$30,NA(),IF(A63>$A$8,"",OFFSET(InputPriceData!$D$15,CalculationsAndCharts!$A63+$A$11,IF($C$5,8,0),1,1))) -> 4116.93 | F63: =IF(A63>$B$30,NA(),IF(A63>$A$8,"",OFFSET(InputPriceData!$E$15,CalculationsAndCharts!$A63+$A$11,IF($C$5,8,0),1,1))) -> 4061.41 | G63: =IF(A63>$B$30,NA(),IF(A63>$A$8,"",OFFSET(InputPriceData!$F$15,CalculationsAndCharts!$A63+$A$11,IF($C$5,8,0),1,1))) -> 4115.68 | H63: -12.15 | I63: 190.24 | J63: 286.03 | K63: 39.9437294 | L63: 0 | M63: 30 | O63: 40 | P63: 50 | Q63: 30 | R63: 70 | T63: 0 | U63: 12.15 | V63: 256.0791254 | W63: 362.3988641 | X63: -0.1719054525 | Y63: 0 | Z63: -0.4 | AA63: 0.4 | AB63: 0 | AC63: -0.4 | AD63: 0.4 | AW63: 3485550000
A64: 32 | B64: =IF(A64>$B$30,NA(),IF($A64>$A$8,"",OFFSET(InputPriceData!$B$15,$A64+$A$11,0,1,1))) -> 2021-05-18 | C64: =IF(A64>$B$30,NA(),IF($A64>$A$8,"",OFFSET(InputPriceData!$G$15,CalculationsAndCharts!$A64+$A$11,IF($C$5,8,0),1,1))) -> 3559790000 | D64: =IF(A64>$B$30,NA(),IF(A64>$A$8,"",OFFSET(InputPriceData!$C$15,CalculationsAndCharts!$A64+$A$11,IF($C$5,8,0),1,1))) -> 4165.94 | E64: =IF(A64>$B$30,NA(),IF(A64>$A$8,"",OFFSET(InputPriceData!$D$15,CalculationsAndCharts!$A64+$A$11,IF($C$5,8,0),1,1))) -> 4169.15 | F64: =IF(A64>$B$30,NA(),IF(A64>$A$8,"",OFFSET(InputPriceData!$E$15,CalculationsAndCharts!$A64+$A$11,IF($C$5,8,0),1,1))) -> 4125.99 | G64: =IF(A64>$B$30,NA(),IF(A64>$A$8,"",OFFSET(InputPriceData!$F$15,CalculationsAndCharts!$A64+$A$11,IF($C$5,8,0),1,1))) -> 4127.83 | H64: -35.46 | I64: 218.53 | J64: 273.88 | K64: 44.3796836 | L64: 0 | M64: 30 | O64: 40 | P64: 50 | Q64: 30 | R64: 70 | T64: 0 | U64: 35.46 | V64: 234.6458399 | W64: 334.1981654 | X64: -0.1750081297 | Y64: 0 | Z64: -0.4 | AA64: 0.4 | AB64: 0 | AC64: -0.4 | AD64: 0.4 | AX64: 3559790000
A65: 33 | B65: =IF(A65>$B$30,NA(),IF($A65>$A$8,"",OFFSET(InputPriceData!$B$15,$A65+$A$11,0,1,1))) -> 2021-05-17 | C65: =IF(A65>$B$30,NA(),IF($A65>$A$8,"",OFFSET(InputPriceData!$G$15,CalculationsAndCharts!$A65+$A$11,IF($C$5,8,0),1,1))) -> 3307130000 | D65: =IF(A65>$B$30,NA(),IF(A65>$A$8,"",OFFSET(InputPriceData!$C$15,CalculationsAndCharts!$A65+$A$11,IF($C$5,8,0),1,1))) -> 4169.92 | E65: =IF(A65>$B$30,NA(),IF(A65>$A$8,"",OFFSET(InputPriceData!$D$15,CalculationsAndCharts!$A65+$A$11,IF($C$5,8,0),1,1))) -> 4171.92 | F65: =IF(A65>$B$30,NA(),IF(A65>$A$8,"",OFFSET(InputPriceData!$E$15,CalculationsAndCharts!$A65+$A$11,IF($C$5,8,0),1,1))) -> 4142.69 | G65: =IF(A65>$B$30,NA(),IF(A65>$A$8,"",OFFSET(InputPriceData!$F$15,CalculationsAndCharts!$A65+$A$11,IF($C$5,8,0),1,1))) -> 4163.29 | H65: -10.56 | I65: 218.53 | J65: 241.96 | K65: 47.45597081 | L65: 0 | M65: 30 | O65: 40 | P65: 50 | Q65: 30 | R65: 70 | T65: 0 | U65: 10.56 | V65: 210.4259793 | W65: 296.9243797 | X65: -0.1704904686 | Y65: 0 | Z65: -0.4 | AA65: 0.4 | AB65: 0 | AC65: -0.4 | AD65: 0.4 | AX65: 3307130000
A66: 34 | B66: =IF(A66>$B$30,NA(),IF($A66>$A$8,"",OFFSET(InputPriceData!$B$15,$A66+$A$11,0,1,1))) -> 2021-05-14 | C66: =IF(A66>$B$30,NA(),IF($A66>$A$8,"",OFFSET(InputPriceData!$G$15,CalculationsAndCharts!$A66+$A$11,IF($C$5,8,0),1,1))) -> 3251920000 | D66: =IF(A66>$B$30,NA(),IF(A66>$A$8,"",OFFSET(InputPriceData!$C$15,CalculationsAndCharts!$A66+$A$11,IF($C$5,8,0),1,1))) -> 4129.58 | E66: =IF(A66>$B$30,NA(),IF(A66>$A$8,"",OFFSET(InputPriceData!$D$15,CalculationsAndCharts!$A66+$A$11,IF($C$5,8,0),1,1))) -> 4183.13 | F66: =IF(A66>$B$30,NA(),IF(A66>$A$8,"",OFFSET(InputPriceData!$E$15,CalculationsAndCharts!$A66+$A$11,IF($C$5,8,0),1,1))) -> 4129.58 | G66: =IF(A66>$B$30,NA(),IF(A66>$A$8,"",OFFSET(InputPriceData!$F$15,CalculationsAndCharts!$A66+$A$11,IF($C$5,8,0),1,1))) -> 4173.85 | H66: 61.35 | I66: 218.53 | J66: 232.3 | K66: 48.4728168 | L66: 0 | M66: 30 | O66: 40 | P66: 50 | Q66: 30 | R66: 70 | T66: 61.35 | U66: 0 | V66: 187.6073774 | W66: 253.2902406 | X66: -0.1489753187 | Y66: 0 | Z66: -0.4 | AA66: 0.4 | AB66: 0 | AC66: -0.4 | AD66: 0.4 | AW66: 3251920000
A67: 35 | B67: =IF(A67>$B$30,NA(),IF($A67>$A$8,"",OFFSET(InputPriceData!$B$15,$A67+$A$11,0,1,1))) -> 2021-05-13 | C67: =IF(A67>$B$30,NA(),IF($A67>$A$8,"",OFFSET(InputPriceData!$G$15,CalculationsAndCharts!$A67+$A$11,IF($C$5,8,0),1,1))) -> 3687780000 | D67: =IF(A67>$B$30,NA(),IF(A67>$A$8,"",OFFSET(InputPriceData!$C$15,CalculationsAndCharts!$A67+$A$11,IF($C$5,8,0),1,1))) -> 4074.99 | E67: =IF(A67>$B$30,NA(),IF(A67>$A$8,"",OFFSET(InputPriceData!$D$15,CalculationsAndCharts!$A67+$A$11,IF($C$5,8,0),1,1))) -> 4131.58 | F67: =IF(A67>$B$30,NA(),IF(A67>$A$8,"",OFFSET(InputPriceData!$E$15,CalculationsAndCharts!$A67+$A$11,IF($C$5,8,0),1,1))) -> 4074.99 | G67: =IF(A67>$B$30,NA(),IF(A67>$A$8,"",OFFSET(InputPriceData!$F$15,CalculationsAndCharts!$A67+$A$11,IF($C$5,8,0),1,1))) -> 4112.5 | H67: 49.46 | I67: 164.63 | J67: 232.3 | K67: 41.47582697 | L67: 0 | M67: 30 | O67: 40 | P67: 50 | Q67: 30 | R67: 70 | T67: 49.46 | U67: 0 | V67: 170.7796643 | W67: 206.9396581 | X67: -0.0957324439 | Y67: 0 | Z67: -0.4 | AA67: 0.4 | AB67: 0 | AC67: -0.4 | AD67: 0.4 | AW67: 3687780000
A68: 36 | B68: =IF(A68>$B$30,NA(),IF($A68>$A$8,"",OFFSET(InputPriceData!$B$15,$A68+$A$11,0,1,1))) -> 2021-05-12 | C68: =IF(A68>$B$30,NA(),IF($A68>$A$8,"",OFFSET(InputPriceData!$G$15,CalculationsAndCharts!$A68+$A$11,IF($C$5,8,0),1,1))) -> 3735080000 | D68: =IF(A68>$B$30,NA(),IF(A68>$A$8,"",OFFSET(InputPriceData!$C$15,CalculationsAndCharts!$A68+$A$11,IF($C$5,8,0),1,1))) -> 4130.55 | E68: =IF(A68>$B$30,NA(),IF(A68>$A$8,"",OFFSET(InputPriceData!$D$15,CalculationsAndCharts!$A68+$A$11,IF($C$5,8,0),1,1))) -> 4134.73 | F68: =IF(A68>$B$30,NA(),IF(A68>$A$8,"",OFFSET(InputPriceData!$E$15,CalculationsAndCharts!$A68+$A$11,IF($C$5,8,0),1,1))) -> 4056.88 | G68: =IF(A68>$B$30,NA(),IF(A68>$A$8,"",OFFSET(InputPriceData!$F$15,CalculationsAndCharts!$A68+$A$11,IF($C$5,8,0),1,1))) -> 4063.04 | H68: -89.06 | I68: 160.36 | J68: 232.3 | K68: 40.83940305 | L68: 0 | M68: 30 | O68: 40 | P68: 50 | Q68: 30 | R68: 70 | T68: 0 | U68: 89.06 | V68: 162.0994853 | W68: 164.9741092 | X68: -0.008788920799 | Y68: 0 | Z68: -0.4 | AA68: 0.4 | AB68: 0 | AC68: -0.4 | AD68: 0.4 | AX68: 3735080000
A69: 37 | B69: =IF(A69>$B$30,NA(),IF($A69>$A$8,"",OFFSET(InputPriceData!$B$15,$A69+$A$11,0,1,1))) -> 2021-05-11 | C69: =IF(A69>$B$30,NA(),IF($A69>$A$8,"",OFFSET(InputPriceData!$G$15,CalculationsAndCharts!$A69+$A$11,IF($C$5,8,0),1,1))) -> 3593110000 | D69: =IF(A69>$B$30,NA(),IF(A69>$A$8,"",OFFSET(InputPriceData!$C$15,CalculationsAndCharts!$A69+$A$11,IF($C$5,8,0),1,1))) -> 4150.34 | E69: =IF(A69>$B$30,NA(),IF(A69>$A$8,"",OFFSET(InputPriceData!$D$15,CalculationsAndCharts!$A69+$A$11,IF($C$5,8,0),1,1))) -> 4162.04 | F69: =IF(A69>$B$30,NA(),IF(A69>$A$8,"",OFFSET(InputPriceData!$E$15,CalculationsAndCharts!$A69+$A$11,IF($C$5,8,0),1,1))) -> 4111.53 | G69: =IF(A69>$B$30,NA(),IF(A69>$A$8,"",OFFSET(InputPriceData!$F$15,CalculationsAndCharts!$A69+$A$11,IF($C$5,8,0),1,1))) -> 4152.1 | H69: -36.33 | I69: 160.36 | J69: 181.68 | K69: 46.88340545 | L69: 0 | M69: 30 | O69: 40 | P69: 50 | Q69: 30 | R69: 70 | T69: 0 | U69: 36.33 | V69: 157.3945751 | W69: 137.973131 | X69: 0.0657534446 | Y69: 0 | Z69: -0.4 | AA69: 0.4 | AB69: 0 | AC69: -0.4 | AD69: 0.4 | AW69: 3593110000
A70: 38 | B70: =IF(A70>$B$30,NA(),IF($A70>$A$8,"",OFFSET(InputPriceData!$B$15,$A70+$A$11,0,1,1))) -> 2021-05-10 | C70: =IF(A70>$B$30,NA(),IF($A70>$A$8,"",OFFSET(InputPriceData!$G$15,CalculationsAndCharts!$A70+$A$11,IF($C$5,8,0),1,1))) -> 3678970000 | D70: =IF(A70>$B$30,NA(),IF(A70>$A$8,"",OFFSET(InputPriceData!$C$15,CalculationsAndCharts!$A70+$A$11,IF($C$5,8,0),1,1))) -> 4228.29 | E70: =IF(A70>$B$30,NA(),IF(A70>$A$8,"",OFFSET(InputPriceData!$D$15,CalculationsAndCharts!$A70+$A$11,IF($C$5,8,0),1,1))) -> 4236.39 | F70: =IF(A70>$B$30,NA(),IF(A70>$A$8,"",OFFSET(InputPriceData!$E$15,CalculationsAndCharts!$A70+$A$11,IF($C$5,8,0),1,1))) -> 4188.13 | G70: =IF(A70>$B$30,NA(),IF(A70>$A$8,"",OFFSET(InputPriceData!$F$15,CalculationsAndCharts!$A70+$A$11,IF($C$5,8,0),1,1))) -> 4188.43 | H70: -44.17 | I70: 198.84 | J70: 145.35 | K70: 57.7704175 | L70: 0 | M70: 30 | O70: 40 | P70: 50 | Q70: 30 | R70: 70 | T70: 0 | U70: 44.17 | V70: 156.5291846 | W70: 126.2291091 | X70: 0.1071589277 | Y70: 0 | Z70: -0.4 | AA70: 0.4 | AB70: 0 | AC70: -0.4 | AD70: 0.4 | AX70: 3678970000
A71: 39 | B71: =IF(A71>$B$30,NA(),IF($A71>$A$8,"",OFFSET(InputPriceData!$B$15,$A71+$A$11,0,1,1))) -> 2021-05-07 | C71: =IF(A71>$B$30,NA(),IF($A71>$A$8,"",OFFSET(InputPriceData!$G$15,CalculationsAndCharts!$A71+$A$11,IF($C$5,8,0),1,1))) -> 4013060000 | D71: =IF(A71>$B$30,NA(),IF(A71>$A$8,"",OFFSET(InputPriceData!$C$15,CalculationsAndCharts!$A71+$A$11,IF($C$5,8,0),1,1))) -> 4210.34 | E71: =IF(A71>$B$30,NA(),IF(A71>$A$8,"",OFFSET(InputPriceData!$D$15,CalculationsAndCharts!$A71+$A$11,IF($C$5,8,0),1,1))) -> 4238.04 | F71: =IF(A71>$B$30,NA(),IF(A71>$A$8,"",OFFSET(InputPriceData!$E$15,CalculationsAndCharts!$A71+$A$11,IF($C$5,8,0),1,1))) -> 4201.64 | G71: =IF(A71>$B$30,NA(),IF(A71>$A$8,"",OFFSET(InputPriceData!$F$15,CalculationsAndCharts!$A71+$A$11,IF($C$5,8,0),1,1))) -> 4232.6 | H71: 30.98 | I71: 198.84 | J71: 129.5 | K71: 60.55917646 | L71: 0 | M71: 30 | O71: 40 | P71: 50 | Q71: 30 | R71: 70 | T71: 30.98 | U71: 0 | V71: 162.9797185 | W71: 123.3805491 | X71: 0.1382844408 | Y71: 0 | Z71: -0.4 | AA71: 0.4 | AB71: 0 | AC71: -0.4 | AD71: 0.4 | AW71: 4013060000
A72: 40 | B72: =IF(A72>$B$30,NA(),IF($A72>$A$8,"",OFFSET(InputPriceData!$B$15,$A72+$A$11,0,1,1))) -> 2021-05-06 | C72: =IF(A72>$B$30,NA(),IF($A72>$A$8,"",OFFSET(InputPriceData!$G$15,CalculationsAndCharts!$A72+$A$11,IF($C$5,8,0),1,1))) -> 4504860000 | D72: =IF(A72>$B$30,NA(),IF(A72>$A$8,"",OFFSET(InputPriceData!$C$15,CalculationsAndCharts!$A72+$A$11,IF($C$5,8,0),1,1))) -> 4169.14 | E72: =IF(A72>$B$30,NA(),IF(A72>$A$8,"",OFFSET(InputPriceData!$D$15,CalculationsAndCharts!$A72+$A$11,IF($C$5,8,0),1,1))) -> 4202.7 | F72: =IF(A72>$B$30,NA(),IF(A72>$A$8,"",OFFSET(InputPriceData!$E$15,CalculationsAndCharts!$A72+$A$11,IF($C$5,8,0),1,1))) -> 4147.33 | G72: =IF(A72>$B$30,NA(),IF(A72>$A$8,"",OFFSET(InputPriceData!$F$15,CalculationsAndCharts!$A72+$A$11,IF($C$5,8,0),1,1))) -> 4201.62 | H72: 34.03 | I72: 167.86 | J72: 151.71 | K72: 52.52683293 | L72: 0 | M72: 30 | O72: 40 | P72: 50 | Q72: 30 | R72: 70 | T72: 34.03 | U72: 0 | V72: 175.6308209 | W72: 127.3289502 | X72: 0.159433282 | Y72: 0 | Z72: -0.4 | AA72: 0.4 | AB72: 0 | AC72: -0.4 | AD72: 0.4 | AW72: 4504860000
A73: 41 | B73: =IF(A73>$B$30,NA(),IF($A73>$A$8,"",OFFSET(InputPriceData!$B$15,$A73+$A$11,0,1,1))) -> 2021-05-05 | C73: =IF(A73>$B$30,NA(),IF($A73>$A$8,"",OFFSET(InputPriceData!$G$15,CalculationsAndCharts!$A73+$A$11,IF($C$5,8,0),1,1))) -> 4029050000 | D73: =IF(A73>$B$30,NA(),IF(A73>$A$8,"",OFFSET(InputPriceData!$C$15,CalculationsAndCharts!$A73+$A$11,IF($C$5,8,0),1,1))) -> 4177.06 | E73: =IF(A73>$B$30,NA(),IF(A73>$A$8,"",OFFSET(InputPriceData!$D$15,CalculationsAndCharts!$A73+$A$11,IF($C$5,8,0),1,1))) -> 4187.72 | F73: =IF(A73>$B$30,NA(),IF(A73>$A$8,"",OFFSET(InputPriceData!$E$15,CalculationsAndCharts!$A73+$A$11,IF($C$5,8,0),1,1))) -> 4160.94 | G73: =IF(A73>$B$30,NA(),IF(A73>$A$8,"",OFFSET(InputPriceData!$F$15,CalculationsAndCharts!$A73+$A$11,IF($C$5,8,0),1,1))) -> 4167.59 | H73: 2.93 | I73: 148.88 | J73: 151.71 | K73: 49.52925912 | L73: 0 | M73: 30 | O73: 40 | P73: 50 | Q73: 30 | R73: 70 | T73: 2.93 | U73: 0 | V73: 190.9177803 | W73: 135.4930564 | X73: 0.1698005018 | Y73: 0 | Z73: -0.4 | AA73: 0.4 | AB73: 0 | AC73: -0.4 | AD73: 0.4 | AX73: 4029050000
A74: 42 | B74: =IF(A74>$B$30,NA(),IF($A74>$A$8,"",OFFSET(InputPriceData!$B$15,$A74+$A$11,0,1,1))) -> 2021-05-04 | C74: =IF(A74>$B$30,NA(),IF($A74>$A$8,"",OFFSET(InputPriceData!$G$15,CalculationsAndCharts!$A74+$A$11,IF($C$5,8,0),1,1))) -> 4441080000 | D74: =IF(A74>$B$30,NA(),IF(A74>$A$8,"",OFFSET(InputPriceData!$C$15,CalculationsAndCharts!$A74+$A$11,IF($C$5,8,0),1,1))) -> 4179.04 | E74: =IF(A74>$B$30,NA(),IF(A74>$A$8,"",OFFSET(InputPriceData!$D$15,CalculationsAndCharts!$A74+$A$11,IF($C$5,8,0),1,1))) -> 4179.04 | F74: =IF(A74>$B$30,NA(),IF(A74>$A$8,"",OFFSET(InputPriceData!$E$15,CalculationsAndCharts!$A74+$A$11,IF($C$5,8,0),1,1))) -> 4128.59 | G74: =IF(A74>$B$30,NA(),IF(A74>$A$8,"",OFFSET(InputPriceData!$F$15,CalculationsAndCharts!$A74+$A$11,IF($C$5,8,0),1,1))) -> 4164.66 | H74: -28 | I74: 191.71 | J74: 151.71 | K74: 55.82377264 | L74: 0 | M74: 30 | O74: 40 | P74: 50 | Q74: 30 | R74: 70 | T74: 0 | U74: 28 | V74: 205.8342335 | W74: 146.4612194 | X74: 0.1685318773 | Y74: 0 | Z74: -0.4 | AA74: 0.4 | AB74: 0 | AC74: -0.4 | AD74: 0.4 | AX74: 4441080000
A75: 43 | B75: =IF(A75>$B$30,NA(),IF($A75>$A$8,"",OFFSET(InputPriceData!$B$15,$A75+$A$11,0,1,1))) -> 2021-05-03 | C75: =IF(A75>$B$30,NA(),IF($A75>$A$8,"",OFFSET(InputPriceData!$G$15,CalculationsAndCharts!$A75+$A$11,IF($C$5,8,0),1,1))) -> 4061170000 | D75: =IF(A75>$B$30,NA(),IF(A75>$A$8,"",OFFSET(InputPriceData!$C$15,CalculationsAndCharts!$A75+$A$11,IF($C$5,8,0),1,1))) -> 4191.98 | E75: =IF(A75>$B$30,NA(),IF(A75>$A$8,"",OFFSET(InputPriceData!$D$15,CalculationsAndCharts!$A75+$A$11,IF($C$5,8,0),1,1))) -> 4209.39 | F75: =IF(A75>$B$30,NA(),IF(A75>$A$8,"",OFFSET(InputPriceData!$E$15,CalculationsAndCharts!$A75+$A$11,IF($C$5,8,0),1,1))) -> 4188.03 | G75: =IF(A75>$B$30,NA(),IF(A75>$A$8,"",OFFSET(InputPriceData!$F$15,CalculationsAndCharts!$A75+$A$11,IF($C$5,8,0),1,1))) -> 4192.66 | H75: 11.49 | I75: 191.71 | J75: 140.64 | K75: 57.68316534 | L75: 0 | M75: 30 | O75: 40 | P75: 50 | Q75: 30 | R75: 70 | T75: 11.49 | U75: 0 | V75: 218.5617902 | W75: 159.8006197 | X75: 0.1553039334 | Y75: 0 | Z75: -0.4 | AA75: 0.4 | AB75: 0 | AC75: -0.4 | AD75: 0.4 | AW75: 4061170000
A76: 44 | B76: =IF(A76>$B$30,NA(),IF($A76>$A$8,"",OFFSET(InputPriceData!$B$15,$A76+$A$11,0,1,1))) -> 2021-04-30 | C76: =IF(A76>$B$30,NA(),IF($A76>$A$8,"",OFFSET(InputPriceData!$G$15,CalculationsAndCharts!$A76+$A$11,IF($C$5,8,0),1,1))) -> 4273680000 | D76: =IF(A76>$B$30,NA(),IF(A76>$A$8,"",OFFSET(InputPriceData!$C$15,CalculationsAndCharts!$A76+$A$11,IF($C$5,8,0),1,1))) -> 4198.1 | E76: =IF(A76>$B$30,NA(),IF(A76>$A$8,"",OFFSET(InputPriceData!$D$15,CalculationsAndCharts!$A76+$A$11,IF($C$5,8,0),1,1))) -> 4198.1 | F76: =IF(A76>$B$30,NA(),IF(A76>$A$8,"",OFFSET(InputPriceData!$E$15,CalculationsAndCharts!$A76+$A$11,IF($C$5,8,0),1,1))) -> 4174.85 | G76: =IF(A76>$B$30,NA(),IF(A76>$A$8,"",OFFSET(InputPriceData!$F$15,CalculationsAndCharts!$A76+$A$11,IF($C$5,8,0),1,1))) -> 4181.17 | H76: -30.3 | I76: 193.82 | J76: 140.64 | K76: 57.95012857 | L76: 0 | M76: 30 | O76: 40 | P76: 50 | Q76: 30 | R76: 70 | T76: 0 | U76: 30.3 | V76: 227.8222103 | W76: 172.247702 | X76: 0.1389119916 | Y76: 0 | Z76: -0.4 | AA76: 0.4 | AB76: 0 | AC76: -0.4 | AD76: 0.4 | AX76: 4273680000
A77: 45 | B77: =IF(A77>$B$30,NA(),IF($A77>$A$8,"",OFFSET(InputPriceData!$B$15,$A77+$A$11,0,1,1))) -> 2021-04-29 | C77: =IF(A77>$B$30,NA(),IF($A77>$A$8,"",OFFSET(InputPriceData!$G$15,CalculationsAndCharts!$A77+$A$11,IF($C$5,8,0),1,1))) -> 4288940000 | D77: =IF(A77>$B$30,NA(),IF(A77>$A$8,"",OFFSET(InputPriceData!$C$15,CalculationsAndCharts!$A77+$A$11,IF($C$5,8,0),1,1))) -> 4206.14 | E77: =IF(A77>$B$30,NA(),IF(A77>$A$8,"",OFFSET(InputPriceData!$D$15,CalculationsAndCharts!$A77+$A$11,IF($C$5,8,0),1,1))) -> 4218.78 | F77: =IF(A77>$B$30,NA(),IF(A77>$A$8,"",OFFSET(InputPriceData!$E$15,CalculationsAndCharts!$A77+$A$11,IF($C$5,8,0),1,1))) -> 4176.81 | G77: =IF(A77>$B$30,NA(),IF(A77>$A$8,"",OFFSET(InputPriceData!$F$15,CalculationsAndCharts!$A77+$A$11,IF($C$5,8,0),1,1))) -> 4211.47 | H77: 28.29 | I77: 193.82 | J77: 111.15 | K77: 63.55379218 | L77: 0 | M77: 30 | O77: 40 | P77: 50 | Q77: 30 | R77: 70 | T77: 28.29 | U77: 0 | V77: 232.196702 | W77: 179.2995536 | X77: 0.1285483104 | Y77: 0 | Z77: -0.4 | AA77: 0.4 | AB77: 0 | AC77: -0.4 | AD77: 0.4 | AW77: 4288940000
A78: 46 | B78: =IF(A78>$B$30,NA(),IF($A78>$A$8,"",OFFSET(InputPriceData!$B$15,$A78+$A$11,0,1,1))) -> 2021-04-28 | C78: =IF(A78>$B$30,NA(),IF($A78>$A$8,"",OFFSET(InputPriceData!$G$15,CalculationsAndCharts!$A78+$A$11,IF($C$5,8,0),1,1))) -> 3772390000 | D78: =IF(A78>$B$30,NA(),IF(A78>$A$8,"",OFFSET(InputPriceData!$C$15,CalculationsAndCharts!$A78+$A$11,IF($C$5,8,0),1,1))) -> 4185.14 | E78: =IF(A78>$B$30,NA(),IF(A78>$A$8,"",OFFSET(InputPriceData!$D$15,CalculationsAndCharts!$A78+$A$11,IF($C$5,8,0),1,1))) -> 4201.53 | F78: =IF(A78>$B$30,NA(),IF(A78>$A$8,"",OFFSET(InputPriceData!$E$15,CalculationsAndCharts!$A78+$A$11,IF($C$5,8,0),1,1))) -> 4181.78 | G78: =IF(A78>$B$30,NA(),IF(A78>$A$8,"",OFFSET(InputPriceData!$F$15,CalculationsAndCharts!$A78+$A$11,IF($C$5,8,0),1,1))) -> 4183.18 | H78: -3.54 | I78: 197.16 | J78: 111.15 | K78: 63.94862314 | L78: 0 | M78: 30 | O78: 40 | P78: 50 | Q78: 30 | R78: 70 | T78: 0 | U78: 3.54 | V78: 232.6700704 | W78: 177.1873009 | X78: 0.1353709202 | Y78: 0 | Z78: -0.4 | AA78: 0.4 | AB78: 0 | AC78: -0.4 | AD78: 0.4 | AX78: 3772390000
A79: 47 | B79: =IF(A79>$B$30,NA(),IF($A79>$A$8,"",OFFSET(InputPriceData!$B$15,$A79+$A$11,0,1,1))) -> 2021-04-27 | C79: =IF(A79>$B$30,NA(),IF($A79>$A$8,"",OFFSET(InputPriceData!$G$15,CalculationsAndCharts!$A79+$A$11,IF($C$5,8,0),1,1))) -> 3703240000 | D79: =IF(A79>$B$30,NA(),IF(A79>$A$8,"",OFFSET(InputPriceData!$C$15,CalculationsAndCharts!$A79+$A$11,IF($C$5,8,0),1,1))) -> 4188.25 | E79: =IF(A79>$B$30,NA(),IF(A79>$A$8,"",OFFSET(InputPriceData!$D$15,CalculationsAndCharts!$A79+$A$11,IF($C$5,8,0),1,1))) -> 4193.35 | F79: =IF(A79>$B$30,NA(),IF(A79>$A$8,"",OFFSET(InputPriceData!$E$15,CalculationsAndCharts!$A79+$A$11,IF($C$5,8,0),1,1))) -> 4176.22 | G79: =IF(A79>$B$30,NA(),IF(A79>$A$8,"",OFFSET(InputPriceData!$F$15,CalculationsAndCharts!$A79+$A$11,IF($C$5,8,0),1,1))) -> 4186.72 | H79: -0.9 | I79: 214.38 | J79: 107.61 | K79: 66.57970744 | L79: 0 | M79: 30 | O79: 40 | P79: 50 | Q79: 30 | R79: 70 | T79: 0 | U79: 0.9 | V79: 230.9379713 | W79: 163.6565989 | X79: 0.170507598 | Y79: 0 | Z79: -0.4 | AA79: 0.4 | AB79: 0 | AC79: -0.4 | AD79: 0.4 | AX79: 3703240000
A80: 48 | B80: =IF(A80>$B$30,NA(),IF($A80>$A$8,"",OFFSET(InputPriceData!$B$15,$A80+$A$11,0,1,1))) -> 2021-04-26 | C80: =IF(A80>$B$30,NA(),IF($A80>$A$8,"",OFFSET(InputPriceData!$G$15,CalculationsAndCharts!$A80+$A$11,IF($C$5,8,0),1,1))) -> 3738920000 | D80: =IF(A80>$B$30,NA(),IF(A80>$A$8,"",OFFSET(InputPriceData!$C$15,CalculationsAndCharts!$A80+$A$11,IF($C$5,8,0),1,1))) -> 4185.03 | E80: =IF(A80>$B$30,NA(),IF(A80>$A$8,"",OFFSET(InputPriceData!$D$15,CalculationsAndCharts!$A80+$A$11,IF($C$5,8,0),1,1))) -> 4194.19 | F80: =IF(A80>$B$30,NA(),IF(A80>$A$8,"",OFFSET(InputPriceData!$E$15,CalculationsAndCharts!$A80+$A$11,IF($C$5,8,0),1,1))) -> 4182.36 | G80: =IF(A80>$B$30,NA(),IF(A80>$A$8,"",OFFSET(InputPriceData!$F$15,CalculationsAndCharts!$A80+$A$11,IF($C$5,8,0),1,1))) -> 4187.62 | H80: 7.45 | I80: 220.39 | J80: 106.71 | K80: 67.37694895 | L80: 0 | M80: 30 | O80: 40 | P80: 50 | Q80: 30 | R80: 70 | T80: 7.45 | U80: 0 | V80: 226.8624403 | W80: 140.74098 | X80: 0.2342781803 | Y80: 0 | Z80: -0.4 | AA80: 0.4 | AB80: 0 | AC80: -0.4 | AD80: 0.4 | AW80: 3738920000
A81: 49 | B81: =IF(A81>$B$30,NA(),IF($A81>$A$8,"",OFFSET(InputPriceData!$B$15,$A81+$A$11,0,1,1))) -> 2021-04-23 | C81: =IF(A81>$B$30,NA(),IF($A81>$A$8,"",OFFSET(InputPriceData!$G$15,CalculationsAndCharts!$A81+$A$11,IF($C$5,8,0),1,1))) -> 3568080000 | D81: =IF(A81>$B$30,NA(),IF(A81>$A$8,"",OFFSET(InputPriceData!$C$15,CalculationsAndCharts!$A81+$A$11,IF($C$5,8,0),1,1))) -> 4138.78 | E81: =IF(A81>$B$30,NA(),IF(A81>$A$8,"",OFFSET(InputPriceData!$D$15,CalculationsAndCharts!$A81+$A$11,IF($C$5,8,0),1,1))) -> 4194.17 | F81: =IF(A81>$B$30,NA(),IF(A81>$A$8,"",OFFSET(InputPriceData!$E$15,CalculationsAndCharts!$A81+$A$11,IF($C$5,8,0),1,1))) -> 4138.78 | G81: =IF(A81>$B$30,NA(),IF(A81>$A$8,"",OFFSET(InputPriceData!$F$15,CalculationsAndCharts!$A81+$A$11,IF($C$5,8,0),1,1))) -> 4180.17 | H81: 45.19 | I81: 212.94 | J81: 110.68 | K81: 65.79939435 | L81: 0 | M81: 30 | O81: 40 | P81: 50 | Q81: 30 | R81: 70 | T81: 45.19 | U81: 0 | V81: 221.6677656 | W81: 112.362129 | X81: 0.3272330962 | Y81: 0 | Z81: -0.4 | AA81: 0.4 | AB81: 0 | AC81: -0.4 | AD81: 0.4 | AW81: 3568080000
A82: 50 | B82: =IF(A82>$B$30,NA(),IF($A82>$A$8,"",OFFSET(InputPriceData!$B$15,$A82+$A$11,0,1,1))) -> 2021-04-22 | C82: =IF(A82>$B$30,NA(),IF($A82>$A$8,"",OFFSET(InputPriceData!$G$15,CalculationsAndCharts!$A82+$A$11,IF($C$5,8,0),1,1))) -> 4235040000 | D82: =IF(A82>$B$30,NA(),IF(A82>$A$8,"",OFFSET(InputPriceData!$C$15,CalculationsAndCharts!$A82+$A$11,IF($C$5,8,0),1,1))) -> 4170.46 | E82: =IF(A82>$B$30,NA(),IF(A82>$A$8,"",OFFSET(InputPriceData!$D$15,CalculationsAndCharts!$A82+$A$11,IF($C$5,8,0),1,1))) -> 4179.57 | F82: =IF(A82>$B$30,NA(),IF(A82>$A$8,"",OFFSET(InputPriceData!$E$15,CalculationsAndCharts!$A82+$A$11,IF($C$5,8,0),1,1))) -> 4123.69 | G82: =IF(A82>$B$30,NA(),IF(A82>$A$8,"",OFFSET(InputPriceData!$F$15,CalculationsAndCharts!$A82+$A$11,IF($C$5,8,0),1,1))) -> 4134.98 | H82: -38.44 | I82: 225.79 | J82: 110.68 | K82: 67.1055369 | L82: 0 | M82: 30 | O82: 40 | P82: 50 | Q82: 30 | R82: 70 | T82: 0 | U82: 38.44 | V82: 220.6258889 | W82: 83.69242264 | X82: 0.4499678826 | Y82: 0 | Z82: -0.4 | AA82: 0.4 | AB82: 0.6 | AC82: -0.4 | AD82: 0.4 | AX82: 4235040000
A83: 51 | B83: =IF(A83>$B$30,NA(),IF($A83>$A$8,"",OFFSET(InputPriceData!$B$15,$A83+$A$11,0,1,1))) -> 2021-04-21 | C83: =IF(A83>$B$30,NA(),IF($A83>$A$8,"",OFFSET(InputPriceData!$G$15,CalculationsAndCharts!$A83+$A$11,IF($C$5,8,0),1,1))) -> 3865820000 | D83: =IF(A83>$B$30,NA(),IF(A83>$A$8,"",OFFSET(InputPriceData!$C$15,CalculationsAndCharts!$A83+$A$11,IF($C$5,8,0),1,1))) -> 4128.42 | E83: =IF(A83>$B$30,NA(),IF(A83>$A$8,"",OFFSET(InputPriceData!$D$15,CalculationsAndCharts!$A83+$A$11,IF($C$5,8,0),1,1))) -> 4175.02 | F83: =IF(A83>$B$30,NA(),IF(A83>$A$8,"",OFFSET(InputPriceData!$E$15,CalculationsAndCharts!$A83+$A$11,IF($C$5,8,0),1,1))) -> 4126.35 | G83: =IF(A83>$B$30,NA(),IF(A83>$A$8,"",OFFSET(InputPriceData!$F$15,CalculationsAndCharts!$A83+$A$11,IF($C$5,8,0),1,1))) -> 4173.42 | H83: 38.48 | I83: 272.77 | J83: 72.24 | K83: 79.06147648 | L83: 0 | M83: 30 | N83: 30 | O83: 40 | P83: 50 | Q83: 30 | R83: 70 | T83: 38.48 | U83: 0 | V83: 228.4454491 | W83: 59.68911359 | X83: 0.5856858475 | Y83: 0 | Z83: -0.4 | AA83: 0.4 | AB83: 0.6 | AC83: -0.4 | AD83: 0.4 | AW83: 3865820000
A84: 52 | B84: =IF(A84>$B$30,NA(),IF($A84>$A$8,"",OFFSET(InputPriceData!$B$15,$A84+$A$11,0,1,1))) -> 2021-04-20 | C84: =IF(A84>$B$30,NA(),IF($A84>$A$8,"",OFFSET(InputPriceData!$G$15,CalculationsAndCharts!$A84+$A$11,IF($C$5,8,0),1,1))) -> 4338230000 | D84: =IF(A84>$B$30,NA(),IF(A84>$A$8,"",OFFSET(InputPriceData!$C$15,CalculationsAndCharts!$A84+$A$11,IF($C$5,8,0),1,1))) -> 4159.18 | E84: =IF(A84>$B$30,NA(),IF(A84>$A$8,"",OFFSET(InputPriceData!$D$15,CalculationsAndCharts!$A84+$A$11,IF($C$5,8,0),1,1))) -> 4159.18 | F84: =IF(A84>$B$30,NA(),IF(A84>$A$8,"",OFFSET(InputPriceData!$E$15,CalculationsAndCharts!$A84+$A$11,IF($C$5,8,0),1,1))) -> 4118.38 | G84: =IF(A84>$B$30,NA(),IF(A84>$A$8,"",OFFSET(InputPriceData!$F$15,CalculationsAndCharts!$A84+$A$11,IF($C$5,8,0),1,1))) -> 4134.94 | H84: -28.32 | I84: 248.63 | J84: 72.24 | K84: 77.48620937 | L84: 0 | M84: 30 | N84: 30 | O84: 40 | P84: 50 | Q84: 30 | R84: 70 | T84: 0 | U84: 28.32 | V84: 245.168885 | W84: 41.17927943 | X84: 0.7123831437 | Y84: 0 | Z84: -0.4 | AA84: 0.4 | AB84: 0.6 | AC84: -0.4 | AD84: 0.4 | AX84: 4338230000
A85: 53 | B85: =IF(A85>$B$30,NA(),IF($A85>$A$8,"",OFFSET(InputPriceData!$B$15,$A85+$A$11,0,1,1))) -> 2021-04-19 | C85: =IF(A85>$B$30,NA(),IF($A85>$A$8,"",OFFSET(InputPriceData!$G$15,CalculationsAndCharts!$A85+$A$11,IF($C$5,8,0),1,1))) -> 3788020000 | D85: =IF(A85>$B$30,NA(),IF(A85>$A$8,"",OFFSET(InputPriceData!$C$15,CalculationsAndCharts!$A85+$A$11,IF($C$5,8,0),1,1))) -> 4179.8 | E85: =IF(A85>$B$30,NA(),IF(A85>$A$8,"",OFFSET(InputPriceData!$D$15,CalculationsAndCharts!$A85+$A$11,IF($C$5,8,0),1,1))) -> 4180.81 | F85: =IF(A85>$B$30,NA(),IF(A85>$A$8,"",OFFSET(InputPriceData!$E$15,CalculationsAndCharts!$A85+$A$11,IF($C$5,8,0),1,1))) -> 4150.47 | G85: =IF(A85>$B$30,NA(),IF(A85>$A$8,"",OFFSET(InputPriceData!$F$15,CalculationsAndCharts!$A85+$A$11,IF($C$5,8,0),1,1))) -> 4163.26 | H85: -22.21 | I85: 248.63 | J85: 56.46 | K85: 81.49398538 | L85: 0 | M85: 30 | N85: 30 | O85: 40 | P85: 50 | Q85: 30 | R85: 70 | T85: 0 | U85: 22.21 | V85: 265.8175499 | W85: 29.124266 | X85: 0.802508397 | Y85: 0 | Z85: -0.4 | AA85: 0.4 | AB85: 0.6 | AC85: -0.4 | AD85: 0.4 | AX85: 3788020000
A86: 54 | B86: =IF(A86>$B$30,NA(),IF($A86>$A$8,"",OFFSET(InputPriceData!$B$15,$A86+$A$11,0,1,1))) -> 2021-04-16 | C86: =IF(A86>$B$30,NA(),IF($A86>$A$8,"",OFFSET(InputPriceData!$G$15,CalculationsAndCharts!$A86+$A$11,IF($C$5,8,0),1,1))) -> 4157430000 | D86: =IF(A86>$B$30,NA(),IF(A86>$A$8,"",OFFSET(InputPriceData!$C$15,CalculationsAndCharts!$A86+$A$11,IF($C$5,8,0),1,1))) -> 4174.14 | E86: =IF(A86>$B$30,NA(),IF(A86>$A$8,"",OFFSET(InputPriceData!$D$15,CalculationsAndCharts!$A86+$A$11,IF($C$5,8,0),1,1))) -> 4191.31 | F86: =IF(A86>$B$30,NA(),IF(A86>$A$8,"",OFFSET(InputPriceData!$E$15,CalculationsAndCharts!$A86+$A$11,IF($C$5,8,0),1,1))) -> 4170.75 | G86: =IF(A86>$B$30,NA(),IF(A86>$A$8,"",OFFSET(InputPriceData!$F$15,CalculationsAndCharts!$A86+$A$11,IF($C$5,8,0),1,1))) -> 4185.47 | H86: 15.05 | I86: 248.63 | J86: 37.7 | K86: 86.83337408 | L86: 0 | M86: 30 | N86: 30 | O86: 40 | P86: 50 | Q86: 30 | R86: 70 | T86: 15.05 | U86: 0 | V86: 283.4943312 | W86: 24.54251012 | X86: 0.8406521115 | Y86: 0 | Z86: -0.4 | AA86: 0.4 | AB86: 0.6 | AC86: -0.4 | AD86: 0.4 | AW86: 4157430000
A87: 55 | B87: =IF(A87>$B$30,NA(),IF($A87>$A$8,"",OFFSET(InputPriceData!$B$15,$A87+$A$11,0,1,1))) -> 2021-04-15 | C87: =IF(A87>$B$30,NA(),IF($A87>$A$8,"",OFFSET(InputPriceData!$G$15,CalculationsAndCharts!$A87+$A$11,IF($C$5,8,0),1,1))) -> 4027680000 | D87: =IF(A87>$B$30,NA(),IF(A87>$A$8,"",OFFSET(InputPriceData!$C$15,CalculationsAndCharts!$A87+$A$11,IF($C$5,8,0),1,1))) -> 4139.76 | E87: =IF(A87>$B$30,NA(),IF(A87>$A$8,"",OFFSET(InputPriceData!$D$15,CalculationsAndCharts!$A87+$A$11,IF($C$5,8,0),1,1))) -> 4173.49 | F87: =IF(A87>$B$30,NA(),IF(A87>$A$8,"",OFFSET(InputPriceData!$E$15,CalculationsAndCharts!$A87+$A$11,IF($C$5,8,0),1,1))) -> 4139.76 | G87: =IF(A87>$B$30,NA(),IF(A87>$A$8,"",OFFSET(InputPriceData!$F$15,CalculationsAndCharts!$A87+$A$11,IF($C$5,8,0),1,1))) -> 4170.42 | H87: 45.76 | I87: 298.6 | J87: 37.7 | K87: 88.78977104 | L87: 0 | M87: 30 | N87: 30 | O87: 40 | P87: 50 | Q87: 30 | R87: 70 | T87: 45.76 | U87: 0 | V87: 300.7640273 | W87: 24.15595916 | X87: 0.8513113371 | Y87: 0 | Z87: -0.4 | AA87: 0.4 | AB87: 0.6 | AC87: -0.4 | AD87: 0.4 | AW87: 4027680000
A88: 56 | B88: =IF(A88>$B$30,NA(),IF($A88>$A$8,"",OFFSET(InputPriceData!$B$15,$A88+$A$11,0,1,1))) -> 2021-04-14 | C88: =IF(A88>$B$30,NA(),IF($A88>$A$8,"",OFFSET(InputPriceData!$G$15,CalculationsAndCharts!$A88+$A$11,IF($C$5,8,0),1,1))) -> 3976540000 | D88: =IF(A88>$B$30,NA(),IF(A88>$A$8,"",OFFSET(InputPriceData!$C$15,CalculationsAndCharts!$A88+$A$11,IF($C$5,8,0),1,1))) -> 4141.58 | E88: =IF(A88>$B$30,NA(),IF(A88>$A$8,"",OFFSET(InputPriceData!$D$15,CalculationsAndCharts!$A88+$A$11,IF($C$5,8,0),1,1))) -> 4151.69 | F88: =IF(A88>$B$30,NA(),IF(A88>$A$8,"",OFFSET(InputPriceData!$E$15,CalculationsAndCharts!$A88+$A$11,IF($C$5,8,0),1,1))) -> 4120.87 | G88: =IF(A88>$B$30,NA(),IF(A88>$A$8,"",OFFSET(InputPriceData!$F$15,CalculationsAndCharts!$A88+$A$11,IF($C$5,8,0),1,1))) -> 4124.66 | H88: -16.93 | I88: 273.22 | J88: 37.7 | K88: 87.87469446 | L88: 0 | M88: 30 | N88: 30 | O88: 40 | P88: 50 | Q88: 30 | R88: 70 | T88: 0 | U88: 16.93 | V88: 320.7226279 | W88: 26.11129591 | X88: 0.8494305538 | Y88: 0 | Z88: -0.4 | AA88: 0.4 | AB88: 0.6 | AC88: -0.4 | AD88: 0.4 | AX88: 3976540000
A89: 57 | B89: =IF(A89>$B$30,NA(),IF($A89>$A$8,"",OFFSET(InputPriceData!$B$15,$A89+$A$11,0,1,1))) -> 2021-04-13 | C89: =IF(A89>$B$30,NA(),IF($A89>$A$8,"",OFFSET(InputPriceData!$G$15,CalculationsAndCharts!$A89+$A$11,IF($C$5,8,0),1,1))) -> 3728440000 | D89: =IF(A89>$B$30,NA(),IF(A89>$A$8,"",OFFSET(InputPriceData!$C$15,CalculationsAndCharts!$A89+$A$11,IF($C$5,8,0),1,1))) -> 4130.1 | E89: =IF(A89>$B$30,NA(),IF(A89>$A$8,"",OFFSET(InputPriceData!$D$15,CalculationsAndCharts!$A89+$A$11,IF($C$5,8,0),1,1))) -> 4148 | F89: =IF(A89>$B$30,NA(),IF(A89>$A$8,"",OFFSET(InputPriceData!$E$15,CalculationsAndCharts!$A89+$A$11,IF($C$5,8,0),1,1))) -> 4124.43 | G89: =IF(A89>$B$30,NA(),IF(A89>$A$8,"",OFFSET(InputPriceData!$F$15,CalculationsAndCharts!$A89+$A$11,IF($C$5,8,0),1,1))) -> 4141.59 | H89: 13.6 | I89: 273.22 | J89: 42.15 | K89: 86.63474649 | L89: 0 | M89: 30 | N89: 30 | O89: 40 | P89: 50 | Q89: 30 | R89: 70 | T89: 13.6 | U89: 0 | V89: 336.4237524 | W89: 31.91882299 | X89: 0.8266894727 | Y89: 0 | Z89: -0.4 | AA89: 0.4 | AB89: 0.6 | AC89: -0.4 | AD89: 0.4 | AW89: 3728440000
A90: 58 | B90: =IF(A90>$B$30,NA(),IF($A90>$A$8,"",OFFSET(InputPriceData!$B$15,$A90+$A$11,0,1,1))) -> 2021-04-12 | C90: =IF(A90>$B$30,NA(),IF($A90>$A$8,"",OFFSET(InputPriceData!$G$15,CalculationsAndCharts!$A90+$A$11,IF($C$5,8,0),1,1))) -> 3578500000 | D90: =IF(A90>$B$30,NA(),IF(A90>$A$8,"",OFFSET(InputPriceData!$C$15,CalculationsAndCharts!$A90+$A$11,IF($C$5,8,0),1,1))) -> 4124.71 | E90: =IF(A90>$B$30,NA(),IF(A90>$A$8,"",OFFSET(InputPriceData!$D$15,CalculationsAndCharts!$A90+$A$11,IF($C$5,8,0),1,1))) -> 4131.76 | F90: =IF(A90>$B$30,NA(),IF(A90>$A$8,"",OFFSET(InputPriceData!$E$15,CalculationsAndCharts!$A90+$A$11,IF($C$5,8,0),1,1))) -> 4114.82 | G90: =IF(A90>$B$30,NA(),IF(A90>$A$8,"",OFFSET(InputPriceData!$F$15,CalculationsAndCharts!$A90+$A$11,IF($C$5,8,0),1,1))) -> 4127.99 | H90: -0.81 | I90: 259.62 | J90: 72.22 | K90: 78.23649952 | L90: 0 | M90: 30 | N90: 30 | O90: 40 | P90: 50 | Q90: 30 | R90: 70 | T90: 0 | U90: 0.81 | V90: 341.1963739 | W90: 43.55877701 | X90: 0.7735766401 | Y90: 0 | Z90: -0.4 | AA90: 0.4 | AB90: 0.6 | AC90: -0.4 | AD90: 0.4 | AW90: 3578500000
A91: 59 | B91: =IF(A91>$B$30,NA(),IF($A91>$A$8,"",OFFSET(InputPriceData!$B$15,$A91+$A$11,0,1,1))) -> 2021-04-09 | C91: =IF(A91>$B$30,NA(),IF($A91>$A$8,"",OFFSET(InputPriceData!$G$15,CalculationsAndCharts!$A91+$A$11,IF($C$5,8,0),1,1))) -> 3634910000 | D91: =IF(A91>$B$30,NA(),IF(A91>$A$8,"",OFFSET(InputPriceData!$C$15,CalculationsAndCharts!$A91+$A$11,IF($C$5,8,0),1,1))) -> 4096.11 | E91: =IF(A91>$B$30,NA(),IF(A91>$A$8,"",OFFSET(InputPriceData!$D$15,CalculationsAndCharts!$A91+$A$11,IF($C$5,8,0),1,1))) -> 4129.48 | F91: =IF(A91>$B$30,NA(),IF(A91>$A$8,"",OFFSET(InputPriceData!$E$15,CalculationsAndCharts!$A91+$A$11,IF($C$5,8,0),1,1))) -> 4095.51 | G91: =IF(A91>$B$30,NA(),IF(A91>$A$8,"",OFFSET(InputPriceData!$F$15,CalculationsAndCharts!$A91+$A$11,IF($C$5,8,0),1,1))) -> 4128.8 | H91: 31.63 | I91: 287.11 | J91: 71.41 | K91: 80.08200379 | L91: 0 | M91: 30 | N91: 30 | O91: 40 | P91: 50 | Q91: 30 | R91: 70 | T91: 31.63 | U91: 0 | V91: 335.4161164 | W91: 60.15451687 | X91: 0.6958595416 | Y91: 0 | Z91: -0.4 | AA91: 0.4 | AB91: 0.6 | AC91: -0.4 | AD91: 0.4 | AW91: 3634910000
A92: 60 | B92: =IF(A92>$B$30,NA(),IF($A92>$A$8,"",OFFSET(InputPriceData!$B$15,$A92+$A$11,0,1,1))) -> 2021-04-08 | C92: =IF(A92>$B$30,NA(),IF($A92>$A$8,"",OFFSET(InputPriceData!$G$15,CalculationsAndCharts!$A92+$A$11,IF($C$5,8,0),1,1))) -> 3901910000 | D92: =IF(A92>$B$30,NA(),IF(A92>$A$8,"",OFFSET(InputPriceData!$C$15,CalculationsAndCharts!$A92+$A$11,IF($C$5,8,0),1,1))) -> 4089.95 | E92: =IF(A92>$B$30,NA(),IF(A92>$A$8,"",OFFSET(InputPriceData!$D$15,CalculationsAndCharts!$A92+$A$11,IF($C$5,8,0),1,1))) -> 4098.19 | F92: =IF(A92>$B$30,NA(),IF(A92>$A$8,"",OFFSET(InputPriceData!$E$15,CalculationsAndCharts!$A92+$A$11,IF($C$5,8,0),1,1))) -> 4082.54 | G92: =IF(A92>$B$30,NA(),IF(A92>$A$8,"",OFFSET(InputPriceData!$F$15,CalculationsAndCharts!$A92+$A$11,IF($C$5,8,0),1,1))) -> 4097.17 | H92: 17.22 | I92: 255.48 | J92: 73.77 | K92: 77.59453303 | L92: 0 | M92: 30 | N92: 30 | O92: 40 | P92: 50 | Q92: 30 | R92: 70 | T92: 17.22 | U92: 0 | V92: 321.2832926 | W92: 78.97049291 | X92: 0.6053978962 | Y92: 0 | Z92: -0.4 | AA92: 0.4 | AB92: 0.6 | AC92: -0.4 | AD92: 0.4 | AW92: 3901910000
A93: 61 | B93: =IF(A93>$B$30,NA(),IF($A93>$A$8,"",OFFSET(InputPriceData!$B$15,$A93+$A$11,0,1,1))) -> 2021-04-07 | C93: =IF(A93>$B$30,NA(),IF($A93>$A$8,"",OFFSET(InputPriceData!$G$15,CalculationsAndCharts!$A93+$A$11,IF($C$5,8,0),1,1))) -> 4112640000 | D93: =IF(A93>$B$30,NA(),IF(A93>$A$8,"",OFFSET(InputPriceData!$C$15,CalculationsAndCharts!$A93+$A$11,IF($C$5,8,0),1,1))) -> 4074.29 | E93: =IF(A93>$B$30,NA(),IF(A93>$A$8,"",OFFSET(InputPriceData!$D$15,CalculationsAndCharts!$A93+$A$11,IF($C$5,8,0),1,1))) -> 4083.13 | F93: =IF(A93>$B$30,NA(),IF(A93>$A$8,"",OFFSET(InputPriceData!$E$15,CalculationsAndCharts!$A93+$A$11,IF($C$5,8,0),1,1))) -> 4068.31 | G93: =IF(A93>$B$30,NA(),IF(A93>$A$8,"",OFFSET(InputPriceData!$F$15,CalculationsAndCharts!$A93+$A$11,IF($C$5,8,0),1,1))) -> 4079.95 | H93: 6.01 | I93: 238.26 | J93: 132.43 | K93: 64.27473091 | L93: 0 | M93: 30 | O93: 40 | P93: 50 | Q93: 30 | R93: 70 | T93: 6.01 | U93: 0 | V93: 298.5070388 | W93: 101.9586799 | X93: 0.4907994609 | Y93: 0 | Z93: -0.4 | AA93: 0.4 | AB93: 0.6 | AC93: -0.4 | AD93: 0.4 | AW93: 4112640000
A94: 62 | B94: =IF(A94>$B$30,NA(),IF($A94>$A$8,"",OFFSET(InputPriceData!$B$15,$A94+$A$11,0,1,1))) -> 2021-04-06 | C94: =IF(A94>$B$30,NA(),IF($A94>$A$8,"",OFFSET(InputPriceData!$G$15,CalculationsAndCharts!$A94+$A$11,IF($C$5,8,0),1,1))) -> 4027880000 | D94: =IF(A94>$B$30,NA(),IF(A94>$A$8,"",OFFSET(InputPriceData!$C$15,CalculationsAndCharts!$A94+$A$11,IF($C$5,8,0),1,1))) -> 4075.57 | E94: =IF(A94>$B$30,NA(),IF(A94>$A$8,"",OFFSET(InputPriceData!$D$15,CalculationsAndCharts!$A94+$A$11,IF($C$5,8,0),1,1))) -> 4086.23 | F94: =IF(A94>$B$30,NA(),IF(A94>$A$8,"",OFFSET(InputPriceData!$E$15,CalculationsAndCharts!$A94+$A$11,IF($C$5,8,0),1,1))) -> 4068.14 | G94: =IF(A94>$B$30,NA(),IF(A94>$A$8,"",OFFSET(InputPriceData!$F$15,CalculationsAndCharts!$A94+$A$11,IF($C$5,8,0),1,1))) -> 4073.94 | H94: -3.97 | I94: 243.66 | J94: 132.43 | K94: 64.7876838 | L94: 0 | M94: 30 | O94: 40 | P94: 50 | Q94: 30 | R94: 70 | T94: 0 | U94: 3.97 | V94: 267.7887183 | W94: 130.215635 | X94: 0.3456572324 | Y94: 0 | Z94: -0.4 | AA94: 0.4 | AB94: 0 | AC94: -0.4 | AD94: 0.4 | AX94: 4027880000
A95: 63 | B95: =IF(A95>$B$30,NA(),IF($A95>$A$8,"",OFFSET(InputPriceData!$B$15,$A95+$A$11,0,1,1))) -> 2021-04-05 | C95: =IF(A95>$B$30,NA(),IF($A95>$A$8,"",OFFSET(InputPriceData!$G$15,CalculationsAndCharts!$A95+$A$11,IF($C$5,8,0),1,1))) -> 3999760000 | D95: =IF(A95>$B$30,NA(),IF(A95>$A$8,"",OFFSET(InputPriceData!$C$15,CalculationsAndCharts!$A95+$A$11,IF($C$5,8,0),1,1))) -> 4034.44 | E95: =IF(A95>$B$30,NA(),IF(A95>$A$8,"",OFFSET(InputPriceData!$D$15,CalculationsAndCharts!$A95+$A$11,IF($C$5,8,0),1,1))) -> 4083.42 | F95: =IF(A95>$B$30,NA(),IF(A95>$A$8,"",OFFSET(InputPriceData!$E$15,CalculationsAndCharts!$A95+$A$11,IF($C$5,8,0),1,1))) -> 4034.44 | G95: =IF(A95>$B$30,NA(),IF(A95>$A$8,"",OFFSET(InputPriceData!$F$15,CalculationsAndCharts!$A95+$A$11,IF($C$5,8,0),1,1))) -> 4077.91 | H95: 58.04 | I95: 243.66 | J95: 134.69 | K95: 64.40068719 | L95: 0 | M95: 30 | O95: 40 | P95: 50 | Q95: 30 | R95: 70 | T95: 58.04 | U95: 0 | V95: 233.4179149 | W95: 159.3940857 | X95: 0.1884459463 | Y95: 0 | Z95: -0.4 | AA95: 0.4 | AB95: 0 | AC95: -0.4 | AD95: 0.4 | AW95: 3999760000
A96: 64 | B96: =IF(A96>$B$30,NA(),IF($A96>$A$8,"",OFFSET(InputPriceData!$B$15,$A96+$A$11,0,1,1))) -> 2021-04-01 | C96: =IF(A96>$B$30,NA(),IF($A96>$A$8,"",OFFSET(InputPriceData!$G$15,CalculationsAndCharts!$A96+$A$11,IF($C$5,8,0),1,1))) -> 4151240000 | D96: =IF(A96>$B$30,NA(),IF(A96>$A$8,"",OFFSET(InputPriceData!$C$15,CalculationsAndCharts!$A96+$A$11,IF($C$5,8,0),1,1))) -> 3992.78 | E96: =IF(A96>$B$30,NA(),IF(A96>$A$8,"",OFFSET(InputPriceData!$D$15,CalculationsAndCharts!$A96+$A$11,IF($C$5,8,0),1,1))) -> 4020.63 | F96: =IF(A96>$B$30,NA(),IF(A96>$A$8,"",OFFSET(InputPriceData!$E$15,CalculationsAndCharts!$A96+$A$11,IF($C$5,8,0),1,1))) -> 3992.78 | G96: =IF(A96>$B$30,NA(),IF(A96>$A$8,"",OFFSET(InputPriceData!$F$15,CalculationsAndCharts!$A96+$A$11,IF($C$5,8,0),1,1))) -> 4019.87 | H96: 46.98 | I96: 211.22 | J96: 134.69 | K96: 61.06212599 | L96: 0 | M96: 30 | O96: 40 | P96: 50 | Q96: 30 | R96: 70 | T96: 46.98 | U96: 0 | V96: 203.0312974 | W96: 184.6442001 | X96: 0.04742909314 | Y96: 0 | Z96: -0.4 | AA96: 0.4 | AB96: 0 | AC96: -0.4 | AD96: 0.4 | AW96: 4151240000
A97: 65 | B97: =IF(A97>$B$30,NA(),IF($A97>$A$8,"",OFFSET(InputPriceData!$B$15,$A97+$A$11,0,1,1))) -> 2021-03-31 | C97: =IF(A97>$B$30,NA(),IF($A97>$A$8,"",OFFSET(InputPriceData!$G$15,CalculationsAndCharts!$A97+$A$11,IF($C$5,8,0),1,1))) -> 4564980000 | D97: =IF(A97>$B$30,NA(),IF(A97>$A$8,"",OFFSET(InputPriceData!$C$15,CalculationsAndCharts!$A97+$A$11,IF($C$5,8,0),1,1))) -> 3967.25 | E97: =IF(A97>$B$30,NA(),IF(A97>$A$8,"",OFFSET(InputPriceData!$D$15,CalculationsAndCharts!$A97+$A$11,IF($C$5,8,0),1,1))) -> 3994.41 | F97: =IF(A97>$B$30,NA(),IF(A97>$A$8,"",OFFSET(InputPriceData!$E$15,CalculationsAndCharts!$A97+$A$11,IF($C$5,8,0),1,1))) -> 3966.98 | G97: =IF(A97>$B$30,NA(),IF(A97>$A$8,"",OFFSET(InputPriceData!$F$15,CalculationsAndCharts!$A97+$A$11,IF($C$5,8,0),1,1))) -> 3972.89 | H97: 14.34 | I97: 168.24 | J97: 134.69 | K97: 55.53758294 | L97: 0 | M97: 30 | O97: =$O$32 -> 40 | P97: 50 | Q97: 30 | R97: 70 | S97: =IF($A97>$D$17+1,NA(),IF($A97=$D$17+1,SUM(OFFSET(S$33,0,0,$A$17,1)),IF($A97=$D$17,"-- Coef Sum--",1-COS(RADIANS(360*$A97/$D$17))))) ->  | T97: =IF(A97>$T$30,NA(),IF(H97>0,H97,0)) -> 14.34 | U97: =IF(A97>$T$30,NA(),IF(H97<0,-H97,0)) -> 0 | V97: =IF($A97<=V$30,SUMPRODUCT(OFFSET($S$33,0,0,$A$17,1),OFFSET(T97,0,0,$A$17,1)),NA()) -> 179.4242208 | W97: =IF($A97<=V$30,SUMPRODUCT(OFFSET($S$33,0,0,$A$17,1),OFFSET(U97,0,0,$A$17,1)),NA()) -> 201.2567795 | X97: =IF($A97<=V$30,(V97-W97)/(V97+W97),NA()) -> -0.05735132224 | Y97: 0 | Z97: -0.4 | AA97: 0.4 | AB97: 0 | AC97: -0.4 | AD97: 0.4 | AW97: =IF(G97>=D97,C97,NA()) -> 4564980000 | AX97: =IF(G97<D97,C97,NA()) -> 
A98: 66 | B98: =IF(A98>$B$30,NA(),IF($A98>$A$8,"",OFFSET(InputPriceData!$B$15,$A98+$A$11,0,1,1))) -> 2021-03-30 | C98: =IF(A98>$B$30,NA(),IF($A98>$A$8,"",OFFSET(InputPriceData!$G$15,CalculationsAndCharts!$A98+$A$11,IF($C$5,8,0),1,1))) -> 4103570000 | D98: =IF(A98>$B$30,NA(),IF(A98>$A$8,"",OFFSET(InputPriceData!$C$15,CalculationsAndCharts!$A98+$A$11,IF($C$5,8,0),1,1))) -> 3963.34 | E98: =IF(A98>$B$30,NA(),IF(A98>$A$8,"",OFFSET(InputPriceData!$D$15,CalculationsAndCharts!$A98+$A$11,IF($C$5,8,0),1,1))) -> 3968.01 | F98: =IF(A98>$B$30,NA(),IF(A98>$A$8,"",OFFSET(InputPriceData!$E$15,CalculationsAndCharts!$A98+$A$11,IF($C$5,8,0),1,1))) -> 3944.35 | G98: =IF(A98>$B$30,NA(),IF(A98>$A$8,"",OFFSET(InputPriceData!$F$15,CalculationsAndCharts!$A98+$A$11,IF($C$5,8,0),1,1))) -> 3958.55 | H98: =IF(A98>$H$30,NA(),G98-G99) -> -12.54 | I98: =IF(A98>$I$30,NA(),SUMIF(OFFSET(H98,0,0,$A$17,1),">0",OFFSET(H98,0,0,$A$17,1))) -> 194.43 | J98: =IF(A98>$I$30,NA(),-SUMIF(OFFSET(H98,0,0,$A$17,1),"<0",OFFSET(H98,0,0,$A$17,1))) -> 134.69 | K98: =IF(A98>$I$30,NA(),100*I98/(I98+J98)) -> 59.07571706 | L98: =IF(K98<$B$21,IF($R$24,L$32,0),0) -> 0 | M98: =$B$21-L98 -> 30 | N98: =IF(K98>$C$21,IF($R$24,$M$27,NA()),NA()) ->  | O98: 40 | P98: 50 | Q98: =IF($R$24,$B$21,NA()) -> 30 | R98: =IF($R$24,$C$21,NA()) -> 70 | T98: 0 | U98: 12.54 | V98: 161.4489278 | W98: 206.3593579 | X98: -0.1221028234 | Y98: =IF(X98<$B$22,IF($R$24,$Y$28,0),0) -> 0 | Z98: =$B$22 -> -0.4 | AA98: =$C$22 -> 0.4 | AB98: =IF(X98>$C$22,IF($R$24,$AB$28,0),0) -> 0 | AC98: =IF($R$24,$B$22,NA()) -> -0.4 | AD98: =IF($R$24,$C$22,NA()) -> 0.4 | AX98: 4103570000
A99: 67 | B99: =IF(A99>$B$30,NA(),IF($A99>$A$8,"",OFFSET(InputPriceData!$B$15,$A99+$A$11,0,1,1))) -> 2021-03-29 | C99: =IF(A99>$B$30,NA(),IF($A99>$A$8,"",OFFSET(InputPriceData!$G$15,CalculationsAndCharts!$A99+$A$11,IF($C$5,8,0),1,1))) -> 4619840000 | D99: =IF(A99>$B$30,NA(),IF(A99>$A$8,"",OFFSET(InputPriceData!$C$15,CalculationsAndCharts!$A99+$A$11,IF($C$5,8,0),1,1))) -> 3969.31 | E99: =IF(A99>$B$30,NA(),IF(A99>$A$8,"",OFFSET(InputPriceData!$D$15,CalculationsAndCharts!$A99+$A$11,IF($C$5,8,0),1,1))) -> 3981.83 | F99: =IF(A99>$B$30,NA(),IF(A99>$A$8,"",OFFSET(InputPriceData!$E$15,CalculationsAndCharts!$A99+$A$11,IF($C$5,8,0),1,1))) -> 3943.25 | G99: =IF(A99>$B$30,NA(),IF(A99>$A$8,"",OFFSET(InputPriceData!$F$15,CalculationsAndCharts!$A99+$A$11,IF($C$5,8,0),1,1))) -> 3971.09 | H99: -3.45 | I99: 217.8 | J99: 122.15 | K99: 64.06824533 | L99: 0 | M99: 30 | O99: 40 | P99: 50 | Q99: 30 | R99: 70 | T99: 0 | U99: 3.45 | V99: 152.4365626 | W99: 199.0696533 | X99: -0.1326664754 | Y99: 0 | Z99: -0.4 | AA99: 0.4 | AB99: 0 | AC99: -0.4 | AD99: 0.4 | AW99: 4619840000
A100: 68 | B100: =IF(A100>$B$30,NA(),IF($A100>$A$8,"",OFFSET(InputPriceData!$B$15,$A100+$A$11,0,1,1))) -> 2021-03-26 | C100: =IF(A100>$B$30,NA(),IF($A100>$A$8,"",OFFSET(InputPriceData!$G$15,CalculationsAndCharts!$A100+$A$11,IF($C$5,8,0),1,1))) -> 5467850000 | D100: =IF(A100>$B$30,NA(),IF(A100>$A$8,"",OFFSET(InputPriceData!$C$15,CalculationsAndCharts!$A100+$A$11,IF($C$5,8,0),1,1))) -> 3917.12 | E100: =IF(A100>$B$30,NA(),IF(A100>$A$8,"",OFFSET(InputPriceData!$D$15,CalculationsAndCharts!$A100+$A$11,IF($C$5,8,0),1,1))) -> 3978.19 | F100: =IF(A100>$B$30,NA(),IF(A100>$A$8,"",OFFSET(InputPriceData!$E$15,CalculationsAndCharts!$A100+$A$11,IF($C$5,8,0),1,1))) -> 3917.12 | G100: =IF(A100>$B$30,NA(),IF(A100>$A$8,"",OFFSET(InputPriceData!$F$15,CalculationsAndCharts!$A100+$A$11,IF($C$5,8,0),1,1))) -> 3974.54 | H100: 65.02 | I100: 271.89 | J100: 118.7 | K100: 69.61007706 | L100: 0 | M100: 30 | O100: 40 | P100: 50 | Q100: 30 | R100: 70 | T100: 65.02 | U100: 0 | V100: 159.4024557 | W100: 179.5639818 | X100: -0.059479417 | Y100: 0 | Z100: -0.4 | AA100: 0.4 | AB100: 0 | AC100: -0.4 | AD100: 0.4 | AW100: 5467850000
A101: 69 | B101: =IF(A101>$B$30,NA(),IF($A101>$A$8,"",OFFSET(InputPriceData!$B$15,$A101+$A$11,0,1,1))) -> 2021-03-25 | C101: =IF(A101>$B$30,NA(),IF($A101>$A$8,"",OFFSET(InputPriceData!$G$15,CalculationsAndCharts!$A101+$A$11,IF($C$5,8,0),1,1))) -> 4940800000 | D101: =IF(A101>$B$30,NA(),IF(A101>$A$8,"",OFFSET(InputPriceData!$C$15,CalculationsAndCharts!$A101+$A$11,IF($C$5,8,0),1,1))) -> 3879.34 | E101: =IF(A101>$B$30,NA(),IF(A101>$A$8,"",OFFSET(InputPriceData!$D$15,CalculationsAndCharts!$A101+$A$11,IF($C$5,8,0),1,1))) -> 3919.54 | F101: =IF(A101>$B$30,NA(),IF(A101>$A$8,"",OFFSET(InputPriceData!$E$15,CalculationsAndCharts!$A101+$A$11,IF($C$5,8,0),1,1))) -> 3853.5 | G101: =IF(A101>$B$30,NA(),IF(A101>$A$8,"",OFFSET(InputPriceData!$F$15,CalculationsAndCharts!$A101+$A$11,IF($C$5,8,0),1,1))) -> 3909.52 | H101: 20.38 | I101: 206.87 | J101: 139.29 | K101: 59.76138202 | L101: 0 | M101: 30 | O101: 40 | P101: 50 | Q101: 30 | R101: 70 | T101: 20.38 | U101: 0 | V101: 185.8184672 | W101: 151.6127421 | X101: 0.1013709584 | Y101: 0 | Z101: -0.4 | AA101: 0.4 | AB101: 0 | AC101: -0.4 | AD101: 0.4 | AW101: 4940800000
A102: 70 | B102: =IF(A102>$B$30,NA(),IF($A102>$A$8,"",OFFSET(InputPriceData!$B$15,$A102+$A$11,0,1,1))) -> 2021-03-24 | C102: =IF(A102>$B$30,NA(),IF($A102>$A$8,"",OFFSET(InputPriceData!$G$15,CalculationsAndCharts!$A102+$A$11,IF($C$5,8,0),1,1))) -> 4766990000 | D102: =IF(A102>$B$30,NA(),IF(A102>$A$8,"",OFFSET(InputPriceData!$C$15,CalculationsAndCharts!$A102+$A$11,IF($C$5,8,0),1,1))) -> 3919.93 | E102: =IF(A102>$B$30,NA(),IF(A102>$A$8,"",OFFSET(InputPriceData!$D$15,CalculationsAndCharts!$A102+$A$11,IF($C$5,8,0),1,1))) -> 3942.08 | F102: =IF(A102>$B$30,NA(),IF(A102>$A$8,"",OFFSET(InputPriceData!$E$15,CalculationsAndCharts!$A102+$A$11,IF($C$5,8,0),1,1))) -> 3889.07 | G102: =IF(A102>$B$30,NA(),IF(A102>$A$8,"",OFFSET(InputPriceData!$F$15,CalculationsAndCharts!$A102+$A$11,IF($C$5,8,0),1,1))) -> 3889.14 | H102: -21.38 | I102: 259.96 | J102: 139.29 | K102: 65.11208516 | L102: 0 | M102: 30 | O102: 40 | P102: 50 | Q102: 30 | R102: 70 | T102: 0 | U102: 21.38 | V102: 227.8475695 | W102: 121.5307883 | X102: 0.3043027102 | Y102: 0 | Z102: -0.4 | AA102: 0.4 | AB102: 0 | AC102: -0.4 | AD102: 0.4 | AX102: 4766990000
A103: 71 | B103: =IF(A103>$B$30,NA(),IF($A103>$A$8,"",OFFSET(InputPriceData!$B$15,$A103+$A$11,0,1,1))) -> 2021-03-23 | C103: =IF(A103>$B$30,NA(),IF($A103>$A$8,"",OFFSET(InputPriceData!$G$15,CalculationsAndCharts!$A103+$A$11,IF($C$5,8,0),1,1))) -> 4645340000 | D103: =IF(A103>$B$30,NA(),IF(A103>$A$8,"",OFFSET(InputPriceData!$C$15,CalculationsAndCharts!$A103+$A$11,IF($C$5,8,0),1,1))) -> 3937.6 | E103: =IF(A103>$B$30,NA(),IF(A103>$A$8,"",OFFSET(InputPriceData!$D$15,CalculationsAndCharts!$A103+$A$11,IF($C$5,8,0),1,1))) -> 3949.13 | F103: =IF(A103>$B$30,NA(),IF(A103>$A$8,"",OFFSET(InputPriceData!$E$15,CalculationsAndCharts!$A103+$A$11,IF($C$5,8,0),1,1))) -> 3901.57 | G103: =IF(A103>$B$30,NA(),IF(A103>$A$8,"",OFFSET(InputPriceData!$F$15,CalculationsAndCharts!$A103+$A$11,IF($C$5,8,0),1,1))) -> 3910.52 | H103: -30.07 | I103: 259.96 | J103: 169.16 | K103: 60.5797912 | L103: 0 | M103: 30 | O103: 40 | P103: 50 | Q103: 30 | R103: 70 | T103: 0 | U103: 30.07 | V103: 277.1911463 | W103: 98.95035889 | X103: 0.4738663108 | Y103: 0 | Z103: -0.4 | AA103: 0.4 | AB103: 0.6 | AC103: -0.4 | AD103: 0.4 | AX103: 4645340000
A104: 72 | B104: =IF(A104>$B$30,NA(),IF($A104>$A$8,"",OFFSET(InputPriceData!$B$15,$A104+$A$11,0,1,1))) -> 2021-03-22 | C104: =IF(A104>$B$30,NA(),IF($A104>$A$8,"",OFFSET(InputPriceData!$G$15,CalculationsAndCharts!$A104+$A$11,IF($C$5,8,0),1,1))) -> 4311380000 | D104: =IF(A104>$B$30,NA(),IF(A104>$A$8,"",OFFSET(InputPriceData!$C$15,CalculationsAndCharts!$A104+$A$11,IF($C$5,8,0),1,1))) -> 3916.48 | E104: =IF(A104>$B$30,NA(),IF(A104>$A$8,"",OFFSET(InputPriceData!$D$15,CalculationsAndCharts!$A104+$A$11,IF($C$5,8,0),1,1))) -> 3955.31 | F104: =IF(A104>$B$30,NA(),IF(A104>$A$8,"",OFFSET(InputPriceData!$E$15,CalculationsAndCharts!$A104+$A$11,IF($C$5,8,0),1,1))) -> 3914.16 | G104: =IF(A104>$B$30,NA(),IF(A104>$A$8,"",OFFSET(InputPriceData!$F$15,CalculationsAndCharts!$A104+$A$11,IF($C$5,8,0),1,1))) -> 3940.59 | H104: 27.49 | I104: 259.96 | J104: 189.66 | K104: 57.81771274 | L104: 0 | M104: 30 | O104: 40 | P104: 50 | Q104: 30 | R104: 70 | T104: 27.49 | U104: 0 | V104: 323.5553014 | W104: 94.73021857 | X104: 0.5470547555 | Y104: 0 | Z104: -0.4 | AA104: 0.4 | AB104: 0.6 | AC104: -0.4 | AD104: 0.4 | AW104: 4311380000
A105: 73 | B105: =IF(A105>$B$30,NA(),IF($A105>$A$8,"",OFFSET(InputPriceData!$B$15,$A105+$A$11,0,1,1))) -> 2021-03-19 | C105: =IF(A105>$B$30,NA(),IF($A105>$A$8,"",OFFSET(InputPriceData!$G$15,CalculationsAndCharts!$A105+$A$11,IF($C$5,8,0),1,1))) -> 7725050000 | D105: =IF(A105>$B$30,NA(),IF(A105>$A$8,"",OFFSET(InputPriceData!$C$15,CalculationsAndCharts!$A105+$A$11,IF($C$5,8,0),1,1))) -> 3913.14 | E105: =IF(A105>$B$30,NA(),IF(A105>$A$8,"",OFFSET(InputPriceData!$D$15,CalculationsAndCharts!$A105+$A$11,IF($C$5,8,0),1,1))) -> 3930.12 | F105: =IF(A105>$B$30,NA(),IF(A105>$A$8,"",OFFSET(InputPriceData!$E$15,CalculationsAndCharts!$A105+$A$11,IF($C$5,8,0),1,1))) -> 3886.75 | G105: =IF(A105>$B$30,NA(),IF(A105>$A$8,"",OFFSET(InputPriceData!$F$15,CalculationsAndCharts!$A105+$A$11,IF($C$5,8,0),1,1))) -> 3913.1 | H105: -2.36 | I105: 232.47 | J105: 221.19 | K105: 51.2432218 | L105: 0 | M105: 30 | O105: 40 | P105: 50 | Q105: 30 | R105: 70 | T105: 0 | U105: 2.36 | V105: 358.9232512 | W105: 112.2498997 | X105: 0.5235301525 | Y105: 0 | Z105: -0.4 | AA105: 0.4 | AB105: 0.6 | AC105: -0.4 | AD105: 0.4 | AX105: 7725050000
A106: 74 | B106: =IF(A106>$B$30,NA(),IF($A106>$A$8,"",OFFSET(InputPriceData!$B$15,$A106+$A$11,0,1,1))) -> 2021-03-18 | C106: =IF(A106>$B$30,NA(),IF($A106>$A$8,"",OFFSET(InputPriceData!$G$15,CalculationsAndCharts!$A106+$A$11,IF($C$5,8,0),1,1))) -> 4043170000 | D106: =IF(A106>$B$30,NA(),IF(A106>$A$8,"",OFFSET(InputPriceData!$C$15,CalculationsAndCharts!$A106+$A$11,IF($C$5,8,0),1,1))) -> 3953.5 | E106: =IF(A106>$B$30,NA(),IF(A106>$A$8,"",OFFSET(InputPriceData!$D$15,CalculationsAndCharts!$A106+$A$11,IF($C$5,8,0),1,1))) -> 3969.62 | F106: =IF(A106>$B$30,NA(),IF(A106>$A$8,"",OFFSET(InputPriceData!$E$15,CalculationsAndCharts!$A106+$A$11,IF($C$5,8,0),1,1))) -> 3910.86 | G106: =IF(A106>$B$30,NA(),IF(A106>$A$8,"",OFFSET(InputPriceData!$F$15,CalculationsAndCharts!$A106+$A$11,IF($C$5,8,0),1,1))) -> 3915.46 | H106: -58.66 | I106: 323.14 | J106: 218.83 | K106: 59.62322638 | L106: 0 | M106: 30 | O106: 40 | P106: 50 | Q106: 30 | R106: 70 | T106: 0 | U106: 58.66 | V106: 382.6417537 | W106: 148.6063138 | X106: 0.4405389012 | Y106: 0 | Z106: -0.4 | AA106: 0.4 | AB106: 0.6 | AC106: -0.4 | AD106: 0.4 | AX106: 4043170000
A107: 75 | B107: =IF(A107>$B$30,NA(),IF($A107>$A$8,"",OFFSET(InputPriceData!$B$15,$A107+$A$11,0,1,1))) -> 2021-03-17 | C107: =IF(A107>$B$30,NA(),IF($A107>$A$8,"",OFFSET(InputPriceData!$G$15,CalculationsAndCharts!$A107+$A$11,IF($C$5,8,0),1,1))) -> 4541620000 | D107: =IF(A107>$B$30,NA(),IF(A107>$A$8,"",OFFSET(InputPriceData!$C$15,CalculationsAndCharts!$A107+$A$11,IF($C$5,8,0),1,1))) -> 3949.57 | E107: =IF(A107>$B$30,NA(),IF(A107>$A$8,"",OFFSET(InputPriceData!$D$15,CalculationsAndCharts!$A107+$A$11,IF($C$5,8,0),1,1))) -> 3983.87 | F107: =IF(A107>$B$30,NA(),IF(A107>$A$8,"",OFFSET(InputPriceData!$E$15,CalculationsAndCharts!$A107+$A$11,IF($C$5,8,0),1,1))) -> 3935.74 | G107: =IF(A107>$B$30,NA(),IF(A107>$A$8,"",OFFSET(InputPriceData!$F$15,CalculationsAndCharts!$A107+$A$11,IF($C$5,8,0),1,1))) -> 3974.12 | H107: 11.41 | I107: 323.14 | J107: 178.36 | K107: 64.43469591 | L107: 0 | M107: 30 | O107: 40 | P107: 50 | Q107: 30 | R107: 70 | T107: 11.41 | U107: 0 | V107: 396.0718625 | W107: 198.8816821 | X107: 0.3314379454 | Y107: 0 | Z107: -0.4 | AA107: 0.4 | AB107: 0 | AC107: -0.4 | AD107: 0.4 | AW107: 4541620000
A108: 76 | B108: =IF(A108>$B$30,NA(),IF($A108>$A$8,"",OFFSET(InputPriceData!$B$15,$A108+$A$11,0,1,1))) -> 2021-03-16 | C108: =IF(A108>$B$30,NA(),IF($A108>$A$8,"",OFFSET(InputPriceData!$G$15,CalculationsAndCharts!$A108+$A$11,IF($C$5,8,0),1,1))) -> 4604870000 | D108: =IF(A108>$B$30,NA(),IF(A108>$A$8,"",OFFSET(InputPriceData!$C$15,CalculationsAndCharts!$A108+$A$11,IF($C$5,8,0),1,1))) -> 3973.59 | E108: =IF(A108>$B$30,NA(),IF(A108>$A$8,"",OFFSET(InputPriceData!$D$15,CalculationsAndCharts!$A108+$A$11,IF($C$5,8,0),1,1))) -> 3981.04 | F108: =IF(A108>$B$30,NA(),IF(A108>$A$8,"",OFFSET(InputPriceData!$E$15,CalculationsAndCharts!$A108+$A$11,IF($C$5,8,0),1,1))) -> 3953.44 | G108: =IF(A108>$B$30,NA(),IF(A108>$A$8,"",OFFSET(InputPriceData!$F$15,CalculationsAndCharts!$A108+$A$11,IF($C$5,8,0),1,1))) -> 3962.71 | H108: -6.23 | I108: 311.73 | J108: 274.45 | K108: 53.17991061 | L108: 0 | M108: 30 | O108: 40 | P108: 50 | Q108: 30 | R108: 70 | T108: 0 | U108: 6.23 | V108: 396.8913897 | W108: 258.9875056 | X108: 0.2102581515 | Y108: 0 | Z108: -0.4 | AA108: 0.4 | AB108: 0 | AC108: -0.4 | AD108: 0.4 | AX108: 4604870000
A109: 77 | B109: =IF(A109>$B$30,NA(),IF($A109>$A$8,"",OFFSET(InputPriceData!$B$15,$A109+$A$11,0,1,1))) -> 2021-03-15 | C109: =IF(A109>$B$30,NA(),IF($A109>$A$8,"",OFFSET(InputPriceData!$G$15,CalculationsAndCharts!$A109+$A$11,IF($C$5,8,0),1,1))) -> 4882190000 | D109: =IF(A109>$B$30,NA(),IF(A109>$A$8,"",OFFSET(InputPriceData!$C$15,CalculationsAndCharts!$A109+$A$11,IF($C$5,8,0),1,1))) -> 3942.96 | E109: =IF(A109>$B$30,NA(),IF(A109>$A$8,"",OFFSET(InputPriceData!$D$15,CalculationsAndCharts!$A109+$A$11,IF($C$5,8,0),1,1))) -> 3970.08 | F109: =IF(A109>$B$30,NA(),IF(A109>$A$8,"",OFFSET(InputPriceData!$E$15,CalculationsAndCharts!$A109+$A$11,IF($C$5,8,0),1,1))) -> 3923.54 | G109: =IF(A109>$B$30,NA(),IF(A109>$A$8,"",OFFSET(InputPriceData!$F$15,CalculationsAndCharts!$A109+$A$11,IF($C$5,8,0),1,1))) -> 3968.94 | H109: 25.6 | I109: 355.79 | J109: 268.22 | K109: 57.01671448 | L109: 0 | M109: 30 | O109: 40 | P109: 50 | Q109: 30 | R109: 70 | T109: 25.6 | U109: 0 | V109: 387.7813724 | W109: 321.7669348 | X109: 0.09303727027 | Y109: 0 | Z109: -0.4 | AA109: 0.4 | AB109: 0 | AC109: -0.4 | AD109: 0.4 | AW109: 4882190000
A110: 78 | B110: =IF(A110>$B$30,NA(),IF($A110>$A$8,"",OFFSET(InputPriceData!$B$15,$A110+$A$11,0,1,1))) -> 2021-03-12 | C110: =IF(A110>$B$30,NA(),IF($A110>$A$8,"",OFFSET(InputPriceData!$G$15,CalculationsAndCharts!$A110+$A$11,IF($C$5,8,0),1,1))) -> 4469240000 | D110: =IF(A110>$B$30,NA(),IF(A110>$A$8,"",OFFSET(InputPriceData!$C$15,CalculationsAndCharts!$A110+$A$11,IF($C$5,8,0),1,1))) -> 3924.52 | E110: =IF(A110>$B$30,NA(),IF(A110>$A$8,"",OFFSET(InputPriceData!$D$15,CalculationsAndCharts!$A110+$A$11,IF($C$5,8,0),1,1))) -> 3944.99 | F110: =IF(A110>$B$30,NA(),IF(A110>$A$8,"",OFFSET(InputPriceData!$E$15,CalculationsAndCharts!$A110+$A$11,IF($C$5,8,0),1,1))) -> 3915.21 | G110: =IF(A110>$B$30,NA(),IF(A110>$A$8,"",OFFSET(InputPriceData!$F$15,CalculationsAndCharts!$A110+$A$11,IF($C$5,8,0),1,1))) -> 3943.34 | H110: 4 | I110: 335.06 | J110: 268.22 | K110: 55.53971622 | L110: 0 | M110: 30 | O110: 40 | P110: 50 | Q110: 30 | R110: 70 | T110: 4 | U110: 0 | V110: 373.5607898 | W110: 375.8262243 | X110: -0.003023050118 | Y110: 0 | Z110: -0.4 | AA110: 0.4 | AB110: 0 | AC110: -0.4 | AD110: 0.4 | AW110: 4469240000
A111: 79 | B111: =IF(A111>$B$30,NA(),IF($A111>$A$8,"",OFFSET(InputPriceData!$B$15,$A111+$A$11,0,1,1))) -> 2021-03-11 | C111: =IF(A111>$B$30,NA(),IF($A111>$A$8,"",OFFSET(InputPriceData!$G$15,CalculationsAndCharts!$A111+$A$11,IF($C$5,8,0),1,1))) -> 5300010000 | D111: =IF(A111>$B$30,NA(),IF(A111>$A$8,"",OFFSET(InputPriceData!$C$15,CalculationsAndCharts!$A111+$A$11,IF($C$5,8,0),1,1))) -> 3915.54 | E111: =IF(A111>$B$30,NA(),IF(A111>$A$8,"",OFFSET(InputPriceData!$D$15,CalculationsAndCharts!$A111+$A$11,IF($C$5,8,0),1,1))) -> 3960.27 | F111: =IF(A111>$B$30,NA(),IF(A111>$A$8,"",OFFSET(InputPriceData!$E$15,CalculationsAndCharts!$A111+$A$11,IF($C$5,8,0),1,1))) -> 3915.54 | G111: =IF(A111>$B$30,NA(),IF(A111>$A$8,"",OFFSET(InputPriceData!$F$15,CalculationsAndCharts!$A111+$A$11,IF($C$5,8,0),1,1))) -> 3939.34 | H111: 40.53 | I111: 331.06 | J111: 298.43 | K111: 52.59178065 | L111: 0 | M111: 30 | O111: 40 | P111: 50 | Q111: 30 | R111: 70 | T111: 40.53 | U111: 0 | V111: 354.8963072 | W111: 413.8912118 | X111: -0.07673759418 | Y111: 0 | Z111: -0.4 | AA111: 0.4 | AB111: 0 | AC111: -0.4 | AD111: 0.4 | AW111: 5300010000
A112: 80 | B112: =IF(A112>$B$30,NA(),IF($A112>$A$8,"",OFFSET(InputPriceData!$B$15,$A112+$A$11,0,1,1))) -> 2021-03-10 | C112: =IF(A112>$B$30,NA(),IF($A112>$A$8,"",OFFSET(InputPriceData!$G$15,CalculationsAndCharts!$A112+$A$11,IF($C$5,8,0),1,1))) -> 5827250000 | D112: =IF(A112>$B$30,NA(),IF(A112>$A$8,"",OFFSET(InputPriceData!$C$15,CalculationsAndCharts!$A112+$A$11,IF($C$5,8,0),1,1))) -> 3891.99 | E112: =IF(A112>$B$30,NA(),IF(A112>$A$8,"",OFFSET(InputPriceData!$D$15,CalculationsAndCharts!$A112+$A$11,IF($C$5,8,0),1,1))) -> 3917.35 | F112: =IF(A112>$B$30,NA(),IF(A112>$A$8,"",OFFSET(InputPriceData!$E$15,CalculationsAndCharts!$A112+$A$11,IF($C$5,8,0),1,1))) -> 3885.73 | G112: =IF(A112>$B$30,NA(),IF(A112>$A$8,"",OFFSET(InputPriceData!$F$15,CalculationsAndCharts!$A112+$A$11,IF($C$5,8,0),1,1))) -> 3898.81 | H112: 23.37 | I112: 290.53 | J112: 305.69 | K112: 48.72865721 | L112: 0 | M112: 30 | O112: 40 | P112: 50 | Q112: 30 | R112: 70 | T112: 23.37 | U112: 0 | V112: 332.4561286 | W112: 432.6195668 | X112: -0.1309196447 | Y112: 0 | Z112: -0.4 | AA112: 0.4 | AB112: 0 | AC112: -0.4 | AD112: 0.4 | AW112: 5827250000
A113: 81 | B113: =IF(A113>$B$30,NA(),IF($A113>$A$8,"",OFFSET(InputPriceData!$B$15,$A113+$A$11,0,1,1))) -> 2021-03-09 | C113: =IF(A113>$B$30,NA(),IF($A113>$A$8,"",OFFSET(InputPriceData!$G$15,CalculationsAndCharts!$A113+$A$11,IF($C$5,8,0),1,1))) -> 5496340000 | D113: =IF(A113>$B$30,NA(),IF(A113>$A$8,"",OFFSET(InputPriceData!$C$15,CalculationsAndCharts!$A113+$A$11,IF($C$5,8,0),1,1))) -> 3851.93 | E113: =IF(A113>$B$30,NA(),IF(A113>$A$8,"",OFFSET(InputPriceData!$D$15,CalculationsAndCharts!$A113+$A$11,IF($C$5,8,0),1,1))) -> 3903.76 | F113: =IF(A113>$B$30,NA(),IF(A113>$A$8,"",OFFSET(InputPriceData!$E$15,CalculationsAndCharts!$A113+$A$11,IF($C$5,8,0),1,1))) -> 3851.93 | G113: =IF(A113>$B$30,NA(),IF(A113>$A$8,"",OFFSET(InputPriceData!$F$15,CalculationsAndCharts!$A113+$A$11,IF($C$5,8,0),1,1))) -> 3875.44 | H113: 54.09 | I113: 267.16 | J113: 323.05 | K113: 45.26524457 | L113: 0 | M113: 30 | O113: 40 | P113: 50 | Q113: 30 | R113: 70 | T113: 54.09 | U113: 0 | V113: 306.2705442 | W113: 430.9014975 | X113: -0.1690663051 | Y113: 0 | Z113: -0.4 | AA113: 0.4 | AB113: 0 | AC113: -0.4 | AD113: 0.4 | AW113: 5496340000
A114: 82 | B114: =IF(A114>$B$30,NA(),IF($A114>$A$8,"",OFFSET(InputPriceData!$B$15,$A114+$A$11,0,1,1))) -> 2021-03-08 | C114: =IF(A114>$B$30,NA(),IF($A114>$A$8,"",OFFSET(InputPriceData!$G$15,CalculationsAndCharts!$A114+$A$11,IF($C$5,8,0),1,1))) -> 5852240000 | D114: =IF(A114>$B$30,NA(),IF(A114>$A$8,"",OFFSET(InputPriceData!$C$15,CalculationsAndCharts!$A114+$A$11,IF($C$5,8,0),1,1))) -> 3844.39 | E114: =IF(A114>$B$30,NA(),IF(A114>$A$8,"",OFFSET(InputPriceData!$D$15,CalculationsAndCharts!$A114+$A$11,IF($C$5,8,0),1,1))) -> 3881.06 | F114: =IF(A114>$B$30,NA(),IF(A114>$A$8,"",OFFSET(InputPriceData!$E$15,CalculationsAndCharts!$A114+$A$11,IF($C$5,8,0),1,1))) -> 3819.25 | G114: =IF(A114>$B$30,NA(),IF(A114>$A$8,"",OFFSET(InputPriceData!$F$15,CalculationsAndCharts!$A114+$A$11,IF($C$5,8,0),1,1))) -> 3821.35 | H114: -20.59 | I114: 213.07 | J114: 324.31 | K114: 39.64978228 | L114: 0 | M114: 30 | O114: 40 | P114: 50 | Q114: 30 | R114: 70 | T114: 0 | U114: 20.59 | V114: 275.342834 | W114: 410.6438572 | X114: -0.1972356387 | Y114: 0 | Z114: -0.4 | AA114: 0.4 | AB114: 0 | AC114: -0.4 | AD114: 0.4 | AX114: 5852240000
A115: 83 | B115: =IF(A115>$B$30,NA(),IF($A115>$A$8,"",OFFSET(InputPriceData!$B$15,$A115+$A$11,0,1,1))) -> 2021-03-05 | C115: =IF(A115>$B$30,NA(),IF($A115>$A$8,"",OFFSET(InputPriceData!$G$15,CalculationsAndCharts!$A115+$A$11,IF($C$5,8,0),1,1))) -> 6842570000 | D115: =IF(A115>$B$30,NA(),IF(A115>$A$8,"",OFFSET(InputPriceData!$C$15,CalculationsAndCharts!$A115+$A$11,IF($C$5,8,0),1,1))) -> 3793.58 | E115: =IF(A115>$B$30,NA(),IF(A115>$A$8,"",OFFSET(InputPriceData!$D$15,CalculationsAndCharts!$A115+$A$11,IF($C$5,8,0),1,1))) -> 3851.69 | F115: =IF(A115>$B$30,NA(),IF(A115>$A$8,"",OFFSET(InputPriceData!$E$15,CalculationsAndCharts!$A115+$A$11,IF($C$5,8,0),1,1))) -> 3730.19 | G115: =IF(A115>$B$30,NA(),IF(A115>$A$8,"",OFFSET(InputPriceData!$F$15,CalculationsAndCharts!$A115+$A$11,IF($C$5,8,0),1,1))) -> 3841.94 | H115: 73.47 | I115: 213.07 | J115: 305.96 | K115: 41.05157698 | L115: 0 | M115: 30 | O115: 40 | P115: 50 | Q115: 30 | R115: 70 | T115: 73.47 | U115: 0 | V115: 238.3239113 | W115: 375.6519668 | X115: -0.2236701154 | Y115: 0 | Z115: -0.4 | AA115: 0.4 | AB115: 0 | AC115: -0.4 | AD115: 0.4 | AW115: 6842570000
A116: 84 | B116: =IF(A116>$B$30,NA(),IF($A116>$A$8,"",OFFSET(InputPriceData!$B$15,$A116+$A$11,0,1,1))) -> 2021-03-04 | C116: =IF(A116>$B$30,NA(),IF($A116>$A$8,"",OFFSET(InputPriceData!$G$15,CalculationsAndCharts!$A116+$A$11,IF($C$5,8,0),1,1))) -> 7142240000 | D116: =IF(A116>$B$30,NA(),IF(A116>$A$8,"",OFFSET(InputPriceData!$C$15,CalculationsAndCharts!$A116+$A$11,IF($C$5,8,0),1,1))) -> 3818.53 | E116: =IF(A116>$B$30,NA(),IF(A116>$A$8,"",OFFSET(InputPriceData!$D$15,CalculationsAndCharts!$A116+$A$11,IF($C$5,8,0),1,1))) -> 3843.67 | F116: =IF(A116>$B$30,NA(),IF(A116>$A$8,"",OFFSET(InputPriceData!$E$15,CalculationsAndCharts!$A116+$A$11,IF($C$5,8,0),1,1))) -> 3723.34 | G116: =IF(A116>$B$30,NA(),IF(A116>$A$8,"",OFFSET(InputPriceData!$F$15,CalculationsAndCharts!$A116+$A$11,IF($C$5,8,0),1,1))) -> 3768.47 | H116: -51.25 | I116: 158.05 | J116: 305.96 | K116: 34.06176591 | L116: 0 | M116: 30 | O116: 40 | P116: 50 | Q116: 30 | R116: 70 | T116: 0 | U116: 51.25 | V116: 198.5334442 | W116: 330.3898012 | X116: -0.2492920442 | Y116: 0 | Z116: -0.4 | AA116: 0.4 | AB116: 0 | AC116: -0.4 | AD116: 0.4 | AX116: 7142240000
A117: 85 | B117: =IF(A117>$B$30,NA(),IF($A117>$A$8,"",OFFSET(InputPriceData!$B$15,$A117+$A$11,0,1,1))) -> 2021-03-03 | C117: =IF(A117>$B$30,NA(),IF($A117>$A$8,"",OFFSET(InputPriceData!$G$15,CalculationsAndCharts!$A117+$A$11,IF($C$5,8,0),1,1))) -> 6150790000 | D117: =IF(A117>$B$30,NA(),IF(A117>$A$8,"",OFFSET(InputPriceData!$C$15,CalculationsAndCharts!$A117+$A$11,IF($C$5,8,0),1,1))) -> 3863.99 | E117: =IF(A117>$B$30,NA(),IF(A117>$A$8,"",OFFSET(InputPriceData!$D$15,CalculationsAndCharts!$A117+$A$11,IF($C$5,8,0),1,1))) -> 3874.47 | F117: =IF(A117>$B$30,NA(),IF(A117>$A$8,"",OFFSET(InputPriceData!$E$15,CalculationsAndCharts!$A117+$A$11,IF($C$5,8,0),1,1))) -> 3818.86 | G117: =IF(A117>$B$30,NA(),IF(A117>$A$8,"",OFFSET(InputPriceData!$F$15,CalculationsAndCharts!$A117+$A$11,IF($C$5,8,0),1,1))) -> 3819.72 | H117: -50.57 | I117: 164.55 | J117: 254.71 | K117: 39.24772218 | L117: 0 | M117: 30 | O117: 40 | P117: 50 | Q117: 30 | R117: 70 | T117: 0 | U117: 50.57 | V117: 158.6567915 | W117: 280.9035011 | X117: -0.2781113572 | Y117: 0 | Z117: -0.4 | AA117: 0.4 | AB117: 0 | AC117: -0.4 | AD117: 0.4 | AX117: 6150790000
A118: 86 | B118: =IF(A118>$B$30,NA(),IF($A118>$A$8,"",OFFSET(InputPriceData!$B$15,$A118+$A$11,0,1,1))) -> 2021-03-02 | C118: =IF(A118>$B$30,NA(),IF($A118>$A$8,"",OFFSET(InputPriceData!$G$15,CalculationsAndCharts!$A118+$A$11,IF($C$5,8,0),1,1))) -> 5493690000 | D118: =IF(A118>$B$30,NA(),IF(A118>$A$8,"",OFFSET(InputPriceData!$C$15,CalculationsAndCharts!$A118+$A$11,IF($C$5,8,0),1,1))) -> 3903.64 | E118: =IF(A118>$B$30,NA(),IF(A118>$A$8,"",OFFSET(InputPriceData!$D$15,CalculationsAndCharts!$A118+$A$11,IF($C$5,8,0),1,1))) -> 3906.41 | F118: =IF(A118>$B$30,NA(),IF(A118>$A$8,"",OFFSET(InputPriceData!$E$15,CalculationsAndCharts!$A118+$A$11,IF($C$5,8,0),1,1))) -> 3868.57 | G118: =IF(A118>$B$30,NA(),IF(A118>$A$8,"",OFFSET(InputPriceData!$F$15,CalculationsAndCharts!$A118+$A$11,IF($C$5,8,0),1,1))) -> 3870.29 | H118: -31.53 | I118: 164.55 | J118: 205.49 | K118: 44.4681656 | L118: 0 | M118: 30 | O118: 40 | P118: 50 | Q118: 30 | R118: 70 | T118: 0 | U118: 31.53 | V118: 119.7991282 | W118: 231.4356156 | X118: -0.3178401038 | Y118: 0 | Z118: -0.4 | AA118: 0.4 | AB118: 0 | AC118: -0.4 | AD118: 0.4 | AX118: 5493690000
A119: 87 | B119: =IF(A119>$B$30,NA(),IF($A119>$A$8,"",OFFSET(InputPriceData!$B$15,$A119+$A$11,0,1,1))) -> 2021-03-01 | C119: =IF(A119>$B$30,NA(),IF($A119>$A$8,"",OFFSET(InputPriceData!$G$15,CalculationsAndCharts!$A119+$A$11,IF($C$5,8,0),1,1))) -> 5071540000 | D119: =IF(A119>$B$30,NA(),IF(A119>$A$8,"",OFFSET(InputPriceData!$C$15,CalculationsAndCharts!$A119+$A$11,IF($C$5,8,0),1,1))) -> 3842.51 | E119: =IF(A119>$B$30,NA(),IF(A119>$A$8,"",OFFSET(InputPriceData!$D$15,CalculationsAndCharts!$A119+$A$11,IF($C$5,8,0),1,1))) -> 3914.5 | F119: =IF(A119>$B$30,NA(),IF(A119>$A$8,"",OFFSET(InputPriceData!$E$15,CalculationsAndCharts!$A119+$A$11,IF($C$5,8,0),1,1))) -> 3842.51 | G119: =IF(A119>$B$30,NA(),IF(A119>$A$8,"",OFFSET(InputPriceData!$F$15,CalculationsAndCharts!$A119+$A$11,IF($C$5,8,0),1,1))) -> 3901.82 | H119: 90.67 | I119: 164.55 | J119: 178.32 | K119: 47.9919503 | L119: 0 | M119: 30 | O119: 40 | P119: 50 | Q119: 30 | R119: 70 | T119: 90.67 | U119: 0 | V119: 88.67929713 | W119: 182.2304455 | X119: -0.3453222002 | Y119: 0 | Z119: -0.4 | AA119: 0.4 | AB119: 0 | AC119: -0.4 | AD119: 0.4 | AW119: 5071540000
A120: 88 | B120: =IF(A120>$B$30,NA(),IF($A120>$A$8,"",OFFSET(InputPriceData!$B$15,$A120+$A$11,0,1,1))) -> 2021-02-26 | C120: =IF(A120>$B$30,NA(),IF($A120>$A$8,"",OFFSET(InputPriceData!$G$15,CalculationsAndCharts!$A120+$A$11,IF($C$5,8,0),1,1))) -> 6512950000 | D120: =IF(A120>$B$30,NA(),IF(A120>$A$8,"",OFFSET(InputPriceData!$C$15,CalculationsAndCharts!$A120+$A$11,IF($C$5,8,0),1,1))) -> 3839.66 | E120: =IF(A120>$B$30,NA(),IF(A120>$A$8,"",OFFSET(InputPriceData!$D$15,CalculationsAndCharts!$A120+$A$11,IF($C$5,8,0),1,1))) -> 3861.08 | F120: =IF(A120>$B$30,NA(),IF(A120>$A$8,"",OFFSET(InputPriceData!$E$15,CalculationsAndCharts!$A120+$A$11,IF($C$5,8,0),1,1))) -> 3789.54 | G120: =IF(A120>$B$30,NA(),IF(A120>$A$8,"",OFFSET(InputPriceData!$F$15,CalculationsAndCharts!$A120+$A$11,IF($C$5,8,0),1,1))) -> 3811.15 | H120: -18.19 | I120: 102.64 | J120: 178.32 | K120: 36.53189066 | L120: 0 | M120: 30 | O120: 40 | P120: 50 | Q120: 30 | R120: 70 | T120: 0 | U120: 18.19 | V120: 73.16463249 | W120: 135.0750355 | X120: -0.2973036004 | Y120: 0 | Z120: -0.4 | AA120: 0.4 | AB120: 0 | AC120: -0.4 | AD120: 0.4 | AX120: 6512950000
A121: 89 | B121: =IF(A121>$B$30,NA(),IF($A121>$A$8,"",OFFSET(InputPriceData!$B$15,$A121+$A$11,0,1,1))) -> 2021-02-25 | C121: =IF(A121>$B$30,NA(),IF($A121>$A$8,"",OFFSET(InputPriceData!$G$15,CalculationsAndCharts!$A121+$A$11,IF($C$5,8,0),1,1))) -> 6513060000 | D121: =IF(A121>$B$30,NA(),IF(A121>$A$8,"",OFFSET(InputPriceData!$C$15,CalculationsAndCharts!$A121+$A$11,IF($C$5,8,0),1,1))) -> 3915.8 | E121: =IF(A121>$B$30,NA(),IF(A121>$A$8,"",OFFSET(InputPriceData!$D$15,CalculationsAndCharts!$A121+$A$11,IF($C$5,8,0),1,1))) -> 3925.02 | F121: =IF(A121>$B$30,NA(),IF(A121>$A$8,"",OFFSET(InputPriceData!$E$15,CalculationsAndCharts!$A121+$A$11,IF($C$5,8,0),1,1))) -> 3814.04 | G121: =IF(A121>$B$30,NA(),IF(A121>$A$8,"",OFFSET(InputPriceData!$F$15,CalculationsAndCharts!$A121+$A$11,IF($C$5,8,0),1,1))) -> 3829.34 | H121: -96.09 | I121: 117.73 | J121: 160.13 | K121: 42.3702584 | L121: 0 | M121: 30 | O121: 40 | P121: 50 | Q121: 30 | R121: 70 | T121: 0 | U121: 96.09 | V121: 71.88995907 | W121: 95.39707281 | X121: -0.1405196414 | Y121: 0 | Z121: -0.4 | AA121: 0.4 | AB121: 0 | AC121: -0.4 | AD121: 0.4 | AX121: 6513060000
A122: 90 | B122: =IF(A122>$B$30,NA(),IF($A122>$A$8,"",OFFSET(InputPriceData!$B$15,$A122+$A$11,0,1,1))) -> 2021-02-24 | C122: =IF(A122>$B$30,NA(),IF($A122>$A$8,"",OFFSET(InputPriceData!$G$15,CalculationsAndCharts!$A122+$A$11,IF($C$5,8,0),1,1))) -> 5942350000 | D122: =IF(A122>$B$30,NA(),IF(A122>$A$8,"",OFFSET(InputPriceData!$C$15,CalculationsAndCharts!$A122+$A$11,IF($C$5,8,0),1,1))) -> 3873.71 | E122: =IF(A122>$B$30,NA(),IF(A122>$A$8,"",OFFSET(InputPriceData!$D$15,CalculationsAndCharts!$A122+$A$11,IF($C$5,8,0),1,1))) -> 3928.65 | F122: =IF(A122>$B$30,NA(),IF(A122>$A$8,"",OFFSET(InputPriceData!$E$15,CalculationsAndCharts!$A122+$A$11,IF($C$5,8,0),1,1))) -> 3859.6 | G122: =IF(A122>$B$30,NA(),IF(A122>$A$8,"",OFFSET(InputPriceData!$F$15,CalculationsAndCharts!$A122+$A$11,IF($C$5,8,0),1,1))) -> 3925.43 | H122: 44.06 | I122: 159.3 | J122: 64.04 | K122: 71.32622907 | L122: 0 | M122: 30 | N122: 30 | O122: 40 | P122: 50 | Q122: 30 | R122: 70 | T122: 44.06 | U122: 0 | V122: 82.1353605 | W122: 68.48462938 | X122: 0.09063027509 | Y122: 0 | Z122: -0.4 | AA122: 0.4 | AB122: 0 | AC122: -0.4 | AD122: 0.4 | AW122: 5942350000
A123: 91 | B123: =IF(A123>$B$30,NA(),IF($A123>$A$8,"",OFFSET(InputPriceData!$B$15,$A123+$A$11,0,1,1))) -> 2021-02-23 | C123: =IF(A123>$B$30,NA(),IF($A123>$A$8,"",OFFSET(InputPriceData!$G$15,CalculationsAndCharts!$A123+$A$11,IF($C$5,8,0),1,1))) -> 6280650000 | D123: =IF(A123>$B$30,NA(),IF(A123>$A$8,"",OFFSET(InputPriceData!$C$15,CalculationsAndCharts!$A123+$A$11,IF($C$5,8,0),1,1))) -> 3857.07 | E123: =IF(A123>$B$30,NA(),IF(A123>$A$8,"",OFFSET(InputPriceData!$D$15,CalculationsAndCharts!$A123+$A$11,IF($C$5,8,0),1,1))) -> 3895.98 | F123: =IF(A123>$B$30,NA(),IF(A123>$A$8,"",OFFSET(InputPriceData!$E$15,CalculationsAndCharts!$A123+$A$11,IF($C$5,8,0),1,1))) -> 3805.59 | G123: =IF(A123>$B$30,NA(),IF(A123>$A$8,"",OFFSET(InputPriceData!$F$15,CalculationsAndCharts!$A123+$A$11,IF($C$5,8,0),1,1))) -> 3881.37 | H123: 4.87 | I123: 119.1 | J123: 64.04 | K123: 65.03221579 | L123: 0 | M123: 30 | O123: 40 | P123: 50 | Q123: 30 | R123: 70 | T123: 4.87 | U123: 0 | V123: 106.0569436 | W123: 49.11108613 | X123: 0.3669947836 | Y123: 0 | Z123: -0.4 | AA123: 0.4 | AB123: 0 | AC123: -0.4 | AD123: 0.4 | AW123: 6280650000
A124: 92 | B124: =IF(A124>$B$30,NA(),IF($A124>$A$8,"",OFFSET(InputPriceData!$B$15,$A124+$A$11,0,1,1))) -> 2021-02-22 | C124: =IF(A124>$B$30,NA(),IF($A124>$A$8,"",OFFSET(InputPriceData!$G$15,CalculationsAndCharts!$A124+$A$11,IF($C$5,8,0),1,1))) -> 5870190000 | D124: =IF(A124>$B$30,NA(),IF(A124>$A$8,"",OFFSET(InputPriceData!$C$15,CalculationsAndCharts!$A124+$A$11,IF($C$5,8,0),1,1))) -> 3885.55 | E124: =IF(A124>$B$30,NA(),IF(A124>$A$8,"",OFFSET(InputPriceData!$D$15,CalculationsAndCharts!$A124+$A$11,IF($C$5,8,0),1,1))) -> 3902.92 | F124: =IF(A124>$B$30,NA(),IF(A124>$A$8,"",OFFSET(InputPriceData!$E$15,CalculationsAndCharts!$A124+$A$11,IF($C$5,8,0),1,1))) -> 3874.71 | G124: =IF(A124>$B$30,NA(),IF(A124>$A$8,"",OFFSET(InputPriceData!$F$15,CalculationsAndCharts!$A124+$A$11,IF($C$5,8,0),1,1))) -> 3876.5 | H124: -30.21 | I124: 166.68 | J124: 64.04 | K124: 72.24341193 | L124: 0 | M124: 30 | N124: 30 | O124: 40 | P124: 50 | Q124: 30 | R124: 70 | T124: 0 | U124: 30.21 | V124: 140.5775176 | W124: 32.31888772 | X124: 0.6261473724 | Y124: 0 | Z124: -0.4 | AA124: 0.4 | AB124: 0.6 | AC124: -0.4 | AD124: 0.4 | AX124: 5870190000
A125: 93 | B125: =IF(A125>$B$30,NA(),IF($A125>$A$8,"",OFFSET(InputPriceData!$B$15,$A125+$A$11,0,1,1))) -> 2021-02-19 | C125: =IF(A125>$B$30,NA(),IF($A125>$A$8,"",OFFSET(InputPriceData!$G$15,CalculationsAndCharts!$A125+$A$11,IF($C$5,8,0),1,1))) -> 4823940000 | D125: =IF(A125>$B$30,NA(),IF(A125>$A$8,"",OFFSET(InputPriceData!$C$15,CalculationsAndCharts!$A125+$A$11,IF($C$5,8,0),1,1))) -> 3921.16 | E125: =IF(A125>$B$30,NA(),IF(A125>$A$8,"",OFFSET(InputPriceData!$D$15,CalculationsAndCharts!$A125+$A$11,IF($C$5,8,0),1,1))) -> 3930.41 | F125: =IF(A125>$B$30,NA(),IF(A125>$A$8,"",OFFSET(InputPriceData!$E$15,CalculationsAndCharts!$A125+$A$11,IF($C$5,8,0),1,1))) -> 3903.07 | G125: =IF(A125>$B$30,NA(),IF(A125>$A$8,"",OFFSET(InputPriceData!$F$15,CalculationsAndCharts!$A125+$A$11,IF($C$5,8,0),1,1))) -> 3906.71 | H125: -7.26 | I125: 226.3 | J125: 33.83 | K125: 86.99496406 | L125: 0 | M125: 30 | N125: 30 | O125: 40 | P125: 50 | Q125: 30 | R125: 70 | T125: 0 | U125: 7.26 | V125: 185.1869014 | W125: 21.0115578 | X125: 0.7962006323 | Y125: 0 | Z125: -0.4 | AA125: 0.4 | AB125: 0.6 | AC125: -0.4 | AD125: 0.4 | AX125: 4823940000
A126: 94 | B126: =IF(A126>$B$30,NA(),IF($A126>$A$8,"",OFFSET(InputPriceData!$B$15,$A126+$A$11,0,1,1))) -> 2021-02-18 | C126: =IF(A126>$B$30,NA(),IF($A126>$A$8,"",OFFSET(InputPriceData!$G$15,CalculationsAndCharts!$A126+$A$11,IF($C$5,8,0),1,1))) -> 4773430000 | D126: =IF(A126>$B$30,NA(),IF(A126>$A$8,"",OFFSET(InputPriceData!$C$15,CalculationsAndCharts!$A126+$A$11,IF($C$5,8,0),1,1))) -> 3915.86 | E126: =IF(A126>$B$30,NA(),IF(A126>$A$8,"",OFFSET(InputPriceData!$D$15,CalculationsAndCharts!$A126+$A$11,IF($C$5,8,0),1,1))) -> 3921.98 | F126: =IF(A126>$B$30,NA(),IF(A126>$A$8,"",OFFSET(InputPriceData!$E$15,CalculationsAndCharts!$A126+$A$11,IF($C$5,8,0),1,1))) -> 3885.03 | G126: =IF(A126>$B$30,NA(),IF(A126>$A$8,"",OFFSET(InputPriceData!$F$15,CalculationsAndCharts!$A126+$A$11,IF($C$5,8,0),1,1))) -> 3913.97 | H126: -17.36 | I126: 226.3 | J126: 99.71 | K126: 69.41504862 | L126: 0 | M126: 30 | O126: 40 | P126: 50 | Q126: 30 | R126: 70 | T126: 0 | U126: 17.36 | V126: 236.9051134 | W126: 20.85572993 | X126: 0.8381776715 | Y126: 0 | Z126: -0.4 | AA126: 0.4 | AB126: 0.6 | AC126: -0.4 | AD126: 0.4 | AX126: 4773430000
A127: 95 | B127: =IF(A127>$B$30,NA(),IF($A127>$A$8,"",OFFSET(InputPriceData!$B$15,$A127+$A$11,0,1,1))) -> 2021-02-17 | C127: =IF(A127>$B$30,NA(),IF($A127>$A$8,"",OFFSET(InputPriceData!$G$15,CalculationsAndCharts!$A127+$A$11,IF($C$5,8,0),1,1))) -> 4718280000 | D127: =IF(A127>$B$30,NA(),IF(A127>$A$8,"",OFFSET(InputPriceData!$C$15,CalculationsAndCharts!$A127+$A$11,IF($C$5,8,0),1,1))) -> 3918.5 | E127: =IF(A127>$B$30,NA(),IF(A127>$A$8,"",OFFSET(InputPriceData!$D$15,CalculationsAndCharts!$A127+$A$11,IF($C$5,8,0),1,1))) -> 3933.61 | F127: =IF(A127>$B$30,NA(),IF(A127>$A$8,"",OFFSET(InputPriceData!$E$15,CalculationsAndCharts!$A127+$A$11,IF($C$5,8,0),1,1))) -> 3900.43 | G127: =IF(A127>$B$30,NA(),IF(A127>$A$8,"",OFFSET(InputPriceData!$F$15,CalculationsAndCharts!$A127+$A$11,IF($C$5,8,0),1,1))) -> 3931.33 | H127: -1.26 | I127: 262.91 | J127: 82.35 | K127: 76.14840989 | L127: 0 | M127: 30 | N127: 30 | O127: 40 | P127: 50 | Q127: 30 | R127: 70 | T127: 0 | U127: 1.26 | V127: 289.9547057 | W127: 34.96218171 | X127: 0.7847930775 | Y127: 0 | Z127: -0.4 | AA127: 0.4 | AB127: 0.6 | AC127: -0.4 | AD127: 0.4 | AW127: 4718280000
A128: 96 | B128: =IF(A128>$B$30,NA(),IF($A128>$A$8,"",OFFSET(InputPriceData!$B$15,$A128+$A$11,0,1,1))) -> 2021-02-16 | C128: =IF(A128>$B$30,NA(),IF($A128>$A$8,"",OFFSET(InputPriceData!$G$15,CalculationsAndCharts!$A128+$A$11,IF($C$5,8,0),1,1))) -> 5037360000 | D128: =IF(A128>$B$30,NA(),IF(A128>$A$8,"",OFFSET(InputPriceData!$C$15,CalculationsAndCharts!$A128+$A$11,IF($C$5,8,0),1,1))) -> 3939.61 | E128: =IF(A128>$B$30,NA(),IF(A128>$A$8,"",OFFSET(InputPriceData!$D$15,CalculationsAndCharts!$A128+$A$11,IF($C$5,8,0),1,1))) -> 3950.43 | F128: =IF(A128>$B$30,NA(),IF(A128>$A$8,"",OFFSET(InputPriceData!$E$15,CalculationsAndCharts!$A128+$A$11,IF($C$5,8,0),1,1))) -> 3923.85 | G128: =IF(A128>$B$30,NA(),IF(A128>$A$8,"",OFFSET(InputPriceData!$F$15,CalculationsAndCharts!$A128+$A$11,IF($C$5,8,0),1,1))) -> 3932.59 | H128: -2.24 | I128: 262.91 | J128: 179.94 | K128: 59.36773174 | L128: 0 | M128: 30 | O128: 40 | P128: 50 | Q128: 30 | R128: 70 | T128: 0 | U128: 2.24 | V128: 338.3280227 | W128: 67.30930014 | X128: 0.6681306362 | Y128: 0 | Z128: -0.4 | AA128: 0.4 | AB128: 0.6 | AC128: -0.4 | AD128: 0.4 | AX128: 5037360000
A129: 97 | B129: =IF(A129>$B$30,NA(),IF($A129>$A$8,"",OFFSET(InputPriceData!$B$15,$A129+$A$11,0,1,1))) -> 2021-02-12 | C129: =IF(A129>$B$30,NA(),IF($A129>$A$8,"",OFFSET(InputPriceData!$G$15,CalculationsAndCharts!$A129+$A$11,IF($C$5,8,0),1,1))) -> 4119260000 | D129: =IF(A129>$B$30,NA(),IF(A129>$A$8,"",OFFSET(InputPriceData!$C$15,CalculationsAndCharts!$A129+$A$11,IF($C$5,8,0),1,1))) -> 3911.65 | E129: =IF(A129>$B$30,NA(),IF(A129>$A$8,"",OFFSET(InputPriceData!$D$15,CalculationsAndCharts!$A129+$A$11,IF($C$5,8,0),1,1))) -> 3937.23 | F129: =IF(A129>$B$30,NA(),IF(A129>$A$8,"",OFFSET(InputPriceData!$E$15,CalculationsAndCharts!$A129+$A$11,IF($C$5,8,0),1,1))) -> 3905.78 | G129: =IF(A129>$B$30,NA(),IF(A129>$A$8,"",OFFSET(InputPriceData!$F$15,CalculationsAndCharts!$A129+$A$11,IF($C$5,8,0),1,1))) -> 3934.83 | H129: 18.45 | I129: 262.91 | J129: 183.44 | K129: 58.90220679 | L129: 0 | M129: 30 | O129: 40 | P129: 50 | Q129: 30 | R129: 70 | T129: 18.45 | U129: 0 | V129: 373.6608785 | W129: 119.7364716 | X129: 0.5146448534 | Y129: 0 | Z129: -0.4 | AA129: 0.4 | AB129: 0.6 | AC129: -0.4 | AD129: 0.4 | AW129: 4119260000
A130: 98 | B130: =IF(A130>$B$30,NA(),IF($A130>$A$8,"",OFFSET(InputPriceData!$B$15,$A130+$A$11,0,1,1))) -> 2021-02-11 | C130: =IF(A130>$B$30,NA(),IF($A130>$A$8,"",OFFSET(InputPriceData!$G$15,CalculationsAndCharts!$A130+$A$11,IF($C$5,8,0),1,1))) -> 4570080000 | D130: =IF(A130>$B$30,NA(),IF(A130>$A$8,"",OFFSET(InputPriceData!$C$15,CalculationsAndCharts!$A130+$A$11,IF($C$5,8,0),1,1))) -> 3916.4 | E130: =IF(A130>$B$30,NA(),IF(A130>$A$8,"",OFFSET(InputPriceData!$D$15,CalculationsAndCharts!$A130+$A$11,IF($C$5,8,0),1,1))) -> 3925.99 | F130: =IF(A130>$B$30,NA(),IF(A130>$A$8,"",OFFSET(InputPriceData!$E$15,CalculationsAndCharts!$A130+$A$11,IF($C$5,8,0),1,1))) -> 3890.39 | G130: =IF(A130>$B$30,NA(),IF(A130>$A$8,"",OFFSET(InputPriceData!$F$15,CalculationsAndCharts!$A130+$A$11,IF($C$5,8,0),1,1))) -> 3916.38 | H130: 6.5 | I130: 258.35 | J130: 183.44 | K130: 58.47800991 | L130: 0 | M130: 30 | O130: 40 | P130: 50 | Q130: 30 | R130: 70 | T130: 6.5 | U130: 0 | V130: 391.0447548 | W130: 183.37222 | X130: 0.3615362079 | Y130: 0 | Z130: -0.4 | AA130: 0.4 | AB130: 0 | AC130: -0.4 | AD130: 0.4 | AX130: 4570080000
A131: 99 | B131: =IF(A131>$B$30,NA(),IF($A131>$A$8,"",OFFSET(InputPriceData!$B$15,$A131+$A$11,0,1,1))) -> 2021-02-10 | C131: =IF(A131>$B$30,NA(),IF($A131>$A$8,"",OFFSET(InputPriceData!$G$15,CalculationsAndCharts!$A131+$A$11,IF($C$5,8,0),1,1))) -> 4815380000 | D131: =IF(A131>$B$30,NA(),IF(A131>$A$8,"",OFFSET(InputPriceData!$C$15,CalculationsAndCharts!$A131+$A$11,IF($C$5,8,0),1,1))) -> 3920.78 | E131: =IF(A131>$B$30,NA(),IF(A131>$A$8,"",OFFSET(InputPriceData!$D$15,CalculationsAndCharts!$A131+$A$11,IF($C$5,8,0),1,1))) -> 3931.5 | F131: =IF(A131>$B$30,NA(),IF(A131>$A$8,"",OFFSET(InputPriceData!$E$15,CalculationsAndCharts!$A131+$A$11,IF($C$5,8,0),1,1))) -> 3884.94 | G131: =IF(A131>$B$30,NA(),IF(A131>$A$8,"",OFFSET(InputPriceData!$F$15,CalculationsAndCharts!$A131+$A$11,IF($C$5,8,0),1,1))) -> 3909.88 | H131: -1.35 | I131: 251.85 | J131: 195.04 | K131: 56.35615028 | L131: 0 | M131: 30 | O131: 40 | P131: 50 | Q131: 30 | R131: 70 | T131: 0 | U131: 1.35 | V131: 387.0795888 | W131: 248.0225609 | X131: 0.2189522237 | Y131: 0 | Z131: -0.4 | AA131: 0.4 | AB131: 0 | AC131: -0.4 | AD131: 0.4 | AX131: 4815380000
A132: 100 | B132: =IF(A132>$B$30,NA(),IF($A132>$A$8,"",OFFSET(InputPriceData!$B$15,$A132+$A$11,0,1,1))) -> 2021-02-09 | C132: =IF(A132>$B$30,NA(),IF($A132>$A$8,"",OFFSET(InputPriceData!$G$15,CalculationsAndCharts!$A132+$A$11,IF($C$5,8,0),1,1))) -> 4554610000 | D132: =IF(A132>$B$30,NA(),IF(A132>$A$8,"",OFFSET(InputPriceData!$C$15,CalculationsAndCharts!$A132+$A$11,IF($C$5,8,0),1,1))) -> 3910.49 | E132: =IF(A132>$B$30,NA(),IF(A132>$A$8,"",OFFSET(InputPriceData!$D$15,CalculationsAndCharts!$A132+$A$11,IF($C$5,8,0),1,1))) -> 3918.35 | F132: =IF(A132>$B$30,NA(),IF(A132>$A$8,"",OFFSET(InputPriceData!$E$15,CalculationsAndCharts!$A132+$A$11,IF($C$5,8,0),1,1))) -> 3902.64 | G132: =IF(A132>$B$30,NA(),IF(A132>$A$8,"",OFFSET(InputPriceData!$F$15,CalculationsAndCharts!$A132+$A$11,IF($C$5,8,0),1,1))) -> 3911.23 | H132: -4.36 | I132: 253.07 | J132: 193.69 | K132: 56.64562629 | L132: 0 | M132: 30 | O132: 40 | P132: 50 | Q132: 30 | R132: 70 | T132: 0 | U132: 4.36 | V132: 360.3994275 | W132: 303.5117357 | X132: 0.08568569861 | Y132: 0 | Z132: -0.4 | AA132: 0.4 | AB132: 0 | AC132: -0.4 | AD132: 0.4 | AW132: 4554610000
A133: 101 | B133: =IF(A133>$B$30,NA(),IF($A133>$A$8,"",OFFSET(InputPriceData!$B$15,$A133+$A$11,0,1,1))) -> 2021-02-08 | C133: =IF(A133>$B$30,NA(),IF($A133>$A$8,"",OFFSET(InputPriceData!$G$15,CalculationsAndCharts!$A133+$A$11,IF($C$5,8,0),1,1))) -> 4635030000 | D133: =IF(A133>$B$30,NA(),IF(A133>$A$8,"",OFFSET(InputPriceData!$C$15,CalculationsAndCharts!$A133+$A$11,IF($C$5,8,0),1,1))) -> 3892.59 | E133: =IF(A133>$B$30,NA(),IF(A133>$A$8,"",OFFSET(InputPriceData!$D$15,CalculationsAndCharts!$A133+$A$11,IF($C$5,8,0),1,1))) -> 3915.77 | F133: =IF(A133>$B$30,NA(),IF(A133>$A$8,"",OFFSET(InputPriceData!$E$15,CalculationsAndCharts!$A133+$A$11,IF($C$5,8,0),1,1))) -> 3892.59 | G133: =IF(A133>$B$30,NA(),IF(A133>$A$8,"",OFFSET(InputPriceData!$F$15,CalculationsAndCharts!$A133+$A$11,IF($C$5,8,0),1,1))) -> 3915.59 | H133: 28.76 | I133: 306.01 | J133: 189.33 | K133: 61.77776881 | L133: 0 | M133: 30 | O133: 40 | P133: 50 | Q133: 30 | R133: 70 | T133: 28.76 | U133: 0 | V133: 319.7379366 | W133: 340.1284483 | X133: -0.03090097055 | Y133: 0 | Z133: -0.4 | AA133: 0.4 | AB133: 0 | AC133: -0.4 | AD133: 0.4 | AW133: 4635030000
A134: 102 | B134: =IF(A134>$B$30,NA(),IF($A134>$A$8,"",OFFSET(InputPriceData!$B$15,$A134+$A$11,0,1,1))) -> 2021-02-05 | C134: =IF(A134>$B$30,NA(),IF($A134>$A$8,"",OFFSET(InputPriceData!$G$15,CalculationsAndCharts!$A134+$A$11,IF($C$5,8,0),1,1))) -> 4838580000 | D134: =IF(A134>$B$30,NA(),IF(A134>$A$8,"",OFFSET(InputPriceData!$C$15,CalculationsAndCharts!$A134+$A$11,IF($C$5,8,0),1,1))) -> 3878.3 | E134: =IF(A134>$B$30,NA(),IF(A134>$A$8,"",OFFSET(InputPriceData!$D$15,CalculationsAndCharts!$A134+$A$11,IF($C$5,8,0),1,1))) -> 3894.56 | F134: =IF(A134>$B$30,NA(),IF(A134>$A$8,"",OFFSET(InputPriceData!$E$15,CalculationsAndCharts!$A134+$A$11,IF($C$5,8,0),1,1))) -> 3874.93 | G134: =IF(A134>$B$30,NA(),IF(A134>$A$8,"",OFFSET(InputPriceData!$F$15,CalculationsAndCharts!$A134+$A$11,IF($C$5,8,0),1,1))) -> 3886.83 | H134: 15.09 | I134: 307.91 | J134: 189.33 | K134: 61.92381948 | L134: 0 | M134: 30 | O134: 40 | P134: 50 | Q134: 30 | R134: 70 | T134: 15.09 | U134: 0 | V134: 279.3534569 | W134: 351.047681 | X134: -0.1137279421 | Y134: 0 | Z134: -0.4 | AA134: 0.4 | AB134: 0 | AC134: -0.4 | AD134: 0.4 | AW134: 4838580000
A135: 103 | B135: =IF(A135>$B$30,NA(),IF($A135>$A$8,"",OFFSET(InputPriceData!$B$15,$A135+$A$11,0,1,1))) -> 2021-02-04 | C135: =IF(A135>$B$30,NA(),IF($A135>$A$8,"",OFFSET(InputPriceData!$G$15,CalculationsAndCharts!$A135+$A$11,IF($C$5,8,0),1,1))) -> 4856670000 | D135: =IF(A135>$B$30,NA(),IF(A135>$A$8,"",OFFSET(InputPriceData!$C$15,CalculationsAndCharts!$A135+$A$11,IF($C$5,8,0),1,1))) -> 3836.66 | E135: =IF(A135>$B$30,NA(),IF(A135>$A$8,"",OFFSET(InputPriceData!$D$15,CalculationsAndCharts!$A135+$A$11,IF($C$5,8,0),1,1))) -> 3872.42 | F135: =IF(A135>$B$30,NA(),IF(A135>$A$8,"",OFFSET(InputPriceData!$E$15,CalculationsAndCharts!$A135+$A$11,IF($C$5,8,0),1,1))) -> 3836.66 | G135: =IF(A135>$B$30,NA(),IF(A135>$A$8,"",OFFSET(InputPriceData!$F$15,CalculationsAndCharts!$A135+$A$11,IF($C$5,8,0),1,1))) -> 3871.74 | H135: 41.57 | I135: 292.82 | J135: 216.62 | K135: 57.47880025 | L135: 0 | M135: 30 | O135: 40 | P135: 50 | Q135: 30 | R135: 70 | T135: 41.57 | U135: 0 | V135: 246.3930957 | W135: 336.363802 | X135: -0.1543880591 | Y135: 0 | Z135: -0.4 | AA135: 0.4 | AB135: 0 | AC135: -0.4 | AD135: 0.4 | AW135: 4856670000
A136: 104 | B136: =IF(A136>$B$30,NA(),IF($A136>$A$8,"",OFFSET(InputPriceData!$B$15,$A136+$A$11,0,1,1))) -> 2021-02-03 | C136: =IF(A136>$B$30,NA(),IF($A136>$A$8,"",OFFSET(InputPriceData!$G$15,CalculationsAndCharts!$A136+$A$11,IF($C$5,8,0),1,1))) -> 4846900000 | D136: =IF(A136>$B$30,NA(),IF(A136>$A$8,"",OFFSET(InputPriceData!$C$15,CalculationsAndCharts!$A136+$A$11,IF($C$5,8,0),1,1))) -> 3840.27 | E136: =IF(A136>$B$30,NA(),IF(A136>$A$8,"",OFFSET(InputPriceData!$D$15,CalculationsAndCharts!$A136+$A$11,IF($C$5,8,0),1,1))) -> 3847.51 | F136: =IF(A136>$B$30,NA(),IF(A136>$A$8,"",OFFSET(InputPriceData!$E$15,CalculationsAndCharts!$A136+$A$11,IF($C$5,8,0),1,1))) -> 3816.68 | G136: =IF(A136>$B$30,NA(),IF(A136>$A$8,"",OFFSET(InputPriceData!$F$15,CalculationsAndCharts!$A136+$A$11,IF($C$5,8,0),1,1))) -> 3830.17 | H136: 3.86 | I136: 251.25 | J136: 230.92 | K136: 52.10817761 | L136: 0 | M136: 30 | O136: 40 | P136: 50 | Q136: 30 | R136: 70 | T136: 3.86 | U136: 0 | V136: 222.764967 | W136: 302.2114318 | X136: -0.1513334027 | Y136: 0 | Z136: -0.4 | AA136: 0.4 | AB136: 0 | AC136: -0.4 | AD136: 0.4 | AX136: 4846900000
A137: 105 | B137: =IF(A137>$B$30,NA(),IF($A137>$A$8,"",OFFSET(InputPriceData!$B$15,$A137+$A$11,0,1,1))) -> 2021-02-02 | C137: =IF(A137>$B$30,NA(),IF($A137>$A$8,"",OFFSET(InputPriceData!$G$15,CalculationsAndCharts!$A137+$A$11,IF($C$5,8,0),1,1))) -> 5495370000 | D137: =IF(A137>$B$30,NA(),IF(A137>$A$8,"",OFFSET(InputPriceData!$C$15,CalculationsAndCharts!$A137+$A$11,IF($C$5,8,0),1,1))) -> 3791.84 | E137: =IF(A137>$B$30,NA(),IF(A137>$A$8,"",OFFSET(InputPriceData!$D$15,CalculationsAndCharts!$A137+$A$11,IF($C$5,8,0),1,1))) -> 3843.09 | F137: =IF(A137>$B$30,NA(),IF(A137>$A$8,"",OFFSET(InputPriceData!$E$15,CalculationsAndCharts!$A137+$A$11,IF($C$5,8,0),1,1))) -> 3791.84 | G137: =IF(A137>$B$30,NA(),IF(A137>$A$8,"",OFFSET(InputPriceData!$F$15,CalculationsAndCharts!$A137+$A$11,IF($C$5,8,0),1,1))) -> 3826.31 | H137: 52.45 | I137: 256.04 | J137: 230.92 | K137: 52.57926729 | L137: 0 | M137: 30 | O137: 40 | P137: 50 | Q137: 30 | R137: 70 | T137: 52.45 | U137: 0 | V137: 208.4039064 | W137: 255.7321253 | X137: -0.1019705768 | Y137: 0 | Z137: -0.4 | AA137: 0.4 | AB137: 0 | AC137: -0.4 | AD137: 0.4 | AW137: 5495370000
A138: 106 | B138: =IF(A138>$B$30,NA(),IF($A138>$A$8,"",OFFSET(InputPriceData!$B$15,$A138+$A$11,0,1,1))) -> 2021-02-01 | C138: =IF(A138>$B$30,NA(),IF($A138>$A$8,"",OFFSET(InputPriceData!$G$15,CalculationsAndCharts!$A138+$A$11,IF($C$5,8,0),1,1))) -> 5392870000 | D138: =IF(A138>$B$30,NA(),IF(A138>$A$8,"",OFFSET(InputPriceData!$C$15,CalculationsAndCharts!$A138+$A$11,IF($C$5,8,0),1,1))) -> 3731.17 | E138: =IF(A138>$B$30,NA(),IF(A138>$A$8,"",OFFSET(InputPriceData!$D$15,CalculationsAndCharts!$A138+$A$11,IF($C$5,8,0),1,1))) -> 3784.32 | F138: =IF(A138>$B$30,NA(),IF(A138>$A$8,"",OFFSET(InputPriceData!$E$15,CalculationsAndCharts!$A138+$A$11,IF($C$5,8,0),1,1))) -> 3725.62 | G138: =IF(A138>$B$30,NA(),IF(A138>$A$8,"",OFFSET(InputPriceData!$F$15,CalculationsAndCharts!$A138+$A$11,IF($C$5,8,0),1,1))) -> 3773.86 | H138: 59.62 | I138: 205.17 | J138: 230.92 | K138: 47.04762778 | L138: 0 | M138: 30 | O138: 40 | P138: 50 | Q138: 30 | R138: 70 | T138: 59.62 | U138: 0 | V138: 202.7498719 | W138: 204.962577 | X138: -0.00542712167 | Y138: 0 | Z138: -0.4 | AA138: 0.4 | AB138: 0 | AC138: -0.4 | AD138: 0.4 | AW138: 5392870000
A139: 107 | B139: =IF(A139>$B$30,NA(),IF($A139>$A$8,"",OFFSET(InputPriceData!$B$15,$A139+$A$11,0,1,1))) -> 2021-01-29 | C139: =IF(A139>$B$30,NA(),IF($A139>$A$8,"",OFFSET(InputPriceData!$G$15,CalculationsAndCharts!$A139+$A$11,IF($C$5,8,0),1,1))) -> 6612570000 | D139: =IF(A139>$B$30,NA(),IF(A139>$A$8,"",OFFSET(InputPriceData!$C$15,CalculationsAndCharts!$A139+$A$11,IF($C$5,8,0),1,1))) -> 3778.05 | E139: =IF(A139>$B$30,NA(),IF(A139>$A$8,"",OFFSET(InputPriceData!$D$15,CalculationsAndCharts!$A139+$A$11,IF($C$5,8,0),1,1))) -> 3778.05 | F139: =IF(A139>$B$30,NA(),IF(A139>$A$8,"",OFFSET(InputPriceData!$E$15,CalculationsAndCharts!$A139+$A$11,IF($C$5,8,0),1,1))) -> 3694.12 | G139: =IF(A139>$B$30,NA(),IF(A139>$A$8,"",OFFSET(InputPriceData!$F$15,CalculationsAndCharts!$A139+$A$11,IF($C$5,8,0),1,1))) -> 3714.24 | H139: -73.14 | I139: 145.55 | J139: 255.99 | K139: 36.24794541 | L139: 0 | M139: 30 | O139: 40 | P139: 50 | Q139: 30 | R139: 70 | T139: 0 | U139: 73.14 | V139: 202.0488402 | W139: 160.8487182 | X139: 0.113530998 | Y139: 0 | Z139: -0.4 | AA139: 0.4 | AB139: 0 | AC139: -0.4 | AD139: 0.4 | AX139: 6612570000
A140: 108 | B140: =IF(A140>$B$30,NA(),IF($A140>$A$8,"",OFFSET(InputPriceData!$B$15,$A140+$A$11,0,1,1))) -> 2021-01-28 | C140: =IF(A140>$B$30,NA(),IF($A140>$A$8,"",OFFSET(InputPriceData!$G$15,CalculationsAndCharts!$A140+$A$11,IF($C$5,8,0),1,1))) -> 6937960000 | D140: =IF(A140>$B$30,NA(),IF(A140>$A$8,"",OFFSET(InputPriceData!$C$15,CalculationsAndCharts!$A140+$A$11,IF($C$5,8,0),1,1))) -> 3755.75 | E140: =IF(A140>$B$30,NA(),IF(A140>$A$8,"",OFFSET(InputPriceData!$D$15,CalculationsAndCharts!$A140+$A$11,IF($C$5,8,0),1,1))) -> 3830.5 | F140: =IF(A140>$B$30,NA(),IF(A140>$A$8,"",OFFSET(InputPriceData!$E$15,CalculationsAndCharts!$A140+$A$11,IF($C$5,8,0),1,1))) -> 3755.75 | G140: =IF(A140>$B$30,NA(),IF(A140>$A$8,"",OFFSET(InputPriceData!$F$15,CalculationsAndCharts!$A140+$A$11,IF($C$5,8,0),1,1))) -> 3787.38 | H140: 36.61 | I140: 166.44 | J140: 182.85 | K140: 47.65094907 | L140: 0 | M140: 30 | O140: 40 | P140: 50 | Q140: 30 | R140: 70 | T140: 36.61 | U140: 0 | V140: 198.5391011 | W140: 133.1856515 | X140: 0.1970110734 | Y140: 0 | Z140: -0.4 | AA140: 0.4 | AB140: 0 | AC140: -0.4 | AD140: 0.4 | AW140: 6937960000
A141: 109 | B141: =IF(A141>$B$30,NA(),IF($A141>$A$8,"",OFFSET(InputPriceData!$B$15,$A141+$A$11,0,1,1))) -> 2021-01-27 | C141: =IF(A141>$B$30,NA(),IF($A141>$A$8,"",OFFSET(InputPriceData!$G$15,CalculationsAndCharts!$A141+$A$11,IF($C$5,8,0),1,1))) -> 9878040000 | D141: =IF(A141>$B$30,NA(),IF(A141>$A$8,"",OFFSET(InputPriceData!$C$15,CalculationsAndCharts!$A141+$A$11,IF($C$5,8,0),1,1))) -> 3836.83 | E141: =IF(A141>$B$30,NA(),IF(A141>$A$8,"",OFFSET(InputPriceData!$D$15,CalculationsAndCharts!$A141+$A$11,IF($C$5,8,0),1,1))) -> 3836.83 | F141: =IF(A141>$B$30,NA(),IF(A141>$A$8,"",OFFSET(InputPriceData!$E$15,CalculationsAndCharts!$A141+$A$11,IF($C$5,8,0),1,1))) -> 3732.48 | G141: =IF(A141>$B$30,NA(),IF(A141>$A$8,"",OFFSET(InputPriceData!$F$15,CalculationsAndCharts!$A141+$A$11,IF($C$5,8,0),1,1))) -> 3750.77 | H141: -98.85 | I141: 185.48 | J141: 182.85 | K141: 50.35701681 | L141: 0 | M141: 30 | O141: 40 | P141: 50 | Q141: 30 | R141: 70 | T141: 0 | U141: 98.85 | V141: 194.290331 | W141: 120.433287 | X141: 0.2346727088 | Y141: 0 | Z141: -0.4 | AA141: 0.4 | AB141: 0 | AC141: -0.4 | AD141: 0.4 | AX141: 9878040000
A142: 110 | B142: =IF(A142>$B$30,NA(),IF($A142>$A$8,"",OFFSET(InputPriceData!$B$15,$A142+$A$11,0,1,1))) -> 2021-01-26 | C142: =IF(A142>$B$30,NA(),IF($A142>$A$8,"",OFFSET(InputPriceData!$G$15,CalculationsAndCharts!$A142+$A$11,IF($C$5,8,0),1,1))) -> 6029090000 | D142: =IF(A142>$B$30,NA(),IF(A142>$A$8,"",OFFSET(InputPriceData!$C$15,CalculationsAndCharts!$A142+$A$11,IF($C$5,8,0),1,1))) -> 3862.96 | E142: =IF(A142>$B$30,NA(),IF(A142>$A$8,"",OFFSET(InputPriceData!$D$15,CalculationsAndCharts!$A142+$A$11,IF($C$5,8,0),1,1))) -> 3870.9 | F142: =IF(A142>$B$30,NA(),IF(A142>$A$8,"",OFFSET(InputPriceData!$E$15,CalculationsAndCharts!$A142+$A$11,IF($C$5,8,0),1,1))) -> 3847.78 | G142: =IF(A142>$B$30,NA(),IF(A142>$A$8,"",OFFSET(InputPriceData!$F$15,CalculationsAndCharts!$A142+$A$11,IF($C$5,8,0),1,1))) -> 3849.62 | H142: -5.74 | I142: 206.76 | J142: 84 | K142: 71.11019397 | L142: 0 | M142: 30 | N142: 30 | O142: 40 | P142: 50 | Q142: 30 | R142: 70 | T142: 0 | U142: 5.74 | V142: 193.5230281 | W142: 118.4733392 | X142: 0.2405466752 | Y142: 0 | Z142: -0.4 | AA142: 0.4 | AB142: 0 | AC142: -0.4 | AD142: 0.4 | AX142: 6029090000
A143: 111 | B143: =IF(A143>$B$30,NA(),IF($A143>$A$8,"",OFFSET(InputPriceData!$B$15,$A143+$A$11,0,1,1))) -> 2021-01-25 | C143: =IF(A143>$B$30,NA(),IF($A143>$A$8,"",OFFSET(InputPriceData!$G$15,CalculationsAndCharts!$A143+$A$11,IF($C$5,8,0),1,1))) -> 6955860000 | D143: =IF(A143>$B$30,NA(),IF(A143>$A$8,"",OFFSET(InputPriceData!$C$15,CalculationsAndCharts!$A143+$A$11,IF($C$5,8,0),1,1))) -> 3851.68 | E143: =IF(A143>$B$30,NA(),IF(A143>$A$8,"",OFFSET(InputPriceData!$D$15,CalculationsAndCharts!$A143+$A$11,IF($C$5,8,0),1,1))) -> 3859.23 | F143: =IF(A143>$B$30,NA(),IF(A143>$A$8,"",OFFSET(InputPriceData!$E$15,CalculationsAndCharts!$A143+$A$11,IF($C$5,8,0),1,1))) -> 3797.16 | G143: =IF(A143>$B$30,NA(),IF(A143>$A$8,"",OFFSET(InputPriceData!$F$15,CalculationsAndCharts!$A143+$A$11,IF($C$5,8,0),1,1))) -> 3855.36 | H143: 13.89 | I143: 232.97 | J143: 78.26 | K143: 74.85460913 | L143: 0 | M143: 30 | N143: 30 | O143: 40 | P143: 50 | Q143: 30 | R143: 70 | T143: 13.89 | U143: 0 | V143: 197.3104914 | W143: 119.0986694 | X143: 0.2471857065 | Y143: 0 | Z143: -0.4 | AA143: 0.4 | AB143: 0 | AC143: -0.4 | AD143: 0.4 | AW143: 6955860000
A144: 112 | B144: =IF(A144>$B$30,NA(),IF($A144>$A$8,"",OFFSET(InputPriceData!$B$15,$A144+$A$11,0,1,1))) -> 2021-01-22 | C144: =IF(A144>$B$30,NA(),IF($A144>$A$8,"",OFFSET(InputPriceData!$G$15,CalculationsAndCharts!$A144+$A$11,IF($C$5,8,0),1,1))) -> 5080430000 | D144: =IF(A144>$B$30,NA(),IF(A144>$A$8,"",OFFSET(InputPriceData!$C$15,CalculationsAndCharts!$A144+$A$11,IF($C$5,8,0),1,1))) -> 3844.24 | E144: =IF(A144>$B$30,NA(),IF(A144>$A$8,"",OFFSET(InputPriceData!$D$15,CalculationsAndCharts!$A144+$A$11,IF($C$5,8,0),1,1))) -> 3852.31 | F144: =IF(A144>$B$30,NA(),IF(A144>$A$8,"",OFFSET(InputPriceData!$E$15,CalculationsAndCharts!$A144+$A$11,IF($C$5,8,0),1,1))) -> 3830.41 | G144: =IF(A144>$B$30,NA(),IF(A144>$A$8,"",OFFSET(InputPriceData!$F$15,CalculationsAndCharts!$A144+$A$11,IF($C$5,8,0),1,1))) -> 3841.47 | H144: -11.6 | I144: 219.08 | J144: 133.68 | K144: 62.104547 | L144: 0 | M144: 30 | O144: 40 | P144: 50 | Q144: 30 | R144: 70 | T144: 0 | U144: 11.6 | V144: 207.2638078 | W144: 117.9501825 | X144: 0.2746303294 | Y144: 0 | Z144: -0.4 | AA144: 0.4 | AB144: 0 | AC144: -0.4 | AD144: 0.4 | AX144: 5080430000
A145: 113 | B145: =IF(A145>$B$30,NA(),IF($A145>$A$8,"",OFFSET(InputPriceData!$B$15,$A145+$A$11,0,1,1))) -> 2021-01-21 | C145: =IF(A145>$B$30,NA(),IF($A145>$A$8,"",OFFSET(InputPriceData!$G$15,CalculationsAndCharts!$A145+$A$11,IF($C$5,8,0),1,1))) -> 4484460000 | D145: =IF(A145>$B$30,NA(),IF(A145>$A$8,"",OFFSET(InputPriceData!$C$15,CalculationsAndCharts!$A145+$A$11,IF($C$5,8,0),1,1))) -> 3857.46 | E145: =IF(A145>$B$30,NA(),IF(A145>$A$8,"",OFFSET(InputPriceData!$D$15,CalculationsAndCharts!$A145+$A$11,IF($C$5,8,0),1,1))) -> 3861.45 | F145: =IF(A145>$B$30,NA(),IF(A145>$A$8,"",OFFSET(InputPriceData!$E$15,CalculationsAndCharts!$A145+$A$11,IF($C$5,8,0),1,1))) -> 3845.05 | G145: =IF(A145>$B$30,NA(),IF(A145>$A$8,"",OFFSET(InputPriceData!$F$15,CalculationsAndCharts!$A145+$A$11,IF($C$5,8,0),1,1))) -> 3853.07 | H145: 1.22 | I145: 243.11 | J145: 122.08 | K145: 66.57082615 | L145: 0 | M145: 30 | O145: 40 | P145: 50 | Q145: 30 | R145: 70 | T145: 1.22 | U145: 0 | V145: 222.5386073 | W145: 119.5215239 | X145: 0.3011665904 | Y145: 0 | Z145: -0.4 | AA145: 0.4 | AB145: 0 | AC145: -0.4 | AD145: 0.4 | AX145: 4484460000
A146: 114 | B146: =IF(A146>$B$30,NA(),IF($A146>$A$8,"",OFFSET(InputPriceData!$B$15,$A146+$A$11,0,1,1))) -> 2021-01-20 | C146: =IF(A146>$B$30,NA(),IF($A146>$A$8,"",OFFSET(InputPriceData!$G$15,CalculationsAndCharts!$A146+$A$11,IF($C$5,8,0),1,1))) -> 4551790000 | D146: =IF(A146>$B$30,NA(),IF(A146>$A$8,"",OFFSET(InputPriceData!$C$15,CalculationsAndCharts!$A146+$A$11,IF($C$5,8,0),1,1))) -> 3816.22 | E146: =IF(A146>$B$30,NA(),IF(A146>$A$8,"",OFFSET(InputPriceData!$D$15,CalculationsAndCharts!$A146+$A$11,IF($C$5,8,0),1,1))) -> 3859.75 | F146: =IF(A146>$B$30,NA(),IF(A146>$A$8,"",OFFSET(InputPriceData!$E$15,CalculationsAndCharts!$A146+$A$11,IF($C$5,8,0),1,1))) -> 3816.22 | G146: =IF(A146>$B$30,NA(),IF(A146>$A$8,"",OFFSET(InputPriceData!$F$15,CalculationsAndCharts!$A146+$A$11,IF($C$5,8,0),1,1))) -> 3851.85 | H146: 52.94 | I146: 246.89 | J146: 122.08 | K146: 66.91329918 | L146: 0 | M146: 30 | O146: 40 | P146: 50 | Q146: 30 | R146: 70 | T146: 52.94 | U146: 0 | V146: 241.8026603 | W146: 122.5381218 | X146: 0.3273433675 | Y146: 0 | Z146: -0.4 | AA146: 0.4 | AB146: 0 | AC146: -0.4 | AD146: 0.4 | AW146: 4551790000
A147: 115 | B147: =IF(A147>$B$30,NA(),IF($A147>$A$8,"",OFFSET(InputPriceData!$B$15,$A147+$A$11,0,1,1))) -> 2021-01-19 | C147: =IF(A147>$B$30,NA(),IF($A147>$A$8,"",OFFSET(InputPriceData!$G$15,CalculationsAndCharts!$A147+$A$11,IF($C$5,8,0),1,1))) -> 4982940000 | D147: =IF(A147>$B$30,NA(),IF(A147>$A$8,"",OFFSET(InputPriceData!$C$15,CalculationsAndCharts!$A147+$A$11,IF($C$5,8,0),1,1))) -> 3781.88 | E147: =IF(A147>$B$30,NA(),IF(A147>$A$8,"",OFFSET(InputPriceData!$D$15,CalculationsAndCharts!$A147+$A$11,IF($C$5,8,0),1,1))) -> 3804.53 | F147: =IF(A147>$B$30,NA(),IF(A147>$A$8,"",OFFSET(InputPriceData!$E$15,CalculationsAndCharts!$A147+$A$11,IF($C$5,8,0),1,1))) -> 3780.37 | G147: =IF(A147>$B$30,NA(),IF(A147>$A$8,"",OFFSET(InputPriceData!$F$15,CalculationsAndCharts!$A147+$A$11,IF($C$5,8,0),1,1))) -> 3798.91 | H147: 30.66 | I147: 193.95 | J147: 130.4 | K147: 59.79651611 | L147: 0 | M147: 30 | O147: 40 | P147: 50 | Q147: 30 | R147: 70 | T147: 30.66 | U147: 0 | V147: 262.0518351 | W147: 126.194808 | X147: 0.3499245376 | Y147: 0 | Z147: -0.4 | AA147: 0.4 | AB147: 0 | AC147: -0.4 | AD147: 0.4 | AW147: 4982940000
A148: 116 | B148: =IF(A148>$B$30,NA(),IF($A148>$A$8,"",OFFSET(InputPriceData!$B$15,$A148+$A$11,0,1,1))) -> 2021-01-15 | C148: =IF(A148>$B$30,NA(),IF($A148>$A$8,"",OFFSET(InputPriceData!$G$15,CalculationsAndCharts!$A148+$A$11,IF($C$5,8,0),1,1))) -> 5353060000 | D148: =IF(A148>$B$30,NA(),IF(A148>$A$8,"",OFFSET(InputPriceData!$C$15,CalculationsAndCharts!$A148+$A$11,IF($C$5,8,0),1,1))) -> 3788.73 | E148: =IF(A148>$B$30,NA(),IF(A148>$A$8,"",OFFSET(InputPriceData!$D$15,CalculationsAndCharts!$A148+$A$11,IF($C$5,8,0),1,1))) -> 3788.73 | F148: =IF(A148>$B$30,NA(),IF(A148>$A$8,"",OFFSET(InputPriceData!$E$15,CalculationsAndCharts!$A148+$A$11,IF($C$5,8,0),1,1))) -> 3749.62 | G148: =IF(A148>$B$30,NA(),IF(A148>$A$8,"",OFFSET(InputPriceData!$F$15,CalculationsAndCharts!$A148+$A$11,IF($C$5,8,0),1,1))) -> 3768.25 | H148: -27.29 | I148: 195.59 | J148: 130.4 | K148: 59.99877297 | L148: 0 | M148: 30 | O148: 40 | P148: 50 | Q148: 30 | R148: 70 | T148: 0 | U148: 27.29 | V148: 277.894969 | W148: 130.5786101 | X148: 0.3606508876 | Y148: 0 | Z148: -0.4 | AA148: 0.4 | AB148: 0 | AC148: -0.4 | AD148: 0.4 | AX148: 5353060000
A149: 117 | B149: =IF(A149>$B$30,NA(),IF($A149>$A$8,"",OFFSET(InputPriceData!$B$15,$A149+$A$11,0,1,1))) -> 2021-01-14 | C149: =IF(A149>$B$30,NA(),IF($A149>$A$8,"",OFFSET(InputPriceData!$G$15,CalculationsAndCharts!$A149+$A$11,IF($C$5,8,0),1,1))) -> 5180140000 | D149: =IF(A149>$B$30,NA(),IF(A149>$A$8,"",OFFSET(InputPriceData!$C$15,CalculationsAndCharts!$A149+$A$11,IF($C$5,8,0),1,1))) -> 3814.98 | E149: =IF(A149>$B$30,NA(),IF(A149>$A$8,"",OFFSET(InputPriceData!$D$15,CalculationsAndCharts!$A149+$A$11,IF($C$5,8,0),1,1))) -> 3823.6 | F149: =IF(A149>$B$30,NA(),IF(A149>$A$8,"",OFFSET(InputPriceData!$E$15,CalculationsAndCharts!$A149+$A$11,IF($C$5,8,0),1,1))) -> 3792.86 | G149: =IF(A149>$B$30,NA(),IF(A149>$A$8,"",OFFSET(InputPriceData!$F$15,CalculationsAndCharts!$A149+$A$11,IF($C$5,8,0),1,1))) -> 3795.54 | H149: -14.3 | I149: 208.64 | J149: 103.11 | K149: 66.92542101 | L149: 0 | M149: 30 | O149: 40 | P149: 50 | Q149: 30 | R149: 70 | T149: 0 | U149: 14.3 | V149: 283.2857542 | W149: 134.931529 | X149: 0.35473002 | Y149: 0 | Z149: -0.4 | AA149: 0.4 | AB149: 0 | AC149: -0.4 | AD149: 0.4 | AX149: 5180140000
A150: 118 | B150: =IF(A150>$B$30,NA(),IF($A150>$A$8,"",OFFSET(InputPriceData!$B$15,$A150+$A$11,0,1,1))) -> 2021-01-13 | C150: =IF(A150>$B$30,NA(),IF($A150>$A$8,"",OFFSET(InputPriceData!$G$15,CalculationsAndCharts!$A150+$A$11,IF($C$5,8,0),1,1))) -> 4590420000 | D150: =IF(A150>$B$30,NA(),IF(A150>$A$8,"",OFFSET(InputPriceData!$C$15,CalculationsAndCharts!$A150+$A$11,IF($C$5,8,0),1,1))) -> 3802.23 | E150: =IF(A150>$B$30,NA(),IF(A150>$A$8,"",OFFSET(InputPriceData!$D$15,CalculationsAndCharts!$A150+$A$11,IF($C$5,8,0),1,1))) -> 3820.96 | F150: =IF(A150>$B$30,NA(),IF(A150>$A$8,"",OFFSET(InputPriceData!$E$15,CalculationsAndCharts!$A150+$A$11,IF($C$5,8,0),1,1))) -> 3791.5 | G150: =IF(A150>$B$30,NA(),IF(A150>$A$8,"",OFFSET(InputPriceData!$F$15,CalculationsAndCharts!$A150+$A$11,IF($C$5,8,0),1,1))) -> 3809.84 | H150: 8.65 | I150: 211.39 | J150: 88.81 | K150: 70.41638907 | L150: 0 | M150: 30 | N150: 30 | O150: 40 | P150: 50 | Q150: 30 | R150: 70 | T150: 8.65 | U150: 0 | V150: 276.0073603 | W150: 136.1415608 | X150: 0.3393574321 | Y150: 0 | Z150: -0.4 | AA150: 0.4 | AB150: 0 | AC150: -0.4 | AD150: 0.4 | AW150: 4590420000
A151: 119 | B151: =IF(A151>$B$30,NA(),IF($A151>$A$8,"",OFFSET(InputPriceData!$B$15,$A151+$A$11,0,1,1))) -> 2021-01-12 | C151: =IF(A151>$B$30,NA(),IF($A151>$A$8,"",OFFSET(InputPriceData!$G$15,CalculationsAndCharts!$A151+$A$11,IF($C$5,8,0),1,1))) -> 4977210000 | D151: =IF(A151>$B$30,NA(),IF(A151>$A$8,"",OFFSET(InputPriceData!$C$15,CalculationsAndCharts!$A151+$A$11,IF($C$5,8,0),1,1))) -> 3801.62 | E151: =IF(A151>$B$30,NA(),IF(A151>$A$8,"",OFFSET(InputPriceData!$D$15,CalculationsAndCharts!$A151+$A$11,IF($C$5,8,0),1,1))) -> 3810.78 | F151: =IF(A151>$B$30,NA(),IF(A151>$A$8,"",OFFSET(InputPriceData!$E$15,CalculationsAndCharts!$A151+$A$11,IF($C$5,8,0),1,1))) -> 3776.51 | G151: =IF(A151>$B$30,NA(),IF(A151>$A$8,"",OFFSET(InputPriceData!$F$15,CalculationsAndCharts!$A151+$A$11,IF($C$5,8,0),1,1))) -> 3801.19 | H151: 1.58 | I151: 202.74 | J151: 96.47 | K151: 67.75843053 | L151: 0 | M151: 30 | O151: 40 | P151: 50 | Q151: 30 | R151: 70 | T151: 1.58 | U151: 0 | V151: 257.5560378 | W151: 131.0660775 | X151: 0.3254831758 | Y151: 0 | Z151: -0.4 | AA151: 0.4 | AB151: 0 | AC151: -0.4 | AD151: 0.4 | AX151: 4977210000
A152: 120 | B152: =IF(A152>$B$30,NA(),IF($A152>$A$8,"",OFFSET(InputPriceData!$B$15,$A152+$A$11,0,1,1))) -> 2021-01-11 | C152: =IF(A152>$B$30,NA(),IF($A152>$A$8,"",OFFSET(InputPriceData!$G$15,CalculationsAndCharts!$A152+$A$11,IF($C$5,8,0),1,1))) -> 4450500000 | D152: =IF(A152>$B$30,NA(),IF(A152>$A$8,"",OFFSET(InputPriceData!$C$15,CalculationsAndCharts!$A152+$A$11,IF($C$5,8,0),1,1))) -> 3803.14 | E152: =IF(A152>$B$30,NA(),IF(A152>$A$8,"",OFFSET(InputPriceData!$D$15,CalculationsAndCharts!$A152+$A$11,IF($C$5,8,0),1,1))) -> 3817.86 | F152: =IF(A152>$B$30,NA(),IF(A152>$A$8,"",OFFSET(InputPriceData!$E$15,CalculationsAndCharts!$A152+$A$11,IF($C$5,8,0),1,1))) -> 3789.02 | G152: =IF(A152>$B$30,NA(),IF(A152>$A$8,"",OFFSET(InputPriceData!$F$15,CalculationsAndCharts!$A152+$A$11,IF($C$5,8,0),1,1))) -> 3799.61 | H152: -25.07 | I152: 201.16 | J152: 110.96 | K152: 64.44957068 | L152: 0 | M152: 30 | O152: 40 | P152: 50 | Q152: 30 | R152: 70 | T152: 0 | U152: 25.07 | V152: 230.3743562 | W152: 121.2613445 | X152: 0.3103012905 | Y152: 0 | Z152: -0.4 | AA152: 0.4 | AB152: 0 | AC152: -0.4 | AD152: 0.4 | AX152: 4450500000
A153: 121 | B153: =IF(A153>$B$30,NA(),IF($A153>$A$8,"",OFFSET(InputPriceData!$B$15,$A153+$A$11,0,1,1))) -> 2021-01-08 | C153: =IF(A153>$B$30,NA(),IF($A153>$A$8,"",OFFSET(InputPriceData!$G$15,CalculationsAndCharts!$A153+$A$11,IF($C$5,8,0),1,1))) -> 4764180000 | D153: =IF(A153>$B$30,NA(),IF(A153>$A$8,"",OFFSET(InputPriceData!$C$15,CalculationsAndCharts!$A153+$A$11,IF($C$5,8,0),1,1))) -> 3815.05 | E153: =IF(A153>$B$30,NA(),IF(A153>$A$8,"",OFFSET(InputPriceData!$D$15,CalculationsAndCharts!$A153+$A$11,IF($C$5,8,0),1,1))) -> 3826.69 | F153: =IF(A153>$B$30,NA(),IF(A153>$A$8,"",OFFSET(InputPriceData!$E$15,CalculationsAndCharts!$A153+$A$11,IF($C$5,8,0),1,1))) -> 3783.6 | G153: =IF(A153>$B$30,NA(),IF(A153>$A$8,"",OFFSET(InputPriceData!$F$15,CalculationsAndCharts!$A153+$A$11,IF($C$5,8,0),1,1))) -> 3824.68 | H153: 20.89 | I153: 201.16 | J153: 98.96 | K153: 67.02652272 | L153: 0 | M153: 30 | O153: 40 | P153: 50 | Q153: 30 | R153: 70 | T153: 20.89 | U153: 0 | V153: 198.2778451 | W153: 110.8053762 | X153: 0.2830062029 | Y153: 0 | Z153: -0.4 | AA153: 0.4 | AB153: 0 | AC153: -0.4 | AD153: 0.4 | AW153: 4764180000
A154: 122 | B154: =IF(A154>$B$30,NA(),IF($A154>$A$8,"",OFFSET(InputPriceData!$B$15,$A154+$A$11,0,1,1))) -> 2021-01-07 | C154: =IF(A154>$B$30,NA(),IF($A154>$A$8,"",OFFSET(InputPriceData!$G$15,CalculationsAndCharts!$A154+$A$11,IF($C$5,8,0),1,1))) -> 5080870000 | D154: =IF(A154>$B$30,NA(),IF(A154>$A$8,"",OFFSET(InputPriceData!$C$15,CalculationsAndCharts!$A154+$A$11,IF($C$5,8,0),1,1))) -> 3764.71 | E154: =IF(A154>$B$30,NA(),IF(A154>$A$8,"",OFFSET(InputPriceData!$D$15,CalculationsAndCharts!$A154+$A$11,IF($C$5,8,0),1,1))) -> 3811.55 | F154: =IF(A154>$B$30,NA(),IF(A154>$A$8,"",OFFSET(InputPriceData!$E$15,CalculationsAndCharts!$A154+$A$11,IF($C$5,8,0),1,1))) -> 3764.71 | G154: =IF(A154>$B$30,NA(),IF(A154>$A$8,"",OFFSET(InputPriceData!$F$15,CalculationsAndCharts!$A154+$A$11,IF($C$5,8,0),1,1))) -> 3803.79 | H154: 55.65 | I154: 201.58 | J154: 98.96 | K154: 67.07260265 | L154: 0 | M154: 30 | O154: 40 | P154: 50 | Q154: 30 | R154: 70 | T154: 55.65 | U154: 0 | V154: 168.5220311 | W154: 100.4686502 | X154: 0.2529953103 | Y154: 0 | Z154: -0.4 | AA154: 0.4 | AB154: 0 | AC154: -0.4 | AD154: 0.4 | AW154: 5080870000
A155: 123 | B155: =IF(A155>$B$30,NA(),IF($A155>$A$8,"",OFFSET(InputPriceData!$B$15,$A155+$A$11,0,1,1))) -> 2021-01-06 | C155: =IF(A155>$B$30,NA(),IF($A155>$A$8,"",OFFSET(InputPriceData!$G$15,CalculationsAndCharts!$A155+$A$11,IF($C$5,8,0),1,1))) -> 6049970000 | D155: =IF(A155>$B$30,NA(),IF(A155>$A$8,"",OFFSET(InputPriceData!$C$15,CalculationsAndCharts!$A155+$A$11,IF($C$5,8,0),1,1))) -> 3712.2 | E155: =IF(A155>$B$30,NA(),IF(A155>$A$8,"",OFFSET(InputPriceData!$D$15,CalculationsAndCharts!$A155+$A$11,IF($C$5,8,0),1,1))) -> 3783.04 | F155: =IF(A155>$B$30,NA(),IF(A155>$A$8,"",OFFSET(InputPriceData!$E$15,CalculationsAndCharts!$A155+$A$11,IF($C$5,8,0),1,1))) -> 3705.34 | G155: =IF(A155>$B$30,NA(),IF(A155>$A$8,"",OFFSET(InputPriceData!$F$15,CalculationsAndCharts!$A155+$A$11,IF($C$5,8,0),1,1))) -> 3748.14 | H155: 21.28 | I155: 152.48 | J155: 98.96 | K155: 60.64269806 | L155: 0 | M155: 30 | O155: 40 | P155: 50 | Q155: 30 | R155: 70 | T155: 21.28 | U155: 0 | V155: 146.8545529 | W155: 89.87106488 | X155: 0.2407153419 | Y155: 0 | Z155: -0.4 | AA155: 0.4 | AB155: 0 | AC155: -0.4 | AD155: 0.4 | AW155: 6049970000
A156: 124 | B156: =IF(A156>$B$30,NA(),IF($A156>$A$8,"",OFFSET(InputPriceData!$B$15,$A156+$A$11,0,1,1))) -> 2021-01-05 | C156: =IF(A156>$B$30,NA(),IF($A156>$A$8,"",OFFSET(InputPriceData!$G$15,CalculationsAndCharts!$A156+$A$11,IF($C$5,8,0),1,1))) -> 4582620000 | D156: =IF(A156>$B$30,NA(),IF(A156>$A$8,"",OFFSET(InputPriceData!$C$15,CalculationsAndCharts!$A156+$A$11,IF($C$5,8,0),1,1))) -> 3698.02 | E156: =IF(A156>$B$30,NA(),IF(A156>$A$8,"",OFFSET(InputPriceData!$D$15,CalculationsAndCharts!$A156+$A$11,IF($C$5,8,0),1,1))) -> 3737.83 | F156: =IF(A156>$B$30,NA(),IF(A156>$A$8,"",OFFSET(InputPriceData!$E$15,CalculationsAndCharts!$A156+$A$11,IF($C$5,8,0),1,1))) -> 3695.07 | G156: =IF(A156>$B$30,NA(),IF(A156>$A$8,"",OFFSET(InputPriceData!$F$15,CalculationsAndCharts!$A156+$A$11,IF($C$5,8,0),1,1))) -> 3726.86 | H156: 26.21 | I156: 178.33 | J156: 98.96 | K156: 64.3117314 | L156: 0 | M156: 30 | O156: 40 | P156: 50 | Q156: 30 | R156: 70 | T156: 26.21 | U156: 0 | V156: 135.0455635 | W156: 80.84503899 | X156: 0.2510555062 | Y156: 0 | Z156: -0.4 | AA156: 0.4 | AB156: 0 | AC156: -0.4 | AD156: 0.4 | AW156: 4582620000
A157: 125 | B157: =IF(A157>$B$30,NA(),IF($A157>$A$8,"",OFFSET(InputPriceData!$B$15,$A157+$A$11,0,1,1))) -> 2021-01-04 | C157: =IF(A157>$B$30,NA(),IF($A157>$A$8,"",OFFSET(InputPriceData!$G$15,CalculationsAndCharts!$A157+$A$11,IF($C$5,8,0),1,1))) -> 5006680000 | D157: =IF(A157>$B$30,NA(),IF(A157>$A$8,"",OFFSET(InputPriceData!$C$15,CalculationsAndCharts!$A157+$A$11,IF($C$5,8,0),1,1))) -> 3764.61 | E157: =IF(A157>$B$30,NA(),IF(A157>$A$8,"",OFFSET(InputPriceData!$D$15,CalculationsAndCharts!$A157+$A$11,IF($C$5,8,0),1,1))) -> 3769.99 | F157: =IF(A157>$B$30,NA(),IF(A157>$A$8,"",OFFSET(InputPriceData!$E$15,CalculationsAndCharts!$A157+$A$11,IF($C$5,8,0),1,1))) -> 3662.71 | G157: =IF(A157>$B$30,NA(),IF(A157>$A$8,"",OFFSET(InputPriceData!$F$15,CalculationsAndCharts!$A157+$A$11,IF($C$5,8,0),1,1))) -> 3700.65 | H157: -55.42 | I157: 152.12 | J157: 114.93 | K157: 56.96311552 | L157: 0 | M157: 30 | O157: 40 | P157: 50 | Q157: 30 | R157: 70 | T157: 0 | U157: 55.42 | V157: 132.560599 | W157: 76.33193346 | X157: 0.2691750867 | Y157: 0 | Z157: -0.4 | AA157: 0.4 | AB157: 0 | AC157: -0.4 | AD157: 0.4 | AX157: 5006680000
A158: 126 | B158: =IF(A158>$B$30,NA(),IF($A158>$A$8,"",OFFSET(InputPriceData!$B$15,$A158+$A$11,0,1,1))) -> 2020-12-31 | C158: =IF(A158>$B$30,NA(),IF($A158>$A$8,"",OFFSET(InputPriceData!$G$15,CalculationsAndCharts!$A158+$A$11,IF($C$5,8,0),1,1))) -> 3172510000 | D158: =IF(A158>$B$30,NA(),IF(A158>$A$8,"",OFFSET(InputPriceData!$C$15,CalculationsAndCharts!$A158+$A$11,IF($C$5,8,0),1,1))) -> 3733.27 | E158: =IF(A158>$B$30,NA(),IF(A158>$A$8,"",OFFSET(InputPriceData!$D$15,CalculationsAndCharts!$A158+$A$11,IF($C$5,8,0),1,1))) -> 3760.2 | F158: =IF(A158>$B$30,NA(),IF(A158>$A$8,"",OFFSET(InputPriceData!$E$15,CalculationsAndCharts!$A158+$A$11,IF($C$5,8,0),1,1))) -> 3726.88 | G158: =IF(A158>$B$30,NA(),IF(A158>$A$8,"",OFFSET(InputPriceData!$F$15,CalculationsAndCharts!$A158+$A$11,IF($C$5,8,0),1,1))) -> 3756.07 | H158: 24.03 | I158: 152.12 | J158: 64.15 | K158: 70.33800342 | L158: 0 | M158: 30 | N158: 30 | O158: 40 | P158: 50 | Q158: 30 | R158: 70 | T158: 24.03 | U158: 0 | V158: 135.7236062 | W158: 78.89393337 | X158: 0.2647950999 | Y158: 0 | Z158: -0.4 | AA158: 0.4 | AB158: 0 | AC158: -0.4 | AD158: 0.4 | AW158: 3172510000
A159: 127 | B159: =IF(A159>$B$30,NA(),IF($A159>$A$8,"",OFFSET(InputPriceData!$B$15,$A159+$A$11,0,1,1))) -> 2020-12-30 | C159: =IF(A159>$B$30,NA(),IF($A159>$A$8,"",OFFSET(InputPriceData!$G$15,CalculationsAndCharts!$A159+$A$11,IF($C$5,8,0),1,1))) -> 3145200000 | D159: =IF(A159>$B$30,NA(),IF(A159>$A$8,"",OFFSET(InputPriceData!$C$15,CalculationsAndCharts!$A159+$A$11,IF($C$5,8,0),1,1))) -> 3736.19 | E159: =IF(A159>$B$30,NA(),IF(A159>$A$8,"",OFFSET(InputPriceData!$D$15,CalculationsAndCharts!$A159+$A$11,IF($C$5,8,0),1,1))) -> 3744.63 | F159: =IF(A159>$B$30,NA(),IF(A159>$A$8,"",OFFSET(InputPriceData!$E$15,CalculationsAndCharts!$A159+$A$11,IF($C$5,8,0),1,1))) -> 3730.21 | G159: =IF(A159>$B$30,NA(),IF(A159>$A$8,"",OFFSET(InputPriceData!$F$15,CalculationsAndCharts!$A159+$A$11,IF($C$5,8,0),1,1))) -> 3732.04 | H159: 5 | I159: 128.09 | J159: 68.87 | K159: 65.03350934 | L159: 0 | M159: 30 | O159: 40 | P159: 50 | Q159: 30 | R159: 70 | T159: 5 | U159: 0 | V159: 141.7216989 | W159: 84.10594943 | X159: 0.2551315123 | Y159: 0 | Z159: -0.4 | AA159: 0.4 | AB159: 0 | AC159: -0.4 | AD159: 0.4 | AX159: 3145200000
A160: 128 | B160: =IF(A160>$B$30,NA(),IF($A160>$A$8,"",OFFSET(InputPriceData!$B$15,$A160+$A$11,0,1,1))) -> 2020-12-29 | C160: =IF(A160>$B$30,NA(),IF($A160>$A$8,"",OFFSET(InputPriceData!$G$15,CalculationsAndCharts!$A160+$A$11,IF($C$5,8,0),1,1))) -> 3387030000 | D160: =IF(A160>$B$30,NA(),IF(A160>$A$8,"",OFFSET(InputPriceData!$C$15,CalculationsAndCharts!$A160+$A$11,IF($C$5,8,0),1,1))) -> 3750.01 | E160: =IF(A160>$B$30,NA(),IF(A160>$A$8,"",OFFSET(InputPriceData!$D$15,CalculationsAndCharts!$A160+$A$11,IF($C$5,8,0),1,1))) -> 3756.12 | F160: =IF(A160>$B$30,NA(),IF(A160>$A$8,"",OFFSET(InputPriceData!$E$15,CalculationsAndCharts!$A160+$A$11,IF($C$5,8,0),1,1))) -> 3723.31 | G160: =IF(A160>$B$30,NA(),IF(A160>$A$8,"",OFFSET(InputPriceData!$F$15,CalculationsAndCharts!$A160+$A$11,IF($C$5,8,0),1,1))) -> 3727.04 | H160: -8.32 | I160: 123.09 | J160: 98.3 | K160: 55.5987172 | L160: 0 | M160: 30 | O160: 40 | P160: 50 | Q160: 30 | R160: 70 | T160: 0 | U160: 8.32 | V160: 147.4402496 | W160: 89.22788861 | X160: 0.2459661931 | Y160: 0 | Z160: -0.4 | AA160: 0.4 | AB160: 0 | AC160: -0.4 | AD160: 0.4 | AX160: 3387030000
A161: 129 | B161: =IF(A161>$B$30,NA(),IF($A161>$A$8,"",OFFSET(InputPriceData!$B$15,$A161+$A$11,0,1,1))) -> 2020-12-28 | C161: =IF(A161>$B$30,NA(),IF($A161>$A$8,"",OFFSET(InputPriceData!$G$15,CalculationsAndCharts!$A161+$A$11,IF($C$5,8,0),1,1))) -> 3527460000 | D161: =IF(A161>$B$30,NA(),IF(A161>$A$8,"",OFFSET(InputPriceData!$C$15,CalculationsAndCharts!$A161+$A$11,IF($C$5,8,0),1,1))) -> 3723.03 | E161: =IF(A161>$B$30,NA(),IF(A161>$A$8,"",OFFSET(InputPriceData!$D$15,CalculationsAndCharts!$A161+$A$11,IF($C$5,8,0),1,1))) -> 3740.51 | F161: =IF(A161>$B$30,NA(),IF(A161>$A$8,"",OFFSET(InputPriceData!$E$15,CalculationsAndCharts!$A161+$A$11,IF($C$5,8,0),1,1))) -> 3723.03 | G161: =IF(A161>$B$30,NA(),IF(A161>$A$8,"",OFFSET(InputPriceData!$F$15,CalculationsAndCharts!$A161+$A$11,IF($C$5,8,0),1,1))) -> 3735.36 | H161: 32.3 | I161: 133.38 | J161: 89.98 | K161: 59.71525788 | L161: 0 | M161: 30 | O161: =$O$32 -> 40 | P161: 50 | Q161: 30 | R161: 70 | S161: =IF($A161>$D$17+1,NA(),IF($A161=$D$17+1,SUM(OFFSET(S$33,0,0,$A$17,1)),IF($A161=$D$17,"-- Coef Sum--",1-COS(RADIANS(360*$A161/$D$17))))) ->  | T161: =IF(A161>$T$30,NA(),IF(H161>0,H161,0)) -> 32.3 | U161: =IF(A161>$T$30,NA(),IF(H161<0,-H161,0)) -> 0 | V161: =IF($A161<=V$30,SUMPRODUCT(OFFSET($S$33,0,0,$A$17,1),OFFSET(T161,0,0,$A$17,1)),NA()) -> 150.2703109 | W161: =IF($A161<=V$30,SUMPRODUCT(OFFSET($S$33,0,0,$A$17,1),OFFSET(U161,0,0,$A$17,1)),NA()) -> 95.91847826 | X161: =IF($A161<=V$30,(V161-W161)/(V161+W161),NA()) -> 0.2207729801 | Y161: 0 | Z161: -0.4 | AA161: 0.4 | AB161: 0 | AC161: -0.4 | AD161: 0.4 | AW161: =IF(G161>=D161,C161,NA()) -> 3527460000 | AX161: =IF(G161<D161,C161,NA()) -> 
A162: 130 | B162: =IF(A162>$B$30,NA(),IF($A162>$A$8,"",OFFSET(InputPriceData!$B$15,$A162+$A$11,0,1,1))) -> 2020-12-24 | C162: =IF(A162>$B$30,NA(),IF($A162>$A$8,"",OFFSET(InputPriceData!$G$15,CalculationsAndCharts!$A162+$A$11,IF($C$5,8,0),1,1))) -> 1885090000 | D162: =IF(A162>$B$30,NA(),IF(A162>$A$8,"",OFFSET(InputPriceData!$C$15,CalculationsAndCharts!$A162+$A$11,IF($C$5,8,0),1,1))) -> 3694.03 | E162: =IF(A162>$B$30,NA(),IF(A162>$A$8,"",OFFSET(InputPriceData!$D$15,CalculationsAndCharts!$A162+$A$11,IF($C$5,8,0),1,1))) -> 3703.82 | F162: =IF(A162>$B$30,NA(),IF(A162>$A$8,"",OFFSET(InputPriceData!$E$15,CalculationsAndCharts!$A162+$A$11,IF($C$5,8,0),1,1))) -> 3689.32 | G162: =IF(A162>$B$30,NA(),IF(A162>$A$8,"",OFFSET(InputPriceData!$F$15,CalculationsAndCharts!$A162+$A$11,IF($C$5,8,0),1,1))) -> 3703.06 | H162: =IF(A162>$H$30,NA(),G162-G163) -> 13.05 | I162: =IF(A162>$I$30,NA(),SUMIF(OFFSET(H162,0,0,$A$17,1),">0",OFFSET(H162,0,0,$A$17,1))) -> 101.08 | J162: =IF(A162>$I$30,NA(),-SUMIF(OFFSET(H162,0,0,$A$17,1),"<0",OFFSET(H162,0,0,$A$17,1))) -> 97.14 | K162: =IF(A162>$I$30,NA(),100*I162/(I162+J162)) -> 50.99384522 | L162: =IF(K162<$B$21,IF($R$24,L$32,0),0) -> 0 | M162: =$B$21-L162 -> 30 | N162: =IF(K162>$C$21,IF($R$24,$M$27,NA()),NA()) ->  | O162: 40 | P162: 50 | Q162: =IF($R$24,$B$21,NA()) -> 30 | R162: =IF($R$24,$C$21,NA()) -> 70 | T162: 13.05 | U162: 0 | V162: 150.179884 | W162: 102.9205674 | X162: 0.1867215818 | Y162: =IF(X162<$B$22,IF($R$24,$Y$28,0),0) -> 0 | Z162: =$B$22 -> -0.4 | AA162: =$C$22 -> 0.4 | AB162: =IF(X162>$C$22,IF($R$24,$AB$28,0),0) -> 0 | AC162: =IF($R$24,$B$22,NA()) -> -0.4 | AD162: =IF($R$24,$C$22,NA()) -> 0.4 | AW162: 1885090000
A163: 131 | B163: =IF(A163>$B$30,NA(),IF($A163>$A$8,"",OFFSET(InputPriceData!$B$15,$A163+$A$11,0,1,1))) -> 2020-12-23 | C163: =IF(A163>$B$30,NA(),IF($A163>$A$8,"",OFFSET(InputPriceData!$G$15,CalculationsAndCharts!$A163+$A$11,IF($C$5,8,0),1,1))) -> 3772630000 | D163: =IF(A163>$B$30,NA(),IF(A163>$A$8,"",OFFSET(InputPriceData!$C$15,CalculationsAndCharts!$A163+$A$11,IF($C$5,8,0),1,1))) -> 3693.42 | E163: =IF(A163>$B$30,NA(),IF(A163>$A$8,"",OFFSET(InputPriceData!$D$15,CalculationsAndCharts!$A163+$A$11,IF($C$5,8,0),1,1))) -> 3711.24 | F163: =IF(A163>$B$30,NA(),IF(A163>$A$8,"",OFFSET(InputPriceData!$E$15,CalculationsAndCharts!$A163+$A$11,IF($C$5,8,0),1,1))) -> 3689.28 | G163: =IF(A163>$B$30,NA(),IF(A163>$A$8,"",OFFSET(InputPriceData!$F$15,CalculationsAndCharts!$A163+$A$11,IF($C$5,8,0),1,1))) -> 3690.01 | H163: 2.75 | I163: 120.43 | J163: 97.14 | K163: 55.35230041 | L163: 0 | M163: 30 | O163: 40 | P163: 50 | Q163: 30 | R163: 70 | T163: 2.75 | U163: 0 | V163: 147.19325 | W163: 108.9231439 | X163: 0.1494246641 | Y163: 0 | Z163: -0.4 | AA163: 0.4 | AB163: 0 | AC163: -0.4 | AD163: 0.4 | AX163: 3772630000
A164: 132 | B164: =IF(A164>$B$30,NA(),IF($A164>$A$8,"",OFFSET(InputPriceData!$B$15,$A164+$A$11,0,1,1))) -> 2020-12-22 | C164: =IF(A164>$B$30,NA(),IF($A164>$A$8,"",OFFSET(InputPriceData!$G$15,CalculationsAndCharts!$A164+$A$11,IF($C$5,8,0),1,1))) -> 4023940000 | D164: =IF(A164>$B$30,NA(),IF(A164>$A$8,"",OFFSET(InputPriceData!$C$15,CalculationsAndCharts!$A164+$A$11,IF($C$5,8,0),1,1))) -> 3698.08 | E164: =IF(A164>$B$30,NA(),IF(A164>$A$8,"",OFFSET(InputPriceData!$D$15,CalculationsAndCharts!$A164+$A$11,IF($C$5,8,0),1,1))) -> 3698.26 | F164: =IF(A164>$B$30,NA(),IF(A164>$A$8,"",OFFSET(InputPriceData!$E$15,CalculationsAndCharts!$A164+$A$11,IF($C$5,8,0),1,1))) -> 3676.16 | G164: =IF(A164>$B$30,NA(),IF(A164>$A$8,"",OFFSET(InputPriceData!$F$15,CalculationsAndCharts!$A164+$A$11,IF($C$5,8,0),1,1))) -> 3687.26 | H164: -7.66 | I164: 117.68 | J164: 99.43 | K164: 54.2029386 | L164: 0 | M164: 30 | O164: 40 | P164: 50 | Q164: 30 | R164: 70 | T164: 0 | U164: 7.66 | V164: 140.7072387 | W164: 113.0862887 | X164: 0.108832366 | Y164: 0 | Z164: -0.4 | AA164: 0.4 | AB164: 0 | AC164: -0.4 | AD164: 0.4 | AX164: 4023940000
A165: 133 | B165: =IF(A165>$B$30,NA(),IF($A165>$A$8,"",OFFSET(InputPriceData!$B$15,$A165+$A$11,0,1,1))) -> 2020-12-21 | C165: =IF(A165>$B$30,NA(),IF($A165>$A$8,"",OFFSET(InputPriceData!$G$15,CalculationsAndCharts!$A165+$A$11,IF($C$5,8,0),1,1))) -> 4732160000 | D165: =IF(A165>$B$30,NA(),IF(A165>$A$8,"",OFFSET(InputPriceData!$C$15,CalculationsAndCharts!$A165+$A$11,IF($C$5,8,0),1,1))) -> 3684.28 | E165: =IF(A165>$B$30,NA(),IF(A165>$A$8,"",OFFSET(InputPriceData!$D$15,CalculationsAndCharts!$A165+$A$11,IF($C$5,8,0),1,1))) -> 3702.9 | F165: =IF(A165>$B$30,NA(),IF(A165>$A$8,"",OFFSET(InputPriceData!$E$15,CalculationsAndCharts!$A165+$A$11,IF($C$5,8,0),1,1))) -> 3636.48 | G165: =IF(A165>$B$30,NA(),IF(A165>$A$8,"",OFFSET(InputPriceData!$F$15,CalculationsAndCharts!$A165+$A$11,IF($C$5,8,0),1,1))) -> 3694.92 | H165: -14.49 | I165: 124.24 | J165: 91.77 | K165: 57.51585575 | L165: 0 | M165: 30 | O165: 40 | P165: 50 | Q165: 30 | R165: 70 | T165: 0 | U165: 14.49 | V165: 131.0445005 | W165: 114.8881371 | X165: 0.06569426301 | Y165: 0 | Z165: -0.4 | AA165: 0.4 | AB165: 0 | AC165: -0.4 | AD165: 0.4 | AW165: 4732160000
A166: 134 | B166: =IF(A166>$B$30,NA(),IF($A166>$A$8,"",OFFSET(InputPriceData!$B$15,$A166+$A$11,0,1,1))) -> 2020-12-18 | C166: =IF(A166>$B$30,NA(),IF($A166>$A$8,"",OFFSET(InputPriceData!$G$15,CalculationsAndCharts!$A166+$A$11,IF($C$5,8,0),1,1))) -> 7068340000 | D166: =IF(A166>$B$30,NA(),IF(A166>$A$8,"",OFFSET(InputPriceData!$C$15,CalculationsAndCharts!$A166+$A$11,IF($C$5,8,0),1,1))) -> 3722.39 | E166: =IF(A166>$B$30,NA(),IF(A166>$A$8,"",OFFSET(InputPriceData!$D$15,CalculationsAndCharts!$A166+$A$11,IF($C$5,8,0),1,1))) -> 3726.7 | F166: =IF(A166>$B$30,NA(),IF(A166>$A$8,"",OFFSET(InputPriceData!$E$15,CalculationsAndCharts!$A166+$A$11,IF($C$5,8,0),1,1))) -> 3685.84 | G166: =IF(A166>$B$30,NA(),IF(A166>$A$8,"",OFFSET(InputPriceData!$F$15,CalculationsAndCharts!$A166+$A$11,IF($C$5,8,0),1,1))) -> 3709.41 | H166: -13.07 | I166: 165.06 | J166: 77.28 | K166: 68.11091854 | L166: 0 | M166: 30 | O166: 40 | P166: 50 | Q166: 30 | R166: 70 | T166: 0 | U166: 13.07 | V166: 123.7342767 | W166: 113.3548914 | X166: 0.04377840362 | Y166: 0 | Z166: -0.4 | AA166: 0.4 | AB166: 0 | AC166: -0.4 | AD166: 0.4 | AX166: 7068340000
A167: 135 | B167: =IF(A167>$B$30,NA(),IF($A167>$A$8,"",OFFSET(InputPriceData!$B$15,$A167+$A$11,0,1,1))) -> 2020-12-17 | C167: =IF(A167>$B$30,NA(),IF($A167>$A$8,"",OFFSET(InputPriceData!$G$15,CalculationsAndCharts!$A167+$A$11,IF($C$5,8,0),1,1))) -> 4184930000 | D167: =IF(A167>$B$30,NA(),IF(A167>$A$8,"",OFFSET(InputPriceData!$C$15,CalculationsAndCharts!$A167+$A$11,IF($C$5,8,0),1,1))) -> 3713.65 | E167: =IF(A167>$B$30,NA(),IF(A167>$A$8,"",OFFSET(InputPriceData!$D$15,CalculationsAndCharts!$A167+$A$11,IF($C$5,8,0),1,1))) -> 3725.12 | F167: =IF(A167>$B$30,NA(),IF(A167>$A$8,"",OFFSET(InputPriceData!$E$15,CalculationsAndCharts!$A167+$A$11,IF($C$5,8,0),1,1))) -> 3710.87 | G167: =IF(A167>$B$30,NA(),IF(A167>$A$8,"",OFFSET(InputPriceData!$F$15,CalculationsAndCharts!$A167+$A$11,IF($C$5,8,0),1,1))) -> 3722.48 | H167: 21.31 | I167: 165.06 | J167: 80.93 | K167: 67.10028863 | L167: 0 | M167: 30 | O167: 40 | P167: 50 | Q167: 30 | R167: 70 | T167: 21.31 | U167: 0 | V167: 123.5696459 | W167: 108.2822155 | X167: 0.06593619866 | Y167: 0 | Z167: -0.4 | AA167: 0.4 | AB167: 0 | AC167: -0.4 | AD167: 0.4 | AW167: 4184930000
A168: 136 | B168: =IF(A168>$B$30,NA(),IF($A168>$A$8,"",OFFSET(InputPriceData!$B$15,$A168+$A$11,0,1,1))) -> 2020-12-16 | C168: =IF(A168>$B$30,NA(),IF($A168>$A$8,"",OFFSET(InputPriceData!$G$15,CalculationsAndCharts!$A168+$A$11,IF($C$5,8,0),1,1))) -> 4056950000 | D168: =IF(A168>$B$30,NA(),IF(A168>$A$8,"",OFFSET(InputPriceData!$C$15,CalculationsAndCharts!$A168+$A$11,IF($C$5,8,0),1,1))) -> 3696.25 | E168: =IF(A168>$B$30,NA(),IF(A168>$A$8,"",OFFSET(InputPriceData!$D$15,CalculationsAndCharts!$A168+$A$11,IF($C$5,8,0),1,1))) -> 3711.27 | F168: =IF(A168>$B$30,NA(),IF(A168>$A$8,"",OFFSET(InputPriceData!$E$15,CalculationsAndCharts!$A168+$A$11,IF($C$5,8,0),1,1))) -> 3688.57 | G168: =IF(A168>$B$30,NA(),IF(A168>$A$8,"",OFFSET(InputPriceData!$F$15,CalculationsAndCharts!$A168+$A$11,IF($C$5,8,0),1,1))) -> 3701.17 | H168: 6.55 | I168: 152.45 | J168: 80.93 | K168: 65.32264976 | L168: 0 | M168: 30 | O168: 40 | P168: 50 | Q168: 30 | R168: 70 | T168: 6.55 | U168: 0 | V168: 131.3312287 | W168: 99.6100539 | X168: 0.1373560174 | Y168: 0 | Z168: -0.4 | AA168: 0.4 | AB168: 0 | AC168: -0.4 | AD168: 0.4 | AW168: 4056950000
A169: 137 | B169: =IF(A169>$B$30,NA(),IF($A169>$A$8,"",OFFSET(InputPriceData!$B$15,$A169+$A$11,0,1,1))) -> 2020-12-15 | C169: =IF(A169>$B$30,NA(),IF($A169>$A$8,"",OFFSET(InputPriceData!$G$15,CalculationsAndCharts!$A169+$A$11,IF($C$5,8,0),1,1))) -> 4360280000 | D169: =IF(A169>$B$30,NA(),IF(A169>$A$8,"",OFFSET(InputPriceData!$C$15,CalculationsAndCharts!$A169+$A$11,IF($C$5,8,0),1,1))) -> 3666.41 | E169: =IF(A169>$B$30,NA(),IF(A169>$A$8,"",OFFSET(InputPriceData!$D$15,CalculationsAndCharts!$A169+$A$11,IF($C$5,8,0),1,1))) -> 3695.29 | F169: =IF(A169>$B$30,NA(),IF(A169>$A$8,"",OFFSET(InputPriceData!$E$15,CalculationsAndCharts!$A169+$A$11,IF($C$5,8,0),1,1))) -> 3659.62 | G169: =IF(A169>$B$30,NA(),IF(A169>$A$8,"",OFFSET(InputPriceData!$F$15,CalculationsAndCharts!$A169+$A$11,IF($C$5,8,0),1,1))) -> 3694.62 | H169: 47.13 | I169: 145.9 | J169: 86.69 | K169: 62.72840621 | L169: 0 | M169: 30 | O169: 40 | P169: 50 | Q169: 30 | R169: 70 | T169: 47.13 | U169: 0 | V169: 144.5867853 | W169: 88.20591947 | X169: 0.2421934394 | Y169: 0 | Z169: -0.4 | AA169: 0.4 | AB169: 0 | AC169: -0.4 | AD169: 0.4 | AW169: 4360280000
A170: 138 | B170: =IF(A170>$B$30,NA(),IF($A170>$A$8,"",OFFSET(InputPriceData!$B$15,$A170+$A$11,0,1,1))) -> 2020-12-14 | C170: =IF(A170>$B$30,NA(),IF($A170>$A$8,"",OFFSET(InputPriceData!$G$15,CalculationsAndCharts!$A170+$A$11,IF($C$5,8,0),1,1))) -> 4594920000 | D170: =IF(A170>$B$30,NA(),IF(A170>$A$8,"",OFFSET(InputPriceData!$C$15,CalculationsAndCharts!$A170+$A$11,IF($C$5,8,0),1,1))) -> 3675.27 | E170: =IF(A170>$B$30,NA(),IF(A170>$A$8,"",OFFSET(InputPriceData!$D$15,CalculationsAndCharts!$A170+$A$11,IF($C$5,8,0),1,1))) -> 3697.61 | F170: =IF(A170>$B$30,NA(),IF(A170>$A$8,"",OFFSET(InputPriceData!$E$15,CalculationsAndCharts!$A170+$A$11,IF($C$5,8,0),1,1))) -> 3645.84 | G170: =IF(A170>$B$30,NA(),IF(A170>$A$8,"",OFFSET(InputPriceData!$F$15,CalculationsAndCharts!$A170+$A$11,IF($C$5,8,0),1,1))) -> 3647.49 | H170: -15.97 | I170: 156.59 | J170: 86.69 | K170: 64.36616245 | L170: 0 | M170: 30 | O170: 40 | P170: 50 | Q170: 30 | R170: 70 | T170: 0 | U170: 15.97 | V170: 163.6344875 | W170: 76.53966879 | X170: 0.3626319338 | Y170: 0 | Z170: -0.4 | AA170: 0.4 | AB170: 0 | AC170: -0.4 | AD170: 0.4 | AX170: 4594920000
A171: 139 | B171: =IF(A171>$B$30,NA(),IF($A171>$A$8,"",OFFSET(InputPriceData!$B$15,$A171+$A$11,0,1,1))) -> 2020-12-11 | C171: =IF(A171>$B$30,NA(),IF($A171>$A$8,"",OFFSET(InputPriceData!$G$15,CalculationsAndCharts!$A171+$A$11,IF($C$5,8,0),1,1))) -> 4367150000 | D171: =IF(A171>$B$30,NA(),IF(A171>$A$8,"",OFFSET(InputPriceData!$C$15,CalculationsAndCharts!$A171+$A$11,IF($C$5,8,0),1,1))) -> 3656.08 | E171: =IF(A171>$B$30,NA(),IF(A171>$A$8,"",OFFSET(InputPriceData!$D$15,CalculationsAndCharts!$A171+$A$11,IF($C$5,8,0),1,1))) -> 3665.91 | F171: =IF(A171>$B$30,NA(),IF(A171>$A$8,"",OFFSET(InputPriceData!$E$15,CalculationsAndCharts!$A171+$A$11,IF($C$5,8,0),1,1))) -> 3633.4 | G171: =IF(A171>$B$30,NA(),IF(A171>$A$8,"",OFFSET(InputPriceData!$F$15,CalculationsAndCharts!$A171+$A$11,IF($C$5,8,0),1,1))) -> 3663.46 | H171: -4.64 | I171: 176.64 | J171: 70.72 | K171: 71.41009056 | L171: 0 | M171: 30 | N171: 30 | O171: 40 | P171: 50 | Q171: 30 | R171: 70 | T171: 0 | U171: 4.64 | V171: 187.27215 | W171: 66.62850259 | X171: 0.4751608402 | Y171: 0 | Z171: -0.4 | AA171: 0.4 | AB171: 0.6 | AC171: -0.4 | AD171: 0.4 | AW171: 4367150000
A172: 140 | B172: =IF(A172>$B$30,NA(),IF($A172>$A$8,"",OFFSET(InputPriceData!$B$15,$A172+$A$11,0,1,1))) -> 2020-12-10 | C172: =IF(A172>$B$30,NA(),IF($A172>$A$8,"",OFFSET(InputPriceData!$G$15,CalculationsAndCharts!$A172+$A$11,IF($C$5,8,0),1,1))) -> 4618240000 | D172: =IF(A172>$B$30,NA(),IF(A172>$A$8,"",OFFSET(InputPriceData!$C$15,CalculationsAndCharts!$A172+$A$11,IF($C$5,8,0),1,1))) -> 3659.13 | E172: =IF(A172>$B$30,NA(),IF(A172>$A$8,"",OFFSET(InputPriceData!$D$15,CalculationsAndCharts!$A172+$A$11,IF($C$5,8,0),1,1))) -> 3678.49 | F172: =IF(A172>$B$30,NA(),IF(A172>$A$8,"",OFFSET(InputPriceData!$E$15,CalculationsAndCharts!$A172+$A$11,IF($C$5,8,0),1,1))) -> 3645.18 | G172: =IF(A172>$B$30,NA(),IF(A172>$A$8,"",OFFSET(InputPriceData!$F$15,CalculationsAndCharts!$A172+$A$11,IF($C$5,8,0),1,1))) -> 3668.1 | H172: -4.72 | I172: 176.64 | J172: 90.41 | K172: 66.14491668 | L172: 0 | M172: 30 | O172: 40 | P172: 50 | Q172: 30 | R172: 70 | T172: 0 | U172: 4.72 | V172: 209.0714172 | W172: 60.90891152 | X172: 0.548790004 | Y172: 0 | Z172: -0.4 | AA172: 0.4 | AB172: 0.6 | AC172: -0.4 | AD172: 0.4 | AW172: 4618240000
A173: 141 | B173: =IF(A173>$B$30,NA(),IF($A173>$A$8,"",OFFSET(InputPriceData!$B$15,$A173+$A$11,0,1,1))) -> 2020-12-09 | C173: =IF(A173>$B$30,NA(),IF($A173>$A$8,"",OFFSET(InputPriceData!$G$15,CalculationsAndCharts!$A173+$A$11,IF($C$5,8,0),1,1))) -> 5209940000 | D173: =IF(A173>$B$30,NA(),IF(A173>$A$8,"",OFFSET(InputPriceData!$C$15,CalculationsAndCharts!$A173+$A$11,IF($C$5,8,0),1,1))) -> 3705.98 | E173: =IF(A173>$B$30,NA(),IF(A173>$A$8,"",OFFSET(InputPriceData!$D$15,CalculationsAndCharts!$A173+$A$11,IF($C$5,8,0),1,1))) -> 3712.39 | F173: =IF(A173>$B$30,NA(),IF(A173>$A$8,"",OFFSET(InputPriceData!$E$15,CalculationsAndCharts!$A173+$A$11,IF($C$5,8,0),1,1))) -> 3660.54 | G173: =IF(A173>$B$30,NA(),IF(A173>$A$8,"",OFFSET(InputPriceData!$F$15,CalculationsAndCharts!$A173+$A$11,IF($C$5,8,0),1,1))) -> 3672.82 | H173: -29.43 | I173: 190.72 | J173: 85.69 | K173: 68.99895083 | L173: 0 | M173: 30 | O173: 40 | P173: 50 | Q173: 30 | R173: 70 | T173: 0 | U173: 29.43 | V173: 226.4802776 | W173: 60.69147573 | X173: 0.5773158396 | Y173: 0 | Z173: -0.4 | AA173: 0.4 | AB173: 0.6 | AC173: -0.4 | AD173: 0.4 | AX173: 5209940000
A174: 142 | B174: =IF(A174>$B$30,NA(),IF($A174>$A$8,"",OFFSET(InputPriceData!$B$15,$A174+$A$11,0,1,1))) -> 2020-12-08 | C174: =IF(A174>$B$30,NA(),IF($A174>$A$8,"",OFFSET(InputPriceData!$G$15,CalculationsAndCharts!$A174+$A$11,IF($C$5,8,0),1,1))) -> 4549670000 | D174: =IF(A174>$B$30,NA(),IF(A174>$A$8,"",OFFSET(InputPriceData!$C$15,CalculationsAndCharts!$A174+$A$11,IF($C$5,8,0),1,1))) -> 3683.05 | E174: =IF(A174>$B$30,NA(),IF(A174>$A$8,"",OFFSET(InputPriceData!$D$15,CalculationsAndCharts!$A174+$A$11,IF($C$5,8,0),1,1))) -> 3708.45 | F174: =IF(A174>$B$30,NA(),IF(A174>$A$8,"",OFFSET(InputPriceData!$E$15,CalculationsAndCharts!$A174+$A$11,IF($C$5,8,0),1,1))) -> 3678.83 | G174: =IF(A174>$B$30,NA(),IF(A174>$A$8,"",OFFSET(InputPriceData!$F$15,CalculationsAndCharts!$A174+$A$11,IF($C$5,8,0),1,1))) -> 3702.25 | H174: 10.29 | I174: 190.72 | J174: 98 | K174: 66.05707952 | L174: 0 | M174: 30 | O174: 40 | P174: 50 | Q174: 30 | R174: 70 | T174: 10.29 | U174: 0 | V174: 237.7058612 | W174: 68.81318994 | X174: 0.5510021992 | Y174: 0 | Z174: -0.4 | AA174: 0.4 | AB174: 0.6 | AC174: -0.4 | AD174: 0.4 | AW174: 4549670000
A175: 143 | B175: =IF(A175>$B$30,NA(),IF($A175>$A$8,"",OFFSET(InputPriceData!$B$15,$A175+$A$11,0,1,1))) -> 2020-12-07 | C175: =IF(A175>$B$30,NA(),IF($A175>$A$8,"",OFFSET(InputPriceData!$G$15,CalculationsAndCharts!$A175+$A$11,IF($C$5,8,0),1,1))) -> 4788560000 | D175: =IF(A175>$B$30,NA(),IF(A175>$A$8,"",OFFSET(InputPriceData!$C$15,CalculationsAndCharts!$A175+$A$11,IF($C$5,8,0),1,1))) -> 3694.73 | E175: =IF(A175>$B$30,NA(),IF(A175>$A$8,"",OFFSET(InputPriceData!$D$15,CalculationsAndCharts!$A175+$A$11,IF($C$5,8,0),1,1))) -> 3697.41 | F175: =IF(A175>$B$30,NA(),IF(A175>$A$8,"",OFFSET(InputPriceData!$E$15,CalculationsAndCharts!$A175+$A$11,IF($C$5,8,0),1,1))) -> 3678.88 | G175: =IF(A175>$B$30,NA(),IF(A175>$A$8,"",OFFSET(InputPriceData!$F$15,CalculationsAndCharts!$A175+$A$11,IF($C$5,8,0),1,1))) -> 3691.96 | H175: -7.16 | I175: 180.43 | J175: 115.38 | K175: 60.99523343 | L175: 0 | M175: 30 | O175: 40 | P175: 50 | Q175: 30 | R175: 70 | T175: 0 | U175: 7.16 | V175: 240.8071625 | W175: 86.02850588 | X175: 0.4735672132 | Y175: 0 | Z175: -0.4 | AA175: 0.4 | AB175: 0.6 | AC175: -0.4 | AD175: 0.4 | AX175: 4788560000
A176: 144 | B176: =IF(A176>$B$30,NA(),IF($A176>$A$8,"",OFFSET(InputPriceData!$B$15,$A176+$A$11,0,1,1))) -> 2020-12-04 | C176: =IF(A176>$B$30,NA(),IF($A176>$A$8,"",OFFSET(InputPriceData!$G$15,CalculationsAndCharts!$A176+$A$11,IF($C$5,8,0),1,1))) -> 5086370000 | D176: =IF(A176>$B$30,NA(),IF(A176>$A$8,"",OFFSET(InputPriceData!$C$15,CalculationsAndCharts!$A176+$A$11,IF($C$5,8,0),1,1))) -> 3670.94 | E176: =IF(A176>$B$30,NA(),IF(A176>$A$8,"",OFFSET(InputPriceData!$D$15,CalculationsAndCharts!$A176+$A$11,IF($C$5,8,0),1,1))) -> 3699.2 | F176: =IF(A176>$B$30,NA(),IF(A176>$A$8,"",OFFSET(InputPriceData!$E$15,CalculationsAndCharts!$A176+$A$11,IF($C$5,8,0),1,1))) -> 3670.94 | G176: =IF(A176>$B$30,NA(),IF(A176>$A$8,"",OFFSET(InputPriceData!$F$15,CalculationsAndCharts!$A176+$A$11,IF($C$5,8,0),1,1))) -> 3699.12 | H176: 32.4 | I176: 222.19 | J176: 108.22 | K176: 67.24675403 | L176: 0 | M176: 30 | O176: 40 | P176: 50 | Q176: 30 | R176: 70 | T176: 32.4 | U176: 0 | V176: 237.9686629 | W176: 108.3189618 | X176: 0.3743988864 | Y176: 0 | Z176: -0.4 | AA176: 0.4 | AB176: 0 | AC176: -0.4 | AD176: 0.4 | AW176: 5086370000
A177: 145 | B177: =IF(A177>$B$30,NA(),IF($A177>$A$8,"",OFFSET(InputPriceData!$B$15,$A177+$A$11,0,1,1))) -> 2020-12-03 | C177: =IF(A177>$B$30,NA(),IF($A177>$A$8,"",OFFSET(InputPriceData!$G$15,CalculationsAndCharts!$A177+$A$11,IF($C$5,8,0),1,1))) -> 5091760000 | D177: =IF(A177>$B$30,NA(),IF(A177>$A$8,"",OFFSET(InputPriceData!$C$15,CalculationsAndCharts!$A177+$A$11,IF($C$5,8,0),1,1))) -> 3668.28 | E177: =IF(A177>$B$30,NA(),IF(A177>$A$8,"",OFFSET(InputPriceData!$D$15,CalculationsAndCharts!$A177+$A$11,IF($C$5,8,0),1,1))) -> 3682.73 | F177: =IF(A177>$B$30,NA(),IF(A177>$A$8,"",OFFSET(InputPriceData!$E$15,CalculationsAndCharts!$A177+$A$11,IF($C$5,8,0),1,1))) -> 3657.17 | G177: =IF(A177>$B$30,NA(),IF(A177>$A$8,"",OFFSET(InputPriceData!$F$15,CalculationsAndCharts!$A177+$A$11,IF($C$5,8,0),1,1))) -> 3666.72 | H177: -2.29 | I177: 237.93 | J177: 108.22 | K177: 68.73609707 | L177: 0 | M177: 30 | O177: 40 | P177: 50 | Q177: 30 | R177: 70 | T177: 0 | U177: 2.29 | V177: 236.5638107 | W177: 131.2113209 | X177: 0.2864589822 | Y177: 0 | Z177: -0.4 | AA177: 0.4 | AB177: 0 | AC177: -0.4 | AD177: 0.4 | AX177: 5091760000
A178: 146 | B178: =IF(A178>$B$30,NA(),IF($A178>$A$8,"",OFFSET(InputPriceData!$B$15,$A178+$A$11,0,1,1))) -> 2020-12-02 | C178: =IF(A178>$B$30,NA(),IF($A178>$A$8,"",OFFSET(InputPriceData!$G$15,CalculationsAndCharts!$A178+$A$11,IF($C$5,8,0),1,1))) -> 5029620000 | D178: =IF(A178>$B$30,NA(),IF(A178>$A$8,"",OFFSET(InputPriceData!$C$15,CalculationsAndCharts!$A178+$A$11,IF($C$5,8,0),1,1))) -> 3653.78 | E178: =IF(A178>$B$30,NA(),IF(A178>$A$8,"",OFFSET(InputPriceData!$D$15,CalculationsAndCharts!$A178+$A$11,IF($C$5,8,0),1,1))) -> 3670.96 | F178: =IF(A178>$B$30,NA(),IF(A178>$A$8,"",OFFSET(InputPriceData!$E$15,CalculationsAndCharts!$A178+$A$11,IF($C$5,8,0),1,1))) -> 3644.84 | G178: =IF(A178>$B$30,NA(),IF(A178>$A$8,"",OFFSET(InputPriceData!$F$15,CalculationsAndCharts!$A178+$A$11,IF($C$5,8,0),1,1))) -> 3669.01 | H178: 6.56 | I178: 237.93 | J178: 141.58 | K178: 62.69400016 | L178: 0 | M178: 30 | O178: 40 | P178: 50 | Q178: 30 | R178: 70 | T178: 6.56 | U178: 0 | V178: 238.1963123 | W178: 153.2103761 | X178: 0.217129494 | Y178: 0 | Z178: -0.4 | AA178: 0.4 | AB178: 0 | AC178: -0.4 | AD178: 0.4 | AW178: 5029620000
A179: 147 | B179: =IF(A179>$B$30,NA(),IF($A179>$A$8,"",OFFSET(InputPriceData!$B$15,$A179+$A$11,0,1,1))) -> 2020-12-01 | C179: =IF(A179>$B$30,NA(),IF($A179>$A$8,"",OFFSET(InputPriceData!$G$15,CalculationsAndCharts!$A179+$A$11,IF($C$5,8,0),1,1))) -> 5403660000 | D179: =IF(A179>$B$30,NA(),IF(A179>$A$8,"",OFFSET(InputPriceData!$C$15,CalculationsAndCharts!$A179+$A$11,IF($C$5,8,0),1,1))) -> 3645.87 | E179: =IF(A179>$B$30,NA(),IF(A179>$A$8,"",OFFSET(InputPriceData!$D$15,CalculationsAndCharts!$A179+$A$11,IF($C$5,8,0),1,1))) -> 3678.45 | F179: =IF(A179>$B$30,NA(),IF(A179>$A$8,"",OFFSET(InputPriceData!$E$15,CalculationsAndCharts!$A179+$A$11,IF($C$5,8,0),1,1))) -> 3645.87 | G179: =IF(A179>$B$30,NA(),IF(A179>$A$8,"",OFFSET(InputPriceData!$F$15,CalculationsAndCharts!$A179+$A$11,IF($C$5,8,0),1,1))) -> 3662.45 | H179: 40.82 | I179: 258.5 | J179: 141.58 | K179: 64.61207758 | L179: 0 | M179: 30 | O179: 40 | P179: 50 | Q179: 30 | R179: 70 | T179: 40.82 | U179: 0 | V179: 242.1282778 | W179: 173.3964146 | X179: 0.1654098167 | Y179: 0 | Z179: -0.4 | AA179: 0.4 | AB179: 0 | AC179: -0.4 | AD179: 0.4 | AW179: 5403660000
A180: 148 | B180: =IF(A180>$B$30,NA(),IF($A180>$A$8,"",OFFSET(InputPriceData!$B$15,$A180+$A$11,0,1,1))) -> 2020-11-30 | C180: =IF(A180>$B$30,NA(),IF($A180>$A$8,"",OFFSET(InputPriceData!$G$15,CalculationsAndCharts!$A180+$A$11,IF($C$5,8,0),1,1))) -> 6291400000 | D180: =IF(A180>$B$30,NA(),IF(A180>$A$8,"",OFFSET(InputPriceData!$C$15,CalculationsAndCharts!$A180+$A$11,IF($C$5,8,0),1,1))) -> 3634.18 | E180: =IF(A180>$B$30,NA(),IF(A180>$A$8,"",OFFSET(InputPriceData!$D$15,CalculationsAndCharts!$A180+$A$11,IF($C$5,8,0),1,1))) -> 3634.18 | F180: =IF(A180>$B$30,NA(),IF(A180>$A$8,"",OFFSET(InputPriceData!$E$15,CalculationsAndCharts!$A180+$A$11,IF($C$5,8,0),1,1))) -> 3594.39 | G180: =IF(A180>$B$30,NA(),IF(A180>$A$8,"",OFFSET(InputPriceData!$F$15,CalculationsAndCharts!$A180+$A$11,IF($C$5,8,0),1,1))) -> 3621.63 | H180: -16.72 | I180: 217.68 | J180: 146.55 | K180: 59.76443456 | L180: 0 | M180: 30 | O180: 40 | P180: 50 | Q180: 30 | R180: 70 | T180: 0 | U180: 16.72 | V180: 249.4582046 | W180: 188.510785 | X180: 0.1391592123 | Y180: 0 | Z180: -0.4 | AA180: 0.4 | AB180: 0 | AC180: -0.4 | AD180: 0.4 | AX180: 6291400000
A181: 149 | B181: =IF(A181>$B$30,NA(),IF($A181>$A$8,"",OFFSET(InputPriceData!$B$15,$A181+$A$11,0,1,1))) -> 2020-11-27 | C181: =IF(A181>$B$30,NA(),IF($A181>$A$8,"",OFFSET(InputPriceData!$G$15,CalculationsAndCharts!$A181+$A$11,IF($C$5,8,0),1,1))) -> 2778450000 | D181: =IF(A181>$B$30,NA(),IF(A181>$A$8,"",OFFSET(InputPriceData!$C$15,CalculationsAndCharts!$A181+$A$11,IF($C$5,8,0),1,1))) -> 3638.55 | E181: =IF(A181>$B$30,NA(),IF(A181>$A$8,"",OFFSET(InputPriceData!$D$15,CalculationsAndCharts!$A181+$A$11,IF($C$5,8,0),1,1))) -> 3644.31 | F181: =IF(A181>$B$30,NA(),IF(A181>$A$8,"",OFFSET(InputPriceData!$E$15,CalculationsAndCharts!$A181+$A$11,IF($C$5,8,0),1,1))) -> 3629.33 | G181: =IF(A181>$B$30,NA(),IF(A181>$A$8,"",OFFSET(InputPriceData!$F$15,CalculationsAndCharts!$A181+$A$11,IF($C$5,8,0),1,1))) -> 3638.35 | H181: 8.7 | I181: 258.74 | J181: 129.83 | K181: 66.58774481 | L181: 0 | M181: 30 | O181: 40 | P181: 50 | Q181: 30 | R181: 70 | T181: 8.7 | U181: 0 | V181: 258.372289 | W181: 196.3697545 | X181: 0.1363466067 | Y181: 0 | Z181: -0.4 | AA181: 0.4 | AB181: 0 | AC181: -0.4 | AD181: 0.4 | AX181: 2778450000
A182: 150 | B182: =IF(A182>$B$30,NA(),IF($A182>$A$8,"",OFFSET(InputPriceData!$B$15,$A182+$A$11,0,1,1))) -> 2020-11-25 | C182: =IF(A182>$B$30,NA(),IF($A182>$A$8,"",OFFSET(InputPriceData!$G$15,CalculationsAndCharts!$A182+$A$11,IF($C$5,8,0),1,1))) -> 4902560000 | D182: =IF(A182>$B$30,NA(),IF(A182>$A$8,"",OFFSET(InputPriceData!$C$15,CalculationsAndCharts!$A182+$A$11,IF($C$5,8,0),1,1))) -> 3635.5 | E182: =IF(A182>$B$30,NA(),IF(A182>$A$8,"",OFFSET(InputPriceData!$D$15,CalculationsAndCharts!$A182+$A$11,IF($C$5,8,0),1,1))) -> 3635.5 | F182: =IF(A182>$B$30,NA(),IF(A182>$A$8,"",OFFSET(InputPriceData!$E$15,CalculationsAndCharts!$A182+$A$11,IF($C$5,8,0),1,1))) -> 3617.76 | G182: =IF(A182>$B$30,NA(),IF(A182>$A$8,"",OFFSET(InputPriceData!$F$15,CalculationsAndCharts!$A182+$A$11,IF($C$5,8,0),1,1))) -> 3629.65 | H182: -5.76 | I182: 250.04 | J182: 130.84 | K182: 65.64797311 | L182: 0 | M182: 30 | O182: 40 | P182: 50 | Q182: 30 | R182: 70 | T182: 0 | U182: 5.76 | V182: 267.349954 | W182: 194.2562349 | X182: 0.1583464885 | Y182: 0 | Z182: -0.4 | AA182: 0.4 | AB182: 0 | AC182: -0.4 | AD182: 0.4 | AX182: 4902560000
A183: 151 | B183: =IF(A183>$B$30,NA(),IF($A183>$A$8,"",OFFSET(InputPriceData!$B$15,$A183+$A$11,0,1,1))) -> 2020-11-24 | C183: =IF(A183>$B$30,NA(),IF($A183>$A$8,"",OFFSET(InputPriceData!$G$15,CalculationsAndCharts!$A183+$A$11,IF($C$5,8,0),1,1))) -> 6267570000 | D183: =IF(A183>$B$30,NA(),IF(A183>$A$8,"",OFFSET(InputPriceData!$C$15,CalculationsAndCharts!$A183+$A$11,IF($C$5,8,0),1,1))) -> 3594.52 | E183: =IF(A183>$B$30,NA(),IF(A183>$A$8,"",OFFSET(InputPriceData!$D$15,CalculationsAndCharts!$A183+$A$11,IF($C$5,8,0),1,1))) -> 3642.31 | F183: =IF(A183>$B$30,NA(),IF(A183>$A$8,"",OFFSET(InputPriceData!$E$15,CalculationsAndCharts!$A183+$A$11,IF($C$5,8,0),1,1))) -> 3594.52 | G183: =IF(A183>$B$30,NA(),IF(A183>$A$8,"",OFFSET(InputPriceData!$F$15,CalculationsAndCharts!$A183+$A$11,IF($C$5,8,0),1,1))) -> 3635.41 | H183: 57.82 | I183: 317.05 | J183: 125.08 | K183: 71.70967815 | L183: 0 | M183: 30 | N183: 30 | O183: 40 | P183: 50 | Q183: 30 | R183: 70 | T183: 57.82 | U183: 0 | V183: 279.8800441 | W183: 181.1774723 | X183: 0.2140786525 | Y183: 0 | Z183: -0.4 | AA183: 0.4 | AB183: 0 | AC183: -0.4 | AD183: 0.4 | AW183: 6267570000
A184: 152 | B184: =IF(A184>$B$30,NA(),IF($A184>$A$8,"",OFFSET(InputPriceData!$B$15,$A184+$A$11,0,1,1))) -> 2020-11-23 | C184: =IF(A184>$B$30,NA(),IF($A184>$A$8,"",OFFSET(InputPriceData!$G$15,CalculationsAndCharts!$A184+$A$11,IF($C$5,8,0),1,1))) -> 5036290000 | D184: =IF(A184>$B$30,NA(),IF(A184>$A$8,"",OFFSET(InputPriceData!$C$15,CalculationsAndCharts!$A184+$A$11,IF($C$5,8,0),1,1))) -> 3566.82 | E184: =IF(A184>$B$30,NA(),IF(A184>$A$8,"",OFFSET(InputPriceData!$D$15,CalculationsAndCharts!$A184+$A$11,IF($C$5,8,0),1,1))) -> 3589.81 | F184: =IF(A184>$B$30,NA(),IF(A184>$A$8,"",OFFSET(InputPriceData!$E$15,CalculationsAndCharts!$A184+$A$11,IF($C$5,8,0),1,1))) -> 3552.77 | G184: =IF(A184>$B$30,NA(),IF(A184>$A$8,"",OFFSET(InputPriceData!$F$15,CalculationsAndCharts!$A184+$A$11,IF($C$5,8,0),1,1))) -> 3577.59 | H184: 20.05 | I184: 333.51 | J184: 125.08 | K184: 72.72509213 | L184: 0 | M184: 30 | N184: 30 | O184: 40 | P184: 50 | Q184: 30 | R184: 70 | T184: 20.05 | U184: 0 | V184: 305.2590007 | W184: 158.8969252 | X184: 0.3153295419 | Y184: 0 | Z184: -0.4 | AA184: 0.4 | AB184: 0 | AC184: -0.4 | AD184: 0.4 | AW184: 5036290000
A185: 153 | B185: =IF(A185>$B$30,NA(),IF($A185>$A$8,"",OFFSET(InputPriceData!$B$15,$A185+$A$11,0,1,1))) -> 2020-11-20 | C185: =IF(A185>$B$30,NA(),IF($A185>$A$8,"",OFFSET(InputPriceData!$G$15,CalculationsAndCharts!$A185+$A$11,IF($C$5,8,0),1,1))) -> 4218970000 | D185: =IF(A185>$B$30,NA(),IF(A185>$A$8,"",OFFSET(InputPriceData!$C$15,CalculationsAndCharts!$A185+$A$11,IF($C$5,8,0),1,1))) -> 3579.31 | E185: =IF(A185>$B$30,NA(),IF(A185>$A$8,"",OFFSET(InputPriceData!$D$15,CalculationsAndCharts!$A185+$A$11,IF($C$5,8,0),1,1))) -> 3581.23 | F185: =IF(A185>$B$30,NA(),IF(A185>$A$8,"",OFFSET(InputPriceData!$E$15,CalculationsAndCharts!$A185+$A$11,IF($C$5,8,0),1,1))) -> 3556.85 | G185: =IF(A185>$B$30,NA(),IF(A185>$A$8,"",OFFSET(InputPriceData!$F$15,CalculationsAndCharts!$A185+$A$11,IF($C$5,8,0),1,1))) -> 3557.54 | H185: -24.33 | I185: 372.38 | J185: 125.08 | K185: 74.85626985 | L185: 0 | M185: 30 | N185: 30 | O185: 40 | P185: 50 | Q185: 30 | R185: 70 | T185: 0 | U185: 24.33 | V185: 345.615515 | W185: 130.7691245 | X185: 0.4509935305 | Y185: 0 | Z185: -0.4 | AA185: 0.4 | AB185: 0.6 | AC185: -0.4 | AD185: 0.4 | AX185: 4218970000
A186: 154 | B186: =IF(A186>$B$30,NA(),IF($A186>$A$8,"",OFFSET(InputPriceData!$B$15,$A186+$A$11,0,1,1))) -> 2020-11-19 | C186: =IF(A186>$B$30,NA(),IF($A186>$A$8,"",OFFSET(InputPriceData!$G$15,CalculationsAndCharts!$A186+$A$11,IF($C$5,8,0),1,1))) -> 4347200000 | D186: =IF(A186>$B$30,NA(),IF(A186>$A$8,"",OFFSET(InputPriceData!$C$15,CalculationsAndCharts!$A186+$A$11,IF($C$5,8,0),1,1))) -> 3559.41 | E186: =IF(A186>$B$30,NA(),IF(A186>$A$8,"",OFFSET(InputPriceData!$D$15,CalculationsAndCharts!$A186+$A$11,IF($C$5,8,0),1,1))) -> 3585.22 | F186: =IF(A186>$B$30,NA(),IF(A186>$A$8,"",OFFSET(InputPriceData!$E$15,CalculationsAndCharts!$A186+$A$11,IF($C$5,8,0),1,1))) -> 3543.84 | G186: =IF(A186>$B$30,NA(),IF(A186>$A$8,"",OFFSET(InputPriceData!$F$15,CalculationsAndCharts!$A186+$A$11,IF($C$5,8,0),1,1))) -> 3581.87 | H186: 14.08 | I186: 412.66 | J186: 100.75 | K186: 80.37630743 | L186: 0 | M186: 30 | N186: 30 | O186: 40 | P186: 50 | Q186: 30 | R186: 70 | T186: 14.08 | U186: 0 | V186: 395.8156544 | W186: 101.6576226 | X186: 0.5913041875 | Y186: 0 | Z186: -0.4 | AA186: 0.4 | AB186: 0.6 | AC186: -0.4 | AD186: 0.4 | AW186: 4347200000
A187: 155 | B187: =IF(A187>$B$30,NA(),IF($A187>$A$8,"",OFFSET(InputPriceData!$B$15,$A187+$A$11,0,1,1))) -> 2020-11-18 | C187: =IF(A187>$B$30,NA(),IF($A187>$A$8,"",OFFSET(InputPriceData!$G$15,CalculationsAndCharts!$A187+$A$11,IF($C$5,8,0),1,1))) -> 5274450000 | D187: =IF(A187>$B$30,NA(),IF(A187>$A$8,"",OFFSET(InputPriceData!$C$15,CalculationsAndCharts!$A187+$A$11,IF($C$5,8,0),1,1))) -> 3612.09 | E187: =IF(A187>$B$30,NA(),IF(A187>$A$8,"",OFFSET(InputPriceData!$D$15,CalculationsAndCharts!$A187+$A$11,IF($C$5,8,0),1,1))) -> 3619.09 | F187: =IF(A187>$B$30,NA(),IF(A187>$A$8,"",OFFSET(InputPriceData!$E$15,CalculationsAndCharts!$A187+$A$11,IF($C$5,8,0),1,1))) -> 3567.33 | G187: =IF(A187>$B$30,NA(),IF(A187>$A$8,"",OFFSET(InputPriceData!$F$15,CalculationsAndCharts!$A187+$A$11,IF($C$5,8,0),1,1))) -> 3567.79 | H187: -41.74 | I187: 398.58 | J187: 140.9 | K187: 73.88225699 | L187: 0 | M187: 30 | N187: 30 | O187: 40 | P187: 50 | Q187: 30 | R187: 70 | T187: 0 | U187: 41.74 | V187: 448.9283342 | W187: 77.96377328 | X187: 0.7040617152 | Y187: 0 | Z187: -0.4 | AA187: 0.4 | AB187: 0.6 | AC187: -0.4 | AD187: 0.4 | AX187: 5274450000
A188: 156 | B188: =IF(A188>$B$30,NA(),IF($A188>$A$8,"",OFFSET(InputPriceData!$B$15,$A188+$A$11,0,1,1))) -> 2020-11-17 | C188: =IF(A188>$B$30,NA(),IF($A188>$A$8,"",OFFSET(InputPriceData!$G$15,CalculationsAndCharts!$A188+$A$11,IF($C$5,8,0),1,1))) -> 4799570000 | D188: =IF(A188>$B$30,NA(),IF(A188>$A$8,"",OFFSET(InputPriceData!$C$15,CalculationsAndCharts!$A188+$A$11,IF($C$5,8,0),1,1))) -> 3610.31 | E188: =IF(A188>$B$30,NA(),IF(A188>$A$8,"",OFFSET(InputPriceData!$D$15,CalculationsAndCharts!$A188+$A$11,IF($C$5,8,0),1,1))) -> 3623.11 | F188: =IF(A188>$B$30,NA(),IF(A188>$A$8,"",OFFSET(InputPriceData!$E$15,CalculationsAndCharts!$A188+$A$11,IF($C$5,8,0),1,1))) -> 3588.68 | G188: =IF(A188>$B$30,NA(),IF(A188>$A$8,"",OFFSET(InputPriceData!$F$15,CalculationsAndCharts!$A188+$A$11,IF($C$5,8,0),1,1))) -> 3609.53 | H188: -17.38 | I188: 437.66 | J188: 99.16 | K188: 81.52825901 | L188: 0 | M188: 30 | N188: 30 | O188: 40 | P188: 50 | Q188: 30 | R188: 70 | T188: 0 | U188: 17.38 | V188: 497.9312531 | W188: 65.15216936 | X188: 0.7685878619 | Y188: 0 | Z188: -0.4 | AA188: 0.4 | AB188: 0.6 | AC188: -0.4 | AD188: 0.4 | AX188: 4799570000
A189: 157 | B189: =IF(A189>$B$30,NA(),IF($A189>$A$8,"",OFFSET(InputPriceData!$B$15,$A189+$A$11,0,1,1))) -> 2020-11-16 | C189: =IF(A189>$B$30,NA(),IF($A189>$A$8,"",OFFSET(InputPriceData!$G$15,CalculationsAndCharts!$A189+$A$11,IF($C$5,8,0),1,1))) -> 5281980000 | D189: =IF(A189>$B$30,NA(),IF(A189>$A$8,"",OFFSET(InputPriceData!$C$15,CalculationsAndCharts!$A189+$A$11,IF($C$5,8,0),1,1))) -> 3600.16 | E189: =IF(A189>$B$30,NA(),IF(A189>$A$8,"",OFFSET(InputPriceData!$D$15,CalculationsAndCharts!$A189+$A$11,IF($C$5,8,0),1,1))) -> 3628.51 | F189: =IF(A189>$B$30,NA(),IF(A189>$A$8,"",OFFSET(InputPriceData!$E$15,CalculationsAndCharts!$A189+$A$11,IF($C$5,8,0),1,1))) -> 3600.16 | G189: =IF(A189>$B$30,NA(),IF(A189>$A$8,"",OFFSET(InputPriceData!$F$15,CalculationsAndCharts!$A189+$A$11,IF($C$5,8,0),1,1))) -> 3626.91 | H189: 41.76 | I189: 437.66 | J189: 201.43 | K189: 68.48174748 | L189: 0 | M189: 30 | O189: 40 | P189: 50 | Q189: 30 | R189: 70 | T189: 41.76 | U189: 0 | V189: 536.5127248 | W189: 72.1737269 | X189: 0.76285417 | Y189: 0 | Z189: -0.4 | AA189: 0.4 | AB189: 0.6 | AC189: -0.4 | AD189: 0.4 | AW189: 5281980000
A190: 158 | B190: =IF(A190>$B$30,NA(),IF($A190>$A$8,"",OFFSET(InputPriceData!$B$15,$A190+$A$11,0,1,1))) -> 2020-11-13 | C190: =IF(A190>$B$30,NA(),IF($A190>$A$8,"",OFFSET(InputPriceData!$G$15,CalculationsAndCharts!$A190+$A$11,IF($C$5,8,0),1,1))) -> 4709670000 | D190: =IF(A190>$B$30,NA(),IF(A190>$A$8,"",OFFSET(InputPriceData!$C$15,CalculationsAndCharts!$A190+$A$11,IF($C$5,8,0),1,1))) -> 3552.57 | E190: =IF(A190>$B$30,NA(),IF(A190>$A$8,"",OFFSET(InputPriceData!$D$15,CalculationsAndCharts!$A190+$A$11,IF($C$5,8,0),1,1))) -> 3593.66 | F190: =IF(A190>$B$30,NA(),IF(A190>$A$8,"",OFFSET(InputPriceData!$E$15,CalculationsAndCharts!$A190+$A$11,IF($C$5,8,0),1,1))) -> 3552.57 | G190: =IF(A190>$B$30,NA(),IF(A190>$A$8,"",OFFSET(InputPriceData!$F$15,CalculationsAndCharts!$A190+$A$11,IF($C$5,8,0),1,1))) -> 3585.15 | H190: 48.14 | I190: 395.9 | J190: 211.72 | K190: 65.15585399 | L190: 0 | M190: 30 | O190: 40 | P190: 50 | Q190: 30 | R190: 70 | T190: 48.14 | U190: 0 | V190: 558.0016623 | W190: 103.9370655 | X190: 0.6859616725 | Y190: 0 | Z190: -0.4 | AA190: 0.4 | AB190: 0.6 | AC190: -0.4 | AD190: 0.4 | AW190: 4709670000
A191: 159 | B191: =IF(A191>$B$30,NA(),IF($A191>$A$8,"",OFFSET(InputPriceData!$B$15,$A191+$A$11,0,1,1))) -> 2020-11-12 | C191: =IF(A191>$B$30,NA(),IF($A191>$A$8,"",OFFSET(InputPriceData!$G$15,CalculationsAndCharts!$A191+$A$11,IF($C$5,8,0),1,1))) -> 4890120000 | D191: =IF(A191>$B$30,NA(),IF(A191>$A$8,"",OFFSET(InputPriceData!$C$15,CalculationsAndCharts!$A191+$A$11,IF($C$5,8,0),1,1))) -> 3562.67 | E191: =IF(A191>$B$30,NA(),IF(A191>$A$8,"",OFFSET(InputPriceData!$D$15,CalculationsAndCharts!$A191+$A$11,IF($C$5,8,0),1,1))) -> 3569.02 | F191: =IF(A191>$B$30,NA(),IF(A191>$A$8,"",OFFSET(InputPriceData!$E$15,CalculationsAndCharts!$A191+$A$11,IF($C$5,8,0),1,1))) -> 3518.58 | G191: =IF(A191>$B$30,NA(),IF(A191>$A$8,"",OFFSET(InputPriceData!$F$15,CalculationsAndCharts!$A191+$A$11,IF($C$5,8,0),1,1))) -> 3537.01 | H191: -35.65 | I191: 347.76 | J191: 276.14 | K191: 55.73970188 | L191: 0 | M191: 30 | O191: 40 | P191: 50 | Q191: 30 | R191: 70 | T191: 0 | U191: 35.65 | V191: 555.0720914 | W191: 159.9064543 | X191: 0.552695797 | Y191: 0 | Z191: -0.4 | AA191: 0.4 | AB191: 0.6 | AC191: -0.4 | AD191: 0.4 | AX191: 4890120000
A192: 160 | B192: =IF(A192>$B$30,NA(),IF($A192>$A$8,"",OFFSET(InputPriceData!$B$15,$A192+$A$11,0,1,1))) -> 2020-11-11 | C192: =IF(A192>$B$30,NA(),IF($A192>$A$8,"",OFFSET(InputPriceData!$G$15,CalculationsAndCharts!$A192+$A$11,IF($C$5,8,0),1,1))) -> 4609970000 | D192: =IF(A192>$B$30,NA(),IF(A192>$A$8,"",OFFSET(InputPriceData!$C$15,CalculationsAndCharts!$A192+$A$11,IF($C$5,8,0),1,1))) -> 3563.22 | E192: =IF(A192>$B$30,NA(),IF(A192>$A$8,"",OFFSET(InputPriceData!$D$15,CalculationsAndCharts!$A192+$A$11,IF($C$5,8,0),1,1))) -> 3581.16 | F192: =IF(A192>$B$30,NA(),IF(A192>$A$8,"",OFFSET(InputPriceData!$E$15,CalculationsAndCharts!$A192+$A$11,IF($C$5,8,0),1,1))) -> 3557 | G192: =IF(A192>$B$30,NA(),IF(A192>$A$8,"",OFFSET(InputPriceData!$F$15,CalculationsAndCharts!$A192+$A$11,IF($C$5,8,0),1,1))) -> 3572.66 | H192: 27.13 | I192: 359.66 | J192: 240.49 | K192: 59.92835125 | L192: 0 | M192: 30 | O192: 40 | P192: 50 | Q192: 30 | R192: 70 | T192: 27.13 | U192: 0 | V192: 521.4871073 | W192: 235.9736791 | X192: 0.3769349297 | Y192: 0 | Z192: -0.4 | AA192: 0.4 | AB192: 0 | AC192: -0.4 | AD192: 0.4 | AW192: 4609970000
A193: 161 | B193: =IF(A193>$B$30,NA(),IF($A193>$A$8,"",OFFSET(InputPriceData!$B$15,$A193+$A$11,0,1,1))) -> 2020-11-10 | C193: =IF(A193>$B$30,NA(),IF($A193>$A$8,"",OFFSET(InputPriceData!$G$15,CalculationsAndCharts!$A193+$A$11,IF($C$5,8,0),1,1))) -> 6024230000 | D193: =IF(A193>$B$30,NA(),IF(A193>$A$8,"",OFFSET(InputPriceData!$C$15,CalculationsAndCharts!$A193+$A$11,IF($C$5,8,0),1,1))) -> 3543.26 | E193: =IF(A193>$B$30,NA(),IF(A193>$A$8,"",OFFSET(InputPriceData!$D$15,CalculationsAndCharts!$A193+$A$11,IF($C$5,8,0),1,1))) -> 3557.22 | F193: =IF(A193>$B$30,NA(),IF(A193>$A$8,"",OFFSET(InputPriceData!$E$15,CalculationsAndCharts!$A193+$A$11,IF($C$5,8,0),1,1))) -> 3511.91 | G193: =IF(A193>$B$30,NA(),IF(A193>$A$8,"",OFFSET(InputPriceData!$F$15,CalculationsAndCharts!$A193+$A$11,IF($C$5,8,0),1,1))) -> 3545.53 | H193: -4.97 | I193: 350.46 | J193: 240.49 | K193: 59.30450969 | L193: 0 | M193: 30 | O193: 40 | P193: 50 | Q193: 30 | R193: 70 | T193: 0 | U193: 4.97 | V193: 461.4708762 | W193: 315.9039212 | X193: 0.1872545334 | Y193: 0 | Z193: -0.4 | AA193: 0.4 | AB193: 0 | AC193: -0.4 | AD193: 0.4 | AW193: 6024230000
A194: 162 | B194: =IF(A194>$B$30,NA(),IF($A194>$A$8,"",OFFSET(InputPriceData!$B$15,$A194+$A$11,0,1,1))) -> 2020-11-09 | C194: =IF(A194>$B$30,NA(),IF($A194>$A$8,"",OFFSET(InputPriceData!$G$15,CalculationsAndCharts!$A194+$A$11,IF($C$5,8,0),1,1))) -> 8556610000 | D194: =IF(A194>$B$30,NA(),IF(A194>$A$8,"",OFFSET(InputPriceData!$C$15,CalculationsAndCharts!$A194+$A$11,IF($C$5,8,0),1,1))) -> 3583.04 | E194: =IF(A194>$B$30,NA(),IF(A194>$A$8,"",OFFSET(InputPriceData!$D$15,CalculationsAndCharts!$A194+$A$11,IF($C$5,8,0),1,1))) -> 3645.99 | F194: =IF(A194>$B$30,NA(),IF(A194>$A$8,"",OFFSET(InputPriceData!$E$15,CalculationsAndCharts!$A194+$A$11,IF($C$5,8,0),1,1))) -> 3547.48 | G194: =IF(A194>$B$30,NA(),IF(A194>$A$8,"",OFFSET(InputPriceData!$F$15,CalculationsAndCharts!$A194+$A$11,IF($C$5,8,0),1,1))) -> 3550.5 | H194: 41.06 | I194: 350.46 | J194: 243.08 | K194: 59.04572565 | L194: 0 | M194: 30 | O194: 40 | P194: 50 | Q194: 30 | R194: 70 | T194: 41.06 | U194: 0 | V194: 384.6053677 | W194: 383.4480076 | X194: 0.001506874642 | Y194: 0 | Z194: -0.4 | AA194: 0.4 | AB194: 0 | AC194: -0.4 | AD194: 0.4 | AX194: 8556610000
A195: 163 | B195: =IF(A195>$B$30,NA(),IF($A195>$A$8,"",OFFSET(InputPriceData!$B$15,$A195+$A$11,0,1,1))) -> 2020-11-06 | C195: =IF(A195>$B$30,NA(),IF($A195>$A$8,"",OFFSET(InputPriceData!$G$15,CalculationsAndCharts!$A195+$A$11,IF($C$5,8,0),1,1))) -> 4833950000 | D195: =IF(A195>$B$30,NA(),IF(A195>$A$8,"",OFFSET(InputPriceData!$C$15,CalculationsAndCharts!$A195+$A$11,IF($C$5,8,0),1,1))) -> 3508.34 | E195: =IF(A195>$B$30,NA(),IF(A195>$A$8,"",OFFSET(InputPriceData!$D$15,CalculationsAndCharts!$A195+$A$11,IF($C$5,8,0),1,1))) -> 3521.58 | F195: =IF(A195>$B$30,NA(),IF(A195>$A$8,"",OFFSET(InputPriceData!$E$15,CalculationsAndCharts!$A195+$A$11,IF($C$5,8,0),1,1))) -> 3484.34 | G195: =IF(A195>$B$30,NA(),IF(A195>$A$8,"",OFFSET(InputPriceData!$F$15,CalculationsAndCharts!$A195+$A$11,IF($C$5,8,0),1,1))) -> 3509.44 | H195: -1.01 | I195: 325.6 | J195: 243.08 | K195: 57.25539847 | L195: 0 | M195: 30 | O195: 40 | P195: 50 | Q195: 30 | R195: 70 | T195: 0 | U195: 1.01 | V195: 303.2363786 | W195: 427.1508693 | X195: -0.1696558792 | Y195: 0 | Z195: -0.4 | AA195: 0.4 | AB195: 0 | AC195: -0.4 | AD195: 0.4 | AW195: 4833950000
A196: 164 | B196: =IF(A196>$B$30,NA(),IF($A196>$A$8,"",OFFSET(InputPriceData!$B$15,$A196+$A$11,0,1,1))) -> 2020-11-05 | C196: =IF(A196>$B$30,NA(),IF($A196>$A$8,"",OFFSET(InputPriceData!$G$15,CalculationsAndCharts!$A196+$A$11,IF($C$5,8,0),1,1))) -> 4841190000 | D196: =IF(A196>$B$30,NA(),IF(A196>$A$8,"",OFFSET(InputPriceData!$C$15,CalculationsAndCharts!$A196+$A$11,IF($C$5,8,0),1,1))) -> 3485.74 | E196: =IF(A196>$B$30,NA(),IF(A196>$A$8,"",OFFSET(InputPriceData!$D$15,CalculationsAndCharts!$A196+$A$11,IF($C$5,8,0),1,1))) -> 3529.05 | F196: =IF(A196>$B$30,NA(),IF(A196>$A$8,"",OFFSET(InputPriceData!$E$15,CalculationsAndCharts!$A196+$A$11,IF($C$5,8,0),1,1))) -> 3485.74 | G196: =IF(A196>$B$30,NA(),IF(A196>$A$8,"",OFFSET(InputPriceData!$F$15,CalculationsAndCharts!$A196+$A$11,IF($C$5,8,0),1,1))) -> 3510.45 | H196: 67.01 | I196: 325.6 | J196: 298.96 | K196: 52.13270142 | L196: 0 | M196: 30 | O196: 40 | P196: 50 | Q196: 30 | R196: 70 | T196: 67.01 | U196: 0 | V196: 229.2840863 | W196: 443.9446045 | X196: -0.3188523025 | Y196: 0 | Z196: -0.4 | AA196: 0.4 | AB196: 0 | AC196: -0.4 | AD196: 0.4 | AW196: 4841190000
A197: 165 | B197: =IF(A197>$B$30,NA(),IF($A197>$A$8,"",OFFSET(InputPriceData!$B$15,$A197+$A$11,0,1,1))) -> 2020-11-04 | C197: =IF(A197>$B$30,NA(),IF($A197>$A$8,"",OFFSET(InputPriceData!$G$15,CalculationsAndCharts!$A197+$A$11,IF($C$5,8,0),1,1))) -> 4783040000 | D197: =IF(A197>$B$30,NA(),IF(A197>$A$8,"",OFFSET(InputPriceData!$C$15,CalculationsAndCharts!$A197+$A$11,IF($C$5,8,0),1,1))) -> 3406.46 | E197: =IF(A197>$B$30,NA(),IF(A197>$A$8,"",OFFSET(InputPriceData!$D$15,CalculationsAndCharts!$A197+$A$11,IF($C$5,8,0),1,1))) -> 3486.25 | F197: =IF(A197>$B$30,NA(),IF(A197>$A$8,"",OFFSET(InputPriceData!$E$15,CalculationsAndCharts!$A197+$A$11,IF($C$5,8,0),1,1))) -> 3405.17 | G197: =IF(A197>$B$30,NA(),IF(A197>$A$8,"",OFFSET(InputPriceData!$F$15,CalculationsAndCharts!$A197+$A$11,IF($C$5,8,0),1,1))) -> 3443.44 | H197: 74.28 | I197: 259.06 | J197: 298.96 | K197: 46.42485932 | L197: 0 | M197: 30 | O197: 40 | P197: 50 | Q197: 30 | R197: 70 | T197: 74.28 | U197: 0 | V197: 172.0263241 | W197: 435.7565034 | X197: -0.4339217355 | Y197: -0.6 | Z197: -0.4 | AA197: 0.4 | AB197: 0 | AC197: -0.4 | AD197: 0.4 | AW197: 4783040000
A198: 166 | B198: =IF(A198>$B$30,NA(),IF($A198>$A$8,"",OFFSET(InputPriceData!$B$15,$A198+$A$11,0,1,1))) -> 2020-11-03 | C198: =IF(A198>$B$30,NA(),IF($A198>$A$8,"",OFFSET(InputPriceData!$G$15,CalculationsAndCharts!$A198+$A$11,IF($C$5,8,0),1,1))) -> 4220070000 | D198: =IF(A198>$B$30,NA(),IF(A198>$A$8,"",OFFSET(InputPriceData!$C$15,CalculationsAndCharts!$A198+$A$11,IF($C$5,8,0),1,1))) -> 3336.25 | E198: =IF(A198>$B$30,NA(),IF(A198>$A$8,"",OFFSET(InputPriceData!$D$15,CalculationsAndCharts!$A198+$A$11,IF($C$5,8,0),1,1))) -> 3389.49 | F198: =IF(A198>$B$30,NA(),IF(A198>$A$8,"",OFFSET(InputPriceData!$E$15,CalculationsAndCharts!$A198+$A$11,IF($C$5,8,0),1,1))) -> 3336.25 | G198: =IF(A198>$B$30,NA(),IF(A198>$A$8,"",OFFSET(InputPriceData!$F$15,CalculationsAndCharts!$A198+$A$11,IF($C$5,8,0),1,1))) -> 3369.16 | H198: 58.92 | I198: 184.78 | J198: 304.29 | K198: 37.78191261 | L198: 0 | M198: 30 | O198: 40 | P198: 50 | Q198: 30 | R198: 70 | T198: 58.92 | U198: 0 | V198: 135.610794 | W198: 404.3758469 | X198: -0.4977253741 | Y198: -0.6 | Z198: -0.4 | AA198: 0.4 | AB198: 0 | AC198: -0.4 | AD198: 0.4 | AW198: 4220070000
A199: 167 | B199: =IF(A199>$B$30,NA(),IF($A199>$A$8,"",OFFSET(InputPriceData!$B$15,$A199+$A$11,0,1,1))) -> 2020-11-02 | C199: =IF(A199>$B$30,NA(),IF($A199>$A$8,"",OFFSET(InputPriceData!$G$15,CalculationsAndCharts!$A199+$A$11,IF($C$5,8,0),1,1))) -> 4310590000 | D199: =IF(A199>$B$30,NA(),IF(A199>$A$8,"",OFFSET(InputPriceData!$C$15,CalculationsAndCharts!$A199+$A$11,IF($C$5,8,0),1,1))) -> 3296.2 | E199: =IF(A199>$B$30,NA(),IF(A199>$A$8,"",OFFSET(InputPriceData!$D$15,CalculationsAndCharts!$A199+$A$11,IF($C$5,8,0),1,1))) -> 3330.14 | F199: =IF(A199>$B$30,NA(),IF(A199>$A$8,"",OFFSET(InputPriceData!$E$15,CalculationsAndCharts!$A199+$A$11,IF($C$5,8,0),1,1))) -> 3279.74 | G199: =IF(A199>$B$30,NA(),IF(A199>$A$8,"",OFFSET(InputPriceData!$F$15,CalculationsAndCharts!$A199+$A$11,IF($C$5,8,0),1,1))) -> 3310.24 | H199: 40.28 | I199: 125.86 | J199: 327.55 | K199: 27.75854084 | L199: 30 | M199: 0 | O199: 40 | P199: 50 | Q199: 30 | R199: 70 | T199: 40.28 | U199: 0 | V199: 114.1189098 | W199: 357.7003708 | X199: -0.5162600832 | Y199: -0.6 | Z199: -0.4 | AA199: 0.4 | AB199: 0 | AC199: -0.4 | AD199: 0.4 | AW199: 4310590000
A200: 168 | B200: =IF(A200>$B$30,NA(),IF($A200>$A$8,"",OFFSET(InputPriceData!$B$15,$A200+$A$11,0,1,1))) -> 2020-10-30 | C200: =IF(A200>$B$30,NA(),IF($A200>$A$8,"",OFFSET(InputPriceData!$G$15,CalculationsAndCharts!$A200+$A$11,IF($C$5,8,0),1,1))) -> 4840450000 | D200: =IF(A200>$B$30,NA(),IF(A200>$A$8,"",OFFSET(InputPriceData!$C$15,CalculationsAndCharts!$A200+$A$11,IF($C$5,8,0),1,1))) -> 3293.59 | E200: =IF(A200>$B$30,NA(),IF(A200>$A$8,"",OFFSET(InputPriceData!$D$15,CalculationsAndCharts!$A200+$A$11,IF($C$5,8,0),1,1))) -> 3304.93 | F200: =IF(A200>$B$30,NA(),IF(A200>$A$8,"",OFFSET(InputPriceData!$E$15,CalculationsAndCharts!$A200+$A$11,IF($C$5,8,0),1,1))) -> 3233.94 | G200: =IF(A200>$B$30,NA(),IF(A200>$A$8,"",OFFSET(InputPriceData!$F$15,CalculationsAndCharts!$A200+$A$11,IF($C$5,8,0),1,1))) -> 3269.96 | H200: -40.15 | I200: 85.58 | J200: 349.84 | K200: 19.65458638 | L200: 30 | M200: 0 | O200: 40 | P200: 50 | Q200: 30 | R200: 70 | T200: 0 | U200: 40.15 | V200: 99.7510683 | W200: 307.7386935 | X200: -0.510411904 | Y200: -0.6 | Z200: -0.4 | AA200: 0.4 | AB200: 0 | AC200: -0.4 | AD200: 0.4 | AX200: 4840450000
A201: 169 | B201: =IF(A201>$B$30,NA(),IF($A201>$A$8,"",OFFSET(InputPriceData!$B$15,$A201+$A$11,0,1,1))) -> 2020-10-29 | C201: =IF(A201>$B$30,NA(),IF($A201>$A$8,"",OFFSET(InputPriceData!$G$15,CalculationsAndCharts!$A201+$A$11,IF($C$5,8,0),1,1))) -> 4903070000 | D201: =IF(A201>$B$30,NA(),IF(A201>$A$8,"",OFFSET(InputPriceData!$C$15,CalculationsAndCharts!$A201+$A$11,IF($C$5,8,0),1,1))) -> 3277.17 | E201: =IF(A201>$B$30,NA(),IF(A201>$A$8,"",OFFSET(InputPriceData!$D$15,CalculationsAndCharts!$A201+$A$11,IF($C$5,8,0),1,1))) -> 3341.05 | F201: =IF(A201>$B$30,NA(),IF(A201>$A$8,"",OFFSET(InputPriceData!$E$15,CalculationsAndCharts!$A201+$A$11,IF($C$5,8,0),1,1))) -> 3259.82 | G201: =IF(A201>$B$30,NA(),IF(A201>$A$8,"",OFFSET(InputPriceData!$F$15,CalculationsAndCharts!$A201+$A$11,IF($C$5,8,0),1,1))) -> 3310.11 | H201: 39.08 | I201: 142.66 | J201: 309.69 | K201: 31.53752625 | L201: 0 | M201: 30 | O201: 40 | P201: 50 | Q201: 30 | R201: 70 | T201: 39.08 | U201: 0 | V201: 91.35013463 | W201: 265.0567146 | X201: -0.4873828332 | Y201: -0.6 | Z201: -0.4 | AA201: 0.4 | AB201: 0 | AC201: -0.4 | AD201: 0.4 | AW201: 4903070000
A202: 170 | B202: =IF(A202>$B$30,NA(),IF($A202>$A$8,"",OFFSET(InputPriceData!$B$15,$A202+$A$11,0,1,1))) -> 2020-10-28 | C202: =IF(A202>$B$30,NA(),IF($A202>$A$8,"",OFFSET(InputPriceData!$G$15,CalculationsAndCharts!$A202+$A$11,IF($C$5,8,0),1,1))) -> 5129860000 | D202: =IF(A202>$B$30,NA(),IF(A202>$A$8,"",OFFSET(InputPriceData!$C$15,CalculationsAndCharts!$A202+$A$11,IF($C$5,8,0),1,1))) -> 3342.48 | E202: =IF(A202>$B$30,NA(),IF(A202>$A$8,"",OFFSET(InputPriceData!$D$15,CalculationsAndCharts!$A202+$A$11,IF($C$5,8,0),1,1))) -> 3342.48 | F202: =IF(A202>$B$30,NA(),IF(A202>$A$8,"",OFFSET(InputPriceData!$E$15,CalculationsAndCharts!$A202+$A$11,IF($C$5,8,0),1,1))) -> 3268.89 | G202: =IF(A202>$B$30,NA(),IF(A202>$A$8,"",OFFSET(InputPriceData!$F$15,CalculationsAndCharts!$A202+$A$11,IF($C$5,8,0),1,1))) -> 3271.03 | H202: -119.65 | I202: 133.89 | J202: 309.69 | K202: 30.1839578 | L202: 0 | M202: 30 | O202: 40 | P202: 50 | Q202: 30 | R202: 70 | T202: 0 | U202: 119.65 | V202: 94.44158 | W202: 233.563386 | X202: -0.4241454259 | Y202: -0.6 | Z202: -0.4 | AA202: 0.4 | AB202: 0 | AC202: -0.4 | AD202: 0.4 | AX202: 5129860000
A203: 171 | B203: =IF(A203>$B$30,NA(),IF($A203>$A$8,"",OFFSET(InputPriceData!$B$15,$A203+$A$11,0,1,1))) -> 2020-10-27 | C203: =IF(A203>$B$30,NA(),IF($A203>$A$8,"",OFFSET(InputPriceData!$G$15,CalculationsAndCharts!$A203+$A$11,IF($C$5,8,0),1,1))) -> 3946990000 | D203: =IF(A203>$B$30,NA(),IF(A203>$A$8,"",OFFSET(InputPriceData!$C$15,CalculationsAndCharts!$A203+$A$11,IF($C$5,8,0),1,1))) -> 3403.15 | E203: =IF(A203>$B$30,NA(),IF(A203>$A$8,"",OFFSET(InputPriceData!$D$15,CalculationsAndCharts!$A203+$A$11,IF($C$5,8,0),1,1))) -> 3409.51 | F203: =IF(A203>$B$30,NA(),IF(A203>$A$8,"",OFFSET(InputPriceData!$E$15,CalculationsAndCharts!$A203+$A$11,IF($C$5,8,0),1,1))) -> 3388.71 | G203: =IF(A203>$B$30,NA(),IF(A203>$A$8,"",OFFSET(InputPriceData!$F$15,CalculationsAndCharts!$A203+$A$11,IF($C$5,8,0),1,1))) -> 3390.68 | H203: -10.29 | I203: 161.28 | J203: 190.04 | K203: 45.90686554 | L203: 0 | M203: 30 | O203: 40 | P203: 50 | Q203: 30 | R203: 70 | T203: 0 | U203: 10.29 | V203: 110.100649 | W203: 215.2330406 | X203: -0.3231524892 | Y203: 0 | Z203: -0.4 | AA203: 0.4 | AB203: 0 | AC203: -0.4 | AD203: 0.4 | AX203: 3946990000
A204: 172 | B204: =IF(A204>$B$30,NA(),IF($A204>$A$8,"",OFFSET(InputPriceData!$B$15,$A204+$A$11,0,1,1))) -> 2020-10-26 | C204: =IF(A204>$B$30,NA(),IF($A204>$A$8,"",OFFSET(InputPriceData!$G$15,CalculationsAndCharts!$A204+$A$11,IF($C$5,8,0),1,1))) -> 3988080000 | D204: =IF(A204>$B$30,NA(),IF(A204>$A$8,"",OFFSET(InputPriceData!$C$15,CalculationsAndCharts!$A204+$A$11,IF($C$5,8,0),1,1))) -> 3441.42 | E204: =IF(A204>$B$30,NA(),IF(A204>$A$8,"",OFFSET(InputPriceData!$D$15,CalculationsAndCharts!$A204+$A$11,IF($C$5,8,0),1,1))) -> 3441.42 | F204: =IF(A204>$B$30,NA(),IF(A204>$A$8,"",OFFSET(InputPriceData!$E$15,CalculationsAndCharts!$A204+$A$11,IF($C$5,8,0),1,1))) -> 3364.86 | G204: =IF(A204>$B$30,NA(),IF(A204>$A$8,"",OFFSET(InputPriceData!$F$15,CalculationsAndCharts!$A204+$A$11,IF($C$5,8,0),1,1))) -> 3400.97 | H204: -64.42 | I204: 219.75 | J204: 179.75 | K204: 55.00625782 | L204: 0 | M204: 30 | O204: 40 | P204: 50 | Q204: 30 | R204: 70 | T204: 0 | U204: 64.42 | V204: 139.6640898 | W204: 202.8908756 | X204: -0.1845741331 | Y204: 0 | Z204: -0.4 | AA204: 0.4 | AB204: 0 | AC204: -0.4 | AD204: 0.4 | AX204: 3988080000
... 921 more rows

Sheet Follow
A1: Stocks and Indexes I wish to follow
A3: To ease following a stock, enter a Yahoo Finance acceptable symbol in column "A" anywhere below cell "A9".
A4: Thereafter you may doubleclick the cell containing a symbol of interest to initiate data retrieval and charting for that symbol.
A7: Symbol
A8: To | B8: Description | C8: Last Trade as of most recent check
A9: Follow | C9: Date | D9: Time | E9: Open | F9: High | G9: Low | H9: Close | I9: Volume | J9: Change | K9: Retrieved @
A10: A | B10: Agilent Technologies, Inc. (A) -NYSE (Daily) | C10: 2020-03-09 | D10: 16:04:00 | E10: 72.589996 | F10: 74.190002 | G10: 70.169998 | H10: 70.75 | I10: 4591093 | J10: -7.809998 | K10: 2020-03-09T16:59:21
A11: AA | B11: Alcoa Corporation (AA) -NYSE (Daily) | C11: 2020-01-31 | D11: 16:04:00 | E11: 14.01 | F11: 14.24 | G11: 13.62 | H11: 13.95 | I11: 9931500 | J11: -0.34 | K11: 2020-02-02T15:07:13
A12: AAL | B12: American Airlines Group Inc. (AAL) -NasdaqGS (Daily) | C12: 2020-03-09 | D12: 16:00:00 | E12: 14.87 | F12: 15.79 | G12: 14.46 | H12: 14.75 | I12: 41078614 | J12: -1.22 | K12: 2020-03-09T17:00:15
A13: AAPL | B13: Apple Inc. (AAPL) -NasdaqGS (Daily) | C13: 2020-06-17 | D13: 16:00:00 | E13: 355.149994 | F13: 355.369995 | G13: 351.089996 | H13: 351.589996 | I13: 27604481 | J13: -0.489991 | K13: 2020-06-17T17:45:34
A14: ADM | B14: Archer-Daniels-Midland Company (ADM) -NYSE (Weekly) | C14: 2018-07-13 | D14: 16:00:00 | E14: 47.5 | F14: 47.84 | G14: 47.169998 | H14: 47.57 | I14: 2402809 | J14: 0
A15: ADBE | B15: Adobe Inc. (ADBE) -NasdaqGS (Daily) | C15: 2020-06-17 | D15: 16:00:00 | E15: 414 | F15: 417.425995 | G15: 411.429993 | H15: 413.48999 | I15: 2026063 | J15: 1.819977 | K15: 2020-06-17T17:42:59
A16: ALGN | B16: Align Technology, Inc. (ALGN) -NasdaqGS (Daily) | C16: 2020-01-30 | D16: 16:00:00 | E16: 248.740005 | F16: 264.450012 | G16: 248.350006 | H16: 262.890015 | I16: 1833160 | J16: 1.290009
A17: AMC | B17: AMC Entertainment Holdings, Inc. (AMC) -NYSE (Weekly) | C17: 2018-07-13 | D17: 16:02:00 | E17: 17.049999 | F17: 17.15 | G17: 16.525 | H17: 17.049999 | I17: 1442776 | J17: 0
A18: AMD | B18: Advanced Micro Devices, Inc. (AMD) -NasdaqGS (Daily) | C18: 2020-08-19 | D18: 12:40:00 | E18: 81.775703 | F18: 81.849998 | G18: 80.449997 | H18: 80.760002 | I18: 18434143 | J18: -0.900002 | K18: 2020-08-19T12:40:49
A19: BSX | B19: Boston Scientific Corporation C (BSX) -NYQ (Daily) | C19: 2015-03-13 | D19: 16:01:00 | E19: 16.84 | F19: 16.91 | G19: 16.44 | H19: 16.61 | I19: 7262460 | J19: -0.28
A20: CASY | B20: Casey's General Stores, Inc. (CASY) -NasdaqGS (Daily) | C20: 2019-04-10 | D20: 16:00:00 | E20: 128.979996 | F20: 130.330002 | G20: 128.779999 | H20: 130.179993 | I20: 351300 | J20: 1.489991
A21: CAT | B21: Caterpillar Inc. (CAT) -NYSE (Daily) | C21: 2020-03-13 | D21: 11:48:00 | E21: 98.389999 | F21: 99.910004 | G21: 90.150101 | H21: 90.269997 | I21: 3568294 | J21: -1.990005 | K21: 2020-03-13T11:48:53
A22: CSCO | B22: Cisco Systems, In (CSCO) -NasdaqNM (Daily) | C22: 2015-02-19 | D22: 16:00:00 | E22: 29.32 | F22: 29.39 | G22: 29.13 | H22: 29.31 | I22: 21469012 | J22: -0.18
A23: CVS | B23: CVS Health Corporation (CVS) -NYSE (Daily) | C23: 2020-03-09 | D23: 16:07:00 | E23: 59.75 | F23: 63 | G23: 59.599998 | H23: 61.299999 | I23: 13065424 | J23: -2.850003 | K23: 2020-03-09T17:51:54
A24: DIS | B24: The Walt Disney Company (DIS) -NYSE (Daily) | C24: 2020-03-09 | D24: 16:07:00 | E24: 108.690002 | F24: 110.43 | G24: 104.279999 | H24: 104.349998 | I24: 26101127 | J24: -10.919999 | K24: 2020-03-09T16:59:51
A25: F | B25: Ford Motor Company (F) -NYSE (Daily) | C25: 2020-01-31 | D25: 16:03:00 | E25: 8.78 | F25: 8.84 | G25: 8.74 | H25: 8.82 | I25: 59781000 | J25: -0.02 | K25: 2020-02-02T15:09:03
A26: FAS | B26: Direxion Daily Financial Bull 3X ETF (FAS) -NYSEArca (Daily) | C26: 2017-10-13 | D26: 16:00:00 | E26: 58.099998 | F26: 58.939999 | G26: 57.43 | H26: 58.450001 | I26: 1709300 | J26: 0.07
A27: FB | B27: Facebook, Inc. (FB) -NasdaqGS (Daily) | C27: 2020-02-14 | D27: 16:00:00 | E27: 214 | F27: 214.929993 | G27: 212.649994 | H27: 214.179993 | I27: 10727400 | J27: 1.039994 | K27: 2020-02-15T17:19:34
A28: GSK | B28: GlaxoSmithKline plc (GSK) -NYSE (Daily) | C28: 2021-01-15 | D28: 16:00:00 | E28: 38.41 | F28: 38.66 | G28: 38.209999 | H28: 38.470001 | I28: 3100400 | J28: 0.310001 | K28: 2021-01-17T18:07:58
A29: GDX | B29: VanEck Vectors Gold Miners ETF (GDX) -NYSEArca (Daily) | C29: 2020-01-31 | D29: 16:00:00 | E29: 28.799999 | F29: 29.24 | G29: 28.76 | H29: 28.99 | I29: 41946000 | J29: 0.26 | K29: 2020-02-02T15:11:17
A30: GOOG | B30: Alphabet Inc. (GOOG) -NasdaqGS (Daily) | C30: 2021-06-10 | D30: 16:00:00 | E30: 2494.01001 | F30: 2523.26001 | G30: 2494.01001 | H30: 2521.600098 | I30: 1390763 | J30: 30.200196 | K30: 2021-06-10T16:45:42
A31: HAL | B31: Halliburton Company (HAL) -NYSE (Daily) | C31: 2020-09-17 | D31: 11:11:00 | E31: 14.73 | F31: 14.945 | G31: 14.57 | H31: 14.91 | I31: 4265279 | J31: -0.16 | K31: 2020-09-17T11:11:52
A32: HD | B32: The Home Depot, Inc. (HD) -NYSE (Daily) | C32: 2020-03-13 | D32: 11:54:00 | E32: 200.449997 | F32: 201.179993 | G32: 192.270096 | H32: 193.449997 | I32: 3274582 | J32: 2.860001 | K32: 2020-03-13T11:54:29
A33: HSY | B33: The Hershey Company (HSY) -NYSE (Daily) | C33: 2021-01-15 | D33: 16:00:00 | E33: 147.089996 | F33: 149.490005 | G33: 146.880005 | H33: 148.460007 | I33: 1193700 | J33: 1.040009 | K33: 2021-01-17T18:06:10
A34: HTLD | B34: Heartland Express, Inc. (HTLD) -NasdaqGS (Daily) | C34: 2020-03-09 | D34: 16:00:00 | E34: 17.33 | F34: 17.690001 | G34: 16.82 | H34: 16.879999 | I34: 284762 | J34: -1.280001 | K34: 2020-03-09T17:00:56
A35: IDEX | B35: Ideanomics, Inc. (IDEX) -NasdaqGS (Daily) | C35: 2021-02-19 | D35: 10:11:00 | E35: 3.99 | F35: 4.15 | G35: 3.88 | H35: 3.92 | I35: 8623006 | J35: 0.19 | K35: 2021-02-19T10:11:40
A36: IBM | B36: International Business Machines Corporation (IBM) -NYSE (Daily) | C36: 2021-02-09 | D36: 16:00:00 | E36: 121.900002 | F36: 122.565002 | G36: 121.050003 | H36: 122.099998 | I36: 4173266 | J36: -1.510003 | K36: 2021-02-09T17:01:49
A37: INTC | B37: Intel Corporation (INTC) -NasdaqGS (Daily) | C37: 2020-02-14 | D37: 16:00:00 | E37: 67.519997 | F37: 67.860001 | G37: 66.82 | H37: 67.269997 | I37: 13402800 | J37: -0.170005 | K37: 2020-02-15T17:21:41
A38: JAH | B38: Jarden Corporation Common Stock (JAH) -NYQ (Daily) | C38: 2016-01-08 | D38: 16:02:00 | E38: 53.82 | F38: 53.88 | G38: 52.65 | H38: 52.73 | I38: 4519480 | J38: -0.81
A39: JNJ | B39: Johnson & Johnson (JNJ) -NYSE (Daily) | C39: 2019-08-14 | D39: 10:33:00 | E39: 132.529999 | F39: 132.539993 | G39: 131.419998 | H39: 131.759995 | I39: 870520 | J39: -0.169998
A40: KO | B40: The Coca-Cola Company (KO) -NYSE (Daily) | C40: 2020-03-09 | D40: 16:07:00 | E40: 52.049999 | F40: 53.580002 | G40: 51.474998 | H40: 51.860001 | I40: 27771279 | J40: -3.399997 | K40: 2020-03-09T17:05:43
A41: LOW | B41: Lowe's Companies, Inc. (LOW) -NYSE (Daily) | C41: 2020-03-09 | D41: 16:03:00 | E41: 97.82 | F41: 99.82 | G41: 93.150101 | H41: 94.220001 | I41: 8167579 | J41: -11.089997 | K41: 2020-03-09T16:57:19
A42: LMT | B42: Lockheed Martin Corporation (LMT) -NYSE (Daily) | C42: 2021-02-09 | D42: 16:04:00 | E42: 338.540009 | F42: 344.48999 | G42: 336.570007 | H42: 342.339996 | I42: 1545066 | J42: 4.5 | K42: 2021-02-09T16:56:05
A43: MCD | B43: McDonald's Corporation (MCD) -NYSE (Daily) | C43: 2020-03-09 | D43: 16:01:00 | E43: 187.669998 | F43: 194.470001 | G43: 184.100006 | H43: 186.860001 | I43: 7601343 | J43: -12 | K43: 2020-03-09T16:58:16
A44: MDT | B44: Medtronic plc (MDT) -NYSE (Daily) | C44: 2020-03-09 | D44: 16:07:00 | E44: 94.019997 | F44: 95.470001 | G44: 91.709999 | H44: 92.400002 | I44: 9000931 | J44: -6.659996 | K44: 2020-03-09T17:48:45
A45: MGM | B45: MGM Resorts International (MGM) -NYSE (Daily) | C45: 2020-03-09 | D45: 16:02:00 | E45: 18.6 | F45: 19.58 | G45: 17.530001 | H45: 17.879999 | I45: 26050818 | J45: -2.51 | K45: 2020-03-09T17:13:53
A46: MO | B46: Altria Group, Inc. (MO) -NYSE (Daily) | C46: 2020-01-31 | D46: 16:05:00 | E46: 48.25 | F46: 48.799999 | G46: 47.240002 | H46: 47.529999 | I46: 11790800 | J46: -0.470001 | K46: 2020-02-02T15:20:55
A47: MSFT | B47: Microsoft Corporation (MSFT) -NasdaqGS (Daily) | C47: 2020-03-09 | D47: 16:00:00 | E47: 151 | F47: 157.75 | G47: 150 | H47: 150.619995 | I47: 69167627 | J47: -10.950012 | K47: 2020-03-09T17:06:41
A48: NFLX | B48: Netflix, Inc. (NFLX) -NasdaqGS (Daily) | C48: 2020-03-09 | D48: 16:00:00 | E48: 343.859985 | F48: 357.470001 | G48: 341.720886 | H48: 346.48999 | I48: 6746188 | J48: -22.480011 | K48: 2020-03-09T17:23:37
A49: NUGT | B49: Direxion Daily Gold Miners Index Bull 3X Shares (NUGT) -NYSEArca (Daily) | C49: 2020-01-31 | D49: 16:00:00 | E49: 32.439999 | F49: 33.830002 | G49: 32.240002 | H49: 33.02 | I49: 11325200 | J49: 0.84 | K49: 2020-02-02T15:21:51
A50: NVS | B50: Novartis AG (NVS) -NYSE (Daily) | C50: 2020-03-06 | D50: 16:02:00 | E50: 84.330002 | F50: 85.830002 | G50: 83.970001 | H50: 85.720001 | I50: 5624700 | J50: -0.089997 | K50: 2020-03-08T16:56:35
A51: NVDA | B51: NVIDIA Corporation (NVDA) -NasdaqGS (Daily) | C51: 2020-12-14 | D51: 16:00:00 | E51: 523.515015 | F51: 535.549988 | G51: 523.099976 | H51: 532.349976 | I51: 6580666 | J51: 11.819947 | K51: 2020-12-14T18:31:17
A52: PRU | B52: Prudential Financial, Inc. (PRU) -NYSE (Daily) | C52: 2020-03-09 | D52: 16:02:00 | E52: 63.75 | F52: 65.830002 | G52: 57.375 | H52: 58.240002 | I52: 7614493 | J52: -11.569996 | K52: 2020-03-09T17:11:43
A53: PSEC | B53: Prospect Capital Corporation (PSEC) -NasdaqGS (Daily) | C53: 2020-02-14 | D53: 16:00:00 | E53: 6.53 | F53: 6.56 | G53: 6.51 | H53: 6.52 | I53: 1235500 | J53: -0.04 | K53: 2020-02-15T14:43:16
A54: RPM | B54: RPM International Inc. (RPM) -NYSE (Daily) | C54: 2020-03-09 | D54: 16:02:00 | E54: 64.470001 | F54: 66.730003 | G54: 63.5 | H54: 65.290001 | I54: 1115882 | J54: -2.919998 | K54: 2020-03-09T17:10:08
A55: RSP | B55: Invesco S&P 500 Equal Weight ETF (RSP) -NYSEArca (Daily) | C55: 2020-01-31 | D55: 16:00:00 | E55: 115.279999 | F55: 115.32 | G55: 113.230003 | H55: 113.540001 | I55: 747600 | J55: -2.309997 | K55: 2020-02-02T15:28:52
A56: SPR | B56: Spirit AeroSystems Holdings, Inc. (SPR) -NYSE (Daily) | C56: 2020-03-09 | D56: 16:06:00 | E56: 43.700001 | F56: 43.880001 | G56: 41.5 | H56: 42.139999 | I56: 2091368 | J56: -5.23 | K56: 2020-03-09T17:09:37
A57: SQ | B57: Square, Inc. (SQ) -NYSE (Daily) | C57: 2020-10-02 | D57: 16:00:00 | E57: 164.050003 | F57: 171.240005 | G57: 163.800995 | H57: 169.610001 | I57: 11150500 | J57: 1.119996 | K57: 2020-10-04T20:00:52
A58: SWKS | B58: Skyworks Solutions, Inc. (SWKS) -NasdaqGS (Daily) | C58: 2020-01-31 | D58: 16:00:00 | E58: 115.5 | F58: 115.739998 | G58: 112.720001 | H58: 113.150002 | I58: 2444600 | J58: -3.080001 | K58: 2020-02-02T15:26:46
A59: TOL | B59: Toll Brothers, Inc. (TOL) -NYSE (Daily) | C59: 2020-03-09 | D59: 16:07:00 | E59: 34.759998 | F59: 35.314999 | G59: 32.060001 | H59: 34.110001 | I59: 3127968 | J59: -2.86 | K59: 2020-03-09T17:12:09
A60: TSLA | B60: Tesla, Inc. (TSLA) -NasdaqGS (Daily) | C60: 2020-03-13 | D60: 12:08:00 | E60: 595 | F60: 607.570007 | G60: 502.01001 | H60: 510 | I60: 12224537 | J60: -50.549988 | K60: 2020-03-13T12:08:39
A61: TXN | B61: Texas Instruments Incorporated (TXN) -NasdaqGS (Daily) | C61: 2020-06-19 | D61: 11:30:00 | E61: 128.059998 | F61: 128.179993 | G61: 126.07 | H61: 126.370003 | I61: 2078988 | J61: 0.39 | K61: 2020-06-19T11:31:00
A62: UNP | B62: Union Pacific Corporation (UNP) -NYSE (Daily) | C62: 2020-03-09 | D62: 16:07:00 | E62: 145.199997 | F62: 145.580002 | G62: 133.179993 | H62: 135.839996 | I62: 9380024 | J62: -20.25 | K62: 2020-03-09T17:11:21
A63: VZ | B63: Verizon Communications Inc. (VZ) -NYSE (Daily) | C63: 2019-04-10 | D63: 16:00:00 | E63: 58.400002 | F63: 58.700001 | G63: 58.360001 | H63: 58.610001 | I63: 8022000 | J63: 0.209999
A64: WBA | B64: Walgreens Boots Alliance, Inc. (WBA) -NasdaqGS (Daily) | C64: 2020-01-31 | D64: 16:00:00 | E64: 51.709999 | F64: 51.919998 | G64: 50.66 | H64: 50.849998 | I64: 6532300 | J64: -1.100003 | K64: 2020-02-02T15:28:06
A65: WMT | B65: Walmart Inc. (WMT) -NYSE (Daily) | C65: 2020-03-09 | D65: 16:01:00 | E65: 113.82 | F65: 120.629997 | G65: 112.730003 | H65: 117.160004 | I65: 19567750 | J65: -0.069999 | K65: 2020-03-09T17:10:39
A67: ^AEX | B67: AEX-INDEX (^AEX) -Amsterdam (Daily) | C67: 2020-03-09 | D67: 18:05:00 | E67: 506.950012 | F67: 506.950012 | G67: 485.730011 | H67: 490.660004 | I67: 0 | J67: -40.629974 | K67: 2020-03-09T17:41:58
A68: ^AORD | B68: ALL ORDINARIES (^AORD) -ASX (Daily) | C68: 2020-03-09 | D68: 16:17:00 | E68: 6472.399902 | F68: 6287.299805 | G68: 5822.399902 | H68: 5822.399902 | I68: 0 | J68: -465.100098 | K68: 2020-03-09T17:45:59
A69: ^DJI | B69: Dow Jones Industrial Average (^DJI) -DJI (Daily) | C69: 2021-01-15 | D69: 17:18:00 | E69: 30926.76953 | F69: 30941.98047 | G69: 30612.66992 | H69: 30814.25977 | I69: 433000000 | J69: -177.259765 | K69: 2021-01-18T09:45:18
A70: ^FTSE | B70: FTSE 100 (^FTSE) -FTSE Index (Daily) | C70: 2020-03-09 | D70: 16:45:00 | E70: 6462.549805 | F70: 6462.549805 | G70: 5891.560059 | H70: 5965.77002 | I70: 0 | J70: -496.830078 | K70: 2020-03-09T17:43:57
A71: ^GSPC | B71: S&P 500 (^GSPC) -SNP (Daily) | C71: 2021-10-08 | D71: 17:00:00 | E71: 4406.509766 | F71: 4412.02002 | G71: 4386.220215 | H71: 4391.339844 | I71: 2401890000 | J71: -8.419922 | K71: 2021-10-09T17:25:01
A72: ^HSI | B72: HANG SENG INDEX (^HSI) -HKSE (Daily) | C72: 2020-03-09 | D72: 16:08:00 | E72: 25134.01953 | F72: 25321.2793 | G72: 24948.38086 | H72: 25040.46094 | I72: 0 | J72: -1106.208984 | K72: 2020-03-09T17:39:06
A73: ^MID | B73: S&P MID CAP 400 INDEX (^MID) -NYSE (Daily) | C73: 2020-02-14 | D73: 16:06:00 | E73: 2099.459961 | F73: 2100.51001 | G73: 2089.610107 | H73: 2096.610107 | I73: 0 | J73: -0.679932 | K73: 2020-02-14T21:04:41
A74: ^NDX | B74: NASDAQ 100 (^NDX) -Nasdaq GIDS (Daily) | C74: 2021-06-17 | D74: 17:15:00 | E74: 13946.70019 | F74: 14205.43457 | G74: 13946.52148 | H74: 14163.80859 | I74: 618547720 | J74: 180.798828 | K74: 2021-06-18T09:08:44
A75: ^NYA | B75: NYSE COMPOSITE (DJ) (^NYA) -NYSE (Weekly) | C75: 2021-01-11 | D75: 16:10:00 | E75: 14828.03027 | F75: 15129.12012 | G75: 14791.65039 | H75: 14894.16992 | I75: 24551330000 | J75: -72.660156 | K75: 2021-01-18T09:10:33
A76: ^OEX | B76: S&P 100 INDEX (^OEX) -Chicago Options (Daily) | C76: 2019-09-13 | D76: 16:56:00 | E76: 1332.27002 | F76: 1334.420044 | G76: 1328.73999 | H76: 1330.969971 | I76: 3520060000 | J76: -1.010009
A77: ^RUT | B77: Russell 2000 (^RUT) -Chicago Options (Daily) | C77: 2021-01-15 | D77: 16:00:00 | E77: 2154.689941 | F77: 2154.689941 | G77: 2102.530029 | H77: 2123.199951 | I77: 53530600 | J77: -32.150147 | K77: 2021-01-18T08:41:42
A78: ^SSEC | B78: SSE Composite Index (^SSEC) -Shanghai (Daily) | C78: 2020-03-09 | D78: 15:00:00 | E78: 3039.939453 | F78: 2989.205078 | G78: 2940.713867 | H78: 2943.290771 | I78: 2801367936 | J78: -388.231202 | K78: 2020-03-09T17:38:09
A79: ^VIX | B79: CBOE Volatility Index (^VIX) -Chicago Options (Daily) | C79: 2020-03-09 | D79: 16:14:00 | E79: 41.939999 | F79: 62.119999 | G79: 41.939999 | H79: 54.459999 | I79: 0 | J79: 12.52 | K79: 2020-03-09T17:38:36
A80: IWM | B80: iShares Russell 2000 ETF (IWM) -NYSEArca (Daily) | C80: 2021-02-19 | D80: 09:56:00 | E80: 222.460007 | F80: 223.080002 | G80: 222.169998 | H80: 222.970001 | I80: 3614630 | J80: 2.380005 | K80: 2021-02-19T09:56:07
A81: QQQ | B81: Invesco QQQ Trust (QQQ) -NasdaqGM (Daily) | C81: 2020-08-27 | D81: 15:01:00 | E81: 293.079987 | F81: 293.851013 | G81: 288.704987 | H81: 291.994995 | I81: 41822663 | J81: 0.035004 | K81: 2020-08-27T15:02:03
A82: XLE | B82: Energy Select Sector SPDR Fund (XLE) -NYSEArca (Daily) | C82: 2020-07-10 | D82: 16:00:00 | E82: 34.240002 | F82: 35.580002 | G82: 34.240002 | H82: 35.540001 | I82: 25223900 | J82: 1.100002 | K82: 2020-07-11T16:34:13
A83: SPY | B83: SPDR S&P 500 ETF Trust (SPY) -NYSEArca (Daily) | C83: 2021-07-16 | D83: 16:00:00 | E83: 436.01001 | F83: 436.059998 | G83: 430.920013 | H83: 431.339996 | I83: 75784700 | J83: -3.410004 | K83: 2021-07-17T18:35:45
A85: ACAD | B85: ACADIA Pharmaceut (ACAD) -NasdaqNM (Daily) | C85: 2014-07-21 | D85: 16:00:00 | E85: 20.13 | F85: 20.55 | G85: 19.8101 | H85: 20.31 | I85: 691016
A86: CLDX | B86: Celldex Therapeut (CLDX) -NasdaqNM (Daily) | C86: 2015-02-02 | D86: 16:00:00 | E86: 21.47 | F86: 21.69 | G86: 20.11 | H86: 21.02 | I86: 1570418 | J86: -0.4
A87: ICPT | B87: Intercept Pharmac (ICPT) -NasdaqNM (Daily) | C87: 2014-07-21 | D87: 16:00:00 | E87: 215.97 | F87: 218.43 | G87: 213.05 | H87: 218.14 | I87: 191276
A88: INO | B88: Inovio Pharmaceut (INO) -AMEX (Daily) | C88: 2014-07-21 | D88: 16:00:00 | E88: 10.3 | F88: 11.08 | G88: 10.1 | H88: 11.01 | I88: 1800796
A89: JCP | B89: J. C. Penney Company, Inc. (JCP) -NYSE (Daily) | C89: 2017-12-07 | D89: 16:01:00 | E89: 3.34 | F89: 3.4 | G89: 3.25 | H89: 3.27 | I89: 14485464 | J89: -0.07
A90: LCI | B90: Lannett Co Inc Co (LCI) -NYSE (Daily) | C90: 2014-07-21 | D90: 16:02:00 | E90: 38.09 | F90: 38.803 | G90: 36.5101 | H90: 37.76 | I90: 611367
A91: NPSP | B91: NPS Pharmaceutica (NPSP) -NasdaqNM (Daily) | C91: 2014-07-21 | D91: 15:59:00 | E91: 28.75 | F91: 29.43 | G91: 28.31 | H91: 29.29 | I91: 1126758
A92: PBYI | B92: Puma Biotechnolog (PBYI) -NYSE (Daily) | C92: 2014-07-21 | D92: 16:02:00 | E92: 58.27 | F92: 59.46 | G92: 57.39 | H92: 58.98 | I92: 348030
